{"text_format":"2","workbook":"xlsx","n_sheets":1,"sheets":["Preisbenchmarking Daten"],"not_rendered":{"charts":0,"images":0,"macros":0,"external_links":1,"defined_names":0,"comments":1,"pivot_tables":0},"unopened":[],"bounds":{"document_bytes":16777216,"sheet_cells":100000,"run_cost":"one","rows_first":2000,"rows_last":500,"rows_between":2000,"halvings":0,"cell_chars":16384,"cell_head_chars":4096},"cells_cut":0,"cells_raw":0,"read":"whole","date_system":"1900"}

{"sheet":"Preisbenchmarking Daten","index":0,"n_rows":665,"n_cols":21,"rows_kept":665,"cut":false,"hidden":false,"merged":[]}
["Kosten-\ngruppen neu","Bezeichnung der Kostengruppe neu","Nummerierung\nDIN 276\n3 Ziffern","Anlagenklasse","Nummerierung\n2-stelliger Code Ziffer für Anlagen-klasse","Anlage System)","Nummerierung\n2-stelliger Code Ziffer für Anlage","Bauteil Komponente)","Nummerierung\n3-stelliger Code Ziffer für Bauteil","Art","Nummerierung\n2-stelliger Code Ziffer für Art","Bandbreite","Nummerierung\n2-stelliger Code Ziffer für Bandbreite",null,"Nummerierung\nErgebnis","Bemerkung","Abweichung","Mittelwert\nüber alle Mittelwerte","Min\nüber alle Mittelwerte","Max\nüber alle Mittelwerte","Mittelwert\nüber alle Mittelwerte von 2020 auf Mai 2023 indiziert"]
[411,"Abwasseranlagen",411,"Abwasserleitungen","01","Abwasserleitung","01","Kontroll-, Reinigungs- und Sammelschächte","171",null,"00",null,"00","Anzahl","411.01.01.171.00.00",null,2.1665211062590974,15.358198248621553,8.5875000000000004,18.605,{"$f":"R2*(((160.2-117.2)/100)+1)","v":21.962223495528821}]
[411,"Abwasseranlagen",411,"Abläufe","02","Abläufe","01","Bodenrinnen innen","120",null,"00",null,"00","Laufmeter","411.02.01.120.00.00",null,1.147322515464797,3.1742233979417867,2.956447739062348,3.3919990568212248,{"$f":"R3*(((160.2-117.2)/100)+1)","v":4.5391394590567549}]
[411,"Abwasseranlagen",411,"Abläufe","02","Abläufe","01","Bodenrinnen außen","119",null,"00",null,"00","Laufmeter","411.02.01.119.00.00",null,1.0871284613315442,3.2200368234458225,3.0856144057290145,3.3544592411626306,4.6046526575275264]
[411,"Abwasseranlagen",411,"Abläufe","02","Abläufe","01","Bodeneinläufe","118",null,"00",null,"00","Anzahl","411.02.01.118.00.00",null,1.2269668064290706,5.4902071344866625,4.7699999999999996,5.8526316666666665,7.850996202315927]
[411,"Abwasseranlagen",411,"Abläufe","02","Abläufe","01","Straßeneinlaufkästen außen","206",null,"00",null,"00","Anzahl","411.02.01.206.00.00",null,1.0489424949010799,14.474647966336754,14.128896249999999,14.820399682673511,20.698746591861557]
[411,"Abwasseranlagen",411,"Abläufe","02","Abläufe","01","Dachrinnen","126",null,"00",null,"00","Laufmeter","411.02.01.126.00.00",null,2.210236350497425,5.9432443328339071,3.7026833441176401,8.1838053215501745,8.4988393959524871]
[411,"Abwasseranlagen",411,"Abläufe","02","Abläufe","01","Dacheinläufe","125",null,"00",null,"00","Anzahl","411.02.01.125.00.00",null,1.5140194229888044,6.9687657044522844,5.7198737800235193,8.66,9.9653349573667658]
[411,"Abwasseranlagen",411,"Abwassersammelanlagen","03","Abwassersammelanlage","01","Sickerschächte","201",null,"00",null,"00","Anzahl","411.03.01.201.00.00",null,1.0814621012264629,32.391039401879404,31.123352553758806,33.658726250000001,46.319186344687544]
[411,"Abwasseranlagen",411,"Abwassersammelanlagen","03","Abwassersammelanlage","01","Rigolen","191",null,"00",null,"00","Anzahl","411.03.01.191.00.00",null,1.1163432767831389,58.286759610212734,55.082519220425468,61.491,83.3500662426042]
[411,"Abwasseranlagen",411,"Abwasserbehandlungsanlagen ","04","Leichtflüssigkeitsabscheider","01",null,"000",null,"00","Nenngröße <=2","01","Anzahl","411.04.01.000.00.01","ohne Entleerung und Entsorgung",1.9238340722009855,207.97356844630735,128.73251575,247.66,297.4022028782195]
[411,"Abwasseranlagen",411,"Abwasserbehandlungsanlagen ","04","Leichtflüssigkeitsabscheider","01",null,"000",null,"00","Nenngröße > 2 bis 5","02","Anzahl","411.04.01.000.00.02","ohne Entleerung und Entsorgung",1.037207560281856,320.18677953220026,314.33888797065049,326.03467109375003,457.86709473104634]
[411,"Abwasseranlagen",411,"Abwasserbehandlungsanlagen ","04","Fettabscheider","02",null,"000",null,"00","Nenngröße <= 5","01","Anzahl","411.04.02.000.00.01","ohne Entleerung und Entsorgung",1.7753009711656174,351.1840019346734,251.01493965587187,445.62706614814817,502.19312276658297]
[411,"Abwasseranlagen",411,"Abwasserbehandlungsanlagen ","04","Fettabscheider","02",null,"000",null,"00","Nenngröße > 5 bis 10","02","Anzahl","411.04.02.000.00.02","ohne Entleerung und Entsorgung",1.9610932765545324,378.62875565360986,256.75,503.51069875537621,541.43912058466208]
[411,"Abwasseranlagen",411,"Abwasserbehandlungsanlagen ","04","Fettabscheider","02",null,"000",null,"00","Nenngröße > 10 bis 15","03","Anzahl","411.04.02.000.00.03","ohne Entleerung und Entsorgung",1.1244881936873079,359.77009544161831,338.688721839582,380.85146904365462,514.47123648151421]
[411,"Abwasseranlagen",411,"Abwasserbehandlungsanlagen ","04","Stärkeabscheider","03",null,"000",null,"00","Nenngröße <=1","01","Anzahl","411.04.03.000.00.01","ohne Entleerung und Entsorgung",1.2727999065157471,170.91455296998419,150.4,191.42910593996839,244.40781074707738]
[411,"Abwasseranlagen",411,"Abwasserbehandlungsanlagen ","04","Stärkeabscheider","03",null,"000",null,"00","Nenngröße > 1 bis 2","02","Anzahl","411.04.03.000.00.02","ohne Entleerung und Entsorgung",1.4060819667704412,192.84746963665089,160.30000000000001,225.39493927330173,275.77188158041076]
[411,"Abwasseranlagen",411,"Abwasserbehandlungsanlagen ","04","Stärkeabscheider","03",null,"000",null,"00","Nenngröße > 2 bis 5","03","Anzahl","411.04.03.000.00.03","ohne Entleerung und Entsorgung",1.712779740876919,229.77244405227503,169.4,290.14488810455009,328.57459499475328]
[411,"Abwasseranlagen",411,"Hebeanlagen","05","Hebeanlage","01","Pumpen","012","fäkalienfrei; Einfachpumpe geschlossen","01","Fördermenge <= 10 m3/h","01","Anzahl","411.05.01.012.01.01",null,1.4260119316409836,44.848874488968335,35.160996123154021,50.14,64.133890519224721]
[411,"Abwasseranlagen",411,"Hebeanlagen","05","Hebeanlage","01","Pumpen","012","fäkalienhaltig; Einfachpumpe geschlossen","02","Fördermenge <= 10 m3/h","01","Anzahl","411.05.01.012.02.01",null,1.2879580982445082,61.653199398431489,54.598726388888885,70.320871806405577,88.164075139757031]
[411,"Abwasseranlagen",411,"Hebeanlagen","05","Hebeanlage","01","Pumpen","012","fäkalienfrei; Einfachpumpe geschlossen","01","Fördermenge > 10 bis 50 m3/h","02","Anzahl","411.05.01.012.01.02",null,1.354421363036274,58.552641086903726,47.900484183201684,64.877439077509507,83.730276754272325]
[411,"Abwasseranlagen",411,"Hebeanlagen","05","Hebeanlage","01","Pumpen","012","fäkalienhaltig; Einfachpumpe geschlossen","02","Fördermenge > 10 bis 50 m3/h","02","Anzahl","411.05.01.012.02.02",null,1.2189557185342526,85.562890901261056,77.1199625,94.005819302522113,122.35493398880331]
[411,"Abwasseranlagen",411,"Hebeanlagen","05","Hebeanlage","01","Pumpen","012","fäkalienfrei; Doppelpumpe geschlossen","03","Fördermenge <= 10 m3/h","01","Anzahl","411.05.01.012.03.01",null,1.5043694201610622,70.350591819548683,56.182279861111112,84.518903777986253,100.60134630195461]
[411,"Abwasseranlagen",411,"Hebeanlagen","05","Hebeanlage","01","Pumpen","012","fäkalienhaltig; Doppelpumpe geschlossen","04","Fördermenge <= 10 m3/h","01","Anzahl","411.05.01.012.04.01",null,1.4462190263594474,90.485510980268572,73.97989305555555,106.99112890498159,129.39428070178406]
[411,"Abwasseranlagen",411,"Hebeanlagen","05","Hebeanlage","01","Pumpen","012","fäkalienfrei; Doppelpumpe geschlossen","03","Fördermenge >10 bis 50 m3/h","02","Anzahl","411.05.01.012.03.02",null,1.4084408557502421,82.309078194027506,68.3505081700566,96.267648217998428,117.70198181745933]
[411,"Abwasseranlagen",411,"Hebeanlagen","05","Hebeanlage","01","Pumpen","012","fäkalienhaltig; Doppelpumpe geschlossen","04","Fördermenge > 10 bis 50 m3/h","02","Anzahl","411.05.01.012.04.02",null,1.4059459519792958,123.46882069891495,102.63640427777777,144.30123712005215,176.56041359944837]
[411,"Abwasseranlagen",411,"Hebeanlagen","05","Hebeanlage","01","Pumpen","012","fäkalienfrei; Doppelpumpe geschlossen","03","Fördermenge > 50 bis 150 m3/h","03","Anzahl","411.05.01.012.03.03",null,1.0852028262227729,131.43101718089972,126.06065513442603,136.80137922737342,187.94635456868659]
[411,"Abwasseranlagen",411,"Hebeanlagen","05","Hebeanlage","01","Pumpen","012","fäkalienhaltig; Doppelpumpe geschlossen","04","Fördermenge > 50 bis 150 m3/h","03","Anzahl","411.05.01.012.04.03",null,1.1412936987103888,179.63806510769672,167.78461097222223,191.49151924317118,256.88243310400628]
[411,"Abwasseranlagen",411,"Hebeanlagen","05","Tauchpumpe","02",null,"000",null,"00","Fördermenge <= 10 m3/h","01","Anzahl","411.05.02.000.00.01","inkl. Pumpensumpf",3.7935484415910854,65.19637150229228,30.093196846622881,114.16,93.230811248277959]
[411,"Abwasseranlagen",411,"Hebeanlagen","05","Tauchpumpe","02",null,"000",null,"00","Fördermenge > 10 bis 50 m3/h","02","Anzahl","411.05.02.000.00.02","inkl. Pumpensumpf",1.4411496989546757,50.913810077925746,41.712976553406406,60.114643602445092,72.806748411433816]
[412,"Wasseranlagen",412,"Wassergewinnungsanlagen","01","Brunnenanlage","01","Pumpen","012",null,"00","Fördermenge <= 10 m3/h","01","Anzahl","412.01.01.012.00.01","inkl. Filter und Pumpen",1.0363271212987804,110.63812471757504,108.66439243515006,112.61185700000003,158.2125183461323]
[412,"Wasseranlagen",412,"Wassergewinnungsanlagen","01","Brunnenanlage","01","Pumpen","012",null,"00","Fördermenge > 10 bis 50 m3/h","02","Anzahl","412.01.01.012.00.02","inkl. Filter und Pumpen",1.228678861773336,166.03986501648563,149.00295225519343,183.07677777777781,237.43700697357446]
[412,"Wasseranlagen",412,"Wassergewinnungsanlagen","01","Brunnenanlage","01","Pumpen","012",null,"00","Fördermenge > 50 bis 150 m3/h","03","Anzahl","412.01.01.012.00.03","inkl. Filter und Pumpen",1.4823766644665848,288.43461803191735,232.38586001927024,344.48337604456452,412.46150378564181]
[412,"Wasseranlagen",412,"Wassergewinnungsanlagen","01","Brunnenanlage","01","Pumpen","012",null,"00","Fördermenge > 150 bis 250 m3/h","04","Anzahl","412.01.01.012.00.04","inkl. Filter und Pumpen",1.9881114995898419,445.1124455210512,297.92224659765799,592.30264444444447,636.51079709510316]
[412,"Wasseranlagen",412,"Wassergewinnungsanlagen","01","Regenwassernutzungsanlage","02",null,"000",null,"00","Speichervolumen <=10 m3","01","Anzahl","412.01.02.000.00.01","inkl. Filter und Pumpen",1.6418820472378526,96.441336136945594,78.50237243849395,128.89163597234281,137.91111067583219]
[412,"Wasseranlagen",412,"Wassergewinnungsanlagen","01","Regenwassernutzungsanlage","02",null,"000",null,"00","Speichervolumen > 10 bis 50 m3","02","Anzahl","412.01.02.000.00.02","inkl. Filter und Pumpen",1.2600372874604093,172.37110324510314,152.53828262169563,192.20392386851066,246.49067764049749]
[412,"Wasseranlagen",412,"Wassergewinnungsanlagen","01","Regenwassernutzungsanlage","02",null,"000",null,"00","Speichervolumen > 50 bis 100 m3","03","Anzahl","412.01.02.000.00.03","inkl. Filter und Pumpen",1.2375130523569453,260.89410095030001,233.20007065476565,288.58813124583435,373.07856435892899]
[412,"Wasseranlagen",412,"Wassergewinnungsanlagen","01","Flusswasseranlage","03",null,"000",null,"00","Fördermenge <= 10 m3/h","01","Anzahl","412.01.03.000.00.01","inkl. Filter und Pumpen",1.6832509161035389,127.8936116625971,83.105554057155985,139.88749999999999,182.88786467751385]
[412,"Wasseranlagen",412,"Wassergewinnungsanlagen","01","Flusswasseranlage","03",null,"000",null,"00","Fördermenge > 10 bis 50 m3/h","02","Anzahl","412.01.03.000.00.02","inkl. Filter und Pumpen",2.1594831469660436,178.8030848501607,106.14229628141858,229.21249999999998,255.6884113357298]
[412,"Wasseranlagen",412,"Wassergewinnungsanlagen","01","Flusswasseranlage","03",null,"000",null,"00","Fördermenge > 50 bis 150 m3/h","03","Anzahl","412.01.03.000.00.03","inkl. Filter und Pumpen",2.877665772681032,246.3595580377243,135.16249999999999,388.95249999999999,352.29416799394573]
[412,"Wasseranlagen",412,"Wassergewinnungsanlagen","01","Flusswasseranlage","03",null,"000",null,"00","Fördermenge > 150 bis 250 m3/h","04","Anzahl","412.01.03.000.00.04","inkl. Filter und Pumpen",3.0348051642046792,337.77803122528792,163.16945345971561,495.1875,483.0225846521617]
[412,"Wasseranlagen",412,"Aufbereitungs- und Druckerhöhungsanlagen","02","Wasseraufbereitungsanlage (Enthärtung)","01",null,"000","einfach","01","Anschlussnennweite <= DN50","01","Anzahl","412.02.01.000.01.01","ohne Wasserchemie",1.7366035826590214,282.50941806383599,206.4671842527778,358.55165187489422,403.98846783128545]
[412,"Wasseranlagen",412,"Aufbereitungs- und Druckerhöhungsanlagen","02","Wasseraufbereitungsanlage (Enthärtung)","01",null,"000","einfach","01","Anschlussnennweite > DN50 bis DN100","02","Anzahl","412.02.01.000.01.02","ohne Wasserchemie",1.2222152823195223,372.10064349790923,334.89162499999998,409.30966199581854,532.10392020201016]
[412,"Wasseranlagen",412,"Aufbereitungs- und Druckerhöhungsanlagen","02","Wasseraufbereitungsanlage (Enthärtung)","01",null,"000","doppelt","02","Anschlussnennweite <= DN50","01","Anzahl","412.02.01.000.02.01","ohne Wasserchemie",1.2550873632724693,298.74271620833332,264.95001574999998,332.53541666666666,427.20208417791662]
[412,"Wasseranlagen",412,"Aufbereitungs- und Druckerhöhungsanlagen","02","Wasseraufbereitungsanlage (Enthärtung)","01",null,"000","doppelt","02","Anschlussnennweite > DN50 bis DN100","02","Anzahl","412.02.01.000.02.02","ohne Wasserchemie",1.3030318519006183,387.18003272222222,336.23506544444439,438.125,553.66744679277781]
[412,"Wasseranlagen",412,"Aufbereitungs- und Druckerhöhungsanlagen","02","Wasseraufbereitungsanlage (Dosierung)","02",null,"000",null,"00",null,"00","Anzahl","412.02.02.000.00.00","ohne Wasserchemie",1.5909926776270644,277.98114814463759,214.57501639813503,341.38727989114011,397.51304184683175]
[412,"Wasseranlagen",412,"Aufbereitungs- und Druckerhöhungsanlagen","02","Wasseraufbereitungsanlage (Umkehrosmose)","03",null,"000",null,"00","Permeatleistung <= 1 m3/h","01","Anzahl","412.02.03.000.00.01","ohne Wasserchemie",1.2389276729428591,339.55234321209053,297.16827546960479,368.17,485.55985079328946]
[412,"Wasseranlagen",412,"Aufbereitungs- und Druckerhöhungsanlagen","02","Wasseraufbereitungsanlage (Umkehrosmose)","03",null,"000",null,"00","Permeatleistung > 1 m3/h bis 5 m3/h","02","Anzahl","412.02.03.000.00.02","ohne Wasserchemie",1.2022924910988912,391.3955972610521,355.44379217835416,427.34740234374999,559.69570408330446]
[412,"Wasseranlagen",412,"Aufbereitungs- und Druckerhöhungsanlagen","02","Enteisenungs-/ Entmanganungsanlage","04",null,"000",null,"00","Durchflussleistung <= 1 m3/h","01","Anzahl","412.02.04.000.00.01","ohne Wasserchemie",1.7363716546213288,253.60539584528865,189.9075,329.75,362.65571605876278]
[412,"Wasseranlagen",412,"Aufbereitungs- und Druckerhöhungsanlagen","02","Enteisenungs-/ Entmanganungsanlage","04",null,"000",null,"00","Durchflussleistung > 1 m3/h bis 5 m3/h","02","Anzahl","412.02.04.000.00.02","ohne Wasserchemie",1.4110586014898772,366.497050614025,324.98500000000001,458.57287960518772,524.09078237805568]
[412,"Wasseranlagen",412,"Aufbereitungs- und Druckerhöhungsanlagen","02","Druckerhöhungsanlage (nicht Löschwasser)","05","Pumpen","012",null,"00","Fördermenge <= 50 m3/h","01","Anzahl","412.02.05.012.00.01","ohne Wasserchemie",1.6102893551521975,87.587256231230825,69.7,112.23716805410817,125.24977641066008]
[412,"Wasseranlagen",412,"Aufbereitungs- und Druckerhöhungsanlagen","02","Druckerhöhungsanlage (nicht Löschwasser)","05","Pumpen","012",null,"00","Fördermenge > 50 bis 150 m3/h","02","Anzahl","412.02.05.012.00.02","ohne Wasserchemie",1.0959449984453475,110.64503224558106,105.58009139328679,115.70997309787533,158.22239611118093]
[412,"Wasseranlagen",412,"Aufbereitungs- und Druckerhöhungsanlagen","02","Druckerhöhungsanlage (nicht Löschwasser)","05","Pumpen","012",null,"00","Fördermenge > 150 bis 250 m3/h","03","Anzahl","412.02.05.012.00.03","ohne Wasserchemie",1.0264279424537084,151.40977488421561,149.43514320166793,153.38440656676329,216.5159780844283]
[412,"Wasseranlagen",412,"Aufbereitungs- und Druckerhöhungsanlagen","02","Druckerhöhungsanlage (nicht Löschwasser)","05","Pumpen","012",null,"00","Fördermenge > 250 bis 500 m3/h","04","Anzahl","412.02.05.012.00.04","ohne Wasserchemie",1.0009909739722558,190.24334556374839,190.14912914483358,190.33756198266323,272.04798415616017]
[412,"Wasseranlagen",412,"Aufbereitungs- und Druckerhöhungsanlagen","02","Druckerhöhungsanlage (nicht Löschwasser)","05","Pumpen","012",null,"00","Fördermenge > 500 bis 1000 m3/h","05","Anzahl","412.02.05.012.00.05","ohne Wasserchemie",1.0818383073236482,256.18476188250031,246.11398587611166,266.25553788888891,366.34420949197545]
[412,"Wasseranlagen",412,"Rohrleitungen","03","Rohrleitung","01",null,"000",null,"00",null,"00","Anzahl","412.03.01.000.00.00","inkl. Rohrnetz und Absperr-, Entleerungs- und Entnahmearmaturen, Druckminderung",3.1308335333917605,58.271467025142101,28.212934050284201,88.33,83.328197845953198]
[412,"Wasseranlagen",412,"Rohrleitungen","03","Rohrleitung","01",null,"000","Anzahl Hygienespüleinrichtungen","01",null,"00","Anzahl","412.03.01.000.01.00","inkl. Rohrnetz und Absperr-, Entleerungs- und Entnahmearmaturen, Druckminderung",1.6505906014649041,50.282179505572429,37.940359011144864,62.623999999999995,71.903516692968566]
[412,"Wasseranlagen",412,"Rohrleitungen","03","Rohrleitung","01","Wasserfilter","229",null,"00",null,"00","Anzahl","412.03.01.229.00.00","inkl. Rohrnetz und Absperr-, Entleerungs- und Entnahmearmaturen, Druckminderung",1.18965046311666,47.893730366880796,44.24829110064239,52.64,68.488034424639537]
[412,"Wasseranlagen",412,"Rohrleitungen","03","Rohrleitung","01","Wasserzähler","230",null,"00",null,"00","Anzahl","412.03.01.230.00.00","inkl. Rohrnetz und Absperr-, Entleerungs- und Entnahmearmaturen, Druckminderung",1.3405215400377448,6.2799703701522755,5.3662999999999998,7.1936407403045504,8.9803576293177532]
[412,"Wasseranlagen",412,"dezentrale Wassererwärmer","04","Durchlauferhitzer, Klein-, Wand- und Standspeicher","01",null,"000",null,"00",null,"00","Anzahl","412.04.01.000.00.00","ohne Entkalkung",3.5390587517740424,11.91809246515515,4.49,15.89037379546545,17.042872225171863]
[412,"Wasseranlagen",412,"Sanitärobjekte","05","Sanitäre Einrichtungsgegenstände","01",null,"000",null,"00",null,"00","Anzahl","412.05.01.000.00.00","Waschtisch, Urinale, WC, Duschen, Wannen, etc.; inkl. Armaturen und Spülung",1.5979436820673609,3.7807536672447628,2.9105739999999996,4.6509333344895261,5.4064777441600107]
[413,"Gasanlagen",413,"Gaslagerungs- und Erzeugungsanlage","01","Gastank inkl. Füll- u. Entleerungseinrichtungen","01",null,"000","oberirdisch","01","Nenninhalt <= 10.000 l","01","Anzahl","413.01.01.000.01.01","inkl. Filter, Druckminderer, Armaturen",2.8001028070781668,165.02535835682315,86.853101999999993,243.19761471364632,235.9862624502571]
[413,"Gasanlagen",413,"Gaslagerungs- und Erzeugungsanlage","01","Gastank inkl. Füll- u. Entleerungseinrichtungen","01",null,"000","oberirdisch","01","Nenninhalt > 10.000 bis 50.000 l","02","Anzahl","413.01.01.000.01.02","inkl. Filter, Druckminderer, Armaturen",2.0620702705422036,230.82203924999999,150.7620785,310.88199999999995,330.07551612749995]
[413,"Gasanlagen",413,"Gaslagerungs- und Erzeugungsanlage","01","Gastank inkl. Füll- u. Entleerungseinrichtungen","01",null,"000","unterirdisch","02","Nenninhalt <= 10.000 l","01","Anzahl","413.01.01.000.02.01","inkl. Filter, Druckminderer, Armaturen",2.4339914733622869,203.65244022980349,118.60975300000001,288.69512745960697,291.222989528619]
[413,"Gasanlagen",413,"Gaslagerungs- und Erzeugungsanlage","01","Gastank inkl. Füll- u. Entleerungseinrichtungen","01",null,"000","unterirdisch","02","Nenninhalt > 10.000 bis 50.000 l","02","Anzahl","413.01.01.000.02.02","inkl. Filter, Druckminderer, Armaturen",2.2204016318171251,337.02339213994901,209.30519275000003,464.74159152989796,481.94345076012706]
[413,"Gasanlagen",413,"Übergabestationen","02","Gaseinspeisung","01",null,"000",null,"00",null,"00","Anzahl","413.02.01.000.00.00",null,1.7233095649951518,62.221285098540505,45.695345030414323,78.747225166666681,88.976437690912917]
[413,"Gasanlagen",413,"Druckregelanlagen und Gasleitungen","03","Gasleitungsnetz","01","Gaszähler","146",null,"00",null,"00","Anzahl","413.03.01.146.00.00",null,1.5722080932977378,91.532025000000004,71.17,111.89405000000001,{"$f":"R67*(((160.2-117.2)/100)+1)","v":130.89079575}]
[413,"Gasanlagen",413,"Druckregelanlagen und Gasleitungen","03","Gasregelstrecke","02",null,"000",null,"00",null,"00","Anzahl","413.03.02.000.00.00",null,2.0572804260597635,38.526405016341307,22.081074750988556,45.42696287157122,55.092759173368066]
[421,"Wärmeerzeugungsanlagen",421,"Brennstoffversorgung","01","Heizöltank","01",null,"000","oberirdisch","01","Nenninhalt <= 10.000 l","01","Anzahl","421.01.01.000.01.01"," inkl. Füll- u. Entleerungseinrichtungen",1.2521750776910359,123.3483258150241,109.53706666666668,137.15958496338152,176.38810591548446]
[421,"Wärmeerzeugungsanlagen",421,"Brennstoffversorgung","01","Heizöltank","01",null,"000","oberirdisch","01","Nenninhalt > 10.000 bis 50.000 l","02","Anzahl","421.01.01.000.01.02"," inkl. Füll- u. Entleerungseinrichtungen",1.2547337028949046,174.5845942985782,154.8605,194.30868859715639,249.6559698469668]
[421,"Wärmeerzeugungsanlagen",421,"Brennstoffversorgung","01","Heizöltank","01",null,"000","unterirdisch","02","Nenninhalt <= 10.000 l","01","Anzahl","421.01.01.000.02.01"," inkl. Füll- u. Entleerungseinrichtungen",1.4826258963222825,135.97830283916753,109.54393333333334,162.41267234500171,194.44897306000956]
[421,"Wärmeerzeugungsanlagen",421,"Brennstoffversorgung","01","Heizöltank","01",null,"000","unterirdisch","02","Nenninhalt > 10.000 bis 50.000 l","02","Anzahl","421.01.01.000.02.02"," inkl. Füll- u. Entleerungseinrichtungen",1.5139430784203785,194.65524104785953,154.8605,234.44998209571904,278.35699469843911]
[421,"Wärmeerzeugungsanlagen",421,"Brennstoffversorgung","01","Heizöltank","01",null,"000","Leckageerkennungssytem = ja","03",null,"00",null,"421.01.01.000.03.00"," inkl. Füll- u. Entleerungseinrichtungen",1,66.052823134342987,66.052823134342987,66.052823134342987,94.455537082110467]
[421,"Wärmeerzeugungsanlagen",421,"Brennstoffversorgung","01","Heizölversorgungsleitung für Ölbrenner","02",null,"000",null,"00",null,"00","pauschal","421.01.02.000.00.00"," inkl. Armaturen",1.1045409341841672,62.186105661755434,59.097073999999999,65.275137323510862,88.926131096310272]
[421,"Wärmeerzeugungsanlagen",421,"Wärmeübergabestationen - Fernwärme","02","Fernwärmeübergabestation - Heißwasser","01",null,"000",null,"00","Übertragungsleistung <= 150 kW","01","Anzahl","421.02.01.000.00.01",null,1.4694604678999177,136.23781804033314,112.9855925,166.02786162099943,194.82007979767639]
[421,"Wärmeerzeugungsanlagen",421,"Wärmeübergabestationen - Fernwärme","02","Fernwärmeübergabestation - Heißwasser","01",null,"000",null,"00","Übertragungsleistung >150 bis 300 kW","02","Anzahl","421.02.01.000.00.02",null,1.1862201518937097,211.60032057525228,193.57640665050454,229.6242345,302.58845842261076]
[421,"Wärmeerzeugungsanlagen",421,"Wärmeübergabestationen - Fernwärme","02","Fernwärmeübergabestation - Heißwasser","01",null,"000",null,"00","Übertragungsleistung > 300 bis 500 kW","03","Anzahl","421.02.01.000.00.03",null,1.8721018866016272,213.05332582016845,142.82,267.3735914444444,304.66625592284089]
[421,"Wärmeerzeugungsanlagen",421,"Wärmeübergabestationen - Fernwärme","02","Fernwärmeübergabestation - Heißwasser","01",null,"000",null,"00","Übertragungsleistung > 500 bis 800 kW","04","Anzahl","421.02.01.000.00.04",null,2.6473504054609758,272.25959384837574,135.1,357.65703977777781,389.33121920317728]
[421,"Wärmeerzeugungsanlagen",421,"Wärmeerzeugung auf der Grundlage von Brennstoffen oder unerschöpflichen Energiequellen","03","Wärmeerzeugungsanlage","01","Kessel","164","Wasserkessel","01","Nennleistung <= 50 kW","01","Anzahl","421.03.01.164.01.01",null,1.1553369448178092,97.611680465658779,90.576724628000008,104.64663630331755,139.58470306589206]
[421,"Wärmeerzeugungsanlagen",421,"Wärmeerzeugung auf der Grundlage von Brennstoffen oder unerschöpflichen Energiequellen","03","Wärmeerzeugungsanlage","01","Kessel","164","Wasserkessel","01","Nennleistung > 50 bis 150 kW","02","Anzahl","421.03.01.164.01.02",null,1.0082270918797476,141.17432237957345,140.59597438,141.75267037914691,201.87928100279004]
[421,"Wärmeerzeugungsanlagen",421,"Wärmeerzeugung auf der Grundlage von Brennstoffen oder unerschöpflichen Energiequellen","03","Wärmeerzeugungsanlage","01","Kessel","164","Wasserkessel","01","Nennleistung > 150 bis 300 kW","03","Anzahl","421.03.01.164.01.03",null,1.0272205819201818,213.72875624873618,210.85890519747235,216.5986073,305.63212143569274]
[421,"Wärmeerzeugungsanlagen",421,"Wärmeerzeugung auf der Grundlage von Brennstoffen oder unerschöpflichen Energiequellen","03","Wärmeerzeugungsanlage","01","Kessel","164","Wasserkessel","01","Nennleistung > 300 bis 500 kW","04","Anzahl","421.03.01.164.01.04",null,1.2666279171516228,316.27620146248023,279.07200742496053,353.48039549999999,452.27496809134669]
[421,"Wärmeerzeugungsanlagen",421,"Wärmeerzeugung auf der Grundlage von Brennstoffen oder unerschöpflichen Energiequellen","03","Wärmeerzeugungsanlage","01","Kessel","164","Wasserkessel","01","Nennleistung > 500 bis 800 kW","05","Anzahl","421.03.01.164.01.05",null,1.5594906760678358,509.86306296073877,398.40978342147753,621.31634250000002,729.10418003385644]
[421,"Wärmeerzeugungsanlagen",421,"Wärmeerzeugung auf der Grundlage von Brennstoffen oder unerschöpflichen Energiequellen","03","Wärmeerzeugungsanlage","01","Brenner","014","Ölbrenner","03","Nennleistung <= 50 kW","01","Anzahl","421.03.01.014.03.01",null,1.0338197611706235,154.02269587827215,151.46149999999997,156.58389175654435,220.25245510592916]
[421,"Wärmeerzeugungsanlagen",421,"Wärmeerzeugung auf der Grundlage von Brennstoffen oder unerschöpflichen Energiequellen","03","Wärmeerzeugungsanlage","01","Brenner","014","Ölbrenner","03","Nennleistung > 50 bis 150 kW","02","Anzahl","421.03.01.014.03.02",null,1.0255953308142689,218.40397607851133,215.64423333333332,221.16371882368938,312.31768579227122]
[421,"Wärmeerzeugungsanlagen",421,"Wärmeerzeugung auf der Grundlage von Brennstoffen oder unerschöpflichen Energiequellen","03","Wärmeerzeugungsanlage","01","Brenner","014","Ölbrenner","03","Nennleistung > 150 bis 300 kW","03","Anzahl","421.03.01.014.03.03",null,1.001206300320415,320.69154189411461,320.49823333333336,320.8848504548958,458.58890490858386]
[421,"Wärmeerzeugungsanlagen",421,"Wärmeerzeugung auf der Grundlage von Brennstoffen oder unerschöpflichen Energiequellen","03","Wärmeerzeugungsanlage","01","Brenner","014","Ölbrenner","03","Nennleistung > 300 bis 500 kW","04","Anzahl","421.03.01.014.03.04",null,1.1061521338146116,432.88752249062384,411.06956666666662,454.70547831458106,619.02915716159202]
[421,"Wärmeerzeugungsanlagen",421,"Wärmeerzeugung auf der Grundlage von Brennstoffen oder unerschöpflichen Energiequellen","03","Wärmeerzeugungsanlage","01","Brenner","014","Ölbrenner","03","Nennleistung > 500 bis 800 kW","05","Anzahl","421.03.01.014.03.05",null,1.0088667758279704,601.96590231511664,599.30893333333336,604.62287129690003,860.81124031061677]
[421,"Wärmeerzeugungsanlagen",421,"Wärmeerzeugung auf der Grundlage von Brennstoffen oder unerschöpflichen Energiequellen","03","Wärmeerzeugungsanlage","01","Brenner","014","atmosphärische Gasbrenner (ohne Gebläse)","04","Nennleistung <= 50 kW","01","Anzahl","421.03.01.014.04.01",null,1.2208175734242852,132.92705476202019,119.71001702500001,146.1440924990404,190.08568830968886]
[421,"Wärmeerzeugungsanlagen",421,"Wärmeerzeugung auf der Grundlage von Brennstoffen oder unerschöpflichen Energiequellen","03","Wärmeerzeugungsanlage","01","Brenner","014","atmosphärische Gasbrenner (ohne Gebläse)","04","Nennleistung > 50 bis 150 kW","02","Anzahl","421.03.01.014.04.02",null,1.0072114737755979,207.53744936642607,206.79181250000002,208.28308623285213,296.77855259398928]
[421,"Wärmeerzeugungsanlagen",421,"Wärmeerzeugung auf der Grundlage von Brennstoffen oder unerschöpflichen Energiequellen","03","Wärmeerzeugungsanlage","01","Brenner","014","atmosphärische Gasbrenner (ohne Gebläse)","04","Nennleistung > 150 bis 300 kW","03","Anzahl","421.03.01.014.04.03",null,1.1004983395913257,309.57454634119199,294.76295268238391,324.38614000000001,442.6916012679045]
[421,"Wärmeerzeugungsanlagen",421,"Wärmeerzeugung auf der Grundlage von Brennstoffen oder unerschöpflichen Energiequellen","03","Wärmeerzeugungsanlage","01","Brenner","014","atmosphärische Gasbrenner (ohne Gebläse)","04","Nennleistung > 300 bis 500 kW","04","Anzahl","421.03.01.014.04.04",null,1.2008317472278984,447.43964087727477,406.60958425454947,488.26969750000001,639.83868645450286]
[421,"Wärmeerzeugungsanlagen",421,"Wärmeerzeugung auf der Grundlage von Brennstoffen oder unerschöpflichen Energiequellen","03","Wärmeerzeugungsanlage","01","Brenner","014","Gasgebläsebrenner","05","Nennleistung <= 50 kW","01","Anzahl","421.03.01.014.05.01",null,1.2886017094464153,156.98760691520334,137.19084999999998,176.78436383040673,224.49227788874077]
[421,"Wärmeerzeugungsanlagen",421,"Wärmeerzeugung auf der Grundlage von Brennstoffen oder unerschöpflichen Energiequellen","03","Wärmeerzeugungsanlage","01","Brenner","014","Gasgebläsebrenner","05","Nennleistung > 50 bis 150 kW","02","Anzahl","421.03.01.014.05.02",null,1.0143618442228024,220.44672432713293,218.875,222.01844865426585,315.23881578780009]
[421,"Wärmeerzeugungsanlagen",421,"Wärmeerzeugung auf der Grundlage von Brennstoffen oder unerschöpflichen Energiequellen","03","Wärmeerzeugungsanlage","01","Brenner","014","Gasgebläsebrenner","05","Nennleistung > 150 bis 300 kW","03","Anzahl","421.03.01.014.05.03",null,1.6804226910884852,376.25762699372376,303.12016298117123,509.37,538.04840660102491]
[421,"Wärmeerzeugungsanlagen",421,"Wärmeerzeugung auf der Grundlage von Brennstoffen oder unerschöpflichen Energiequellen","03","Wärmeerzeugungsanlage","01","Brenner","014","Gasgebläsebrenner","05","Nennleistung > 300 bis 500 kW","04","Anzahl","421.03.01.014.05.04",null,1.2970940157514013,459.22742826702768,399.83337653405539,518.62148000000002,656.69522242184951]
[421,"Wärmeerzeugungsanlagen",421,"Wärmeerzeugung auf der Grundlage von Brennstoffen oder unerschöpflichen Energiequellen","03","Wärmeerzeugungsanlage","01","Brenner","014","Gasgebläsebrenner","05","Nennleistung > 500 bis 800 kW","05","Anzahl","421.03.01.014.05.05",null,1.1716550115948723,592.95640534188385,546.08711068376761,639.8257000000001,847.92765963889383]
[421,"Wärmeerzeugungsanlagen",421,"Wärmeerzeugung auf der Grundlage von Brennstoffen oder unerschöpflichen Energiequellen","03","Wärmepumpe","02",null,"000","Grundwasser-Wärmepumpen (inkl. Brunnenanlage)","08","thermische Leistung <= 30 kW","01","Anzahl","421.03.02.000.08.01",null,1.5842991292065198,496.41827708392111,384.18019916784232,608.65635499999996,709.87813623000716]
[421,"Wärmeerzeugungsanlagen",421,"Wärmeerzeugung auf der Grundlage von Brennstoffen oder unerschöpflichen Energiequellen","03","Wärmepumpe","02",null,"000","Grundwasser-Wärmepumpen (inkl. Brunnenanlage)","08","thermische Leistung >30 bis 80 kW","02","Anzahl","421.03.02.000.08.02",null,1.3606574875297965,621.16560859543301,526.26491719086596,716.06630000000007,888.26682029146912]
[421,"Wärmeerzeugungsanlagen",421,"Wärmeerzeugung auf der Grundlage von Brennstoffen oder unerschöpflichen Energiequellen","03","Wärmepumpe","02",null,"000","Grundwasser-Wärmepumpen (inkl. Brunnenanlage)","08","thermische Leistung > 80 bis 150 kW","03","Anzahl","421.03.02.000.08.03",null,1.1263476033716426,656.24748440542862,617.25324999999998,695.24171881085738,938.43390269976294]
[421,"Wärmeerzeugungsanlagen",421,"Wärmeerzeugung auf der Grundlage von Brennstoffen oder unerschöpflichen Energiequellen","03","Wärmepumpe","02",null,"000","Grundwasser-Wärmepumpen (inkl. Brunnenanlage)","08","thermische Leistung > 150 bis 250 kW","04","Anzahl","421.03.02.000.08.04",null,1.1668079053717904,920.51107011632928,849.64714023265844,991.37500000000011,1316.3308302663509]
[421,"Wärmeerzeugungsanlagen",421,"Wärmeerzeugung auf der Grundlage von Brennstoffen oder unerschöpflichen Energiequellen","03","Wärmepumpe","02",null,"000","Luft-Wärmepumpen (inkl. Verdampfer)","09","thermische Leistung <= 30 kW","01","Anzahl","421.03.02.000.09.01",null,1.8671914618369987,299.36210209839703,193.25,360.83474999999999,428.08780600070776]
[421,"Wärmeerzeugungsanlagen",421,"Wärmeerzeugung auf der Grundlage von Brennstoffen oder unerschöpflichen Energiequellen","03","Wärmepumpe","02",null,"000","Luft-Wärmepumpen (inkl. Verdampfer)","09","thermische Leistung > 30 bis 80 kW","02","Anzahl","421.03.02.000.09.02",null,1.2398923944446747,421.61669998869678,376.46156666666667,466.77183331072689,602.91188098383634]
[421,"Wärmeerzeugungsanlagen",421,"Wärmeerzeugung auf der Grundlage von Brennstoffen oder unerschöpflichen Energiequellen","03","Wärmepumpe","02",null,"000","Luft-Wärmepumpen (inkl. Verdampfer)","09","thermische Leistung > 80 bis 150 kW","03","Anzahl","421.03.02.000.09.03",null,1.2627363660395623,535.10611336786906,472.97256666666669,597.23966006907131,765.20174211605274]
[421,"Wärmeerzeugungsanlagen",421,"Wärmeerzeugung auf der Grundlage von Brennstoffen oder unerschöpflichen Energiequellen","03","Wärmepumpe","02",null,"000","Luft-Wärmepumpen (inkl. Verdampfer)","09","thermische Leistung > 150 bis 250 kW","04","Anzahl","421.03.02.000.09.04",null,1.32082510585055,632.4572555349198,545.02793333333329,719.88657773650641,904.41387541493532]
[421,"Wärmeerzeugungsanlagen",421,"Wärmeerzeugung auf der Grundlage von Brennstoffen oder unerschöpflichen Energiequellen","03","Wärmepumpe","02",null,"000","Erd-Wärmepumpen (inkl. Erdkollektor)","10","thermische Leistung <= 30 kW","01","Anzahl","421.03.02.000.10.01",null,1.9430052835294509,281.74375485997416,191.4667,372.02080971994832,402.89356944976305]
[421,"Wärmeerzeugungsanlagen",421,"Wärmeerzeugung auf der Grundlage von Brennstoffen oder unerschöpflichen Energiequellen","03","Wärmepumpe","02",null,"000","Erd-Wärmepumpen (inkl. Erdkollektor)","10","thermische Leistung >30 bis 80 kW","02","Anzahl","421.03.02.000.10.02",null,2.0717988812535078,385.44855566996989,250.95950000000002,519.93761133993974,551.19143460805697]
[421,"Wärmeerzeugungsanlagen",421,"Wärmeerzeugung auf der Grundlage von Brennstoffen oder unerschöpflichen Energiequellen","03","Gastherme","03",null,"000",null,"00","Nennleistung <= 30 kW","01","Anzahl","421.03.03.000.00.01","inkl. Brenner",1.1609616077770719,138.1224283534296,127.834227,148.41062970685917,197.51507254540431]
[421,"Wärmeerzeugungsanlagen",421,"Wärmeerzeugung auf der Grundlage von Brennstoffen oder unerschöpflichen Energiequellen","03","Gastherme","03",null,"000",null,"00","Nennleistung >30 bis 80 kW","02","Anzahl","421.03.03.000.00.02","inkl. Brenner",1.0332806880908214,220.10718822861912,216.50447920723821,223.70989725000004,314.75327916692532]
[421,"Wärmeerzeugungsanlagen",421,"Wärmeerzeugung auf der Grundlage von Brennstoffen oder unerschöpflichen Energiequellen","03","Solarthermie","04",null,"000",null,"00","Kollektorfläche <= 100 m2","01","Anzahl","421.03.04.000.00.01",null,1.4490452793620701,305.90433748386545,249.81517496773085,361.99349999999998,437.44320260192757]
[421,"Wärmeerzeugungsanlagen",421,"Wärmeerzeugung auf der Grundlage von Brennstoffen oder unerschöpflichen Energiequellen","03","Solarthermie","04",null,"000",null,"00","Kollektorfläche > 100 bis 500 m2","02","Anzahl","421.03.04.000.00.02",null,3.2441390664199887,1193.5105732430181,562.427646486036,1824.5935000000002,1706.7201197375159]
[421,"Wärmeerzeugungsanlagen",421,"Wärmeerzeugung auf der Grundlage von Brennstoffen oder unerschöpflichen Energiequellen","03","Strahlungsheizung","08",null,"000","Hellstrahler (brennerlos)","01","Heizleistung <= 15 kW","01","Anzahl","421.03.08.000.01.01",null,1.972313025233325,75.950988064688346,51.105645616666663,100.79633051271004,108.60991293250433]
[421,"Wärmeerzeugungsanlagen",421,"Wärmeerzeugung auf der Grundlage von Brennstoffen oder unerschöpflichen Energiequellen","03","Strahlungsheizung","08",null,"000","Hellstrahler (brennerlos)","01","Heizleistung > 15 bis 40 kW","02","Anzahl","421.03.08.000.01.02",null,2.1041667173897989,100.82190499468619,64.95907866666667,136.68473132270572,144.17532414240125]
[421,"Wärmeerzeugungsanlagen",421,"Wärmeerzeugung auf der Grundlage von Brennstoffen oder unerschöpflichen Energiequellen","03","Strahlungsheizung","08",null,"000","Dunkelstrahler (inkl. Brenner)","02","Heizleistung <= 15 kW","01","Anzahl","421.03.08.000.02.01",null,2.2812695460515129,100.34192973613877,61.160430941666682,139.52342853061086,143.48895952267844]
[421,"Wärmeerzeugungsanlagen",421,"Wärmeerzeugung auf der Grundlage von Brennstoffen oder unerschöpflichen Energiequellen","03","Strahlungsheizung","08",null,"000","Dunkelstrahler (inkl. Brenner)","02","Heizleistung > 15 bis 40 kW","02","Anzahl","421.03.08.000.02.02",null,2.6298323752803161,130.51314548421857,71.911389833333345,189.11490113510379,186.63379804243255]
[421,"Wärmeerzeugungsanlagen",421,"zentrale Wassererwärmungsanlagen für Trink- und Betriebswasser","04","Wassererwärmungsanlage","01","Warmwasserspeicher ","227","Beheizung (Art) = innenliegender Wärmetauscher; Speicher-/ Ladesystem","01","Volumen <=150 l","01","Anzahl","421.04.01.227.01.01",null,1.2566942412420918,37.872125124688296,33.564250249376585,42.18,54.157138928304263]
[421,"Wärmeerzeugungsanlagen",421,"zentrale Wassererwärmungsanlagen für Trink- und Betriebswasser","04","Wassererwärmungsanlage","01","Warmwasserspeicher ","227","Beheizung (Art) = innenliegender Wärmetauscher; Speicher-/ Ladesystem","01","Volumen >150 bis 500 l","02","Anzahl","421.04.01.227.01.02",null,2.9682737472766889,58.832896291101576,29.58,87.801537444444449,84.131041696275247]
[421,"Wärmeerzeugungsanlagen",421,"zentrale Wassererwärmungsanlagen für Trink- und Betriebswasser","04","Wassererwärmungsanlage","01","Warmwasserspeicher ","227","Beheizung (Art) = innenliegender Wärmetauscher; Speicher-/ Ladesystem","01","Volumen > 500 bis 1.000 l","03","Anzahl","421.04.01.227.01.03",null,1.8752741480822179,92.751723611003001,64.516786110894898,120.9866611111111,132.63496476373427]
[421,"Wärmeerzeugungsanlagen",421,"zentrale Wassererwärmungsanlagen für Trink- und Betriebswasser","04","Wassererwärmungsanlage","01","Warmwasserspeicher ","227","Beheizung (Art) = innenliegender Wärmetauscher; Speicher-/ Ladesystem","01","Volumen > 1.000 bis 2.000 l","04","Anzahl","421.04.01.227.01.04",null,1.6433765804442402,112.50069182581505,85.118929068296751,139.88245458333336,160.87598931091551]
[421,"Wärmeerzeugungsanlagen",421,"zentrale Wassererwärmungsanlagen für Trink- und Betriebswasser","04","Wassererwärmungsanlage","01","Warmwasserspeicher ","227","Beheizung (Art) = Gasbrenner","02","Volumen <=150 l","01","Anzahl","421.04.01.227.02.01","inkl. Gasbrenner",2.0157380168398724,99.671786792957462,66.101091166666663,133.24248241924826,142.53065511392916]
[421,"Wärmeerzeugungsanlagen",421,"zentrale Wassererwärmungsanlagen für Trink- und Betriebswasser","04","Wassererwärmungsanlage","01","Warmwasserspeicher ","227","Beheizung (Art) = Gasbrenner","02","Volumen >150 bis 500 l","02","Anzahl","421.04.01.227.02.02","inkl. Gasbrenner",1.801709306571095,140.12411724319665,100.02759166666667,180.22064281972663,200.37748765777121]
[421,"Wärmeerzeugungsanlagen",421,"zentrale Wassererwärmungsanlagen für Trink- und Betriebswasser","04","Wassererwärmungsanlage","01","Warmwasserspeicher ","227","Beheizung (Art) = elektrisch","03","Volumen > 50 bis 150 l","01","Anzahl","421.04.01.227.03.01",null,1.0066739859271245,47.778907604924832,47.62,47.937815209849667,68.323837875042514]
[421,"Wärmeerzeugungsanlagen",421,"zentrale Wassererwärmungsanlagen für Trink- und Betriebswasser","04","Wassererwärmungsanlage","01","Warmwasserspeicher ","227","Beheizung (Art) = elektrisch","03","Volumen > 150 bis 300 l","02","Anzahl","421.04.01.227.03.02",null,1.7545126353790614,71.502680848850545,55.4,97.2,102.24883361385628]
[421,"Wärmeerzeugungsanlagen",421,"zentrale Wassererwärmungsanlagen für Trink- und Betriebswasser","04","Wassererwärmungsanlage","01","Warmwasserspeicher ","227","Beheizung (Art) = elektrisch","03","Volumen > 300 bis 500 l","03","Anzahl","421.04.01.227.03.03",null,1.0908625149675977,76.24330160829345,72.930000000000007,79.556603216586907,109.02792129985963]
[421,"Wärmeerzeugungsanlagen",421,"zentrale Wassererwärmungsanlagen für Trink- und Betriebswasser","04","Wassererwärmungsanlage","01","Warmwasserspeicher ","227","Beheizung (Art) = elektrisch","03","Volumen > 500 bis 1.000 l","04","Anzahl","421.04.01.227.03.04",null,1.0367470010217001,96.307581943311078,94.57,98.045163886622177,137.71984217893484]
[422,"Wärmeverteilnetze",422,"Wärmeverteilnetz inkl. Pumpen, Verteiler und Rohrleitungen","01","Wärmeverteilnetz","01","Heizungsverteiler","154","Anzahl Kreise 1 bis 5","01","Nennweite Zuleitung Verteiler <100DN","01","pauschal","422.01.01.154.01.01","inkl. Entleerungen, Thermometer, Manometer, Armaturen, Ventile, Klappen, Wächter, Schmutzfänger, Umwälzpumpen, Druckausdehnungsgefäße, Nachspeiseeinrichtungen, Hydrauliche Weichen etc.",1.1695180471520967,102.54053838162015,95.86,112.11,146.63296988571682]
[422,"Wärmeverteilnetze",422,"Wärmeverteilnetz inkl. Pumpen, Verteiler und Rohrleitungen","01","Wärmeverteilnetz","01","Heizungsverteiler","154","Anzahl Kreise 6 bis 10","02","Nennweite Zuleitung Verteiler <100DN","01","pauschal","422.01.01.154.02.01","inkl. Entleerungen, Thermometer, Manometer, Armaturen, Ventile, Klappen, Wächter, Schmutzfänger, Umwälzpumpen, Druckausdehnungsgefäße, Nachspeiseeinrichtungen, Hydrauliche Weichen etc.",2.2329734219269102,184.01513128018345,120.4,268.85000000000002,263.14163773066235]
[422,"Wärmeverteilnetze",422,"Wärmeverteilnetz inkl. Pumpen, Verteiler und Rohrleitungen","01","Wärmeverteilnetz","01","Heizungsverteiler","154","Anzahl Kreise 10 bis 20","03","Nennweite Zuleitung Verteiler <100DN","01","pauschal","422.01.01.154.03.01","inkl. Entleerungen, Thermometer, Manometer, Armaturen, Ventile, Klappen, Wächter, Schmutzfänger, Umwälzpumpen, Druckausdehnungsgefäße, Nachspeiseeinrichtungen, Hydrauliche Weichen etc.",2.1309187673082981,236.69745880850732,151.19999999999999,322.19491761701465,338.47736609616544]
[422,"Wärmeverteilnetze",422,"Wärmeverteilnetz inkl. Pumpen, Verteiler und Rohrleitungen","01","Wärmeverteilnetz","01","Heizungsverteiler","154","Anzahl Kreise 1 bis 5","01","Nennweite Zuleitung Verteiler > 100DN bis 200DN","02","pauschal","422.01.01.154.01.02","inkl. Entleerungen, Thermometer, Manometer, Armaturen, Ventile, Klappen, Wächter, Schmutzfänger, Umwälzpumpen, Druckausdehnungsgefäße, Nachspeiseeinrichtungen, Hydrauliche Weichen etc.",1.550048098249639,122.22380534910519,95.86,148.5876106982104,174.78004164922041]
[422,"Wärmeverteilnetze",422,"Wärmeverteilnetz inkl. Pumpen, Verteiler und Rohrleitungen","01","Wärmeverteilnetz","01","Heizungsverteiler","154","Anzahl Kreise 6 bis 10","02","Nennweite Zuleitung Verteiler > 100DN bis 200DN","02","pauschal","422.01.01.154.02.02","inkl. Entleerungen, Thermometer, Manometer, Armaturen, Ventile, Klappen, Wächter, Schmutzfänger, Umwälzpumpen, Druckausdehnungsgefäße, Nachspeiseeinrichtungen, Hydrauliche Weichen etc.",1.7024476883299982,162.68735083746589,120.4,204.97470167493179,232.64291169757621]
[422,"Wärmeverteilnetze",422,"Wärmeverteilnetz inkl. Pumpen, Verteiler und Rohrleitungen","01","Wärmeverteilnetz","01","Heizungsverteiler","154","Anzahl Kreise 10 bis 20","03","Nennweite Zuleitung Verteiler > 100DN bis 200DN","02","pauschal","422.01.01.154.03.02","inkl. Entleerungen, Thermometer, Manometer, Armaturen, Ventile, Klappen, Wächter, Schmutzfänger, Umwälzpumpen, Druckausdehnungsgefäße, Nachspeiseeinrichtungen, Hydrauliche Weichen etc.",2.1071096905836497,234.89749260812391,151.19999999999999,318.59498521624784,{"$f":"R131*(((160.2-117.2)/100)+1)","v":335.90341442961716}]
[422,"Wärmeverteilnetze",422,"Wärmeverteilnetz inkl. Pumpen, Verteiler und Rohrleitungen","01","Wärmeverteilnetz","01","Entgasungsstation","013",null,"00","Anlagenvolumen bis 100 m3 \nArbeitsdruck bis 4,5 bar ","01","Anzahl","422.01.01.013.00.01","inkl. Absperrungen",1.1591487140662504,104.85905729862745,97.13,112.5881145972549,149.94845193703725]
[422,"Wärmeverteilnetze",422,"Wärmeverteilnetz inkl. Pumpen, Verteiler und Rohrleitungen","01","Wärmeverteilnetz","01","Wärmetauscher","005","Plattenwärmetauscher","01","Nennleistung <= 50 kW","01","Anzahl","422.01.01.005.01.01","inkl. Absperrungen",1.51210850969605,85.382323144706973,67.976620289413944,102.788026,122.09672209693096]
[422,"Wärmeverteilnetze",422,"Wärmeverteilnetz inkl. Pumpen, Verteiler und Rohrleitungen","01","Wärmeverteilnetz","01","Wärmetauscher","005","Plattenwärmetauscher","01","Nennleistung > 50 bis 150 kW","02","Anzahl","422.01.01.005.01.02","inkl. Absperrungen",2.4474488965723973,113.73634508428319,65.982904168566378,161.48978600000001,162.64297347052494]
[422,"Wärmeverteilnetze",422,"Wärmeverteilnetz inkl. Pumpen, Verteiler und Rohrleitungen","01","Wärmeverteilnetz","01","Wärmetauscher","005","Plattenwärmetauscher","01","Nennleistung > 150 bis 300 kW","03","Anzahl","422.01.01.005.01.03","inkl. Absperrungen",1.6920578384791716,137.12462390523388,101.87346047713439,172.37578733333334,196.08821218448443]
[422,"Wärmeverteilnetze",422,"Wärmeverteilnetz inkl. Pumpen, Verteiler und Rohrleitungen","01","Wärmeverteilnetz","01","Wärmetauscher","005","Plattenwärmetauscher","01","Nennleistung > 300 bis 500 kW","04","Anzahl","422.01.01.005.01.04","inkl. Absperrungen",2.1391748906624279,185.89593356869446,118.43617513738889,253.35569200000003,265.83118500323309]
[422,"Wärmeverteilnetze",422,"Wärmeverteilnetz inkl. Pumpen, Verteiler und Rohrleitungen","01","Wärmeverteilnetz","01","Wärmetauscher","005","Plattenwärmetauscher","01","Nennleistung > 500 bis 1.000 kW","05","Anzahl","422.01.01.005.01.05","inkl. Absperrungen",1.716958447528766,234.40403048462667,172.54885196925332,296.25920900000006,335.19776359301613]
[422,"Wärmeverteilnetze",422,"Wärmeverteilnetz inkl. Pumpen, Verteiler und Rohrleitungen","01","Wärmeverteilnetz","01","Wärmetauscher","005","Plattenwärmetauscher","01","Nennleistung > 1.000 bis 2.000 kW","06","Anzahl","422.01.01.005.01.06","inkl. Absperrungen",1.5961255514905917,281.45895741483054,216.83000442966099,346.08791040000006,402.48630910320765]
[422,"Wärmeverteilnetze",422,"Wärmeverteilnetz inkl. Pumpen, Verteiler und Rohrleitungen","01","Wärmeverteilnetz","01","Wärmetauscher","005","Rohrbündelwärmetauscher","02","Nennleistung <= 50 kW","01","Anzahl","422.01.01.005.02.01","inkl. Absperrungen",1.2875273289648728,91.310845710121185,79.833665420242383,102.788026,130.57450936547329]
[422,"Wärmeverteilnetze",422,"Wärmeverteilnetz inkl. Pumpen, Verteiler und Rohrleitungen","01","Wärmeverteilnetz","01","Wärmetauscher","005","Rohrbündelwärmetauscher","02","Nennleistung > 50 bis 150 kW","02","Anzahl","422.01.01.005.02.02","inkl. Absperrungen",2.0166946794359775,120.78312676108797,80.076467522175918,161.48978600000001,172.7198712683558]
[422,"Wärmeverteilnetze",422,"Wärmeverteilnetz inkl. Pumpen, Verteiler und Rohrleitungen","01","Wärmeverteilnetz","01","Wärmetauscher","005","Rohrbündelwärmetauscher","02","Nennleistung > 150 bis 300 kW","03","Anzahl","422.01.01.005.02.03","inkl. Absperrungen",1.646482497281117,138.53457442943892,104.69336152554452,172.37578733333334,198.10444143409765]
[422,"Wärmeverteilnetze",422,"Wärmeverteilnetz inkl. Pumpen, Verteiler und Rohrleitungen","01","Wärmeverteilnetz","01","Wärmetauscher","005","Rohrbündelwärmetauscher","02","Nennleistung > 300 bis 500 kW","04","Anzahl","422.01.01.005.02.04","inkl. Absperrungen",1.9882946429705215,190.38965372822622,127.4236154564524,253.35569200000003,272.25720483136348]
[422,"Wärmeverteilnetze",422,"Wärmeverteilnetz inkl. Pumpen, Verteiler und Rohrleitungen","01","Wärmeverteilnetz","01","Wärmetauscher","005","Rohrbündelwärmetauscher","02","Nennleistung > 500 bis 1.000 kW","05","Anzahl","422.01.01.005.02.05","inkl. Absperrungen",1.6734622647201822,236.64645224904001,177.03369549807999,296.25920900000006,338.4044267161272]
[422,"Wärmeverteilnetze",422,"Wärmeverteilnetz inkl. Pumpen, Verteiler und Rohrleitungen","01","Wärmeverteilnetz","01","Wärmetauscher","005","Rohrbündelwärmetauscher","02","Nennleistung > 1.000 bis 2.000 kW","06","Anzahl","422.01.01.005.02.06","inkl. Absperrungen",1.4299146175971325,294.0609397600906,242.03396912018118,346.08791040000006,420.50714385692953]
[422,"Wärmeverteilnetze",422,"Wärmeverteilnetz inkl. Pumpen, Verteiler und Rohrleitungen","01","Druckhaltesystem mit Fremddruckerzeugung ","02",null,"000",null,"00","Volumen <= 300 Liter","01","Anzahl","422.01.02.000.00.01","Pumpen / Kompressoren",2.2481908297717998,163.5787002864096,100.71988307281919,226.43751750000001,233.91754140956573]
[422,"Wärmeverteilnetze",422,"Wärmeverteilnetz inkl. Pumpen, Verteiler und Rohrleitungen","01","Druckhaltesystem mit Fremddruckerzeugung ","02",null,"000",null,"00","Volumen > 300 bis 1.000 Liter","02","Anzahl","422.01.02.000.00.02","Pumpen / Kompressoren",2.0102996187835949,199.95944840438605,132.85019680877207,267.06870000000004,285.94201121827206]
[422,"Wärmeverteilnetze",422,"Wärmeverteilnetz inkl. Pumpen, Verteiler und Rohrleitungen","01","Druckhaltesystem mit Fremddruckerzeugung ","02",null,"000",null,"00","Volumen > 1.000 bis 5.000 Liter","03","Anzahl","422.01.02.000.00.03","Pumpen / Kompressoren",1.2318669946388974,276.29862705838889,247.59416911677783,305.003085,395.10703669349607]
[423,"Raumheizflächen",423,"Flächenheizsysteme","02","Wand- / Decken -/ Fußbodenheizung - Verteiler","02",null,"000",null,"00","Anzahl Kreise 1 bis 10","01","pauschal","423.02.02.000.00.01",null,1.8658812695590616,46.461488024512164,32.423875000000002,60.499101049024326,66.439927875052391]
[423,"Raumheizflächen",423,"Flächenheizsysteme","02","Wand- / Decken -/ Fußbodenheizung - Verteiler","02",null,"000",null,"00","Anzahl Kreise 10 bis 20","02","pauschal","423.02.02.000.00.02",null,2.55602933006928,97.73302110029158,54.967500000000008,140.49854220058316,139.75822017341696]
[423,"Raumheizflächen",423,"Flächenheizsysteme","02","Wand- / Decken -/ Fußbodenheizung - Verteiler","02",null,"000",null,"00","Anzahl Kreise 20 bis 40","03","pauschal","423.02.02.000.00.03",null,2.7666690451548748,176.26235415917813,93.590571428571437,258.93413688978484,252.05516644762471]
[429,"Sonstiges zur KG 420",429,"Rampenheizung","01","Rampenheizung (wassergeführt)","01",null,"000",null,"00","Norm-Wärmeleistung <= 50 kW","01","Anzahl","429.01.01.000.00.01",null,1.2239713508450829,34.983069348793151,31.46,38.506138697586309,50.025789168774203]
[429,"Sonstiges zur KG 420",429,"Rampenheizung","01","Rampenheizung (wassergeführt)","01",null,"000",null,"00","Norm-Wärmeleistung > 50 bis 150 kW","02","Anzahl","429.01.01.000.00.02",null,2.2952690447400244,60.156021342345134,33.08,75.927499999999995,86.023110519553541]
[431,"Lüftungsanlagen",431,"Abluftanlagen (mit bis zu einer LBF)","01","Abluftanlage","01",null,"000",null,"00","Abluft Volumenstrom <= 500 m3/h","01","Anzahl","431.01.01.000.00.01",null,1.5818347339573267,39.106237162211485,32,50.618711486634453,55.92191914196242]
[431,"Lüftungsanlagen",431,"Abluftanlagen (mit bis zu einer LBF)","01","Abluftanlage","01",null,"000",null,"00","Abluft Volumenstrom > 500 bis 2.500 m3/h","02","Anzahl","431.01.01.000.00.02",null,1.5726423730395602,43.681450485636631,35.637942248322148,56.045738067648145,62.464474194460379]
[431,"Lüftungsanlagen",431,"Abluftanlagen (mit bis zu einer LBF)","01","Abluftanlage","01",null,"000",null,"00","Abluft Volumenstrom > 2.500 bis 5.000 m3/h","03","Anzahl","431.01.01.000.00.03",null,1.5575396810877986,53.97568046334321,43.823312307046983,68.256547874928955,77.185223062580789]
[431,"Lüftungsanlagen",431,"Abluftanlagen (mit bis zu einer LBF)","01","Abluftanlage","01",null,"000",null,"00","Abluft Volumenstrom > 5.000 bis 10.000 m3/h","04","Anzahl","431.01.01.000.00.04",null,1.5419295043476553,71.132730426187507,57.465595738255033,88.607897553730311,101.71980450944812]
[431,"Lüftungsanlagen",431,"Abluftanlagen (mit bis zu einer LBF)","01","Abluftanlage","01",null,"000",null,"00","Abluft Volumenstrom > 10.000 bis 20.000 m3/h","05","Anzahl","431.01.01.000.00.05",null,1.525785826755558,105.4468303518761,84.750162600671146,129.31059691133299,150.78896740318282]
[431,"Lüftungsanlagen",431,"Abluftanlagen (mit bis zu einer LBF)","01","Abluftanlage","01",null,"000",null,"00","Abluft Volumenstrom > 20.000 bis 30.000 m3/h","06","Anzahl","431.01.01.000.00.06",null,1.5155741068073867,151.19896358612755,121.12958508389262,183.58086272146991,216.21451792816239]
[431,"Lüftungsanlagen",431,"Abluftanlagen (mit bis zu einer LBF)","01","Abluftanlage","01",null,"000",null,"00","Abluft Volumenstrom > 30.000 bis 50.000 m3/h","07","Anzahl","431.01.01.000.00.07",null,1.5081855077449582,219.82716343750474,175.69871880872483,264.98626143667531,314.35284371563176]
[431,"Lüftungsanlagen",431,"Abluftanlagen (mit bis zu einer LBF)","01","Abluftanlage","01",null,"000",null,"00","Abluft Volumenstrom > 50.000 bis 75.000 m3/h","08","Anzahl","431.01.01.000.00.08",null,1.5029731051151431,322.76946321457052,257.55241939597317,387.09435950948341,461.5603323968358]
[431,"Lüftungsanlagen",431,"Abluftanlagen (mit bis zu einer LBF)","01","Abluftanlage","01",null,"000",null,"00","Abluft Volumenstrom > 75.000 bis 100.000 m3/h","09","Anzahl","431.01.01.000.00.09",null,1.5000532584700896,437.14979630019917,348.50097560402685,522.77002403482572,625.12420870928474]
[431,"Lüftungsanlagen",431,"Zuluftanlagen (mit bis zu einer LBF)","02","Zuluftanlage","01",null,"000",null,"00","Zuluft Volumenstrom <= 500 m3/h","01","Anzahl","431.02.01.000.00.01",null,2.2360372192147686,79.93234460400781,51.42,114.97703381202341,114.30325278373117]
[431,"Lüftungsanlagen",431,"Zuluftanlagen (mit bis zu einer LBF)","02","Zuluftanlage","01",null,"000",null,"00","Zuluft Volumenstrom > 500 bis 2.500 m3/h","02","Anzahl","431.02.01.000.00.02",null,2.257631439231254,90.72373457069564,57.53348255033557,129.88939901410032,129.73494043609475]
[431,"Lüftungsanlagen",431,"Zuluftanlagen (mit bis zu einer LBF)","02","Zuluftanlage","01",null,"000",null,"00","Zuluft Volumenstrom > 2.500 bis 5.000 m3/h","03","Anzahl","431.02.01.000.00.03",null,2.2926768130329829,115.00436199574324,71.288818288590605,163.44222071877334,164.45623765391284]
[431,"Lüftungsanlagen",431,"Zuluftanlagen (mit bis zu einer LBF)","02","Zuluftanlage","01",null,"000",null,"00","Zuluft Volumenstrom > 5.000 bis 10.000 m3/h","04","Anzahl","431.02.01.000.00.04",null,2.3283451552409993,155.47207437082261,94.214377852349003,219.36359022656171,222.32506635027633]
[431,"Lüftungsanlagen",431,"Zuluftanlagen (mit bis zu einer LBF)","02","Zuluftanlage","01",null,"000",null,"00","Zuluft Volumenstrom > 10.000 bis 20.000 m3/h","05","Anzahl","431.02.01.000.00.05",null,2.3646532256958968,236.4074991209813,140.06549697986577,331.20632924213845,338.06272374300323]
[431,"Lüftungsanlagen",431,"Zuluftanlagen (mit bis zu einer LBF)","02","Zuluftanlage","01",null,"000",null,"00","Zuluft Volumenstrom > 20.000 bis 30.000 m3/h","06","Anzahl","431.02.01.000.00.06",null,2.387322124212615,344.32139878785961,201.2003224832215,480.32998126290749,492.37960026663922]
[431,"Lüftungsanlagen",431,"Zuluftanlagen (mit bis zu einer LBF)","02","Zuluftanlage","01",null,"000",null,"00","Zuluft Volumenstrom > 30.000 bis 50.000 m3/h","07","Anzahl","431.02.01.000.00.07",null,2.4035824661949152,506.19224828817698,292.90256073825503,704.01545929406097,723.85491505209302]
[431,"Lüftungsanlagen",431,"Zuluftanlagen (mit bis zu einer LBF)","02","Zuluftanlage","01",null,"000",null,"00","Zuluft Volumenstrom > 50.000 bis 75.000 m3/h","08","Anzahl","431.02.01.000.00.08",null,2.4149828880945909,748.99852253865311,430.45591812080539,1039.5436763407913,1071.067887230274]
[431,"Lüftungsanlagen",431,"Zuluftanlagen (mit bis zu einer LBF)","02","Zuluftanlage","01",null,"000",null,"00","Zuluft Volumenstrom > 75.000 bis 100.000 m3/h","09","Anzahl","431.02.01.000.00.09",null,2.4213437333714145,1018.7832717058487,583.2929818791946,1412.3528063927138,1456.8600785393637]
[431,"Lüftungsanlagen",431,"Zu- und Abluftanlagen (mit bis zur einer LBF)","03","Zu- und Abluftanlage","01",null,"000","mit WRG","01","Volumenstrom <= 500 m3/h","01","Anzahl","431.03.01.000.01.01",null,2.3586930679048379,133.39049519184064,79.430000000000007,187.35099038368128,190.74840812433212]
[431,"Lüftungsanlagen",431,"Zu- und Abluftanlagen (mit bis zur einer LBF)","03","Zu- und Abluftanlage","01",null,"000","mit WRG","01","Volumenstrom > 500 bis 2.500 m3/h","02","Anzahl","431.03.01.000.01.02",null,2.3389323703029001,146.93690326201079,88.014303355704698,205.85950316831688,210.11977166467543]
[431,"Lüftungsanlagen",431,"Zu- und Abluftanlagen (mit bis zur einer LBF)","03","Zu- und Abluftanlage","01",null,"000","mit WRG","01","Volumenstrom > 2.500 bis 5.000 m3/h","03","Anzahl","431.03.01.000.01.03",null,2.3060280952474552,177.41632141989365,107.32898590604027,247.50365693374701,253.7053396304479]
[431,"Lüftungsanlagen",431,"Zu- und Abluftanlagen (mit bis zur einer LBF)","03","Zu- und Abluftanlage","01",null,"000","mit WRG","01","Volumenstrom > 5.000 bis 10.000 m3/h","04","Anzahl","431.03.01.000.01.04",null,2.2714327650304673,228.21535168303171,139.5201234899329,316.91057987613056,326.34795290673532]
[431,"Lüftungsanlagen",431,"Zu- und Abluftanlagen (mit bis zur einer LBF)","03","Zu- und Abluftanlage","01",null,"000","mit WRG","01","Volumenstrom > 10.000 bis 20.000 m3/h","05","Anzahl","431.03.01.000.01.05",null,2.2350125783753132,329.8134122093079,203.90239865771812,455.72442576089759,471.63317945931027]
[431,"Lüftungsanlagen",431,"Zu- und Abluftanlagen (mit bis zur einer LBF)","03","Zu- und Abluftanlage","01",null,"000","mit WRG","01","Volumenstrom > 20.000 bis 30.000 m3/h","06","Anzahl","431.03.01.000.01.06",null,2.211629528407105,465.2774929110094,289.74543221476512,640.80955360725375,665.34681486274337]
[431,"Lüftungsanlagen",431,"Zu- und Abluftanlagen (mit bis zur einer LBF)","03","Zu- und Abluftanlage","01",null,"000","mit WRG","01","Volumenstrom > 30.000 bis 50.000 m3/h","07","Anzahl","431.03.01.000.01.07",null,2.1945408321683804,668.47361396356177,418.50998255033556,918.43724537678781,955.91726796789328]
[431,"Lüftungsanlagen",431,"Zu- und Abluftanlagen (mit bis zur einer LBF)","03","Zu- und Abluftanlage","01",null,"000","mit WRG","01","Volumenstrom > 50.000 bis 75.000 m3/h","08","Anzahl","431.03.01.000.01.08",null,2.1823983080948772,973.26779554239022,611.65680805369129,1334.8787830310889,1391.7729476256179]
[431,"Lüftungsanlagen",431,"Zu- und Abluftanlagen (mit bis zur einer LBF)","03","Zu- und Abluftanlage","01",null,"000","mit WRG","01","Volumenstrom > 75.000 bis 100.000 m3/h","09","Anzahl","431.03.01.000.01.09",null,2.175564649969556,1311.9279972966442,826.26439194630871,1797.591602646979,1876.0570361342011]
[431,"Lüftungsanlagen",431,"Zu- und Abluftanlagen (mit bis zur einer LBF)","03","Zu- und Abluftanlage","01",null,"000","ohne WRG","02","Volumenstrom <= 500 m3/h","01","Anzahl","431.03.01.000.02.01",null,1.4194057965236804,244.49992805755397,202.11568345323741,286.88417266187048,349.63489712230216]
[431,"Lüftungsanlagen",431,"Zu- und Abluftanlagen (mit bis zur einer LBF)","03","Zu- und Abluftanlage","01",null,"000","ohne WRG","02","Volumenstrom > 500 bis 2.500 m3/h","02","Anzahl","431.03.01.000.02.02",null,1.4408223451051747,262.1088489208633,214.77093525179856,309.44676258992803,374.81565395683452]
[431,"Lüftungsanlagen",431,"Zu- und Abluftanlagen (mit bis zur einer LBF)","03","Zu- und Abluftanlage","01",null,"000","ohne WRG","02","Volumenstrom > 2.500 bis 5.000 m3/h","03","Anzahl","431.03.01.000.02.03",null,1.48086175275627,301.72892086330933,243.24525179856116,360.21258992805753,431.47235683453232]
[431,"Lüftungsanlagen",431,"Zu- und Abluftanlagen (mit bis zur einer LBF)","03","Zu- und Abluftanlage","01",null,"000","ohne WRG","02","Volumenstrom > 5.000 bis 10.000 m3/h","04","Anzahl","431.03.01.000.02.04",null,1.5301636027246333,367.7623741007194,290.70244604316548,444.82230215827337,525.90019496402874]
[431,"Lüftungsanlagen",431,"Zu- und Abluftanlagen (mit bis zur einer LBF)","03","Zu- und Abluftanlage","01",null,"000","ohne WRG","02","Volumenstrom > 10.000 bis 20.000 m3/h","05","Anzahl","431.03.01.000.02.05",null,1.5923623442512174,499.82928057553954,385.61683453237413,614.04172661870507,714.75587122302147]
[431,"Lüftungsanlagen",431,"Zu- und Abluftanlagen (mit bis zur einer LBF)","03","Zu- und Abluftanlage","01",null,"000","ohne WRG","02","Volumenstrom > 20.000 bis 30.000 m3/h","06","Anzahl","431.03.01.000.02.06",null,1.639433561909182,675.91848920863299,512.16935251798566,839.66762589928067,966.56343956834519]
[431,"Lüftungsanlagen",431,"Zu- und Abluftanlagen (mit bis zur einer LBF)","03","Zu- und Abluftanlage","01",null,"000","ohne WRG","02","Volumenstrom > 30.000 bis 50.000 m3/h","07","Anzahl","431.03.01.000.02.07",null,1.6782188232685036,940.05230215827339,701.99812949640284,1178.1064748201438,1344.274792086331]
[431,"Lüftungsanlagen",431,"Zu- und Abluftanlagen (mit bis zur einer LBF)","03","Zu- und Abluftanlage","01",null,"000","ohne WRG","02","Volumenstrom > 50.000 bis 75.000 m3/h","08","Anzahl","431.03.01.000.02.08",null,1.7084161337981634,1336.2530215827337,986.74129496402873,1685.764748201439,1910.8418208633091]
[431,"Lüftungsanlagen",431,"Zu- und Abluftanlagen (mit bis zur einer LBF)","03","Zu- und Abluftanlage","01",null,"000","ohne WRG","02","Volumenstrom > 75.000 bis 100.000 m3/h","09","Anzahl","431.03.01.000.02.09",null,1.7264910560157554,1776.4760431654677,1303.1225899280573,2249.8294964028778,2540.3607417266185]
[431,"Lüftungsanlagen",431,"Mechanische Entrauchungsanlagen (inkl. Nachströmöffnungen und Überströmeinrichtungen)","04","Maschinelle Rauch-/Wärmeabzuganlage (MRA)","01",null,"000",null,"00","Volumenstrom <= 25.000 m3/h","01","Anzahl","431.04.01.000.00.01",null,2.2212013347762274,177.21934104677368,115.17691214606879,255.83111099425227,253.42365769688635]
[431,"Lüftungsanlagen",431,"Mechanische Entrauchungsanlagen (inkl. Nachströmöffnungen und Überströmeinrichtungen)","04","Maschinelle Rauch-/Wärmeabzuganlage (MRA)","01",null,"000",null,"00","Volumenstrom > 25.000 bis 50.000 m3/h","02","Anzahl","431.04.01.000.00.02",null,1.1464328824893422,189.14392784459616,176.24024434925263,202.04761133993969,270.47581681777251]
[431,"Lüftungsanlagen",431,"Mechanische Entrauchungsanlagen (inkl. Nachströmöffnungen und Überströmeinrichtungen)","04","Maschinelle Rauch-/Wärmeabzuganlage (MRA)","01",null,"000",null,"00","Volumenstrom > 50.000 bis 100.000 m3/h","03","Anzahl","431.04.01.000.00.03",null,1.4415085803290415,238.53538829814738,195.4,281.67077659629473,341.10560526635072]
[431,"Lüftungsanlagen",431,"Mechanische Entrauchungsanlagen (inkl. Nachströmöffnungen und Überströmeinrichtungen)","04","Jet-Ventilator","02",null,"000",null,"00","Volumenstrom <= 25.000 m3/h","01","Anzahl","431.04.02.000.00.01",null,2.3527960460068256,78.041700212020473,52.95,124.58055063606142,111.59963130318927]
[431,"Lüftungsanlagen",431,"Mechanische Entrauchungsanlagen (inkl. Nachströmöffnungen und Überströmeinrichtungen)","04","Jet-Ventilator","02",null,"000",null,"00","Volumenstrom > 25.000 bis 50.000 m3/h","02","Anzahl","431.04.02.000.00.02",null,1.7304977584999086,131.44251984833011,99.552383333333339,172.275176211657,187.96280338311203]
[431,"Lüftungsanlagen",431,"Mechanische Entrauchungsanlagen (inkl. Nachströmöffnungen und Überströmeinrichtungen)","04","Jet-Ventilator","02",null,"000",null,"00","Volumenstrom > 50.000 bis 100.000 m3/h","03","Anzahl","431.04.02.000.00.03",null,1.6123781707083709,177.4193151465696,135.82973333333337,219.00889695980587,253.70962065959452]
[431,"Lüftungsanlagen",431,"Mechanische Entrauchungsanlagen (inkl. Nachströmöffnungen und Überströmeinrichtungen)","04","Rauchschutzdruckanlage (RDA)","03",null,"000",null,"00","Volumenstrom <= 25.000 m3/h","01","Anzahl","431.04.03.000.00.01",null,1.6741851368970011,219.35539208693703,153.4,256.82,{"$f":"R195*(((160.2-117.2)/100)+1)","v":313.67821068431994}]
[431,"Lüftungsanlagen",431,"Mechanische Entrauchungsanlagen (inkl. Nachströmöffnungen und Überströmeinrichtungen)","04","Rauchschutzdruckanlage (RDA)","03",null,"000",null,"00","Volumenstrom > 25.000 bis 50.000 m3/h","02","Anzahl","431.04.03.000.00.02",null,1.4339832187138142,300.49181434039963,246.91362868079921,354.07,429.70329450677144]
[431,"Lüftungsanlagen",431,"Mechanische Entrauchungsanlagen (inkl. Nachströmöffnungen und Überströmeinrichtungen)","04","Rauchschutzdruckanlage (RDA)","03",null,"000",null,"00","Volumenstrom > 50.000 bis 100.000 m3/h","03","Anzahl","431.04.03.000.00.03",null,1.1115192760119432,378.60413291173415,358.60826582346834,398.6,541.40391006377979]
[431,"Lüftungsanlagen",431,"Küchenabluftanlagen ","05","Küchenabluftanlage","01",null,"000",null,"00","Abluft Volumenstrom <= 5.000 m3/h","01","Anzahl","431.05.01.000.00.01","ohne brandschutztechn. Reinigung, ohne Deckenreinigung / Reinigung der Wrasenfilter durch Küchendienstleister",1.0507621886435887,132.01672347737326,128.74893462385467,135.28451233089186,188.78391457264377]
[431,"Lüftungsanlagen",431,"Küchenabluftanlagen ","05","Küchenabluftanlage","01",null,"000",null,"00","Abluft Volumenstrom > 5.000 bis 25.000 m3/h","02","Anzahl","431.05.01.000.00.02","ohne brandschutztechn. Reinigung, ohne Deckenreinigung / Reinigung der Wrasenfilter durch Küchendienstleister",1.2067512387948305,245.76048034797498,222.73510129052133,268.78585940542865,351.43748689760417]
[431,"Lüftungsanlagen",431,"Küchenabluftanlagen ","05","Küchenabluftanlage","01",null,"000",null,"00","Abluft Volumenstrom > 25.000 bis 50.000 m3/h","03","Anzahl","431.05.01.000.00.03","ohne brandschutztechn. Reinigung, ohne Deckenreinigung / Reinigung der Wrasenfilter durch Küchendienstleister",1.3190172483000864,347.19427177709798,299.43224616513953,394.95629738905643,496.48780864125007]
[431,"Lüftungsanlagen",431,"Luftschleieranlagen","06","Luftschleieranlage","01",null,"000",null,"00","Volumenstrom < 2.500 m3/h","01","Anzahl","431.06.01.000.00.01",null,1.1069403148433559,94.665495543678361,89.86063333333334,99.470357754023368,135.37165862746005]
[431,"Lüftungsanlagen",431,"Luftschleieranlagen","06","Luftschleieranlage","01",null,"000",null,"00","Volumenstrom  > 2.500 bis 5.000 m3/h","02","Anzahl","431.06.01.000.00.02",null,1.1567950448159514,136.00386492110178,126.11663333333333,145.89109650887025,194.48552683717554]
[432,"Teilklimaanlagen",432,"Teilklimaanlagen","01","Teilklimaanlage","01",null,"000",null,"00","Volumenstrom <= 500 m3/h","01","Anzahl","432.01.01.000.00.01"," alle Taschenfilterklassen, keine Aktivkohlefilter, inkl. Wärmetauscher / 2 oder 3 LBF",1.3882761649015272,174.22474622956642,145.9,202.54949245913284,249.14138710827996]
[432,"Teilklimaanlagen",432,"Teilklimaanlagen","01","Teilklimaanlage","01",null,"000",null,"00","Volumenstrom > 500 bis 2.500 m3/h","02","Anzahl","432.01.01.000.00.02"," alle Taschenfilterklassen, keine Aktivkohlefilter, inkl. Wärmetauscher / 2 oder 3 LBF",1.4535261247411859,188.60165722722076,153.7392696375839,223.46404481685761,269.70036983492565]
[432,"Teilklimaanlagen",432,"Teilklimaanlagen","01","Teilklimaanlage","01",null,"000",null,"00","Volumenstrom > 2.500 bis 5.000 m3/h","03","Anzahl","432.01.01.000.00.03"," alle Taschenfilterklassen, keine Aktivkohlefilter, inkl. Wärmetauscher / 2 oder 3 LBF",1.5785128632440277,220.94970697194299,171.37762632214765,270.52178762173833,315.95808096987844]
[432,"Teilklimaanlagen",432,"Teilklimaanlagen","01","Teilklimaanlage","01",null,"000",null,"00","Volumenstrom > 5.000 bis 10.000 m3/h","04","Anzahl","432.01.01.000.00.04"," alle Taschenfilterklassen, keine Aktivkohlefilter, inkl. Wärmetauscher / 2 oder 3 LBF",1.7380229339058222,274.86312321314671,200.77488746308725,348.95135896320619,393.05426619479977]
[432,"Teilklimaanlagen",432,"Teilklimaanlagen","01","Teilklimaanlage","01",null,"000",null,"00","Volumenstrom > 10.000 bis 20.000 m3/h","05","Anzahl","432.01.01.000.00.05"," alle Taschenfilterklassen, keine Aktivkohlefilter, inkl. Wärmetauscher / 2 oder 3 LBF",1.9486522011323046,382.6899556955542,259.56940974496644,505.81050164614192,547.24663664464254]
[432,"Teilklimaanlagen",432,"Teilklimaanlagen","01","Teilklimaanlage","01",null,"000",null,"00","Volumenstrom > 20.000 bis 30.000 m3/h","06","Anzahl","432.01.01.000.00.06"," alle Taschenfilterklassen, keine Aktivkohlefilter, inkl. Wärmetauscher / 2 oder 3 LBF",2.1154916846441556,526.45906567209749,337.9621061208054,714.95602522338947,752.83646391109937]
[432,"Teilklimaanlagen",432,"Teilklimaanlagen","01","Teilklimaanlage","01",null,"000",null,"00","Volumenstrom > 30.000 bis 50.000 m3/h","07","Anzahl","432.01.01.000.00.07"," alle Taschenfilterklassen, keine Aktivkohlefilter, inkl. Wärmetauscher / 2 oder 3 LBF",2.2580873937942121,742.11273063691237,455.55115068456382,1028.674310589261,1061.2212048107847]
[432,"Teilklimaanlagen",432,"Teilklimaanlagen","01","Teilklimaanlage","01",null,"000",null,"00","Volumenstrom > 50.000 bis 75.000 m3/h","08","Anzahl","432.01.01.000.00.08"," alle Taschenfilterklassen, keine Aktivkohlefilter, inkl. Wärmetauscher / 2 oder 3 LBF",2.3724788289803302,1065.5932280841348,631.9347175302014,1499.251738638068,1523.7983161603127]
[432,"Teilklimaanlagen",432,"Teilklimaanlagen","01","Teilklimaanlage","01",null,"000",null,"00","Volumenstrom > 75.000 bis 100.000 m3/h","09","Anzahl","432.01.01.000.00.09"," alle Taschenfilterklassen, keine Aktivkohlefilter, inkl. Wärmetauscher / 2 oder 3 LBF",2.4424149645709106,1425.0160030254929,827.91645846979873,2022.1155475811872,2037.7728843264547]
[433,"Klimaanlagen",433,"Klimaanlagen","01","Klimaanlage","01",null,"000",null,"00","Volumenstrom <= 500 m3/h","01","Anzahl","433.01.01.000.00.01","alle Taschenfilterklassen, keine Aktivkohlefilter, inkl. Wärmetauscher / 4 LBF",2.6483732363599208,333.16494639631645,191.15508080568719,506.25,476.42587334673249]
[433,"Klimaanlagen",433,"Klimaanlagen","01","Klimaanlage","01",null,"000",null,"00","Volumenstrom > 500 bis 2.500 m3/h","02","Anzahl","433.01.01.000.00.02","alle Taschenfilterklassen, keine Aktivkohlefilter, inkl. Wärmetauscher / 4 LBF",2.6044824377345064,350.07938338359452,202.72575086198668,527.99565779658531,500.61351823854017]
[433,"Klimaanlagen",433,"Klimaanlagen","01","Klimaanlage","01",null,"000",null,"00","Volumenstrom > 2.500 bis 5.000 m3/h","03","Anzahl","433.01.01.000.00.03","alle Taschenfilterklassen, keine Aktivkohlefilter, inkl. Wärmetauscher / 4 LBF",2.5219618679895563,388.13686660497024,228.75975848866057,576.92338783890216,555.03571924510743]
[433,"Klimaanlagen",433,"Klimaanlagen","01","Klimaanlage","01",null,"000",null,"00","Volumenstrom > 5.000 bis 10.000 m3/h","04","Anzahl","433.01.01.000.00.04","alle Taschenfilterklassen, keine Aktivkohlefilter, inkl. Wärmetauscher / 4 LBF",2.4195118800695883,451.56600530726314,272.14977119978369,658.46960457609691,645.7393875893863]
[433,"Klimaanlagen",433,"Klimaanlagen","01","Klimaanlage","01",null,"000",null,"00","Volumenstrom > 10.000 bis 20.000 m3/h","05","Anzahl","433.01.01.000.00.05","alle Taschenfilterklassen, keine Aktivkohlefilter, inkl. Wärmetauscher / 4 LBF",2.2889212480613033,578.42428271184883,358.92979662202993,821.56203805048654,827.1467242779438]
[433,"Klimaanlagen",433,"Klimaanlagen","01","Klimaanlage","01",null,"000",null,"00","Volumenstrom > 20.000 bis 30.000 m3/h","06","Anzahl","433.01.01.000.00.06","alle Taschenfilterklassen, keine Aktivkohlefilter, inkl. Wärmetauscher / 4 LBF",2.1890828500938149,747.56865258462972,474.63649718502495,1039.0186160163394,1069.0231731960205]
[433,"Klimaanlagen",433,"Klimaanlagen","01","Klimaanlage","01",null,"000",null,"00","Volumenstrom > 30.000 bis 50.000 m3/h","07","Anzahl","433.01.01.000.00.07","alle Taschenfilterklassen, keine Aktivkohlefilter, inkl. Wärmetauscher / 4 LBF",2.106156669786754,1001.2852073938011,648.19654802951754,1365.2034829651184,1431.8378465731355]
[433,"Klimaanlagen",433,"Klimaanlagen","01","Klimaanlage","01",null,"000",null,"00","Volumenstrom > 50.000 bis 75.000 m3/h","08","Anzahl","433.01.01.000.00.08","alle Taschenfilterklassen, keine Aktivkohlefilter, inkl. Wärmetauscher / 4 LBF",2.0411733922391404,1381.8600396075583,908.53662429625638,1854.4807833882871,1976.0598566388082]
[433,"Klimaanlagen",433,"Klimaanlagen","01","Klimaanlage","01",null,"000",null,"00","Volumenstrom > 75.000 bis 100.000 m3/h","09","Anzahl","433.01.01.000.00.09","alle Taschenfilterklassen, keine Aktivkohlefilter, inkl. Wärmetauscher / 4 LBF",2.0021000749759565,1804.7209642895107,1197.8033757037438,2398.1222283029192,2580.7509789340002]
[434,"Kälteanlagen",434,"Kälteerzeugungsanlagen",{"$f":"IF(D221=\"\",\"00\",VLOOKUP(D221,'[1]Standardstruktur Anlagenmerkmal'!$F:$Z,2,FALSE))","v":"01"},"Splitanlage",{"$f":"IF(F221=\"\",\"00\",VLOOKUP(F221,'[1]Standardstruktur Anlagenmerkmal'!$N:$O,2,FALSE))","v":"01"},null,{"$f":"IF(H221=\"\",\"000\",VLOOKUP(H221,'[1]Nummerierung Bauteil'!$A:$C,3,FALSE))","v":"000"},"Außeneinheit","01","Kälteleistung <= 5 kW","01","Anzahl","434.01.01.000.01.01",null,1.6052668466559958,111.42618370664046,85.539171428571422,137.31319598470949,159.33944270049585]
[434,"Kälteanlagen",{"$f":"VLOOKUP(A222,'[1]Standardstruktur Anlagenmerkmal'!$C:$Z,3,FALSE)","v":434},"Kälteerzeugungsanlagen",{"$f":"IF(D222=\"\",\"00\",VLOOKUP(D222,'[1]Standardstruktur Anlagenmerkmal'!$F:$Z,2,FALSE))","v":"01"},"Splitanlage",{"$f":"IF(F222=\"\",\"00\",VLOOKUP(F222,'[1]Standardstruktur Anlagenmerkmal'!$N:$O,2,FALSE))","v":"01"},null,{"$f":"IF(H222=\"\",\"000\",VLOOKUP(H222,'[1]Nummerierung Bauteil'!$A:$C,3,FALSE))","v":"000"},"Außeneinheit","01","Kälteleistung > 5 bis 15 kW","02","Anzahl",{"$f":"IF(ISBLANK(C222)=TRUE,\"\",CONCATENATE(C222,\".\",E222,\".\",G222,\".\",I222,\".\",K222,\".\",M222))","v":"434.01.01.000.01.02"},null,1.587856083444263,138.67196882250138,107.17131428571429,170.17262335928848,198.30091541617696]
[434,"Kälteanlagen",{"$f":"VLOOKUP(A223,'[1]Standardstruktur Anlagenmerkmal'!$C:$Z,3,FALSE)","v":434},"Kälteerzeugungsanlagen",{"$f":"IF(D223=\"\",\"00\",VLOOKUP(D223,'[1]Standardstruktur Anlagenmerkmal'!$F:$Z,2,FALSE))","v":"01"},"Splitanlage",{"$f":"IF(F223=\"\",\"00\",VLOOKUP(F223,'[1]Standardstruktur Anlagenmerkmal'!$N:$O,2,FALSE))","v":"01"},null,{"$f":"IF(H223=\"\",\"000\",VLOOKUP(H223,'[1]Nummerierung Bauteil'!$A:$C,3,FALSE))","v":"000"},"Außeneinheit","01","Kälteleistung > 15 bis 50 kW","03","Anzahl","434.01.01.000.01.03",null,1.5049498910921195,184.69246042011304,147.46199999999999,221.92292084022611,264.11021840076165]
[434,"Kälteanlagen",{"$f":"VLOOKUP(A224,'[1]Standardstruktur Anlagenmerkmal'!$C:$Z,3,FALSE)","v":434},"Kälteerzeugungsanlagen",{"$f":"IF(D224=\"\",\"00\",VLOOKUP(D224,'[1]Standardstruktur Anlagenmerkmal'!$F:$Z,2,FALSE))","v":"01"},"Splitanlage",{"$f":"IF(F224=\"\",\"00\",VLOOKUP(F224,'[1]Standardstruktur Anlagenmerkmal'!$N:$O,2,FALSE))","v":"01"},null,{"$f":"IF(H224=\"\",\"000\",VLOOKUP(H224,'[1]Nummerierung Bauteil'!$A:$C,3,FALSE))","v":"000"},"Inneneinheit","02","Kälteleistung <= 5 kW","01","Anzahl","434.01.01.000.02.01",null,1.9941143993805572,91.244395902299871,60.949171428571425,121.53962037602832,130.4794861402888]
[434,"Kälteanlagen",{"$f":"VLOOKUP(A225,'[1]Standardstruktur Anlagenmerkmal'!$C:$Z,3,FALSE)","v":434},"Kälteerzeugungsanlagen",{"$f":"IF(D225=\"\",\"00\",VLOOKUP(D225,'[1]Standardstruktur Anlagenmerkmal'!$F:$Z,2,FALSE))","v":"01"},"Splitanlage",{"$f":"IF(F225=\"\",\"00\",VLOOKUP(F225,'[1]Standardstruktur Anlagenmerkmal'!$N:$O,2,FALSE))","v":"01"},null,{"$f":"IF(H225=\"\",\"000\",VLOOKUP(H225,'[1]Nummerierung Bauteil'!$A:$C,3,FALSE))","v":"000"},"Inneneinheit","02","Kälteleistung > 5 bis 15 kW","02","Anzahl","434.01.01.000.02.02",null,1.4711483469919098,81.177081990207256,65.699885714285713,96.654278266128813,116.08322724599637]
[434,"Kälteanlagen",{"$f":"VLOOKUP(A226,'[1]Standardstruktur Anlagenmerkmal'!$C:$Z,3,FALSE)","v":434},"Kälteerzeugungsanlagen",{"$f":"IF(D226=\"\",\"00\",VLOOKUP(D226,'[1]Standardstruktur Anlagenmerkmal'!$F:$Z,2,FALSE))","v":"01"},"Kompressionskältemaschine",{"$f":"IF(F226=\"\",\"00\",VLOOKUP(F226,'[1]Standardstruktur Anlagenmerkmal'!$N:$O,2,FALSE))","v":"02"},null,{"$f":"IF(H226=\"\",\"000\",VLOOKUP(H226,'[1]Nummerierung Bauteil'!$A:$C,3,FALSE))","v":"000"},"Kolbenverdichter","01","Kälteleistung <= 50 kW","01","Anzahl","434.01.02.000.01.01",null,1.1273913699851972,495.00553222681503,465.36386225000001,524.64720220363006,707.85791108434546]
[434,"Kälteanlagen",{"$f":"VLOOKUP(A227,'[1]Standardstruktur Anlagenmerkmal'!$C:$Z,3,FALSE)","v":434},"Kälteerzeugungsanlagen",{"$f":"IF(D227=\"\",\"00\",VLOOKUP(D227,'[1]Standardstruktur Anlagenmerkmal'!$F:$Z,2,FALSE))","v":"01"},"Kompressionskältemaschine",{"$f":"IF(F227=\"\",\"00\",VLOOKUP(F227,'[1]Standardstruktur Anlagenmerkmal'!$N:$O,2,FALSE))","v":"02"},null,{"$f":"IF(H227=\"\",\"000\",VLOOKUP(H227,'[1]Nummerierung Bauteil'!$A:$C,3,FALSE))","v":"000"},"Kolbenverdichter","01","Kälteleistung > 50 bis 100 kW","02","Anzahl","434.01.02.000.01.02",null,1.0614190415253997,696.54071402051477,675.78760066666666,717.29382737436288,996.05322104933612]
[434,"Kälteanlagen",{"$f":"VLOOKUP(A228,'[1]Standardstruktur Anlagenmerkmal'!$C:$Z,3,FALSE)","v":434},"Kälteerzeugungsanlagen",{"$f":"IF(D228=\"\",\"00\",VLOOKUP(D228,'[1]Standardstruktur Anlagenmerkmal'!$F:$Z,2,FALSE))","v":"01"},"Kompressionskältemaschine",{"$f":"IF(F228=\"\",\"00\",VLOOKUP(F228,'[1]Standardstruktur Anlagenmerkmal'!$N:$O,2,FALSE))","v":"02"},null,{"$f":"IF(H228=\"\",\"000\",VLOOKUP(H228,'[1]Nummerierung Bauteil'!$A:$C,3,FALSE))","v":"000"},"Kolbenverdichter","01","Kälteleistung > 100 bis 250 kW","03","Anzahl","434.01.02.000.01.03",null,1.1014748335277316,878.90571089922696,836.4656067984539,921.34581500000002,1256.8351665858945]
[434,"Kälteanlagen",{"$f":"VLOOKUP(A229,'[1]Standardstruktur Anlagenmerkmal'!$C:$Z,3,FALSE)","v":434},"Kälteerzeugungsanlagen",{"$f":"IF(D229=\"\",\"00\",VLOOKUP(D229,'[1]Standardstruktur Anlagenmerkmal'!$F:$Z,2,FALSE))","v":"01"},"Kompressionskältemaschine",{"$f":"IF(F229=\"\",\"00\",VLOOKUP(F229,'[1]Standardstruktur Anlagenmerkmal'!$N:$O,2,FALSE))","v":"02"},null,{"$f":"IF(H229=\"\",\"000\",VLOOKUP(H229,'[1]Nummerierung Bauteil'!$A:$C,3,FALSE))","v":"000"},"Kolbenverdichter","01","Kälteleistung > 250 bis 500 kW","04","Anzahl","434.01.02.000.01.04",null,1.5325436880990364,1335.52081297975,1113.6994209392503,1706.7930179999998,1909.7947625610423]
[434,"Kälteanlagen",{"$f":"VLOOKUP(A230,'[1]Standardstruktur Anlagenmerkmal'!$C:$Z,3,FALSE)","v":434},"Kälteerzeugungsanlagen",{"$f":"IF(D230=\"\",\"00\",VLOOKUP(D230,'[1]Standardstruktur Anlagenmerkmal'!$F:$Z,2,FALSE))","v":"01"},"Kompressionskältemaschine",{"$f":"IF(F230=\"\",\"00\",VLOOKUP(F230,'[1]Standardstruktur Anlagenmerkmal'!$N:$O,2,FALSE))","v":"02"},null,{"$f":"IF(H230=\"\",\"000\",VLOOKUP(H230,'[1]Nummerierung Bauteil'!$A:$C,3,FALSE))","v":"000"},"Schraubenverdichter","02","Kälteleistung <= 50 kW","01","Anzahl","434.01.02.000.02.01",null,1.564417701224055,360.28347336816029,280.98657500000002,439.58037173632056,515.20536691646919]
[434,"Kälteanlagen",{"$f":"VLOOKUP(A231,'[1]Standardstruktur Anlagenmerkmal'!$C:$Z,3,FALSE)","v":434},"Kälteerzeugungsanlagen",{"$f":"IF(D231=\"\",\"00\",VLOOKUP(D231,'[1]Standardstruktur Anlagenmerkmal'!$F:$Z,2,FALSE))","v":"01"},"Kompressionskältemaschine",{"$f":"IF(F231=\"\",\"00\",VLOOKUP(F231,'[1]Standardstruktur Anlagenmerkmal'!$N:$O,2,FALSE))","v":"02"},null,{"$f":"IF(H231=\"\",\"000\",VLOOKUP(H231,'[1]Nummerierung Bauteil'!$A:$C,3,FALSE))","v":"000"},"Schraubenverdichter","02","Kälteleistung > 50 bis 100 kW","02","Anzahl","434.01.02.000.02.02",null,1.2692054281965721,583.49455826511576,514.27213333333339,652.71698319689801,834.3972183191155]
[434,"Kälteanlagen",{"$f":"VLOOKUP(A232,'[1]Standardstruktur Anlagenmerkmal'!$C:$Z,3,FALSE)","v":434},"Kälteerzeugungsanlagen",{"$f":"IF(D232=\"\",\"00\",VLOOKUP(D232,'[1]Standardstruktur Anlagenmerkmal'!$F:$Z,2,FALSE))","v":"01"},"Kompressionskältemaschine",{"$f":"IF(F232=\"\",\"00\",VLOOKUP(F232,'[1]Standardstruktur Anlagenmerkmal'!$N:$O,2,FALSE))","v":"02"},null,{"$f":"IF(H232=\"\",\"000\",VLOOKUP(H232,'[1]Nummerierung Bauteil'!$A:$C,3,FALSE))","v":"000"},"Schraubenverdichter","02","Kälteleistung > 100 bis 250 kW","03","Anzahl","434.01.02.000.02.03",null,1.273052208352778,794.66203542115466,699.20262500000001,890.1214458423093,1136.3667106522512]
[434,"Kälteanlagen",{"$f":"VLOOKUP(A233,'[1]Standardstruktur Anlagenmerkmal'!$C:$Z,3,FALSE)","v":434},"Kälteerzeugungsanlagen",{"$f":"IF(D233=\"\",\"00\",VLOOKUP(D233,'[1]Standardstruktur Anlagenmerkmal'!$F:$Z,2,FALSE))","v":"01"},"Kompressionskältemaschine",{"$f":"IF(F233=\"\",\"00\",VLOOKUP(F233,'[1]Standardstruktur Anlagenmerkmal'!$N:$O,2,FALSE))","v":"02"},null,{"$f":"IF(H233=\"\",\"000\",VLOOKUP(H233,'[1]Nummerierung Bauteil'!$A:$C,3,FALSE))","v":"000"},"Schraubenverdichter","02","Kälteleistung > 250 bis 500 kW","04","Anzahl","434.01.02.000.02.04",null,1.2480346836904266,1236.4725171532484,1100.04754475,1372.8974895564968,1768.1556995291451]
[434,"Kälteanlagen",{"$f":"VLOOKUP(A234,'[1]Standardstruktur Anlagenmerkmal'!$C:$Z,3,FALSE)","v":434},"Kälteerzeugungsanlagen",{"$f":"IF(D234=\"\",\"00\",VLOOKUP(D234,'[1]Standardstruktur Anlagenmerkmal'!$F:$Z,2,FALSE))","v":"01"},"Kompressionskältemaschine",{"$f":"IF(F234=\"\",\"00\",VLOOKUP(F234,'[1]Standardstruktur Anlagenmerkmal'!$N:$O,2,FALSE))","v":"02"},null,{"$f":"IF(H234=\"\",\"000\",VLOOKUP(H234,'[1]Nummerierung Bauteil'!$A:$C,3,FALSE))","v":"000"},"Turboverdichter","03","Kälteleistung <= 50 kW","01","Anzahl","434.01.02.000.03.01",null,1.6595391879398589,412.77894049999998,310.413881,515.14400000000001,590.27388491499994]
[434,"Kälteanlagen",{"$f":"VLOOKUP(A235,'[1]Standardstruktur Anlagenmerkmal'!$C:$Z,3,FALSE)","v":434},"Kälteerzeugungsanlagen",{"$f":"IF(D235=\"\",\"00\",VLOOKUP(D235,'[1]Standardstruktur Anlagenmerkmal'!$F:$Z,2,FALSE))","v":"01"},"Kompressionskältemaschine",{"$f":"IF(F235=\"\",\"00\",VLOOKUP(F235,'[1]Standardstruktur Anlagenmerkmal'!$N:$O,2,FALSE))","v":"02"},null,{"$f":"IF(H235=\"\",\"000\",VLOOKUP(H235,'[1]Nummerierung Bauteil'!$A:$C,3,FALSE))","v":"000"},"Turboverdichter","03","Kälteleistung > 50 bis 100 kW","02","Anzahl","434.01.02.000.03.02",null,1.3984665920113299,651.29999616666669,543.09699233333333,759.50300000000004,931.35899451833336]
[434,"Kälteanlagen",{"$f":"VLOOKUP(A236,'[1]Standardstruktur Anlagenmerkmal'!$C:$Z,3,FALSE)","v":434},"Kälteerzeugungsanlagen",{"$f":"IF(D236=\"\",\"00\",VLOOKUP(D236,'[1]Standardstruktur Anlagenmerkmal'!$F:$Z,2,FALSE))","v":"01"},"Kompressionskältemaschine",{"$f":"IF(F236=\"\",\"00\",VLOOKUP(F236,'[1]Standardstruktur Anlagenmerkmal'!$N:$O,2,FALSE))","v":"02"},null,{"$f":"IF(H236=\"\",\"000\",VLOOKUP(H236,'[1]Nummerierung Bauteil'!$A:$C,3,FALSE))","v":"000"},"Turboverdichter","03","Kälteleistung > 100 bis 250 kW","03","Anzahl","434.01.02.000.03.03",null,1.292921564297234,904.72061250000002,789.14222500000005,1020.299,1293.7504758749999]
[434,"Kälteanlagen",{"$f":"VLOOKUP(A237,'[1]Standardstruktur Anlagenmerkmal'!$C:$Z,3,FALSE)","v":434},"Kälteerzeugungsanlagen",{"$f":"IF(D237=\"\",\"00\",VLOOKUP(D237,'[1]Standardstruktur Anlagenmerkmal'!$F:$Z,2,FALSE))","v":"01"},"Kompressionskältemaschine",{"$f":"IF(F237=\"\",\"00\",VLOOKUP(F237,'[1]Standardstruktur Anlagenmerkmal'!$N:$O,2,FALSE))","v":"02"},null,{"$f":"IF(H237=\"\",\"000\",VLOOKUP(H237,'[1]Nummerierung Bauteil'!$A:$C,3,FALSE))","v":"000"},"Turboverdichter","03","Kälteleistung > 250 bis 500 kW","04","Anzahl","434.01.02.000.03.04",null,1.1688652355295466,1535.4882674999999,1415.9370000000001,1655.0395349999999,2195.7482225249996]
[434,"Kälteanlagen",{"$f":"VLOOKUP(A238,'[1]Standardstruktur Anlagenmerkmal'!$C:$Z,3,FALSE)","v":434},"Kälteerzeugungsanlagen",{"$f":"IF(D238=\"\",\"00\",VLOOKUP(D238,'[1]Standardstruktur Anlagenmerkmal'!$F:$Z,2,FALSE))","v":"01"},"Absorptionskältemaschine",{"$f":"IF(F238=\"\",\"00\",VLOOKUP(F238,'[1]Standardstruktur Anlagenmerkmal'!$N:$O,2,FALSE))","v":"03"},null,{"$f":"IF(H238=\"\",\"000\",VLOOKUP(H238,'[1]Nummerierung Bauteil'!$A:$C,3,FALSE))","v":"000"},"Absorber","01",null,"00","kein EP","434.01.03.000.01.00",null,"kein Einheitspreis",null,null,null,0]
[434,"Kälteanlagen",{"$f":"VLOOKUP(A239,'[1]Standardstruktur Anlagenmerkmal'!$C:$Z,3,FALSE)","v":434},"Kälteerzeugungsanlagen",{"$f":"IF(D239=\"\",\"00\",VLOOKUP(D239,'[1]Standardstruktur Anlagenmerkmal'!$F:$Z,2,FALSE))","v":"01"},"Umluftkühlgerät",{"$f":"IF(F239=\"\",\"00\",VLOOKUP(F239,'[1]Standardstruktur Anlagenmerkmal'!$N:$O,2,FALSE))","v":"04"},null,{"$f":"IF(H239=\"\",\"000\",VLOOKUP(H239,'[1]Nummerierung Bauteil'!$A:$C,3,FALSE))","v":"000"},null,"00","Kälteleistung <= 10 kW","01","Anzahl","434.01.04.000.00.01",null,1.8010688836104514,110.4978154541089,84.2,151.65,158.01187609937571]
[434,"Kälteanlagen",{"$f":"VLOOKUP(A240,'[1]Standardstruktur Anlagenmerkmal'!$C:$Z,3,FALSE)","v":434},"Kälteerzeugungsanlagen",{"$f":"IF(D240=\"\",\"00\",VLOOKUP(D240,'[1]Standardstruktur Anlagenmerkmal'!$F:$Z,2,FALSE))","v":"01"},"Umluftkühlgerät",{"$f":"IF(F240=\"\",\"00\",VLOOKUP(F240,'[1]Standardstruktur Anlagenmerkmal'!$N:$O,2,FALSE))","v":"04"},null,{"$f":"IF(H240=\"\",\"000\",VLOOKUP(H240,'[1]Nummerierung Bauteil'!$A:$C,3,FALSE))","v":"000"},null,"00","Kälteleistung > 10 bis 20 kW","02","Anzahl","434.01.04.000.00.02",null,1.2755946225439503,111.43274301835395,96.7,123.35,159.34882251624614]
[434,"Kälteanlagen",{"$f":"VLOOKUP(A241,'[1]Standardstruktur Anlagenmerkmal'!$C:$Z,3,FALSE)","v":434},"Kälteerzeugungsanlagen",{"$f":"IF(D241=\"\",\"00\",VLOOKUP(D241,'[1]Standardstruktur Anlagenmerkmal'!$F:$Z,2,FALSE))","v":"01"},"Umluftkühlgerät",{"$f":"IF(F241=\"\",\"00\",VLOOKUP(F241,'[1]Standardstruktur Anlagenmerkmal'!$N:$O,2,FALSE))","v":"04"},null,{"$f":"IF(H241=\"\",\"000\",VLOOKUP(H241,'[1]Nummerierung Bauteil'!$A:$C,3,FALSE))","v":"000"},null,"00","Kälteleistung >20 bis 50 kW","03","Anzahl","434.01.04.000.00.03",null,1.3012677596654108,119.80770822772492,107.67,140.10749968317478,171.32502276564662]
[434,"Kälteanlagen",{"$f":"VLOOKUP(A242,'[1]Standardstruktur Anlagenmerkmal'!$C:$Z,3,FALSE)","v":434},"Kälteerzeugungsanlagen",{"$f":"IF(D242=\"\",\"00\",VLOOKUP(D242,'[1]Standardstruktur Anlagenmerkmal'!$F:$Z,2,FALSE))","v":"01"},"Klimaschrank",{"$f":"IF(F242=\"\",\"00\",VLOOKUP(F242,'[1]Standardstruktur Anlagenmerkmal'!$N:$O,2,FALSE))","v":"05"},null,{"$f":"IF(H242=\"\",\"000\",VLOOKUP(H242,'[1]Nummerierung Bauteil'!$A:$C,3,FALSE))","v":"000"},null,"00","Kälteleistung <= 30 kW","01","Anzahl","434.01.05.000.00.01",null,"kein Benchmark",null,null,null,0]
[434,"Kälteanlagen",{"$f":"VLOOKUP(A243,'[1]Standardstruktur Anlagenmerkmal'!$C:$Z,3,FALSE)","v":434},"Kälteerzeugungsanlagen",{"$f":"IF(D243=\"\",\"00\",VLOOKUP(D243,'[1]Standardstruktur Anlagenmerkmal'!$F:$Z,2,FALSE))","v":"01"},"Klimaschrank",{"$f":"IF(F243=\"\",\"00\",VLOOKUP(F243,'[1]Standardstruktur Anlagenmerkmal'!$N:$O,2,FALSE))","v":"05"},null,{"$f":"IF(H243=\"\",\"000\",VLOOKUP(H243,'[1]Nummerierung Bauteil'!$A:$C,3,FALSE))","v":"000"},null,"00","Kälteleistung > 30 bis 80 kW","02","Anzahl","434.01.05.000.00.02",null,1.0378459420717361,142.75874984158739,140.10749968317478,145.41,204.14501227346994]
[434,"Kälteanlagen",{"$f":"VLOOKUP(A244,'[1]Standardstruktur Anlagenmerkmal'!$C:$Z,3,FALSE)","v":434},"Kälteerzeugungsanlagen",{"$f":"IF(D244=\"\",\"00\",VLOOKUP(D244,'[1]Standardstruktur Anlagenmerkmal'!$F:$Z,2,FALSE))","v":"01"},"Klimaschrank",{"$f":"IF(F244=\"\",\"00\",VLOOKUP(F244,'[1]Standardstruktur Anlagenmerkmal'!$N:$O,2,FALSE))","v":"05"},null,{"$f":"IF(H244=\"\",\"000\",VLOOKUP(H244,'[1]Nummerierung Bauteil'!$A:$C,3,FALSE))","v":"000"},null,"00","Kälteleistung >80 bis 150 kW","03","Anzahl","434.01.05.000.00.03",null,"kein Benchmark",null,null,null,0]
[434,"Kälteanlagen",{"$f":"VLOOKUP(A245,'[1]Standardstruktur Anlagenmerkmal'!$C:$Z,3,FALSE)","v":434},"Rückkühlanlagen",{"$f":"IF(D245=\"\",\"00\",VLOOKUP(D245,'[1]Standardstruktur Anlagenmerkmal'!$F:$Z,2,FALSE))","v":"02"},"Rückkühlwerk",{"$f":"IF(F245=\"\",\"00\",VLOOKUP(F245,'[1]Standardstruktur Anlagenmerkmal'!$N:$O,2,FALSE))","v":"01"},null,{"$f":"IF(H245=\"\",\"000\",VLOOKUP(H245,'[1]Nummerierung Bauteil'!$A:$C,3,FALSE))","v":"000"},"Trockenrückkühlanlagen","01","Rückkühlleistung <= 100 kW","01","Anzahl","434.02.01.000.01.01",null,1.4691007136473397,232.39842050840159,184.3,270.75526152520473,332.32974132701423]
[434,"Kälteanlagen",{"$f":"VLOOKUP(A246,'[1]Standardstruktur Anlagenmerkmal'!$C:$Z,3,FALSE)","v":434},"Rückkühlanlagen",{"$f":"IF(D246=\"\",\"00\",VLOOKUP(D246,'[1]Standardstruktur Anlagenmerkmal'!$F:$Z,2,FALSE))","v":"02"},"Rückkühlwerk",{"$f":"IF(F246=\"\",\"00\",VLOOKUP(F246,'[1]Standardstruktur Anlagenmerkmal'!$N:$O,2,FALSE))","v":"01"},null,{"$f":"IF(H246=\"\",\"000\",VLOOKUP(H246,'[1]Nummerierung Bauteil'!$A:$C,3,FALSE))","v":"000"},"Trockenrückkühlanlagen","01","Rückkühlleistung > 100 bis 500 kW","02","Anzahl","434.02.01.000.01.02",null,2.5073520450272895,386.39899246921271,211.14306666666667,529.41,552.55055923097416]
[434,"Kälteanlagen",{"$f":"VLOOKUP(A247,'[1]Standardstruktur Anlagenmerkmal'!$C:$Z,3,FALSE)","v":434},"Rückkühlanlagen",{"$f":"IF(D247=\"\",\"00\",VLOOKUP(D247,'[1]Standardstruktur Anlagenmerkmal'!$F:$Z,2,FALSE))","v":"02"},"Rückkühlwerk",{"$f":"IF(F247=\"\",\"00\",VLOOKUP(F247,'[1]Standardstruktur Anlagenmerkmal'!$N:$O,2,FALSE))","v":"01"},null,{"$f":"IF(H247=\"\",\"000\",VLOOKUP(H247,'[1]Nummerierung Bauteil'!$A:$C,3,FALSE))","v":"000"},"Trockenrückkühlanlagen","01","Rückkühlleistung > 500 bis 1.000 kW","03","Anzahl","434.02.01.000.01.03",null,1.6761926502643745,460.32306935992852,374.74103666666662,628.13817141311904,658.26198918469777]
[434,"Kälteanlagen",{"$f":"VLOOKUP(A248,'[1]Standardstruktur Anlagenmerkmal'!$C:$Z,3,FALSE)","v":434},"Rückkühlanlagen",{"$f":"IF(D248=\"\",\"00\",VLOOKUP(D248,'[1]Standardstruktur Anlagenmerkmal'!$F:$Z,2,FALSE))","v":"02"},"Rückkühlwerk",{"$f":"IF(F248=\"\",\"00\",VLOOKUP(F248,'[1]Standardstruktur Anlagenmerkmal'!$N:$O,2,FALSE))","v":"01"},null,{"$f":"IF(H248=\"\",\"000\",VLOOKUP(H248,'[1]Nummerierung Bauteil'!$A:$C,3,FALSE))","v":"000"},"Verdunstungsrückkühlanlagen (Kühlturme)","02","Rückkühlleistung <= 100 kW","01","Anzahl","434.02.01.000.02.01",null,1.7063687487722536,390.03619047619048,312.70999999999998,533.5985714285714,557.75175238095233]
[434,"Kälteanlagen",{"$f":"VLOOKUP(A249,'[1]Standardstruktur Anlagenmerkmal'!$C:$Z,3,FALSE)","v":434},"Rückkühlanlagen",{"$f":"IF(D249=\"\",\"00\",VLOOKUP(D249,'[1]Standardstruktur Anlagenmerkmal'!$F:$Z,2,FALSE))","v":"02"},"Rückkühlwerk",{"$f":"IF(F249=\"\",\"00\",VLOOKUP(F249,'[1]Standardstruktur Anlagenmerkmal'!$N:$O,2,FALSE))","v":"01"},null,{"$f":"IF(H249=\"\",\"000\",VLOOKUP(H249,'[1]Nummerierung Bauteil'!$A:$C,3,FALSE))","v":"000"},"Verdunstungsrückkühlanlagen (Kühlturme)","02","Rückkühlleistung > 100 bis 500 kW","02","Anzahl","434.02.01.000.02.02",null,1.9178407818203074,420.78240648481892,312.70999999999998,599.72799088302827,601.71884127329099]
[434,"Kälteanlagen",{"$f":"VLOOKUP(A250,'[1]Standardstruktur Anlagenmerkmal'!$C:$Z,3,FALSE)","v":434},"Rückkühlanlagen",{"$f":"IF(D250=\"\",\"00\",VLOOKUP(D250,'[1]Standardstruktur Anlagenmerkmal'!$F:$Z,2,FALSE))","v":"02"},"Rückkühlwerk",{"$f":"IF(F250=\"\",\"00\",VLOOKUP(F250,'[1]Standardstruktur Anlagenmerkmal'!$N:$O,2,FALSE))","v":"01"},null,{"$f":"IF(H250=\"\",\"000\",VLOOKUP(H250,'[1]Nummerierung Bauteil'!$A:$C,3,FALSE))","v":"000"},"Verdunstungsrückkühlanlagen (Kühlturme)","02","Rückkühlleistung > 500 bis 1.000 kW","03","Anzahl","434.02.01.000.02.03",null,2.419861344380525,1041.1048515254647,663.101315,1604.6132395763941,1488.7799376814144]
[434,"Kälteanlagen",{"$f":"VLOOKUP(A251,'[1]Standardstruktur Anlagenmerkmal'!$C:$Z,3,FALSE)","v":434},"Verteiler und Rohrleitungen",{"$f":"IF(D251=\"\",\"00\",VLOOKUP(D251,'[1]Standardstruktur Anlagenmerkmal'!$F:$Z,2,FALSE))","v":"03"},"Verteilnetz / Pumpen - Kälteerzeugung",{"$f":"IF(F251=\"\",\"00\",VLOOKUP(F251,'[1]Standardstruktur Anlagenmerkmal'!$N:$O,2,FALSE))","v":"01"},null,{"$f":"IF(H251=\"\",\"000\",VLOOKUP(H251,'[1]Nummerierung Bauteil'!$A:$C,3,FALSE))","v":"000"},"Anzahl Kreise 1 bis 5","01","Nennweite Zuleitung Verteiler <=100DN","01","pauschal","434.03.01.000.01.01","Verteilnetz / Pumpen - Kälteerzeugung inkl. Pumpen, Verteiler und Rohrleitungen",1.6191882401512856,130.22239141582415,103.39749008080582,167.42,186.21801972462853]
[434,"Kälteanlagen",{"$f":"VLOOKUP(A252,'[1]Standardstruktur Anlagenmerkmal'!$C:$Z,3,FALSE)","v":434},"Verteiler und Rohrleitungen",{"$f":"IF(D252=\"\",\"00\",VLOOKUP(D252,'[1]Standardstruktur Anlagenmerkmal'!$F:$Z,2,FALSE))","v":"03"},"Verteilnetz / Pumpen - Kälteerzeugung",{"$f":"IF(F252=\"\",\"00\",VLOOKUP(F252,'[1]Standardstruktur Anlagenmerkmal'!$N:$O,2,FALSE))","v":"01"},null,{"$f":"IF(H252=\"\",\"000\",VLOOKUP(H252,'[1]Nummerierung Bauteil'!$A:$C,3,FALSE))","v":"000"},"Anzahl Kreise 6 bis 10","02","Nennweite Zuleitung Verteiler <=100DN","01","pauschal","434.03.01.000.02.01","Verteilnetz / Pumpen - Kälteerzeugung inkl. Pumpen, Verteiler und Rohrleitungen",1.168130553316642,204.23631621531939,188.39854076397211,220.07409166666667,292.05793218790672]
[434,"Kälteanlagen",{"$f":"VLOOKUP(A253,'[1]Standardstruktur Anlagenmerkmal'!$C:$Z,3,FALSE)","v":434},"Verteiler und Rohrleitungen",{"$f":"IF(D253=\"\",\"00\",VLOOKUP(D253,'[1]Standardstruktur Anlagenmerkmal'!$F:$Z,2,FALSE))","v":"03"},"Verteilnetz / Pumpen - Kälteerzeugung",{"$f":"IF(F253=\"\",\"00\",VLOOKUP(F253,'[1]Standardstruktur Anlagenmerkmal'!$N:$O,2,FALSE))","v":"01"},null,{"$f":"IF(H253=\"\",\"000\",VLOOKUP(H253,'[1]Nummerierung Bauteil'!$A:$C,3,FALSE))","v":"000"},"Anzahl Kreise 10 bis 20","03","Nennweite Zuleitung Verteiler <=100DN","01","pauschal","434.03.01.000.03.01","Verteilnetz / Pumpen - Kälteerzeugung inkl. Pumpen, Verteiler und Rohrleitungen",1.5542570400159439,316.63618790552567,247.92821000000001,385.34416581105137,452.78974870490168]
[434,"Kälteanlagen",{"$f":"VLOOKUP(A254,'[1]Standardstruktur Anlagenmerkmal'!$C:$Z,3,FALSE)","v":434},"Verteiler und Rohrleitungen",{"$f":"IF(D254=\"\",\"00\",VLOOKUP(D254,'[1]Standardstruktur Anlagenmerkmal'!$F:$Z,2,FALSE))","v":"03"},"Verteilnetz / Pumpen - Kälteerzeugung",{"$f":"IF(F254=\"\",\"00\",VLOOKUP(F254,'[1]Standardstruktur Anlagenmerkmal'!$N:$O,2,FALSE))","v":"01"},null,{"$f":"IF(H254=\"\",\"000\",VLOOKUP(H254,'[1]Nummerierung Bauteil'!$A:$C,3,FALSE))","v":"000"},"Anzahl Kreise 1 bis 5","01","Nennweite Zuleitung Verteiler  >100DN bis 200DN","02","pauschal","434.03.01.000.01.02","Verteilnetz / Pumpen - Kälteerzeugung inkl. Pumpen, Verteiler und Rohrleitungen",1.4419731878564013,137.1302214731152,115.5650244193456,166.64166666666665,196.09621670655471]
[434,"Kälteanlagen",{"$f":"VLOOKUP(A255,'[1]Standardstruktur Anlagenmerkmal'!$C:$Z,3,FALSE)","v":434},"Verteiler und Rohrleitungen",{"$f":"IF(D255=\"\",\"00\",VLOOKUP(D255,'[1]Standardstruktur Anlagenmerkmal'!$F:$Z,2,FALSE))","v":"03"},"Verteilnetz / Pumpen - Kälteerzeugung",{"$f":"IF(F255=\"\",\"00\",VLOOKUP(F255,'[1]Standardstruktur Anlagenmerkmal'!$N:$O,2,FALSE))","v":"01"},null,{"$f":"IF(H255=\"\",\"000\",VLOOKUP(H255,'[1]Nummerierung Bauteil'!$A:$C,3,FALSE))","v":"000"},"Anzahl Kreise 6 bis 10","02","Nennweite Zuleitung Verteiler  >100DN bis 200DN","02","pauschal","434.03.01.000.02.02","Verteilnetz / Pumpen - Kälteerzeugung inkl. Pumpen, Verteiler und Rohrleitungen",1.2924485529976792,251.20078489411515,219.15500312156357,283.24656666666669,359.21712239858465]
[434,"Kälteanlagen",{"$f":"VLOOKUP(A256,'[1]Standardstruktur Anlagenmerkmal'!$C:$Z,3,FALSE)","v":434},"Verteiler und Rohrleitungen",{"$f":"IF(D256=\"\",\"00\",VLOOKUP(D256,'[1]Standardstruktur Anlagenmerkmal'!$F:$Z,2,FALSE))","v":"03"},"Verteilnetz / Pumpen - Kälteerzeugung",{"$f":"IF(F256=\"\",\"00\",VLOOKUP(F256,'[1]Standardstruktur Anlagenmerkmal'!$N:$O,2,FALSE))","v":"01"},null,{"$f":"IF(H256=\"\",\"000\",VLOOKUP(H256,'[1]Nummerierung Bauteil'!$A:$C,3,FALSE))","v":"000"},"Anzahl Kreise 10 bis 20","03","Nennweite Zuleitung Verteiler  >100DN bis 200DN","02","pauschal","434.03.01.000.03.02","Verteilnetz / Pumpen - Kälteerzeugung inkl. Pumpen, Verteiler und Rohrleitungen",1.0435857706859901,439.07740649162361,429.71272631658059,448.44208666666668,627.88069128302175]
[434,"Kälteanlagen",{"$f":"VLOOKUP(A257,'[1]Standardstruktur Anlagenmerkmal'!$C:$Z,3,FALSE)","v":434},"Verteiler und Rohrleitungen",{"$f":"IF(D257=\"\",\"00\",VLOOKUP(D257,'[1]Standardstruktur Anlagenmerkmal'!$F:$Z,2,FALSE))","v":"03"},"Verteilnetz / Pumpen - Kälteerzeugung",{"$f":"IF(F257=\"\",\"00\",VLOOKUP(F257,'[1]Standardstruktur Anlagenmerkmal'!$N:$O,2,FALSE))","v":"01"},"Frequenzumformer",{"$f":"IF(H257=\"\",\"000\",VLOOKUP(H257,'[1]Nummerierung Bauteil'!$A:$C,3,FALSE))","v":"021"},null,"00",null,"00","Anzahl","434.03.01.021.00.00","ohne brandschutztechn. Reinigung, ohne Deckenreinigung / Reinigung der Wrasenfilter durch Küchendienstleister","kein Benchmark",null,null,null,0]
[434,"Kälteanlagen",{"$f":"VLOOKUP(A258,'[1]Standardstruktur Anlagenmerkmal'!$C:$Z,3,FALSE)","v":434},"Verteiler und Rohrleitungen",{"$f":"IF(D258=\"\",\"00\",VLOOKUP(D258,'[1]Standardstruktur Anlagenmerkmal'!$F:$Z,2,FALSE))","v":"03"},"Verteilnetz / Pumpen - Kälteerzeugung",{"$f":"IF(F258=\"\",\"00\",VLOOKUP(F258,'[1]Standardstruktur Anlagenmerkmal'!$N:$O,2,FALSE))","v":"01"},"Kältemengenzähler",{"$f":"IF(H258=\"\",\"000\",VLOOKUP(H258,'[1]Nummerierung Bauteil'!$A:$C,3,FALSE))","v":"162"},null,"00",null,"00","Anzahl","434.03.01.162.00.00","ohne Eichung","kein Benchmark",null,null,null,0]
[439,"Sonstiges zur KG 430 ",{"$f":"VLOOKUP(A259,'[1]Standardstruktur Anlagenmerkmal'!$C:$Z,3,FALSE)","v":439},"Kanalnetz",{"$f":"IF(D259=\"\",\"00\",VLOOKUP(D259,'[1]Standardstruktur Anlagenmerkmal'!$F:$Z,2,FALSE))","v":"01"},"Kanalnetz",{"$f":"IF(F259=\"\",\"00\",VLOOKUP(F259,'[1]Standardstruktur Anlagenmerkmal'!$N:$O,2,FALSE))","v":"01"},"Brandschutzklappen",{"$f":"IF(H259=\"\",\"000\",VLOOKUP(H259,'[1]Nummerierung Bauteil'!$A:$C,3,FALSE))","v":"053"},null,"00",null,"00","Anzahl","439.01.01.053.00.00",null,1.1466328184434234,21.159188138719834,20.07,23.012920666159506,{"$f":"R259*(((160.2-117.2)/100)+1)","v":30.257639038369362}]
[439,"Sonstiges zur KG 430 ",{"$f":"VLOOKUP(A260,'[1]Standardstruktur Anlagenmerkmal'!$C:$Z,3,FALSE)","v":439},"Kanalnetz",{"$f":"IF(D260=\"\",\"00\",VLOOKUP(D260,'[1]Standardstruktur Anlagenmerkmal'!$F:$Z,2,FALSE))","v":"01"},"Kanalnetz",{"$f":"IF(F260=\"\",\"00\",VLOOKUP(F260,'[1]Standardstruktur Anlagenmerkmal'!$N:$O,2,FALSE))","v":"01"},"Brandschutzklappen - Küchenabluft (fire safe)",{"$f":"IF(H260=\"\",\"000\",VLOOKUP(H260,'[1]Nummerierung Bauteil'!$A:$C,3,FALSE))","v":"121"},null,"00",null,"00","Anzahl","439.01.01.121.00.00",null,1.4101153064752632,27.229237704168035,22.595796666666669,31.862678741669399,38.93780991696029]
[439,"Sonstiges zur KG 430 ",{"$f":"VLOOKUP(A261,'[1]Standardstruktur Anlagenmerkmal'!$C:$Z,3,FALSE)","v":439},"Kanalnetz",{"$f":"IF(D261=\"\",\"00\",VLOOKUP(D261,'[1]Standardstruktur Anlagenmerkmal'!$F:$Z,2,FALSE))","v":"01"},"Kanalnetz",{"$f":"IF(F261=\"\",\"00\",VLOOKUP(F261,'[1]Standardstruktur Anlagenmerkmal'!$N:$O,2,FALSE))","v":"01"},"Volumenstromregler",{"$f":"IF(H261=\"\",\"000\",VLOOKUP(H261,'[1]Nummerierung Bauteil'!$A:$C,3,FALSE))","v":"222"},null,"00",null,"00","Anzahl","439.01.01.222.00.00",null,1.550149269046716,11.328057170321209,8.8842306666666655,13.771883673975751,16.199121753559329]
[439,"Sonstiges zur KG 430 ",{"$f":"VLOOKUP(A262,'[1]Standardstruktur Anlagenmerkmal'!$C:$Z,3,FALSE)","v":439},"Kanalnetz",{"$f":"IF(D262=\"\",\"00\",VLOOKUP(D262,'[1]Standardstruktur Anlagenmerkmal'!$F:$Z,2,FALSE))","v":"01"},"Kanalnetz",{"$f":"IF(F262=\"\",\"00\",VLOOKUP(F262,'[1]Standardstruktur Anlagenmerkmal'!$N:$O,2,FALSE))","v":"01"},"Nacherhitzer",{"$f":"IF(H262=\"\",\"000\",VLOOKUP(H262,'[1]Nummerierung Bauteil'!$A:$C,3,FALSE))","v":"182"},null,"00",null,"00","Anzahl","439.01.01.182.00.00",null,2.1560238786416002,24.394587562724368,15.459064000000001,33.330111125448731,34.884260214695843]
[439,"Sonstiges zur KG 430 ",{"$f":"VLOOKUP(A263,'[1]Standardstruktur Anlagenmerkmal'!$C:$Z,3,FALSE)","v":439},"Kanalnetz",{"$f":"IF(D263=\"\",\"00\",VLOOKUP(D263,'[1]Standardstruktur Anlagenmerkmal'!$F:$Z,2,FALSE))","v":"01"},"Kanalnetz",{"$f":"IF(F263=\"\",\"00\",VLOOKUP(F263,'[1]Standardstruktur Anlagenmerkmal'!$N:$O,2,FALSE))","v":"01"},"Nachkühler",{"$f":"IF(H263=\"\",\"000\",VLOOKUP(H263,'[1]Nummerierung Bauteil'!$A:$C,3,FALSE))","v":"183"},null,"00",null,"00","Anzahl","439.01.01.183.00.00",null,1.0615955883405757,37.334435581087732,36.218971162175457,38.4499,53.388242880955453]
[439,"Sonstiges zur KG 430 ",{"$f":"VLOOKUP(A264,'[1]Standardstruktur Anlagenmerkmal'!$C:$Z,3,FALSE)","v":439},"Kanalnetz",{"$f":"IF(D264=\"\",\"00\",VLOOKUP(D264,'[1]Standardstruktur Anlagenmerkmal'!$F:$Z,2,FALSE))","v":"01"},"Kanalnetz",{"$f":"IF(F264=\"\",\"00\",VLOOKUP(F264,'[1]Standardstruktur Anlagenmerkmal'!$N:$O,2,FALSE))","v":"01"},"Stützlüfter",{"$f":"IF(H264=\"\",\"000\",VLOOKUP(H264,'[1]Nummerierung Bauteil'!$A:$C,3,FALSE))","v":"207"},null,"00",null,"00","Anzahl","439.01.01.207.00.00",null,1.8249422384138774,25.048361686217994,17.733715999999998,32.363007372435987,35.819157211291731]
[439,"Sonstiges zur KG 430 ",{"$f":"VLOOKUP(A265,'[1]Standardstruktur Anlagenmerkmal'!$C:$Z,3,FALSE)","v":439},"Kanalnetz",{"$f":"IF(D265=\"\",\"00\",VLOOKUP(D265,'[1]Standardstruktur Anlagenmerkmal'!$F:$Z,2,FALSE))","v":"01"},"Kanalnetz - Küchenabluft","00",null,{"$f":"IF(H265=\"\",\"000\",VLOOKUP(H265,'[1]Nummerierung Bauteil'!$A:$C,3,FALSE))","v":"000"},null,"00",null,"00","kein EP","439.01.00.000.00.00",null,"kein Einheitspreis",null,null,null,0]
[439,"Sonstiges zur KG 430 ",{"$f":"VLOOKUP(A266,'[1]Standardstruktur Anlagenmerkmal'!$C:$Z,3,FALSE)","v":439},"Natürliche Rauchabzugsanlage (NRA)",{"$f":"IF(D266=\"\",\"00\",VLOOKUP(D266,'[1]Standardstruktur Anlagenmerkmal'!$F:$Z,2,FALSE))","v":"02"},"Rauchwärmeabzugsanlage (RWA) ",{"$f":"IF(F266=\"\",\"00\",VLOOKUP(F266,'[1]Standardstruktur Anlagenmerkmal'!$N:$O,2,FALSE))","v":"01"},null,{"$f":"IF(H266=\"\",\"000\",VLOOKUP(H266,'[1]Nummerierung Bauteil'!$A:$C,3,FALSE))","v":"000"},"Anzahl elektrische Antriebe","01",null,"00","Anzahl pro Antrieb","439.02.01.000.01.00",null,2.7973447514169312,158.08437968666834,91.67264773857643,256.44,226.06066295193571]
[439,"Sonstiges zur KG 430 ",{"$f":"VLOOKUP(A267,'[1]Standardstruktur Anlagenmerkmal'!$C:$Z,3,FALSE)","v":439},"Natürliche Rauchabzugsanlage (NRA)",{"$f":"IF(D267=\"\",\"00\",VLOOKUP(D267,'[1]Standardstruktur Anlagenmerkmal'!$F:$Z,2,FALSE))","v":"02"},"Rauchwärmeabzugsanlage (RWA) ",{"$f":"IF(F267=\"\",\"00\",VLOOKUP(F267,'[1]Standardstruktur Anlagenmerkmal'!$N:$O,2,FALSE))","v":"01"},null,{"$f":"IF(H267=\"\",\"000\",VLOOKUP(H267,'[1]Nummerierung Bauteil'!$A:$C,3,FALSE))","v":"000"},"Anzahl pneumatische Antriebe","02",null,"00","Anzahl pro Antrieb","439.02.01.000.02.00",null,2.1474540070016088,101.52610462626262,70.459999999999994,151.30960933333336,145.18232961555555]
[439,"Sonstiges zur KG 430 ",{"$f":"VLOOKUP(A268,'[1]Standardstruktur Anlagenmerkmal'!$C:$Z,3,FALSE)","v":439},"Kühl- / Heizdecke",{"$f":"IF(D268=\"\",\"00\",VLOOKUP(D268,'[1]Standardstruktur Anlagenmerkmal'!$F:$Z,2,FALSE))","v":{"$error":"#N/A"}},"Kühldecke",{"$f":"IF(F268=\"\",\"00\",VLOOKUP(F268,'[1]Standardstruktur Anlagenmerkmal'!$N:$O,2,FALSE))","v":"01"},null,{"$f":"IF(H268=\"\",\"000\",VLOOKUP(H268,'[1]Nummerierung Bauteil'!$A:$C,3,FALSE))","v":"000"},null,"00",null,"00","Anzahl pro Regelkreis",{"$error":"#N/A"},null,"kein Benchmark",null,null,null,0]
[439,"Sonstiges zur KG 430 ",{"$f":"VLOOKUP(A269,'[1]Standardstruktur Anlagenmerkmal'!$C:$Z,3,FALSE)","v":439},"Wärmerückgewinnung",{"$f":"IF(D269=\"\",\"00\",VLOOKUP(D269,'[1]Standardstruktur Anlagenmerkmal'!$F:$Z,2,FALSE))","v":"04"},"Kreislaufverbundsystem",{"$f":"IF(F269=\"\",\"00\",VLOOKUP(F269,'[1]Standardstruktur Anlagenmerkmal'!$N:$O,2,FALSE))","v":"01"},null,{"$f":"IF(H269=\"\",\"000\",VLOOKUP(H269,'[1]Nummerierung Bauteil'!$A:$C,3,FALSE))","v":"000"},null,"00","Leistung <= 10 kW","01","Anzahl","439.04.01.000.00.01",null,"kein Benchmark",null,null,null,0]
[439,"Sonstiges zur KG 430 ",{"$f":"VLOOKUP(A270,'[1]Standardstruktur Anlagenmerkmal'!$C:$Z,3,FALSE)","v":439},"Wärmerückgewinnung",{"$f":"IF(D270=\"\",\"00\",VLOOKUP(D270,'[1]Standardstruktur Anlagenmerkmal'!$F:$Z,2,FALSE))","v":"04"},"Kreislaufverbundsystem",{"$f":"IF(F270=\"\",\"00\",VLOOKUP(F270,'[1]Standardstruktur Anlagenmerkmal'!$N:$O,2,FALSE))","v":"01"},null,{"$f":"IF(H270=\"\",\"000\",VLOOKUP(H270,'[1]Nummerierung Bauteil'!$A:$C,3,FALSE))","v":"000"},null,"00","Leistung > 10 bis 20 kW","02","Anzahl","439.04.01.000.00.02",null,"kein Benchmark",null,null,null,0]
[439,"Sonstiges zur KG 430 ",{"$f":"VLOOKUP(A271,'[1]Standardstruktur Anlagenmerkmal'!$C:$Z,3,FALSE)","v":439},"Wärmerückgewinnung",{"$f":"IF(D271=\"\",\"00\",VLOOKUP(D271,'[1]Standardstruktur Anlagenmerkmal'!$F:$Z,2,FALSE))","v":"04"},"Kreislaufverbundsystem",{"$f":"IF(F271=\"\",\"00\",VLOOKUP(F271,'[1]Standardstruktur Anlagenmerkmal'!$N:$O,2,FALSE))","v":"01"},null,{"$f":"IF(H271=\"\",\"000\",VLOOKUP(H271,'[1]Nummerierung Bauteil'!$A:$C,3,FALSE))","v":"000"},null,"00","Leistung > 20 bis 50 kW","03","Anzahl","439.04.01.000.00.03",null,"kein Benchmark",null,null,null,0]
[439,"Sonstiges zur KG 430 ",{"$f":"VLOOKUP(A272,'[1]Standardstruktur Anlagenmerkmal'!$C:$Z,3,FALSE)","v":439},"Wärmerückgewinnung",{"$f":"IF(D272=\"\",\"00\",VLOOKUP(D272,'[1]Standardstruktur Anlagenmerkmal'!$F:$Z,2,FALSE))","v":"04"},"Kreislaufverbundsystem",{"$f":"IF(F272=\"\",\"00\",VLOOKUP(F272,'[1]Standardstruktur Anlagenmerkmal'!$N:$O,2,FALSE))","v":"01"},null,{"$f":"IF(H272=\"\",\"000\",VLOOKUP(H272,'[1]Nummerierung Bauteil'!$A:$C,3,FALSE))","v":"000"},null,"00","Leistung > 50 bis 100 kW","04","Anzahl","439.04.01.000.00.04",null,"kein Benchmark",null,null,null,0]
[441,"Hoch- und Mittelspannungsanlagen",{"$f":"VLOOKUP(A273,'[1]Standardstruktur Anlagenmerkmal'!$C:$Z,3,FALSE)","v":441},"Schaltanlagen",{"$f":"IF(D273=\"\",\"00\",VLOOKUP(D273,'[1]Standardstruktur Anlagenmerkmal'!$F:$Z,2,FALSE))","v":"01"},"Schaltanlage",{"$f":"IF(F273=\"\",\"00\",VLOOKUP(F273,'[1]Standardstruktur Anlagenmerkmal'!$N:$O,2,FALSE))","v":"01"},null,{"$f":"IF(H273=\"\",\"000\",VLOOKUP(H273,'[1]Nummerierung Bauteil'!$A:$C,3,FALSE))","v":"000"},null,"00",null,"00","Anzahl","441.01.01.000.00.00","Feld exkl. Lasttrennschalter",1.5485583320189766,106.93469190336165,67.188298851066463,104.045,152.91660942180715]
[441,"Hoch- und Mittelspannungsanlagen",{"$f":"VLOOKUP(A274,'[1]Standardstruktur Anlagenmerkmal'!$C:$Z,3,FALSE)","v":441},"Schaltanlagen",{"$f":"IF(D274=\"\",\"00\",VLOOKUP(D274,'[1]Standardstruktur Anlagenmerkmal'!$F:$Z,2,FALSE))","v":"01"},"Schaltanlage",{"$f":"IF(F274=\"\",\"00\",VLOOKUP(F274,'[1]Standardstruktur Anlagenmerkmal'!$N:$O,2,FALSE))","v":"01"},null,{"$f":"IF(H274=\"\",\"000\",VLOOKUP(H274,'[1]Nummerierung Bauteil'!$A:$C,3,FALSE))","v":"000"},"Anzahl Lasttrennschalter","01","Nicht gekapselt","01","Anzahl","441.01.01.000.01.01",null,"kein Benchmark",null,null,null,0]
[441,"Hoch- und Mittelspannungsanlagen",{"$f":"VLOOKUP(A275,'[1]Standardstruktur Anlagenmerkmal'!$C:$Z,3,FALSE)","v":441},"Schaltanlagen",{"$f":"IF(D275=\"\",\"00\",VLOOKUP(D275,'[1]Standardstruktur Anlagenmerkmal'!$F:$Z,2,FALSE))","v":"01"},"Schaltanlage",{"$f":"IF(F275=\"\",\"00\",VLOOKUP(F275,'[1]Standardstruktur Anlagenmerkmal'!$N:$O,2,FALSE))","v":"01"},null,{"$f":"IF(H275=\"\",\"000\",VLOOKUP(H275,'[1]Nummerierung Bauteil'!$A:$C,3,FALSE))","v":"000"},"Anzahl Lasttrennschalter","01","Gekapselt","02","Anzahl","441.01.01.000.01.02",null,2.0883626300893603,309.07900026773899,200.09695345971562,417.875,441.98297038286671]
[441,"Hoch- und Mittelspannungsanlagen",{"$f":"VLOOKUP(A276,'[1]Standardstruktur Anlagenmerkmal'!$C:$Z,3,FALSE)","v":441},"Schaltanlagen",{"$f":"IF(D276=\"\",\"00\",VLOOKUP(D276,'[1]Standardstruktur Anlagenmerkmal'!$F:$Z,2,FALSE))","v":"01"},"Schaltanlage",{"$f":"IF(F276=\"\",\"00\",VLOOKUP(F276,'[1]Standardstruktur Anlagenmerkmal'!$N:$O,2,FALSE))","v":"01"},"Stromzähler",{"$f":"IF(H276=\"\",\"000\",VLOOKUP(H276,'[1]Nummerierung Bauteil'!$A:$C,3,FALSE))","v":"002"},null,"00",null,"00","Anzahl","441.01.01.002.00.00",null,"kein Benchmark",null,null,null,0]
[441,"Hoch- und Mittelspannungsanlagen",{"$f":"VLOOKUP(A277,'[1]Standardstruktur Anlagenmerkmal'!$C:$Z,3,FALSE)","v":441},"Transformatoren",{"$f":"IF(D277=\"\",\"00\",VLOOKUP(D277,'[1]Standardstruktur Anlagenmerkmal'!$F:$Z,2,FALSE))","v":"02"},"Transformator",{"$f":"IF(F277=\"\",\"00\",VLOOKUP(F277,'[1]Standardstruktur Anlagenmerkmal'!$N:$O,2,FALSE))","v":"01"},null,{"$f":"IF(H277=\"\",\"000\",VLOOKUP(H277,'[1]Nummerierung Bauteil'!$A:$C,3,FALSE))","v":"000"},"trocken","01","Trafoleistung 0 bis 630 kVA","01","Anzahl","441.02.01.000.01.01",null,1.5231061487661872,442.47354728039636,350.73716379056691,534.20993077022581,632.73717261096681]
[441,"Hoch- und Mittelspannungsanlagen",{"$f":"VLOOKUP(A278,'[1]Standardstruktur Anlagenmerkmal'!$C:$Z,3,FALSE)","v":441},"Transformatoren",{"$f":"IF(D278=\"\",\"00\",VLOOKUP(D278,'[1]Standardstruktur Anlagenmerkmal'!$F:$Z,2,FALSE))","v":"02"},"Transformator",{"$f":"IF(F278=\"\",\"00\",VLOOKUP(F278,'[1]Standardstruktur Anlagenmerkmal'!$N:$O,2,FALSE))","v":"01"},null,{"$f":"IF(H278=\"\",\"000\",VLOOKUP(H278,'[1]Nummerierung Bauteil'!$A:$C,3,FALSE))","v":"000"},"trocken","01","Trafoleistung 630 bis 1500 kVA","02","Anzahl","441.02.01.000.01.02",null,1.6892852526275668,638.47229441955403,474.82675465217721,802.11783418693085,913.01538101996221]
[441,"Hoch- und Mittelspannungsanlagen",{"$f":"VLOOKUP(A279,'[1]Standardstruktur Anlagenmerkmal'!$C:$Z,3,FALSE)","v":441},"Transformatoren",{"$f":"IF(D279=\"\",\"00\",VLOOKUP(D279,'[1]Standardstruktur Anlagenmerkmal'!$F:$Z,2,FALSE))","v":"02"},"Transformator",{"$f":"IF(F279=\"\",\"00\",VLOOKUP(F279,'[1]Standardstruktur Anlagenmerkmal'!$N:$O,2,FALSE))","v":"01"},null,{"$f":"IF(H279=\"\",\"000\",VLOOKUP(H279,'[1]Nummerierung Bauteil'!$A:$C,3,FALSE))","v":"000"},"Öl","02","Trafoleistung 0 bis 630 kVA","01","Anzahl","441.02.01.000.02.01",null,1.3158700361731539,591.2268218254751,510.58722000000006,671.8664236509502,845.4543552104293]
[441,"Hoch- und Mittelspannungsanlagen",{"$f":"VLOOKUP(A280,'[1]Standardstruktur Anlagenmerkmal'!$C:$Z,3,FALSE)","v":441},"Transformatoren",{"$f":"IF(D280=\"\",\"00\",VLOOKUP(D280,'[1]Standardstruktur Anlagenmerkmal'!$F:$Z,2,FALSE))","v":"02"},"Transformator",{"$f":"IF(F280=\"\",\"00\",VLOOKUP(F280,'[1]Standardstruktur Anlagenmerkmal'!$N:$O,2,FALSE))","v":"01"},null,{"$f":"IF(H280=\"\",\"000\",VLOOKUP(H280,'[1]Nummerierung Bauteil'!$A:$C,3,FALSE))","v":"000"},"Öl","02","Trafoleistung 630 bis 1500 kVA","02","Anzahl","441.02.01.000.02.02",null,1.3356570801968095,667.44602925258039,588,785.366363155724,954.44782183118991]
[442,"Eigenstromversorgungsanlagen",{"$f":"VLOOKUP(A281,'[1]Standardstruktur Anlagenmerkmal'!$C:$Z,3,FALSE)","v":442},"Stromerzeugungsaggregate einschließlich Kühlung",{"$f":"IF(D281=\"\",\"00\",VLOOKUP(D281,'[1]Standardstruktur Anlagenmerkmal'!$F:$Z,2,FALSE))","v":"01"},"Netzersatzanlage-Diesel",{"$f":"IF(F281=\"\",\"00\",VLOOKUP(F281,'[1]Standardstruktur Anlagenmerkmal'!$N:$O,2,FALSE))","v":"01"},null,{"$f":"IF(H281=\"\",\"000\",VLOOKUP(H281,'[1]Nummerierung Bauteil'!$A:$C,3,FALSE))","v":"000"},null,"00","elektrische Nennleistung <100 kVA","01","Anzahl","442.01.01.000.00.01"," inkl. Tagestank, inkl. Starter- / Steuerbatterie, inkl. Steuerung\n(exkl. Verbrauchsstoffe)",1.6128977636071042,682.84163705226251,522.66999999999996,843.01327410452507,976.46354098473535]
[442,"Eigenstromversorgungsanlagen",{"$f":"VLOOKUP(A282,'[1]Standardstruktur Anlagenmerkmal'!$C:$Z,3,FALSE)","v":442},"Stromerzeugungsaggregate einschließlich Kühlung",{"$f":"IF(D282=\"\",\"00\",VLOOKUP(D282,'[1]Standardstruktur Anlagenmerkmal'!$F:$Z,2,FALSE))","v":"01"},"Netzersatzanlage-Diesel",{"$f":"IF(F282=\"\",\"00\",VLOOKUP(F282,'[1]Standardstruktur Anlagenmerkmal'!$N:$O,2,FALSE))","v":"01"},null,{"$f":"IF(H282=\"\",\"000\",VLOOKUP(H282,'[1]Nummerierung Bauteil'!$A:$C,3,FALSE))","v":"000"},null,"00","elektrische Nennleistung 100 bis 250 kVA","02","Anzahl","442.01.01.000.00.02"," inkl. Tagestank, inkl. Starter- / Steuerbatterie, inkl. Steuerung\n(exkl. Verbrauchsstoffe)",1.7047558385559665,859.30092990923049,635.4,1083.2018598184611,1228.8003297701996]
[442,"Eigenstromversorgungsanlagen",{"$f":"VLOOKUP(A283,'[1]Standardstruktur Anlagenmerkmal'!$C:$Z,3,FALSE)","v":442},"Stromerzeugungsaggregate einschließlich Kühlung",{"$f":"IF(D283=\"\",\"00\",VLOOKUP(D283,'[1]Standardstruktur Anlagenmerkmal'!$F:$Z,2,FALSE))","v":"01"},"Netzersatzanlage-Diesel",{"$f":"IF(F283=\"\",\"00\",VLOOKUP(F283,'[1]Standardstruktur Anlagenmerkmal'!$N:$O,2,FALSE))","v":"01"},null,{"$f":"IF(H283=\"\",\"000\",VLOOKUP(H283,'[1]Nummerierung Bauteil'!$A:$C,3,FALSE))","v":"000"},null,"00","elektrische Nennleistung 250 bis 500 kVA","03","Anzahl","442.01.01.000.00.03"," inkl. Tagestank, inkl. Starter- / Steuerbatterie, inkl. Steuerung\n(exkl. Verbrauchsstoffe)",1.8069844014894281,1098.0118530580103,753.33,1361.2555591740309,1570.1569498729546]
[442,"Eigenstromversorgungsanlagen",{"$f":"VLOOKUP(A284,'[1]Standardstruktur Anlagenmerkmal'!$C:$Z,3,FALSE)","v":442},"Stromerzeugungsaggregate einschließlich Kühlung",{"$f":"IF(D284=\"\",\"00\",VLOOKUP(D284,'[1]Standardstruktur Anlagenmerkmal'!$F:$Z,2,FALSE))","v":"01"},"Netzersatzanlage-Diesel",{"$f":"IF(F284=\"\",\"00\",VLOOKUP(F284,'[1]Standardstruktur Anlagenmerkmal'!$N:$O,2,FALSE))","v":"01"},null,{"$f":"IF(H284=\"\",\"000\",VLOOKUP(H284,'[1]Nummerierung Bauteil'!$A:$C,3,FALSE))","v":"000"},null,"00","elektrische Nennleistung 500 bis 750 kVA","04","Anzahl","442.01.01.000.00.04"," inkl. Tagestank, inkl. Starter- / Steuerbatterie, inkl. Steuerung\n(exkl. Verbrauchsstoffe)",2.0153366460469022,1675.6364193814652,1026.7950000000001,2069.3375914777289,2396.1600797154952]
[442,"Eigenstromversorgungsanlagen",{"$f":"VLOOKUP(A285,'[1]Standardstruktur Anlagenmerkmal'!$C:$Z,3,FALSE)","v":442},"Stromerzeugungsaggregate einschließlich Kühlung",{"$f":"IF(D285=\"\",\"00\",VLOOKUP(D285,'[1]Standardstruktur Anlagenmerkmal'!$F:$Z,2,FALSE))","v":"01"},"Blockheizkraftwerk (stromgeführt)",{"$f":"IF(F285=\"\",\"00\",VLOOKUP(F285,'[1]Standardstruktur Anlagenmerkmal'!$N:$O,2,FALSE))","v":"02"},null,{"$f":"IF(H285=\"\",\"000\",VLOOKUP(H285,'[1]Nummerierung Bauteil'!$A:$C,3,FALSE))","v":"000"},null,"00",null,"00","kein EP","442.01.02.000.00.00","inkl. Steuerung, Tagestank, exkl. Verbrauchsstoffe und Rückkühlung","kein Einheitspreis",null,null,null,0]
[442,"Eigenstromversorgungsanlagen",{"$f":"VLOOKUP(A286,'[1]Standardstruktur Anlagenmerkmal'!$C:$Z,3,FALSE)","v":442},"zentrale Batterie- und unterbrechungsfreie Stromversorgungsanlagen",{"$f":"IF(D286=\"\",\"00\",VLOOKUP(D286,'[1]Standardstruktur Anlagenmerkmal'!$F:$Z,2,FALSE))","v":"02"},"zentrale Batterieanlage",{"$f":"IF(F286=\"\",\"00\",VLOOKUP(F286,'[1]Standardstruktur Anlagenmerkmal'!$N:$O,2,FALSE))","v":"01"},null,{"$f":"IF(H286=\"\",\"000\",VLOOKUP(H286,'[1]Nummerierung Bauteil'!$A:$C,3,FALSE))","v":"000"},null,"00","Kapazität <50 Ah","01","Anzahl","442.02.01.000.00.01","keine Preisdifferenzierung zwischen mit/ohne Batteriemanagementsystem",4.6852328658182909,295.17790126907477,97.725131943902298,457.86500000000001,422.10439881477691]
[442,"Eigenstromversorgungsanlagen",{"$f":"VLOOKUP(A287,'[1]Standardstruktur Anlagenmerkmal'!$C:$Z,3,FALSE)","v":442},"zentrale Batterie- und unterbrechungsfreie Stromversorgungsanlagen",{"$f":"IF(D287=\"\",\"00\",VLOOKUP(D287,'[1]Standardstruktur Anlagenmerkmal'!$F:$Z,2,FALSE))","v":"02"},"zentrale Batterieanlage",{"$f":"IF(F287=\"\",\"00\",VLOOKUP(F287,'[1]Standardstruktur Anlagenmerkmal'!$N:$O,2,FALSE))","v":"01"},null,{"$f":"IF(H287=\"\",\"000\",VLOOKUP(H287,'[1]Nummerierung Bauteil'!$A:$C,3,FALSE))","v":"000"},null,"00","Kapazität 50 bis 250 Ah","02","Anzahl","442.02.01.000.00.02","keine Preisdifferenzierung zwischen mit/ohne Batteriemanagementsystem",5.9599184385003312,564.96817403661714,144.22499999999999,859.56923679271029,807.90448887236244]
[442,"Eigenstromversorgungsanlagen",{"$f":"VLOOKUP(A288,'[1]Standardstruktur Anlagenmerkmal'!$C:$Z,3,FALSE)","v":442},"zentrale Batterie- und unterbrechungsfreie Stromversorgungsanlagen",{"$f":"IF(D288=\"\",\"00\",VLOOKUP(D288,'[1]Standardstruktur Anlagenmerkmal'!$F:$Z,2,FALSE))","v":"02"},"zentrale Batterieanlage",{"$f":"IF(F288=\"\",\"00\",VLOOKUP(F288,'[1]Standardstruktur Anlagenmerkmal'!$N:$O,2,FALSE))","v":"01"},null,{"$f":"IF(H288=\"\",\"000\",VLOOKUP(H288,'[1]Nummerierung Bauteil'!$A:$C,3,FALSE))","v":"000"},null,"00","Kapatität 250 bis 500 Ah","03","Anzahl","442.02.01.000.00.03","keine Preisdifferenzierung zwischen mit/ohne Batteriemanagementsystem",4.7819174673394631,601.89504590841273,180.83749999999998,864.75,860.70991564903011]
[442,"Eigenstromversorgungsanlagen",{"$f":"VLOOKUP(A289,'[1]Standardstruktur Anlagenmerkmal'!$C:$Z,3,FALSE)","v":442},"zentrale Batterie- und unterbrechungsfreie Stromversorgungsanlagen",{"$f":"IF(D289=\"\",\"00\",VLOOKUP(D289,'[1]Standardstruktur Anlagenmerkmal'!$F:$Z,2,FALSE))","v":"02"},"zentrale Batterieanlage",{"$f":"IF(F289=\"\",\"00\",VLOOKUP(F289,'[1]Standardstruktur Anlagenmerkmal'!$N:$O,2,FALSE))","v":"01"},null,{"$f":"IF(H289=\"\",\"000\",VLOOKUP(H289,'[1]Nummerierung Bauteil'!$A:$C,3,FALSE))","v":"000"},null,"00","Kapazität 500 bis 1000 Ah","04","Anzahl","442.02.01.000.00.04","keine Preisdifferenzierung zwischen mit/ohne Batteriemanagementsystem",3.2236470683119607,974.81413338306754,464.96249999999998,1498.875,1393.9842107377865]
[442,"Eigenstromversorgungsanlagen",{"$f":"VLOOKUP(A290,'[1]Standardstruktur Anlagenmerkmal'!$C:$Z,3,FALSE)","v":442},"zentrale Batterie- und unterbrechungsfreie Stromversorgungsanlagen",{"$f":"IF(D290=\"\",\"00\",VLOOKUP(D290,'[1]Standardstruktur Anlagenmerkmal'!$F:$Z,2,FALSE))","v":"02"},"USV-Anlage",{"$f":"IF(F290=\"\",\"00\",VLOOKUP(F290,'[1]Standardstruktur Anlagenmerkmal'!$N:$O,2,FALSE))","v":"02"},null,{"$f":"IF(H290=\"\",\"000\",VLOOKUP(H290,'[1]Nummerierung Bauteil'!$A:$C,3,FALSE))","v":"000"},"statisch","01","elektrische Leistung <5 kVA ","01","Anzahl","442.02.02.000.01.01",null,1.7879219104329955,550.98287446420511,396.07946666666663,708.15915672594861,787.90551048381326]
[442,"Eigenstromversorgungsanlagen",{"$f":"VLOOKUP(A291,'[1]Standardstruktur Anlagenmerkmal'!$C:$Z,3,FALSE)","v":442},"zentrale Batterie- und unterbrechungsfreie Stromversorgungsanlagen",{"$f":"IF(D291=\"\",\"00\",VLOOKUP(D291,'[1]Standardstruktur Anlagenmerkmal'!$F:$Z,2,FALSE))","v":"02"},"USV-Anlage",{"$f":"IF(F291=\"\",\"00\",VLOOKUP(F291,'[1]Standardstruktur Anlagenmerkmal'!$N:$O,2,FALSE))","v":"02"},null,{"$f":"IF(H291=\"\",\"000\",VLOOKUP(H291,'[1]Nummerierung Bauteil'!$A:$C,3,FALSE))","v":"000"},"statisch","01","elektrische Nennleistung 5 bis 50 kVA ","02","Anzahl","442.02.02.000.01.02",null,1.3274551219878707,946.11050708806943,813,1079.2210141761389,1352.9380251359391]
[442,"Eigenstromversorgungsanlagen",{"$f":"VLOOKUP(A292,'[1]Standardstruktur Anlagenmerkmal'!$C:$Z,3,FALSE)","v":442},"zentrale Batterie- und unterbrechungsfreie Stromversorgungsanlagen",{"$f":"IF(D292=\"\",\"00\",VLOOKUP(D292,'[1]Standardstruktur Anlagenmerkmal'!$F:$Z,2,FALSE))","v":"02"},"USV-Anlage",{"$f":"IF(F292=\"\",\"00\",VLOOKUP(F292,'[1]Standardstruktur Anlagenmerkmal'!$N:$O,2,FALSE))","v":"02"},null,{"$f":"IF(H292=\"\",\"000\",VLOOKUP(H292,'[1]Nummerierung Bauteil'!$A:$C,3,FALSE))","v":"000"},"statisch","01","elektrische Nennleistung 50 bis 100 kVA","03","Anzahl","442.02.02.000.01.03",null,1.4167286843705076,1192.6435220934236,986.99,1398.2970441868472,1705.4802365935957]
[442,"Eigenstromversorgungsanlagen",{"$f":"VLOOKUP(A293,'[1]Standardstruktur Anlagenmerkmal'!$C:$Z,3,FALSE)","v":442},"zentrale Batterie- und unterbrechungsfreie Stromversorgungsanlagen",{"$f":"IF(D293=\"\",\"00\",VLOOKUP(D293,'[1]Standardstruktur Anlagenmerkmal'!$F:$Z,2,FALSE))","v":"02"},"USV-Anlage",{"$f":"IF(F293=\"\",\"00\",VLOOKUP(F293,'[1]Standardstruktur Anlagenmerkmal'!$N:$O,2,FALSE))","v":"02"},null,{"$f":"IF(H293=\"\",\"000\",VLOOKUP(H293,'[1]Nummerierung Bauteil'!$A:$C,3,FALSE))","v":"000"},"statisch","01","elektrische Nennleistung 100 bis 250 kVA","04","Anzahl","442.02.02.000.01.04",null,1.3576159561230841,1519.9731404275772,1345.52,1826.6994212827319,2173.5615908114351]
[442,"Eigenstromversorgungsanlagen",{"$f":"VLOOKUP(A294,'[1]Standardstruktur Anlagenmerkmal'!$C:$Z,3,FALSE)","v":442},"zentrale Batterie- und unterbrechungsfreie Stromversorgungsanlagen",{"$f":"IF(D294=\"\",\"00\",VLOOKUP(D294,'[1]Standardstruktur Anlagenmerkmal'!$F:$Z,2,FALSE))","v":"02"},"USV-Anlage",{"$f":"IF(F294=\"\",\"00\",VLOOKUP(F294,'[1]Standardstruktur Anlagenmerkmal'!$N:$O,2,FALSE))","v":"02"},null,{"$f":"IF(H294=\"\",\"000\",VLOOKUP(H294,'[1]Nummerierung Bauteil'!$A:$C,3,FALSE))","v":"000"},"statisch","01","elektrische Nennleistung 250 bis 500 kVA","05","Anzahl","442.02.02.000.01.05",null,1.5811645011991633,2011.4158564337363,1558.5336428571429,2464.2980700103294,2876.3246747002427]
[442,"Eigenstromversorgungsanlagen",{"$f":"VLOOKUP(A295,'[1]Standardstruktur Anlagenmerkmal'!$C:$Z,3,FALSE)","v":442},"zentrale Batterie- und unterbrechungsfreie Stromversorgungsanlagen",{"$f":"IF(D295=\"\",\"00\",VLOOKUP(D295,'[1]Standardstruktur Anlagenmerkmal'!$F:$Z,2,FALSE))","v":"02"},"USV-Anlage",{"$f":"IF(F295=\"\",\"00\",VLOOKUP(F295,'[1]Standardstruktur Anlagenmerkmal'!$N:$O,2,FALSE))","v":"02"},null,{"$f":"IF(H295=\"\",\"000\",VLOOKUP(H295,'[1]Nummerierung Bauteil'!$A:$C,3,FALSE))","v":"000"},"dynamisch","02",null,"00","kein EP","442.02.02.000.02.00",null,"kein Einheitspreis",null,null,null,0]
[442,"Eigenstromversorgungsanlagen",{"$f":"VLOOKUP(A296,'[1]Standardstruktur Anlagenmerkmal'!$C:$Z,3,FALSE)","v":442},"photovoltaische Anlagen",{"$f":"IF(D296=\"\",\"00\",VLOOKUP(D296,'[1]Standardstruktur Anlagenmerkmal'!$F:$Z,2,FALSE))","v":"03"},"photovoltaische Anlage",{"$f":"IF(F296=\"\",\"00\",VLOOKUP(F296,'[1]Standardstruktur Anlagenmerkmal'!$N:$O,2,FALSE))","v":"01"},null,{"$f":"IF(H296=\"\",\"000\",VLOOKUP(H296,'[1]Nummerierung Bauteil'!$A:$C,3,FALSE))","v":"000"},null,"00","Modulfläche gesamt <100 m2","01","Anzahl","442.03.01.000.00.01",null,2.0096190597528349,231.64116762091979,156.97999999999999,315.47000000000003,331.24686969791526]
[442,"Eigenstromversorgungsanlagen",{"$f":"VLOOKUP(A297,'[1]Standardstruktur Anlagenmerkmal'!$C:$Z,3,FALSE)","v":442},"photovoltaische Anlagen",{"$f":"IF(D297=\"\",\"00\",VLOOKUP(D297,'[1]Standardstruktur Anlagenmerkmal'!$F:$Z,2,FALSE))","v":"03"},"photovoltaische Anlage",{"$f":"IF(F297=\"\",\"00\",VLOOKUP(F297,'[1]Standardstruktur Anlagenmerkmal'!$N:$O,2,FALSE))","v":"01"},null,{"$f":"IF(H297=\"\",\"000\",VLOOKUP(H297,'[1]Nummerierung Bauteil'!$A:$C,3,FALSE))","v":"000"},null,"00","Modulfläche gesamt 100 - 500 m2","02","Anzahl","442.03.01.000.00.02",null,2.1557511045626714,431.65193620794355,273.56526031717101,589.73861209871609,617.26226877735928]
[442,"Eigenstromversorgungsanlagen",{"$f":"VLOOKUP(A298,'[1]Standardstruktur Anlagenmerkmal'!$C:$Z,3,FALSE)","v":442},"photovoltaische Anlagen",{"$f":"IF(D298=\"\",\"00\",VLOOKUP(D298,'[1]Standardstruktur Anlagenmerkmal'!$F:$Z,2,FALSE))","v":"03"},"photovoltaische Anlage",{"$f":"IF(F298=\"\",\"00\",VLOOKUP(F298,'[1]Standardstruktur Anlagenmerkmal'!$N:$O,2,FALSE))","v":"01"},null,{"$f":"IF(H298=\"\",\"000\",VLOOKUP(H298,'[1]Nummerierung Bauteil'!$A:$C,3,FALSE))","v":"000"},null,"00","Modulfläche gesamt 500 - 2.500  m2","03","Anzahl","442.03.01.000.00.03",null,1.5951102271875204,770.01727260298946,593.43704520597896,946.59749999999997,1101.1246998222748]
[442,"Eigenstromversorgungsanlagen",{"$f":"VLOOKUP(A299,'[1]Standardstruktur Anlagenmerkmal'!$C:$Z,3,FALSE)","v":442},"photovoltaische Anlagen",{"$f":"IF(D299=\"\",\"00\",VLOOKUP(D299,'[1]Standardstruktur Anlagenmerkmal'!$F:$Z,2,FALSE))","v":"03"},"photovoltaische Anlage",{"$f":"IF(F299=\"\",\"00\",VLOOKUP(F299,'[1]Standardstruktur Anlagenmerkmal'!$N:$O,2,FALSE))","v":"01"},null,{"$f":"IF(H299=\"\",\"000\",VLOOKUP(H299,'[1]Nummerierung Bauteil'!$A:$C,3,FALSE))","v":"000"},"Anzahl Wechselrichter","01",null,"00","Anzahl","442.03.01.000.01.00",null,2.453474702625285,66.58446064945899,38.211113364928906,93.75,95.215778728726349]
[443,"Niederspannungsschaltanlagen",{"$f":"VLOOKUP(A300,'[1]Standardstruktur Anlagenmerkmal'!$C:$Z,3,FALSE)","v":443},"Niederspannungshauptverteiler",{"$f":"IF(D300=\"\",\"00\",VLOOKUP(D300,'[1]Standardstruktur Anlagenmerkmal'!$F:$Z,2,FALSE))","v":"01"},"Niederspannungshauptverteiler",{"$f":"IF(F300=\"\",\"00\",VLOOKUP(F300,'[1]Standardstruktur Anlagenmerkmal'!$N:$O,2,FALSE))","v":"01"},null,{"$f":"IF(H300=\"\",\"000\",VLOOKUP(H300,'[1]Nummerierung Bauteil'!$A:$C,3,FALSE))","v":"000"},"Anzahl NSHV Felder","01",null,"00","Anzahl","443.01.01.000.01.00",null,2.305660907430819,120.79819702546592,71.19,164.14,172.74142174641625]
[443,"Niederspannungsschaltanlagen",{"$f":"VLOOKUP(A301,'[1]Standardstruktur Anlagenmerkmal'!$C:$Z,3,FALSE)","v":443},"Niederspannungshauptverteiler",{"$f":"IF(D301=\"\",\"00\",VLOOKUP(D301,'[1]Standardstruktur Anlagenmerkmal'!$F:$Z,2,FALSE))","v":"01"},"Niederspannungshauptverteiler",{"$f":"IF(F301=\"\",\"00\",VLOOKUP(F301,'[1]Standardstruktur Anlagenmerkmal'!$N:$O,2,FALSE))","v":"01"},null,{"$f":"IF(H301=\"\",\"000\",VLOOKUP(H301,'[1]Nummerierung Bauteil'!$A:$C,3,FALSE))","v":"000"},"Anzahl Lasttrennschalter","02","Nicht gekapselt","01","Anzahl","443.01.01.000.02.01",null,"kein Benchmark",null,null,null,0]
[443,"Niederspannungsschaltanlagen",{"$f":"VLOOKUP(A302,'[1]Standardstruktur Anlagenmerkmal'!$C:$Z,3,FALSE)","v":443},"Niederspannungshauptverteiler",{"$f":"IF(D302=\"\",\"00\",VLOOKUP(D302,'[1]Standardstruktur Anlagenmerkmal'!$F:$Z,2,FALSE))","v":"01"},"Niederspannungshauptverteiler",{"$f":"IF(F302=\"\",\"00\",VLOOKUP(F302,'[1]Standardstruktur Anlagenmerkmal'!$N:$O,2,FALSE))","v":"01"},null,{"$f":"IF(H302=\"\",\"000\",VLOOKUP(H302,'[1]Nummerierung Bauteil'!$A:$C,3,FALSE))","v":"000"},"Anzahl Lasttrennschalter","02","Gekapselt","02",null,"443.01.01.000.02.02",null,"kein Benchmark",null,null,null,0]
[443,"Niederspannungsschaltanlagen",{"$f":"VLOOKUP(A303,'[1]Standardstruktur Anlagenmerkmal'!$C:$Z,3,FALSE)","v":443},"Niederspannungshauptverteiler",{"$f":"IF(D303=\"\",\"00\",VLOOKUP(D303,'[1]Standardstruktur Anlagenmerkmal'!$F:$Z,2,FALSE))","v":"01"},"Niederspannungshauptverteiler",{"$f":"IF(F303=\"\",\"00\",VLOOKUP(F303,'[1]Standardstruktur Anlagenmerkmal'!$N:$O,2,FALSE))","v":"01"},"Stromzähler",{"$f":"IF(H303=\"\",\"000\",VLOOKUP(H303,'[1]Nummerierung Bauteil'!$A:$C,3,FALSE))","v":"002"},null,"00",null,"00","Anzahl","443.01.01.002.00.00",null,"kein Benchmark",null,null,null,0]
[443,"Niederspannungsschaltanlagen",{"$f":"VLOOKUP(A304,'[1]Standardstruktur Anlagenmerkmal'!$C:$Z,3,FALSE)","v":443},"Blindstromkompensationsanlagen",{"$f":"IF(D304=\"\",\"00\",VLOOKUP(D304,'[1]Standardstruktur Anlagenmerkmal'!$F:$Z,2,FALSE))","v":"02"},"Blindstromkompensationsanlage",{"$f":"IF(F304=\"\",\"00\",VLOOKUP(F304,'[1]Standardstruktur Anlagenmerkmal'!$N:$O,2,FALSE))","v":"01"},null,{"$f":"IF(H304=\"\",\"000\",VLOOKUP(H304,'[1]Nummerierung Bauteil'!$A:$C,3,FALSE))","v":"000"},null,"00","elektrische Leistung < 250 kVAr","01","Anzahl","443.02.01.000.00.01",null,1.9481465311795385,168.9790618194705,124.55,242.6416504584115,241.64005840184279]
[443,"Niederspannungsschaltanlagen",{"$f":"VLOOKUP(A305,'[1]Standardstruktur Anlagenmerkmal'!$C:$Z,3,FALSE)","v":443},"Blindstromkompensationsanlagen",{"$f":"IF(D305=\"\",\"00\",VLOOKUP(D305,'[1]Standardstruktur Anlagenmerkmal'!$F:$Z,2,FALSE))","v":"02"},"Blindstromkompensationsanlage",{"$f":"IF(F305=\"\",\"00\",VLOOKUP(F305,'[1]Standardstruktur Anlagenmerkmal'!$N:$O,2,FALSE))","v":"01"},null,{"$f":"IF(H305=\"\",\"000\",VLOOKUP(H305,'[1]Nummerierung Bauteil'!$A:$C,3,FALSE))","v":"000"},null,"00","elektrische Leistung 250 bis 500 kVAr","02","Anzahl","443.02.01.000.00.02",null,1.5619458946843867,277.11562538550879,216.33214500000003,337.8991057710175,396.27534430127753]
[443,"Niederspannungsschaltanlagen",{"$f":"VLOOKUP(A306,'[1]Standardstruktur Anlagenmerkmal'!$C:$Z,3,FALSE)","v":443},"Maximumüberwachungsanlagen",{"$f":"IF(D306=\"\",\"00\",VLOOKUP(D306,'[1]Standardstruktur Anlagenmerkmal'!$F:$Z,2,FALSE))","v":"03"},"Gleichstromversorgungsschränke",{"$f":"IF(F306=\"\",\"00\",VLOOKUP(F306,'[1]Standardstruktur Anlagenmerkmal'!$N:$O,2,FALSE))","v":"01"},null,{"$f":"IF(H306=\"\",\"000\",VLOOKUP(H306,'[1]Nummerierung Bauteil'!$A:$C,3,FALSE))","v":"000"},null,"00",null,"00","kein EP","443.03.01.000.00.00",null,"kein Einheitspreis",null,null,null,0]
[444,"Niederspannungsinstallationsanlagen",{"$f":"VLOOKUP(A307,'[1]Standardstruktur Anlagenmerkmal'!$C:$Z,3,FALSE)","v":444},"Kabel ",{"$f":"IF(D307=\"\",\"00\",VLOOKUP(D307,'[1]Standardstruktur Anlagenmerkmal'!$F:$Z,2,FALSE))","v":"01"},"Kabel ",{"$f":"IF(F307=\"\",\"00\",VLOOKUP(F307,'[1]Standardstruktur Anlagenmerkmal'!$N:$O,2,FALSE))","v":"01"},null,{"$f":"IF(H307=\"\",\"000\",VLOOKUP(H307,'[1]Nummerierung Bauteil'!$A:$C,3,FALSE))","v":"000"},null,"00",null,"00","kein EP","444.01.01.000.00.00",null,"kein Einheitspreis",null,null,null,0]
[444,"Niederspannungsinstallationsanlagen",{"$f":"VLOOKUP(A308,'[1]Standardstruktur Anlagenmerkmal'!$C:$Z,3,FALSE)","v":444},"Leitungen",{"$f":"IF(D308=\"\",\"00\",VLOOKUP(D308,'[1]Standardstruktur Anlagenmerkmal'!$F:$Z,2,FALSE))","v":"02"},"Leitungen",{"$f":"IF(F308=\"\",\"00\",VLOOKUP(F308,'[1]Standardstruktur Anlagenmerkmal'!$N:$O,2,FALSE))","v":"01"},null,{"$f":"IF(H308=\"\",\"000\",VLOOKUP(H308,'[1]Nummerierung Bauteil'!$A:$C,3,FALSE))","v":"000"},null,"00",null,"00","kein EP","444.02.01.000.00.00",null,"kein Einheitspreis","","",null,{"$error":"#VALUE!"}]
[444,"Niederspannungsinstallationsanlagen",{"$f":"VLOOKUP(A309,'[1]Standardstruktur Anlagenmerkmal'!$C:$Z,3,FALSE)","v":444},"Unterverteiler",{"$f":"IF(D309=\"\",\"00\",VLOOKUP(D309,'[1]Standardstruktur Anlagenmerkmal'!$F:$Z,2,FALSE))","v":"03"},"NS-Unterverteiler",{"$f":"IF(F309=\"\",\"00\",VLOOKUP(F309,'[1]Standardstruktur Anlagenmerkmal'!$N:$O,2,FALSE))","v":"01"},null,{"$f":"IF(H309=\"\",\"000\",VLOOKUP(H309,'[1]Nummerierung Bauteil'!$A:$C,3,FALSE))","v":"000"},null,"00","Stromkreise <20 Stk.","01","Anzahl","444.03.01.000.00.01",null,1.9515418502202642,32.812554095730768,22.7,44.3,46.921952356894998]
[444,"Niederspannungsinstallationsanlagen",{"$f":"VLOOKUP(A310,'[1]Standardstruktur Anlagenmerkmal'!$C:$Z,3,FALSE)","v":444},"Unterverteiler",{"$f":"IF(D310=\"\",\"00\",VLOOKUP(D310,'[1]Standardstruktur Anlagenmerkmal'!$F:$Z,2,FALSE))","v":"03"},"NS-Unterverteiler",{"$f":"IF(F310=\"\",\"00\",VLOOKUP(F310,'[1]Standardstruktur Anlagenmerkmal'!$N:$O,2,FALSE))","v":"01"},null,{"$f":"IF(H310=\"\",\"000\",VLOOKUP(H310,'[1]Nummerierung Bauteil'!$A:$C,3,FALSE))","v":"000"},null,"00","Stromkreise 20 bis 50 Stk. ","02","Anzahl","444.03.01.000.00.02",null,1.6712378363054476,53.49206891049672,37.642757142857135,62.91,76.493658542010309]
[444,"Niederspannungsinstallationsanlagen",{"$f":"VLOOKUP(A311,'[1]Standardstruktur Anlagenmerkmal'!$C:$Z,3,FALSE)","v":444},"Unterverteiler",{"$f":"IF(D311=\"\",\"00\",VLOOKUP(D311,'[1]Standardstruktur Anlagenmerkmal'!$F:$Z,2,FALSE))","v":"03"},"NS-Unterverteiler",{"$f":"IF(F311=\"\",\"00\",VLOOKUP(F311,'[1]Standardstruktur Anlagenmerkmal'!$N:$O,2,FALSE))","v":"01"},null,{"$f":"IF(H311=\"\",\"000\",VLOOKUP(H311,'[1]Nummerierung Bauteil'!$A:$C,3,FALSE))","v":"000"},null,"00","Stromkreise 50 bis 100 Stk.","03","Anzahl","444.03.01.000.00.03",null,1.2058807777331302,61.049588757745823,55.351666666666667,66.747510848824973,87.300911923576521]
[444,"Niederspannungsinstallationsanlagen",{"$f":"VLOOKUP(A312,'[1]Standardstruktur Anlagenmerkmal'!$C:$Z,3,FALSE)","v":444},"Unterverteiler",{"$f":"IF(D312=\"\",\"00\",VLOOKUP(D312,'[1]Standardstruktur Anlagenmerkmal'!$F:$Z,2,FALSE))","v":"03"},"NS-Unterverteiler",{"$f":"IF(F312=\"\",\"00\",VLOOKUP(F312,'[1]Standardstruktur Anlagenmerkmal'!$N:$O,2,FALSE))","v":"01"},"Stromzähler",{"$f":"IF(H312=\"\",\"000\",VLOOKUP(H312,'[1]Nummerierung Bauteil'!$A:$C,3,FALSE))","v":"002"},null,"00",null,"00","Anzahl","444.03.01.002.00.00",null,"kein Benchmark",null,null,null,0]
[444,"Niederspannungsinstallationsanlagen",{"$f":"VLOOKUP(A313,'[1]Standardstruktur Anlagenmerkmal'!$C:$Z,3,FALSE)","v":444},"Verlegesysteme",{"$f":"IF(D313=\"\",\"00\",VLOOKUP(D313,'[1]Standardstruktur Anlagenmerkmal'!$F:$Z,2,FALSE))","v":"04"},"Verlegesysteme",{"$f":"IF(F313=\"\",\"00\",VLOOKUP(F313,'[1]Standardstruktur Anlagenmerkmal'!$N:$O,2,FALSE))","v":"01"},null,{"$f":"IF(H313=\"\",\"000\",VLOOKUP(H313,'[1]Nummerierung Bauteil'!$A:$C,3,FALSE))","v":"000"},null,"00",null,"00","kein EP",{"$f":"IF(ISBLANK(C313)=TRUE,\"\",CONCATENATE(C313,\".\",E313,\".\",G313,\".\",I313,\".\",K313,\".\",M313))","v":"444.04.01.000.00.00"},null,"kein Einheitspreis","","",null,{"$error":"#VALUE!"}]
[444,"Niederspannungsinstallationsanlagen",{"$f":"VLOOKUP(A314,'[1]Standardstruktur Anlagenmerkmal'!$C:$Z,3,FALSE)","v":444},"Installationsgeräte",{"$f":"IF(D314=\"\",\"00\",VLOOKUP(D314,'[1]Standardstruktur Anlagenmerkmal'!$F:$Z,2,FALSE))","v":"05"},"Installationsgeräte",{"$f":"IF(F314=\"\",\"00\",VLOOKUP(F314,'[1]Standardstruktur Anlagenmerkmal'!$N:$O,2,FALSE))","v":"01"},null,{"$f":"IF(H314=\"\",\"000\",VLOOKUP(H314,'[1]Nummerierung Bauteil'!$A:$C,3,FALSE))","v":"000"},null,"00",null,"00","kein EP","444.05.01.000.00.00",null,"kein Einheitspreis","","",null,{"$error":"#VALUE!"}]
[445,"Beleuchtungsanlagen",{"$f":"VLOOKUP(A315,'[1]Standardstruktur Anlagenmerkmal'!$C:$Z,3,FALSE)","v":445},"Ortsfeste Leuchten",{"$f":"IF(D315=\"\",\"00\",VLOOKUP(D315,'[1]Standardstruktur Anlagenmerkmal'!$F:$Z,2,FALSE))","v":"01"},"Raumbeleuchtung",{"$f":"IF(F315=\"\",\"00\",VLOOKUP(F315,'[1]Standardstruktur Anlagenmerkmal'!$N:$O,2,FALSE))","v":"01"},null,{"$f":"IF(H315=\"\",\"000\",VLOOKUP(H315,'[1]Nummerierung Bauteil'!$A:$C,3,FALSE))","v":"000"},null,"00",null,"00","kein EP","445.01.01.000.00.00",null,"kein Einheitspreis","","",null,{"$error":"#VALUE!"}]
[445,"Beleuchtungsanlagen",{"$f":"VLOOKUP(A316,'[1]Standardstruktur Anlagenmerkmal'!$C:$Z,3,FALSE)","v":445},"Sicherheitsbeleuchtung",{"$f":"IF(D316=\"\",\"00\",VLOOKUP(D316,'[1]Standardstruktur Anlagenmerkmal'!$F:$Z,2,FALSE))","v":"02"},"Sicherheitsbeleuchtungsanlage",{"$f":"IF(F316=\"\",\"00\",VLOOKUP(F316,'[1]Standardstruktur Anlagenmerkmal'!$N:$O,2,FALSE))","v":"01"},"Leuchte",{"$f":"IF(H316=\"\",\"000\",VLOOKUP(H316,'[1]Nummerierung Bauteil'!$A:$C,3,FALSE))","v":"007"},"Eigenversorgung mit Überwachung","01",null,"00","Anzahl","445.02.01.007.01.00",null,"kein Benchmark",null,null,null,0]
[445,"Beleuchtungsanlagen",{"$f":"VLOOKUP(A317,'[1]Standardstruktur Anlagenmerkmal'!$C:$Z,3,FALSE)","v":445},"Sicherheitsbeleuchtung",{"$f":"IF(D317=\"\",\"00\",VLOOKUP(D317,'[1]Standardstruktur Anlagenmerkmal'!$F:$Z,2,FALSE))","v":"02"},"Sicherheitsbeleuchtungsanlage",{"$f":"IF(F317=\"\",\"00\",VLOOKUP(F317,'[1]Standardstruktur Anlagenmerkmal'!$N:$O,2,FALSE))","v":"01"},"Leuchte",{"$f":"IF(H317=\"\",\"000\",VLOOKUP(H317,'[1]Nummerierung Bauteil'!$A:$C,3,FALSE))","v":"007"},"Eigenversorgung ohne Überwachung","02",null,"00","Anzahl","445.02.01.007.02.00",null,1.9898373983739837,26.31,9.84,19.579999999999998,37.623299999999993]
[445,"Beleuchtungsanlagen",{"$f":"VLOOKUP(A318,'[1]Standardstruktur Anlagenmerkmal'!$C:$Z,3,FALSE)","v":445},"Sicherheitsbeleuchtung",{"$f":"IF(D318=\"\",\"00\",VLOOKUP(D318,'[1]Standardstruktur Anlagenmerkmal'!$F:$Z,2,FALSE))","v":"02"},"Sicherheitsbeleuchtungsanlage",{"$f":"IF(F318=\"\",\"00\",VLOOKUP(F318,'[1]Standardstruktur Anlagenmerkmal'!$N:$O,2,FALSE))","v":"01"},"Leuchte",{"$f":"IF(H318=\"\",\"000\",VLOOKUP(H318,'[1]Nummerierung Bauteil'!$A:$C,3,FALSE))","v":"007"},"Zentralversorgung mit Überwachung","03",null,"00","Anzahl","445.02.01.007.03.00",null,1.351506456241033,8.432600508539343,6.97,9.42,12.058618727211259]
[445,"Beleuchtungsanlagen",{"$f":"VLOOKUP(A319,'[1]Standardstruktur Anlagenmerkmal'!$C:$Z,3,FALSE)","v":445},"Sicherheitsbeleuchtung",{"$f":"IF(D319=\"\",\"00\",VLOOKUP(D319,'[1]Standardstruktur Anlagenmerkmal'!$F:$Z,2,FALSE))","v":"02"},"Sicherheitsbeleuchtungsanlage",{"$f":"IF(F319=\"\",\"00\",VLOOKUP(F319,'[1]Standardstruktur Anlagenmerkmal'!$N:$O,2,FALSE))","v":"01"},"Leuchte",{"$f":"IF(H319=\"\",\"000\",VLOOKUP(H319,'[1]Nummerierung Bauteil'!$A:$C,3,FALSE))","v":"007"},"Zentralversorgung ohne Überwachung","04",null,"00","Anzahl","445.02.01.007.04.00",null,"kein Benchmark",null,null,null,0]
[445,"Beleuchtungsanlagen",{"$f":"VLOOKUP(A320,'[1]Standardstruktur Anlagenmerkmal'!$C:$Z,3,FALSE)","v":445},"Sicherheitsbeleuchtung",{"$f":"IF(D320=\"\",\"00\",VLOOKUP(D320,'[1]Standardstruktur Anlagenmerkmal'!$F:$Z,2,FALSE))","v":"02"},"Sicherheitsbeleuchtungsanlage",{"$f":"IF(F320=\"\",\"00\",VLOOKUP(F320,'[1]Standardstruktur Anlagenmerkmal'!$N:$O,2,FALSE))","v":"01"},"Zentralgerät",{"$f":"IF(H320=\"\",\"000\",VLOOKUP(H320,'[1]Nummerierung Bauteil'!$A:$C,3,FALSE))","v":"235"},null,"00",null,"00","Anzahl","445.02.01.235.00.00",null,"kein Benchmark",null,null,null,0]
[445,"Beleuchtungsanlagen",{"$f":"VLOOKUP(A321,'[1]Standardstruktur Anlagenmerkmal'!$C:$Z,3,FALSE)","v":445},"Sicherheitsbeleuchtung",{"$f":"IF(D321=\"\",\"00\",VLOOKUP(D321,'[1]Standardstruktur Anlagenmerkmal'!$F:$Z,2,FALSE))","v":"02"},"optische Sicherheitsleitsysteme",{"$f":"IF(F321=\"\",\"00\",VLOOKUP(F321,'[1]Standardstruktur Anlagenmerkmal'!$N:$O,2,FALSE))","v":"02"},"Sicherheitszeichen",{"$f":"IF(H321=\"\",\"000\",VLOOKUP(H321,'[1]Nummerierung Bauteil'!$A:$C,3,FALSE))","v":"200"},"Eigenversorgung","01",null,"00","Anzahl","445.02.02.200.01.00",null,"kein Benchmark",null,null,null,0]
[445,"Beleuchtungsanlagen",{"$f":"VLOOKUP(A322,'[1]Standardstruktur Anlagenmerkmal'!$C:$Z,3,FALSE)","v":445},"Sicherheitsbeleuchtung",{"$f":"IF(D322=\"\",\"00\",VLOOKUP(D322,'[1]Standardstruktur Anlagenmerkmal'!$F:$Z,2,FALSE))","v":"02"},"optische Sicherheitsleitsysteme",{"$f":"IF(F322=\"\",\"00\",VLOOKUP(F322,'[1]Standardstruktur Anlagenmerkmal'!$N:$O,2,FALSE))","v":"02"},"Sicherheitszeichen",{"$f":"IF(H322=\"\",\"000\",VLOOKUP(H322,'[1]Nummerierung Bauteil'!$A:$C,3,FALSE))","v":"200"},"Zentralversorgung","02",null,"00","Anzahl","445.02.02.200.02.00",null,2.481314720293923,353.71150750915751,212.65944045078427,527.67499999999995,505.8074557380952]
[445,"Beleuchtungsanlagen",{"$f":"VLOOKUP(A323,'[1]Standardstruktur Anlagenmerkmal'!$C:$Z,3,FALSE)","v":445},"Sicherheitsbeleuchtung",{"$f":"IF(D323=\"\",\"00\",VLOOKUP(D323,'[1]Standardstruktur Anlagenmerkmal'!$F:$Z,2,FALSE))","v":"02"},"optische Sicherheitsleitsysteme",{"$f":"IF(F323=\"\",\"00\",VLOOKUP(F323,'[1]Standardstruktur Anlagenmerkmal'!$N:$O,2,FALSE))","v":"02"},"Leitmarkierungen",{"$f":"IF(H323=\"\",\"000\",VLOOKUP(H323,'[1]Nummerierung Bauteil'!$A:$C,3,FALSE))","v":"174"},null,"00",null,"00","Länge Leitmarkierung","445.02.02.174.00.00",null,"kein Benchmark",null,null,null,{"$f":"R323*(((160.2-117.2)/100)+1)","v":0}]
[445,"Beleuchtungsanlagen",{"$f":"VLOOKUP(A324,'[1]Standardstruktur Anlagenmerkmal'!$C:$Z,3,FALSE)","v":445},"Signalanlagen",{"$f":"IF(D324=\"\",\"00\",VLOOKUP(D324,'[1]Standardstruktur Anlagenmerkmal'!$F:$Z,2,FALSE))","v":"03"},"Ampelanlage",{"$f":"IF(F324=\"\",\"00\",VLOOKUP(F324,'[1]Standardstruktur Anlagenmerkmal'!$N:$O,2,FALSE))","v":"01"},null,{"$f":"IF(H324=\"\",\"000\",VLOOKUP(H324,'[1]Nummerierung Bauteil'!$A:$C,3,FALSE))","v":"000"},null,"00",null,"00","pauschal","445.03.01.000.00.00",null,1.8143345939132001,149.86000000000001,111.06,201.5,214.2998]
[446,"Blitzschutz- und Erdungsanlagen",{"$f":"VLOOKUP(A325,'[1]Standardstruktur Anlagenmerkmal'!$C:$Z,3,FALSE)","v":446},"Blitzschutz- und Erdungsanlagen",{"$f":"IF(D325=\"\",\"00\",VLOOKUP(D325,'[1]Standardstruktur Anlagenmerkmal'!$F:$Z,2,FALSE))","v":"01"},"Blitzschutzanlage",{"$f":"IF(F325=\"\",\"00\",VLOOKUP(F325,'[1]Standardstruktur Anlagenmerkmal'!$N:$O,2,FALSE))","v":"01"},"Trennstellen",{"$f":"IF(H325=\"\",\"000\",VLOOKUP(H325,'[1]Nummerierung Bauteil'!$A:$C,3,FALSE))","v":"216"},null,"00","Äußerer Blitzschutz","00","Anzahl","446.01.01.216.00.00",null,1.1484535841804764,14.171797326084805,12.947845872770788,14.87,20.265670176301271]
[446,"Blitzschutz- und Erdungsanlagen",{"$f":"VLOOKUP(A326,'[1]Standardstruktur Anlagenmerkmal'!$C:$Z,3,FALSE)","v":446},"Blitzschutz- und Erdungsanlagen",{"$f":"IF(D326=\"\",\"00\",VLOOKUP(D326,'[1]Standardstruktur Anlagenmerkmal'!$F:$Z,2,FALSE))","v":"01"},"Blitzschutzanlage",{"$f":"IF(F326=\"\",\"00\",VLOOKUP(F326,'[1]Standardstruktur Anlagenmerkmal'!$N:$O,2,FALSE))","v":"01"},null,{"$f":"IF(H326=\"\",\"000\",VLOOKUP(H326,'[1]Nummerierung Bauteil'!$A:$C,3,FALSE))","v":"000"},null,"00","Innerer Blitzschutz","00","kein EP (in Unterverteilung enthalten)","446.01.01.000.00.00",null,"kein Einheitspreis","","",null,{"$error":"#VALUE!"}]
[449,"Sonstiges zur KG 440",{"$f":"VLOOKUP(A327,'[1]Standardstruktur Anlagenmerkmal'!$C:$Z,3,FALSE)","v":449},"Ladestationen",{"$f":"IF(D327=\"\",\"00\",VLOOKUP(D327,'[1]Standardstruktur Anlagenmerkmal'!$F:$Z,2,FALSE))","v":"01"},"Ladestation",{"$f":"IF(F327=\"\",\"00\",VLOOKUP(F327,'[1]Standardstruktur Anlagenmerkmal'!$N:$O,2,FALSE))","v":"01"},null,{"$f":"IF(H327=\"\",\"000\",VLOOKUP(H327,'[1]Nummerierung Bauteil'!$A:$C,3,FALSE))","v":"000"},"Ladeart = 1","01",null,"00","Anzahl","449.01.01.000.01.00",null,"kein Benchmark",null,null,null,0]
[449,"Sonstiges zur KG 440",{"$f":"VLOOKUP(A328,'[1]Standardstruktur Anlagenmerkmal'!$C:$Z,3,FALSE)","v":449},"Ladestationen",{"$f":"IF(D328=\"\",\"00\",VLOOKUP(D328,'[1]Standardstruktur Anlagenmerkmal'!$F:$Z,2,FALSE))","v":"01"},"Ladestation",{"$f":"IF(F328=\"\",\"00\",VLOOKUP(F328,'[1]Standardstruktur Anlagenmerkmal'!$N:$O,2,FALSE))","v":"01"},null,{"$f":"IF(H328=\"\",\"000\",VLOOKUP(H328,'[1]Nummerierung Bauteil'!$A:$C,3,FALSE))","v":"000"},"Ladeart = 2","02",null,"00","Anzahl","449.01.01.000.02.00",null,"kein Benchmark",null,null,null,0]
[449,"Sonstiges zur KG 440",{"$f":"VLOOKUP(A329,'[1]Standardstruktur Anlagenmerkmal'!$C:$Z,3,FALSE)","v":449},"Ladestationen",{"$f":"IF(D329=\"\",\"00\",VLOOKUP(D329,'[1]Standardstruktur Anlagenmerkmal'!$F:$Z,2,FALSE))","v":"01"},"Ladestation",{"$f":"IF(F329=\"\",\"00\",VLOOKUP(F329,'[1]Standardstruktur Anlagenmerkmal'!$N:$O,2,FALSE))","v":"01"},null,{"$f":"IF(H329=\"\",\"000\",VLOOKUP(H329,'[1]Nummerierung Bauteil'!$A:$C,3,FALSE))","v":"000"},"Ladeart = 3","03",null,"00","Anzahl","449.01.01.000.03.00",null,"kein Benchmark",null,null,null,0]
[449,"Sonstiges zur KG 440",{"$f":"VLOOKUP(A330,'[1]Standardstruktur Anlagenmerkmal'!$C:$Z,3,FALSE)","v":449},"Ladestationen",{"$f":"IF(D330=\"\",\"00\",VLOOKUP(D330,'[1]Standardstruktur Anlagenmerkmal'!$F:$Z,2,FALSE))","v":"01"},"Ladestation",{"$f":"IF(F330=\"\",\"00\",VLOOKUP(F330,'[1]Standardstruktur Anlagenmerkmal'!$N:$O,2,FALSE))","v":"01"},null,{"$f":"IF(H330=\"\",\"000\",VLOOKUP(H330,'[1]Nummerierung Bauteil'!$A:$C,3,FALSE))","v":"000"},"Ladeart = 4","04",null,"00","Anzahl","449.01.01.000.04.00",null,"kein Benchmark",null,null,null,0]
[449,"Sonstiges zur KG 440",{"$f":"VLOOKUP(A331,'[1]Standardstruktur Anlagenmerkmal'!$C:$Z,3,FALSE)","v":449},"Frequenzumformer",{"$f":"IF(D331=\"\",\"00\",VLOOKUP(D331,'[1]Standardstruktur Anlagenmerkmal'!$F:$Z,2,FALSE))","v":0},"Frequenzumformer",{"$f":"IF(F331=\"\",\"00\",VLOOKUP(F331,'[1]Standardstruktur Anlagenmerkmal'!$N:$O,2,FALSE))","v":"01"},null,{"$f":"IF(H331=\"\",\"000\",VLOOKUP(H331,'[1]Nummerierung Bauteil'!$A:$C,3,FALSE))","v":"000"},null,"00",null,"00","kein EP (im Preis der RLT-Anlagen)","449.0.01.000.00.00",null,"kein Einheitspreis",null,null,null,0]
[449,"Sonstiges zur KG 440",{"$f":"VLOOKUP(A332,'[1]Standardstruktur Anlagenmerkmal'!$C:$Z,3,FALSE)","v":449},"Begleitheizung",{"$f":"IF(D332=\"\",\"00\",VLOOKUP(D332,'[1]Standardstruktur Anlagenmerkmal'!$F:$Z,2,FALSE))","v":"03"},"Begleitheizung",{"$f":"IF(F332=\"\",\"00\",VLOOKUP(F332,'[1]Standardstruktur Anlagenmerkmal'!$N:$O,2,FALSE))","v":"01"},null,{"$f":"IF(H332=\"\",\"000\",VLOOKUP(H332,'[1]Nummerierung Bauteil'!$A:$C,3,FALSE))","v":"000"},null,"00",null,"00","Anzahl pro Steuereinheit","449.03.01.000.00.00",null,1.9241178694775551,36.761994878135077,25.143989756270155,48.38,52.56965267573316]
[449,"Sonstiges zur KG 440",{"$f":"VLOOKUP(A333,'[1]Standardstruktur Anlagenmerkmal'!$C:$Z,3,FALSE)","v":449},"Taubenabwehranlage",{"$f":"IF(D333=\"\",\"00\",VLOOKUP(D333,'[1]Standardstruktur Anlagenmerkmal'!$F:$Z,2,FALSE))","v":"04"},"Taubenabwehranlage (elektrisch) - Weidenzaunprinzip - nicht Laser / Ultraschall / Spiegel",{"$f":"IF(F333=\"\",\"00\",VLOOKUP(F333,'[1]Standardstruktur Anlagenmerkmal'!$N:$O,2,FALSE))","v":"01"},null,{"$f":"IF(H333=\"\",\"000\",VLOOKUP(H333,'[1]Nummerierung Bauteil'!$A:$C,3,FALSE))","v":"000"},null,"00",null,"00","Anzahl pro Steuereinheit","449.04.01.000.00.00",null,3.2101083032490978,99.063600989994725,55.4,177.84,141.66094941569244]
[451,"Telekommunikationsanlagen",{"$f":"VLOOKUP(A334,'[1]Standardstruktur Anlagenmerkmal'!$C:$Z,3,FALSE)","v":451},"Telekommunikationsanlagen",{"$f":"IF(D334=\"\",\"00\",VLOOKUP(D334,'[1]Standardstruktur Anlagenmerkmal'!$F:$Z,2,FALSE))","v":"01"},"TK-Anlage",{"$f":"IF(F334=\"\",\"00\",VLOOKUP(F334,'[1]Standardstruktur Anlagenmerkmal'!$N:$O,2,FALSE))","v":"01"},null,{"$f":"IF(H334=\"\",\"000\",VLOOKUP(H334,'[1]Nummerierung Bauteil'!$A:$C,3,FALSE))","v":"000"},"Anzahl Verteiler","01",null,"00","Anzahl","451.01.01.000.01.00",null,"kein Benchmark",null,null,null,0]
[452,"Such- und Signalanlagen",{"$f":"VLOOKUP(A335,'[1]Standardstruktur Anlagenmerkmal'!$C:$Z,3,FALSE)","v":452},"Personenrufanlagen",{"$f":"IF(D335=\"\",\"00\",VLOOKUP(D335,'[1]Standardstruktur Anlagenmerkmal'!$F:$Z,2,FALSE))","v":"01"},"Behindertennotruf",{"$f":"IF(F335=\"\",\"00\",VLOOKUP(F335,'[1]Standardstruktur Anlagenmerkmal'!$N:$O,2,FALSE))","v":"01"},null,{"$f":"IF(H335=\"\",\"000\",VLOOKUP(H335,'[1]Nummerierung Bauteil'!$A:$C,3,FALSE))","v":"000"},null,"00",null,"00","Anzahl","452.01.01.000.00.00",null,1.1851297122827675,37.484692521274013,35.18,41.692863278107765,53.603110305421836]
[452,"Such- und Signalanlagen",{"$f":"VLOOKUP(A336,'[1]Standardstruktur Anlagenmerkmal'!$C:$Z,3,FALSE)","v":452},"Lichtruf- und Klingelanlagen",{"$f":"IF(D336=\"\",\"00\",VLOOKUP(D336,'[1]Standardstruktur Anlagenmerkmal'!$F:$Z,2,FALSE))","v":"02"},"Lichtruf- und Klingelanlage",{"$f":"IF(F336=\"\",\"00\",VLOOKUP(F336,'[1]Standardstruktur Anlagenmerkmal'!$N:$O,2,FALSE))","v":"01"},null,{"$f":"IF(H336=\"\",\"000\",VLOOKUP(H336,'[1]Nummerierung Bauteil'!$A:$C,3,FALSE))","v":"000"},"Anzahl Module (Gesamt)","01",null,"00","Anzahl","452.02.01.000.01.00",null,1.4159852828559898,70.438050921666388,58.31,82.566101843332774,100.72641281798293]
[452,"Such- und Signalanlagen",{"$f":"VLOOKUP(A337,'[1]Standardstruktur Anlagenmerkmal'!$C:$Z,3,FALSE)","v":452},"Türsprech- und Türöffneranlagen",{"$f":"IF(D337=\"\",\"00\",VLOOKUP(D337,'[1]Standardstruktur Anlagenmerkmal'!$F:$Z,2,FALSE))","v":"03"},"Türsprech- und Türöffneranlage",{"$f":"IF(F337=\"\",\"00\",VLOOKUP(F337,'[1]Standardstruktur Anlagenmerkmal'!$N:$O,2,FALSE))","v":"01"},null,{"$f":"IF(H337=\"\",\"000\",VLOOKUP(H337,'[1]Nummerierung Bauteil'!$A:$C,3,FALSE))","v":"000"},"Anzahl Sprechstellen 1 bis 25 Stk.","01",null,"00","pauschal","452.03.01.000.01.00","Sprechstellen inkl. Zentraleinheit, Türöffner, Kamera, Monitor",1.6593734045825266,132.24530180506517,98.46,163.38190541519555,189.11078158124317]
[452,"Such- und Signalanlagen",{"$f":"VLOOKUP(A338,'[1]Standardstruktur Anlagenmerkmal'!$C:$Z,3,FALSE)","v":452},"Türsprech- und Türöffneranlagen",{"$f":"IF(D338=\"\",\"00\",VLOOKUP(D338,'[1]Standardstruktur Anlagenmerkmal'!$F:$Z,2,FALSE))","v":"03"},"Türsprech- und Türöffneranlage",{"$f":"IF(F338=\"\",\"00\",VLOOKUP(F338,'[1]Standardstruktur Anlagenmerkmal'!$N:$O,2,FALSE))","v":"01"},null,{"$f":"IF(H338=\"\",\"000\",VLOOKUP(H338,'[1]Nummerierung Bauteil'!$A:$C,3,FALSE))","v":"000"},"Anzahl Sprechstellen 26 bis 50 Stk.","02",null,"00","pauschal","452.03.01.000.02.00","Sprechstellen inkl. Zentraleinheit, Türöffner, Kamera, Monitor",1.0077926908240775,263.07163536361617,262.05059572723235,264.09267499999999,376.1924385699711]
[453,"Zeitdienstanlagen",{"$f":"VLOOKUP(A339,'[1]Standardstruktur Anlagenmerkmal'!$C:$Z,3,FALSE)","v":453},"Uhrenanlagen",{"$f":"IF(D339=\"\",\"00\",VLOOKUP(D339,'[1]Standardstruktur Anlagenmerkmal'!$F:$Z,2,FALSE))","v":"01"},"Uhrenanlage",{"$f":"IF(F339=\"\",\"00\",VLOOKUP(F339,'[1]Standardstruktur Anlagenmerkmal'!$N:$O,2,FALSE))","v":"01"},null,{"$f":"IF(H339=\"\",\"000\",VLOOKUP(H339,'[1]Nummerierung Bauteil'!$A:$C,3,FALSE))","v":"000"},null,"00",null,"00","kein EP","453.01.01.000.00.00",null,"kein Einheitspreis","","",null,{"$error":"#VALUE!"}]
[453,"Zeitdienstanlagen",{"$f":"VLOOKUP(A340,'[1]Standardstruktur Anlagenmerkmal'!$C:$Z,3,FALSE)","v":453},"Zeiterfassungsanlagen",{"$f":"IF(D340=\"\",\"00\",VLOOKUP(D340,'[1]Standardstruktur Anlagenmerkmal'!$F:$Z,2,FALSE))","v":"02"},"Zeiterfassungsanlage",{"$f":"IF(F340=\"\",\"00\",VLOOKUP(F340,'[1]Standardstruktur Anlagenmerkmal'!$N:$O,2,FALSE))","v":"01"},null,{"$f":"IF(H340=\"\",\"000\",VLOOKUP(H340,'[1]Nummerierung Bauteil'!$A:$C,3,FALSE))","v":"000"},null,"00",null,"00","kein EP","453.02.01.000.00.00",null,"kein Einheitspreis","","",null,{"$error":"#VALUE!"}]
[454,"Elektroakustische Anlagen",{"$f":"VLOOKUP(A341,'[1]Standardstruktur Anlagenmerkmal'!$C:$Z,3,FALSE)","v":454},"Elektroakustische Anlagen",{"$f":"IF(D341=\"\",\"00\",VLOOKUP(D341,'[1]Standardstruktur Anlagenmerkmal'!$F:$Z,2,FALSE))","v":"01"},"Elektroakustische Anlage",{"$f":"IF(F341=\"\",\"00\",VLOOKUP(F341,'[1]Standardstruktur Anlagenmerkmal'!$N:$O,2,FALSE))","v":"01"},null,{"$f":"IF(H341=\"\",\"000\",VLOOKUP(H341,'[1]Nummerierung Bauteil'!$A:$C,3,FALSE))","v":"000"},null,"00",null,"00","Pauschal","454.01.01.000.00.00","nur offene Systeme; inkl. Sprechstelle und Verstärker",1.140946495823441,533.12255320912561,498.0251064182512,568.22,762.36525108904959]
[454,"Elektroakustische Anlagen",{"$f":"VLOOKUP(A342,'[1]Standardstruktur Anlagenmerkmal'!$C:$Z,3,FALSE)","v":454},"Elektroakustische Anlagen",{"$f":"IF(D342=\"\",\"00\",VLOOKUP(D342,'[1]Standardstruktur Anlagenmerkmal'!$F:$Z,2,FALSE))","v":"01"},"Elektroakustische Anlage",{"$f":"IF(F342=\"\",\"00\",VLOOKUP(F342,'[1]Standardstruktur Anlagenmerkmal'!$N:$O,2,FALSE))","v":"01"},null,{"$f":"IF(H342=\"\",\"000\",VLOOKUP(H342,'[1]Nummerierung Bauteil'!$A:$C,3,FALSE))","v":"000"},null,"00","Anzahl  Lautsprecher <=100 Stk.","01","Pauschal","454.01.01.000.00.01","nur offene Systeme; inkl. Sprechstelle und Verstärker",1.0991666666666666,286.43,276,303.37,409.5949]
[454,"Elektroakustische Anlagen",{"$f":"VLOOKUP(A343,'[1]Standardstruktur Anlagenmerkmal'!$C:$Z,3,FALSE)","v":454},"Elektroakustische Anlagen",{"$f":"IF(D343=\"\",\"00\",VLOOKUP(D343,'[1]Standardstruktur Anlagenmerkmal'!$F:$Z,2,FALSE))","v":"01"},"Elektroakustische Anlage",{"$f":"IF(F343=\"\",\"00\",VLOOKUP(F343,'[1]Standardstruktur Anlagenmerkmal'!$N:$O,2,FALSE))","v":"01"},null,{"$f":"IF(H343=\"\",\"000\",VLOOKUP(H343,'[1]Nummerierung Bauteil'!$A:$C,3,FALSE))","v":"000"},null,"00","Anzahl Lautsprecher > 100 bis 250 Stk.","02","Pauschal","454.01.01.000.00.02","nur offene Systeme; inkl. Sprechstelle und Verstärker",1.3607085346215786,767.86666666666667,620.99999999999977,845,1098.0493333333334]
[454,"Elektroakustische Anlagen",{"$f":"VLOOKUP(A344,'[1]Standardstruktur Anlagenmerkmal'!$C:$Z,3,FALSE)","v":454},"Elektroakustische Anlagen",{"$f":"IF(D344=\"\",\"00\",VLOOKUP(D344,'[1]Standardstruktur Anlagenmerkmal'!$F:$Z,2,FALSE))","v":"01"},"Elektroakustische Anlage",{"$f":"IF(F344=\"\",\"00\",VLOOKUP(F344,'[1]Standardstruktur Anlagenmerkmal'!$N:$O,2,FALSE))","v":"01"},null,{"$f":"IF(H344=\"\",\"000\",VLOOKUP(H344,'[1]Nummerierung Bauteil'!$A:$C,3,FALSE))","v":"000"},null,"00","Anzahl Lautsprecher > 250 bis 500 Stk.","03","Pauschal","454.01.01.000.00.03","nur offene Systeme; inkl. Sprechstelle und Verstärker",1.3830910828345824,1421.49,1192.98,1650,2032.7306999999998]
[454,"Elektroakustische Anlagen",{"$f":"VLOOKUP(A345,'[1]Standardstruktur Anlagenmerkmal'!$C:$Z,3,FALSE)","v":454},"Elektroakustische Anlagen",{"$f":"IF(D345=\"\",\"00\",VLOOKUP(D345,'[1]Standardstruktur Anlagenmerkmal'!$F:$Z,2,FALSE))","v":"01"},"Elektroakustische Anlage",{"$f":"IF(F345=\"\",\"00\",VLOOKUP(F345,'[1]Standardstruktur Anlagenmerkmal'!$N:$O,2,FALSE))","v":"01"},null,{"$f":"IF(H345=\"\",\"000\",VLOOKUP(H345,'[1]Nummerierung Bauteil'!$A:$C,3,FALSE))","v":"000"},null,"00","Anzahl Lautsprecher > 500 bis 750 Stk.","04","Pauschal","454.01.01.000.00.04","nur offene Systeme; inkl. Sprechstelle und Verstärker",1.5006220320358603,2582.9049999999997,2065.8099999999995,3100,3693.5541499999995]
[454,"Elektroakustische Anlagen",{"$f":"VLOOKUP(A346,'[1]Standardstruktur Anlagenmerkmal'!$C:$Z,3,FALSE)","v":454},"Elektroakustische Anlagen",{"$f":"IF(D346=\"\",\"00\",VLOOKUP(D346,'[1]Standardstruktur Anlagenmerkmal'!$F:$Z,2,FALSE))","v":"01"},"Elektroakustische Anlage",{"$f":"IF(F346=\"\",\"00\",VLOOKUP(F346,'[1]Standardstruktur Anlagenmerkmal'!$N:$O,2,FALSE))","v":"01"},null,{"$f":"IF(H346=\"\",\"000\",VLOOKUP(H346,'[1]Nummerierung Bauteil'!$A:$C,3,FALSE))","v":"000"},null,"00","Anzahl Lautsprecher > 750 bis 1000 Stk.","05","Pauschal","454.01.01.000.00.05","nur offene Systeme; inkl. Sprechstelle und Verstärker",1.3800275339363168,3215.56,2702.12,3729,4598.2507999999998]
[454,"Elektroakustische Anlagen",{"$f":"VLOOKUP(A347,'[1]Standardstruktur Anlagenmerkmal'!$C:$Z,3,FALSE)","v":454},"Beschallungsanlagen",{"$f":"IF(D347=\"\",\"00\",VLOOKUP(D347,'[1]Standardstruktur Anlagenmerkmal'!$F:$Z,2,FALSE))","v":"02"},"Beschallungsanlage",{"$f":"IF(F347=\"\",\"00\",VLOOKUP(F347,'[1]Standardstruktur Anlagenmerkmal'!$N:$O,2,FALSE))","v":"01"},null,{"$f":"IF(H347=\"\",\"000\",VLOOKUP(H347,'[1]Nummerierung Bauteil'!$A:$C,3,FALSE))","v":"000"},null,"00",null,"00","Anzahl","454.02.01.000.00.00","nur offene Systeme",3.1487617680468807,349.5351872438759,147.53736046793978,464.56,499.83531775874252]
[454,"Elektroakustische Anlagen",{"$f":"VLOOKUP(A348,'[1]Standardstruktur Anlagenmerkmal'!$C:$Z,3,FALSE)","v":454},"Beschallungsanlagen",{"$f":"IF(D348=\"\",\"00\",VLOOKUP(D348,'[1]Standardstruktur Anlagenmerkmal'!$F:$Z,2,FALSE))","v":"02"},"Beschallungsanlage",{"$f":"IF(F348=\"\",\"00\",VLOOKUP(F348,'[1]Standardstruktur Anlagenmerkmal'!$N:$O,2,FALSE))","v":"01"},null,{"$f":"IF(H348=\"\",\"000\",VLOOKUP(H348,'[1]Nummerierung Bauteil'!$A:$C,3,FALSE))","v":"000"},"Lautsprecher   ","01",null,"00","Anzahl","454.02.01.000.01.00","nur offene Systeme","kein Benchmark",null,null,null,0]
[454,"Elektroakustische Anlagen",{"$f":"VLOOKUP(A349,'[1]Standardstruktur Anlagenmerkmal'!$C:$Z,3,FALSE)","v":454},"Beschallungsanlagen",{"$f":"IF(D349=\"\",\"00\",VLOOKUP(D349,'[1]Standardstruktur Anlagenmerkmal'!$F:$Z,2,FALSE))","v":"02"},"Beschallungsanlage",{"$f":"IF(F349=\"\",\"00\",VLOOKUP(F349,'[1]Standardstruktur Anlagenmerkmal'!$N:$O,2,FALSE))","v":"01"},null,{"$f":"IF(H349=\"\",\"000\",VLOOKUP(H349,'[1]Nummerierung Bauteil'!$A:$C,3,FALSE))","v":"000"},"Verstärker","02",null,"00","Anzahl","454.02.01.000.02.00","nur offene Systeme","kein Benchmark",null,null,null,0]
[455,"Audiovisuelle Medien- und Antennenanlagen",{"$f":"VLOOKUP(A350,'[1]Standardstruktur Anlagenmerkmal'!$C:$Z,3,FALSE)","v":455},"Antennenanlagen",{"$f":"IF(D350=\"\",\"00\",VLOOKUP(D350,'[1]Standardstruktur Anlagenmerkmal'!$F:$Z,2,FALSE))","v":"01"},"Antennenanlage (Stabanntenne, Parabolspiegelantenne)",{"$f":"IF(F350=\"\",\"00\",VLOOKUP(F350,'[1]Standardstruktur Anlagenmerkmal'!$N:$O,2,FALSE))","v":"01"},null,{"$f":"IF(H350=\"\",\"000\",VLOOKUP(H350,'[1]Nummerierung Bauteil'!$A:$C,3,FALSE))","v":"000"},null,"00","kraftbetrieben","01","Anzahl","455.01.01.000.00.01",null,2.4071260377991908,55.288506641301829,34.065519923905484,82,79.062564497061615]
[455,"Audiovisuelle Medien- und Antennenanlagen",{"$f":"VLOOKUP(A351,'[1]Standardstruktur Anlagenmerkmal'!$C:$Z,3,FALSE)","v":455},"Antennenanlagen",{"$f":"IF(D351=\"\",\"00\",VLOOKUP(D351,'[1]Standardstruktur Anlagenmerkmal'!$F:$Z,2,FALSE))","v":"01"},"Antennenanlage (Stabanntenne, Parabolspiegelantenne)",{"$f":"IF(F351=\"\",\"00\",VLOOKUP(F351,'[1]Standardstruktur Anlagenmerkmal'!$N:$O,2,FALSE))","v":"01"},null,{"$f":"IF(H351=\"\",\"000\",VLOOKUP(H351,'[1]Nummerierung Bauteil'!$A:$C,3,FALSE))","v":"000"},null,"00","nicht kraftbetrieben","02","Anzahl","455.01.01.000.00.02",null,"kein Benchmark",null,null,null,0]
[455,"Audiovisuelle Medien- und Antennenanlagen",{"$f":"VLOOKUP(A352,'[1]Standardstruktur Anlagenmerkmal'!$C:$Z,3,FALSE)","v":455},"Antennenanlagen",{"$f":"IF(D352=\"\",\"00\",VLOOKUP(D352,'[1]Standardstruktur Anlagenmerkmal'!$F:$Z,2,FALSE))","v":"01"},"Antennenanlage (Stabanntenne, Parabolspiegelantenne)",{"$f":"IF(F352=\"\",\"00\",VLOOKUP(F352,'[1]Standardstruktur Anlagenmerkmal'!$N:$O,2,FALSE))","v":"01"},null,{"$f":"IF(H352=\"\",\"000\",VLOOKUP(H352,'[1]Nummerierung Bauteil'!$A:$C,3,FALSE))","v":"000"},"Anzahl Verstärker","01",null,"00","Anzahl","455.01.01.000.01.00",null,"kein Benchmark",null,null,null,0]
[455,"Audiovisuelle Medien- und Antennenanlagen",{"$f":"VLOOKUP(A353,'[1]Standardstruktur Anlagenmerkmal'!$C:$Z,3,FALSE)","v":455},"Antennenanlagen",{"$f":"IF(D353=\"\",\"00\",VLOOKUP(D353,'[1]Standardstruktur Anlagenmerkmal'!$F:$Z,2,FALSE))","v":"01"},"Antennenanlage (Stabanntenne, Parabolspiegelantenne)",{"$f":"IF(F353=\"\",\"00\",VLOOKUP(F353,'[1]Standardstruktur Anlagenmerkmal'!$N:$O,2,FALSE))","v":"01"},null,{"$f":"IF(H353=\"\",\"000\",VLOOKUP(H353,'[1]Nummerierung Bauteil'!$A:$C,3,FALSE))","v":"000"},"Anzahl Verteiler/Dosen","02",null,"00","Anzahl","455.01.01.000.02.00",null,2.7422480620155043,9.2876310831799884,3.8699999999999997,10.612500000000001,13.281312448947382]
[455,"Audiovisuelle Medien- und Antennenanlagen",{"$f":"VLOOKUP(A354,'[1]Standardstruktur Anlagenmerkmal'!$C:$Z,3,FALSE)","v":455},"Medienanlagen",{"$f":"IF(D354=\"\",\"00\",VLOOKUP(D354,'[1]Standardstruktur Anlagenmerkmal'!$F:$Z,2,FALSE))","v":"02"},"Medientechnik",{"$f":"IF(F354=\"\",\"00\",VLOOKUP(F354,'[1]Standardstruktur Anlagenmerkmal'!$N:$O,2,FALSE))","v":"01"},null,{"$f":"IF(H354=\"\",\"000\",VLOOKUP(H354,'[1]Nummerierung Bauteil'!$A:$C,3,FALSE))","v":"000"},null,"00",null,"00","kein EP","455.02.01.000.00.00",null,"kein Einheitspreis",null,null,null,0]
[455,"Audiovisuelle Medien- und Antennenanlagen",{"$f":"VLOOKUP(A355,'[1]Standardstruktur Anlagenmerkmal'!$C:$Z,3,FALSE)","v":455},"Medienanlagen",{"$f":"IF(D355=\"\",\"00\",VLOOKUP(D355,'[1]Standardstruktur Anlagenmerkmal'!$F:$Z,2,FALSE))","v":"02"},"Konferenz- und Dolmetscheranlage",{"$f":"IF(F355=\"\",\"00\",VLOOKUP(F355,'[1]Standardstruktur Anlagenmerkmal'!$N:$O,2,FALSE))","v":"02"},null,{"$f":"IF(H355=\"\",\"000\",VLOOKUP(H355,'[1]Nummerierung Bauteil'!$A:$C,3,FALSE))","v":"000"},null,"00",null,"00","kein EP","455.02.02.000.00.00",null,"kein Einheitspreis",null,null,null,0]
[456,"Gefahrenmelde- und Alarmanlagen",{"$f":"VLOOKUP(A356,'[1]Standardstruktur Anlagenmerkmal'!$C:$Z,3,FALSE)","v":456},"Brandmeldeanlagen",{"$f":"IF(D356=\"\",\"00\",VLOOKUP(D356,'[1]Standardstruktur Anlagenmerkmal'!$F:$Z,2,FALSE))","v":"01"},"Brandmeldeanlage",{"$f":"IF(F356=\"\",\"00\",VLOOKUP(F356,'[1]Standardstruktur Anlagenmerkmal'!$N:$O,2,FALSE))","v":"01"},null,{"$f":"IF(H356=\"\",\"000\",VLOOKUP(H356,'[1]Nummerierung Bauteil'!$A:$C,3,FALSE))","v":"000"},null,"00",null,"00","Anzahl","456.01.01.000.00.00","nur offene Systeme","kein Benchmark",null,null,null,0]
[456,"Gefahrenmelde- und Alarmanlagen",{"$f":"VLOOKUP(A357,'[1]Standardstruktur Anlagenmerkmal'!$C:$Z,3,FALSE)","v":456},"Brandmeldeanlagen",{"$f":"IF(D357=\"\",\"00\",VLOOKUP(D357,'[1]Standardstruktur Anlagenmerkmal'!$F:$Z,2,FALSE))","v":"01"},"Brandmeldeanlage",{"$f":"IF(F357=\"\",\"00\",VLOOKUP(F357,'[1]Standardstruktur Anlagenmerkmal'!$N:$O,2,FALSE))","v":"01"},"Unterzentralen ",{"$f":"IF(H357=\"\",\"000\",VLOOKUP(H357,'[1]Nummerierung Bauteil'!$A:$C,3,FALSE))","v":"001"},"Anzahl Unterzentralen","01",null,"00","Anzahl","456.01.01.001.01.00","nur offene Systeme","kein Benchmark",null,null,null,0]
[456,"Gefahrenmelde- und Alarmanlagen",{"$f":"VLOOKUP(A358,'[1]Standardstruktur Anlagenmerkmal'!$C:$Z,3,FALSE)","v":456},"Brandmeldeanlagen",{"$f":"IF(D358=\"\",\"00\",VLOOKUP(D358,'[1]Standardstruktur Anlagenmerkmal'!$F:$Z,2,FALSE))","v":"01"},"Brandmeldeanlage",{"$f":"IF(F358=\"\",\"00\",VLOOKUP(F358,'[1]Standardstruktur Anlagenmerkmal'!$N:$O,2,FALSE))","v":"01"},"Signalgeber",{"$f":"IF(H358=\"\",\"000\",VLOOKUP(H358,'[1]Nummerierung Bauteil'!$A:$C,3,FALSE))","v":"202"},"optisch","01",null,"00","Anzahl","456.01.01.202.01.00","nur offene Systeme","kein Benchmark",null,null,null,0]
[456,"Gefahrenmelde- und Alarmanlagen",{"$f":"VLOOKUP(A359,'[1]Standardstruktur Anlagenmerkmal'!$C:$Z,3,FALSE)","v":456},"Brandmeldeanlagen",{"$f":"IF(D359=\"\",\"00\",VLOOKUP(D359,'[1]Standardstruktur Anlagenmerkmal'!$F:$Z,2,FALSE))","v":"01"},"Brandmeldeanlage",{"$f":"IF(F359=\"\",\"00\",VLOOKUP(F359,'[1]Standardstruktur Anlagenmerkmal'!$N:$O,2,FALSE))","v":"01"},"Signalgeber",{"$f":"IF(H359=\"\",\"000\",VLOOKUP(H359,'[1]Nummerierung Bauteil'!$A:$C,3,FALSE))","v":"202"},"akustisch","02",null,"00","Anzahl","456.01.01.202.02.00","nur offene Systeme","kein Benchmark",null,null,null,0]
[456,"Gefahrenmelde- und Alarmanlagen",{"$f":"VLOOKUP(A360,'[1]Standardstruktur Anlagenmerkmal'!$C:$Z,3,FALSE)","v":456},"Brandmeldeanlagen",{"$f":"IF(D360=\"\",\"00\",VLOOKUP(D360,'[1]Standardstruktur Anlagenmerkmal'!$F:$Z,2,FALSE))","v":"01"},"Brandmeldeanlage",{"$f":"IF(F360=\"\",\"00\",VLOOKUP(F360,'[1]Standardstruktur Anlagenmerkmal'!$N:$O,2,FALSE))","v":"01"},"Druckknopfmelder",{"$f":"IF(H360=\"\",\"000\",VLOOKUP(H360,'[1]Nummerierung Bauteil'!$A:$C,3,FALSE))","v":"132"},null,"00",null,"00","Anzahl","456.01.01.132.00.00","nur offene Systeme","kein Benchmark",null,null,null,0]
[456,"Gefahrenmelde- und Alarmanlagen",{"$f":"VLOOKUP(A361,'[1]Standardstruktur Anlagenmerkmal'!$C:$Z,3,FALSE)","v":456},"Brandmeldeanlagen",{"$f":"IF(D361=\"\",\"00\",VLOOKUP(D361,'[1]Standardstruktur Anlagenmerkmal'!$F:$Z,2,FALSE))","v":"01"},"Brandmeldeanlage",{"$f":"IF(F361=\"\",\"00\",VLOOKUP(F361,'[1]Standardstruktur Anlagenmerkmal'!$N:$O,2,FALSE))","v":"01"},"Rauchmelder",{"$f":"IF(H361=\"\",\"000\",VLOOKUP(H361,'[1]Nummerierung Bauteil'!$A:$C,3,FALSE))","v":"189"},"Ionisationsrauschmelder","01",null,"00","Anzahl","456.01.01.189.01.00","nur offene Systeme","kein Benchmark",null,null,null,0]
[456,"Gefahrenmelde- und Alarmanlagen",{"$f":"VLOOKUP(A362,'[1]Standardstruktur Anlagenmerkmal'!$C:$Z,3,FALSE)","v":456},"Brandmeldeanlagen",{"$f":"IF(D362=\"\",\"00\",VLOOKUP(D362,'[1]Standardstruktur Anlagenmerkmal'!$F:$Z,2,FALSE))","v":"01"},"Brandmeldeanlage",{"$f":"IF(F362=\"\",\"00\",VLOOKUP(F362,'[1]Standardstruktur Anlagenmerkmal'!$N:$O,2,FALSE))","v":"01"},"Rauchmelder",{"$f":"IF(H362=\"\",\"000\",VLOOKUP(H362,'[1]Nummerierung Bauteil'!$A:$C,3,FALSE))","v":"189"},"optische Rauchmelder","02",null,"00","Anzahl","456.01.01.189.02.00","nur offene Systeme","kein Benchmark",null,null,null,0]
[456,"Gefahrenmelde- und Alarmanlagen",{"$f":"VLOOKUP(A363,'[1]Standardstruktur Anlagenmerkmal'!$C:$Z,3,FALSE)","v":456},"Brandmeldeanlagen",{"$f":"IF(D363=\"\",\"00\",VLOOKUP(D363,'[1]Standardstruktur Anlagenmerkmal'!$F:$Z,2,FALSE))","v":"01"},"Brandmeldeanlage",{"$f":"IF(F363=\"\",\"00\",VLOOKUP(F363,'[1]Standardstruktur Anlagenmerkmal'!$N:$O,2,FALSE))","v":"01"},"Rauchmelder",{"$f":"IF(H363=\"\",\"000\",VLOOKUP(H363,'[1]Nummerierung Bauteil'!$A:$C,3,FALSE))","v":"189"},"Mehrkriterienmelder","03",null,"00","Anzahl","456.01.01.189.03.00","nur offene Systeme","kein Benchmark",null,null,null,0]
[456,"Gefahrenmelde- und Alarmanlagen",{"$f":"VLOOKUP(A364,'[1]Standardstruktur Anlagenmerkmal'!$C:$Z,3,FALSE)","v":456},"Brandmeldeanlagen",{"$f":"IF(D364=\"\",\"00\",VLOOKUP(D364,'[1]Standardstruktur Anlagenmerkmal'!$F:$Z,2,FALSE))","v":"01"},"Brandmeldeanlage",{"$f":"IF(F364=\"\",\"00\",VLOOKUP(F364,'[1]Standardstruktur Anlagenmerkmal'!$N:$O,2,FALSE))","v":"01"},"Rauchmelder",{"$f":"IF(H364=\"\",\"000\",VLOOKUP(H364,'[1]Nummerierung Bauteil'!$A:$C,3,FALSE))","v":"189"},"Thermodifferentialmelder","04",null,"00","Anzahl","456.01.01.189.04.00","nur offene Systeme","kein Benchmark",null,null,null,0]
[456,"Gefahrenmelde- und Alarmanlagen",{"$f":"VLOOKUP(A365,'[1]Standardstruktur Anlagenmerkmal'!$C:$Z,3,FALSE)","v":456},"Brandmeldeanlagen",{"$f":"IF(D365=\"\",\"00\",VLOOKUP(D365,'[1]Standardstruktur Anlagenmerkmal'!$F:$Z,2,FALSE))","v":"01"},"Brandmeldeanlage",{"$f":"IF(F365=\"\",\"00\",VLOOKUP(F365,'[1]Standardstruktur Anlagenmerkmal'!$N:$O,2,FALSE))","v":"01"},"Wärmemelder",{"$f":"IF(H365=\"\",\"000\",VLOOKUP(H365,'[1]Nummerierung Bauteil'!$A:$C,3,FALSE))","v":"224"},"Mehrkriterienmelder","01",null,"00","Anzahl","456.01.01.224.01.00","nur offene Systeme","kein Benchmark",null,null,null,0]
[456,"Gefahrenmelde- und Alarmanlagen",{"$f":"VLOOKUP(A366,'[1]Standardstruktur Anlagenmerkmal'!$C:$Z,3,FALSE)","v":456},"Brandmeldeanlagen",{"$f":"IF(D366=\"\",\"00\",VLOOKUP(D366,'[1]Standardstruktur Anlagenmerkmal'!$F:$Z,2,FALSE))","v":"01"},"Brandmeldeanlage",{"$f":"IF(F366=\"\",\"00\",VLOOKUP(F366,'[1]Standardstruktur Anlagenmerkmal'!$N:$O,2,FALSE))","v":"01"},"Wärmemelder",{"$f":"IF(H366=\"\",\"000\",VLOOKUP(H366,'[1]Nummerierung Bauteil'!$A:$C,3,FALSE))","v":"224"},"Thermodifferentialmelder","02",null,"00","Anzahl","456.01.01.224.02.00","nur offene Systeme","kein Benchmark",null,null,null,0]
[456,"Gefahrenmelde- und Alarmanlagen",{"$f":"VLOOKUP(A367,'[1]Standardstruktur Anlagenmerkmal'!$C:$Z,3,FALSE)","v":456},"Brandmeldeanlagen",{"$f":"IF(D367=\"\",\"00\",VLOOKUP(D367,'[1]Standardstruktur Anlagenmerkmal'!$F:$Z,2,FALSE))","v":"01"},"Brandmeldeanlage",{"$f":"IF(F367=\"\",\"00\",VLOOKUP(F367,'[1]Standardstruktur Anlagenmerkmal'!$N:$O,2,FALSE))","v":"01"},"Wärmemelder",{"$f":"IF(H367=\"\",\"000\",VLOOKUP(H367,'[1]Nummerierung Bauteil'!$A:$C,3,FALSE))","v":"224"},"Linienwärmemelder","03",null,"00","Anzahl","456.01.01.224.03.00","nur offene Systeme","kein Benchmark",null,null,null,0]
[456,"Gefahrenmelde- und Alarmanlagen",{"$f":"VLOOKUP(A368,'[1]Standardstruktur Anlagenmerkmal'!$C:$Z,3,FALSE)","v":456},"Brandmeldeanlagen",{"$f":"IF(D368=\"\",\"00\",VLOOKUP(D368,'[1]Standardstruktur Anlagenmerkmal'!$F:$Z,2,FALSE))","v":"01"},"Brandmeldeanlage",{"$f":"IF(F368=\"\",\"00\",VLOOKUP(F368,'[1]Standardstruktur Anlagenmerkmal'!$N:$O,2,FALSE))","v":"01"},"RAS",{"$f":"IF(H368=\"\",\"000\",VLOOKUP(H368,'[1]Nummerierung Bauteil'!$A:$C,3,FALSE))","v":"188"},"Anzahl Auswerteeinheiten RAS","01",null,"00","Anzahl","456.01.01.188.01.00","nur offene Systeme","kein Benchmark",null,null,null,0]
[456,"Gefahrenmelde- und Alarmanlagen",{"$f":"VLOOKUP(A369,'[1]Standardstruktur Anlagenmerkmal'!$C:$Z,3,FALSE)","v":456},"Überfallmeldeanlagen",{"$f":"IF(D369=\"\",\"00\",VLOOKUP(D369,'[1]Standardstruktur Anlagenmerkmal'!$F:$Z,2,FALSE))","v":"02"},"Überfallmeldeanlage",{"$f":"IF(F369=\"\",\"00\",VLOOKUP(F369,'[1]Standardstruktur Anlagenmerkmal'!$N:$O,2,FALSE))","v":"01"},null,{"$f":"IF(H369=\"\",\"000\",VLOOKUP(H369,'[1]Nummerierung Bauteil'!$A:$C,3,FALSE))","v":"000"},null,"00",null,"00","Anzahl","456.02.01.000.00.00","nur offene Systeme","kein Benchmark",null,null,null,0]
[456,"Gefahrenmelde- und Alarmanlagen",{"$f":"VLOOKUP(A370,'[1]Standardstruktur Anlagenmerkmal'!$C:$Z,3,FALSE)","v":456},"Überfallmeldeanlagen",{"$f":"IF(D370=\"\",\"00\",VLOOKUP(D370,'[1]Standardstruktur Anlagenmerkmal'!$F:$Z,2,FALSE))","v":"02"},"Überfallmeldeanlage",{"$f":"IF(F370=\"\",\"00\",VLOOKUP(F370,'[1]Standardstruktur Anlagenmerkmal'!$N:$O,2,FALSE))","v":"01"},null,{"$f":"IF(H370=\"\",\"000\",VLOOKUP(H370,'[1]Nummerierung Bauteil'!$A:$C,3,FALSE))","v":"000"},"Anzahl Melder","01",null,"00","Anzahl","456.02.01.000.01.00","nur offene Systeme","kein Benchmark",null,null,null,0]
[456,"Gefahrenmelde- und Alarmanlagen",{"$f":"VLOOKUP(A371,'[1]Standardstruktur Anlagenmerkmal'!$C:$Z,3,FALSE)","v":456},"Überfallmeldeanlagen",{"$f":"IF(D371=\"\",\"00\",VLOOKUP(D371,'[1]Standardstruktur Anlagenmerkmal'!$F:$Z,2,FALSE))","v":"02"},"Überfallmeldeanlage",{"$f":"IF(F371=\"\",\"00\",VLOOKUP(F371,'[1]Standardstruktur Anlagenmerkmal'!$N:$O,2,FALSE))","v":"01"},null,{"$f":"IF(H371=\"\",\"000\",VLOOKUP(H371,'[1]Nummerierung Bauteil'!$A:$C,3,FALSE))","v":"000"},"Anzahl Überfallmeldelinien","02",null,"00","Anzahl","456.02.01.000.02.00","nur offene Systeme","kein Benchmark",null,null,null,0]
[456,"Gefahrenmelde- und Alarmanlagen",{"$f":"VLOOKUP(A372,'[1]Standardstruktur Anlagenmerkmal'!$C:$Z,3,FALSE)","v":456},"Einbruchmeldeanlagen",{"$f":"IF(D372=\"\",\"00\",VLOOKUP(D372,'[1]Standardstruktur Anlagenmerkmal'!$F:$Z,2,FALSE))","v":"03"},"Einbruchmeldeanlage",{"$f":"IF(F372=\"\",\"00\",VLOOKUP(F372,'[1]Standardstruktur Anlagenmerkmal'!$N:$O,2,FALSE))","v":"01"},null,{"$f":"IF(H372=\"\",\"000\",VLOOKUP(H372,'[1]Nummerierung Bauteil'!$A:$C,3,FALSE))","v":"000"},null,"00","Anzahl Auslöser <25","01","Anzahl","456.03.01.000.00.01","nur offene Systeme","kein Benchmark",null,null,null,0]
[456,"Gefahrenmelde- und Alarmanlagen",{"$f":"VLOOKUP(A373,'[1]Standardstruktur Anlagenmerkmal'!$C:$Z,3,FALSE)","v":456},"Einbruchmeldeanlagen",{"$f":"IF(D373=\"\",\"00\",VLOOKUP(D373,'[1]Standardstruktur Anlagenmerkmal'!$F:$Z,2,FALSE))","v":"03"},"Einbruchmeldeanlage",{"$f":"IF(F373=\"\",\"00\",VLOOKUP(F373,'[1]Standardstruktur Anlagenmerkmal'!$N:$O,2,FALSE))","v":"01"},null,{"$f":"IF(H373=\"\",\"000\",VLOOKUP(H373,'[1]Nummerierung Bauteil'!$A:$C,3,FALSE))","v":"000"},null,"00","Anzahl Auslöser >25 bis >50","02","Anzahl","456.03.01.000.00.02","nur offene Systeme","kein Benchmark",null,null,null,0]
[456,"Gefahrenmelde- und Alarmanlagen",{"$f":"VLOOKUP(A374,'[1]Standardstruktur Anlagenmerkmal'!$C:$Z,3,FALSE)","v":456},"Einbruchmeldeanlagen",{"$f":"IF(D374=\"\",\"00\",VLOOKUP(D374,'[1]Standardstruktur Anlagenmerkmal'!$F:$Z,2,FALSE))","v":"03"},"Einbruchmeldeanlage",{"$f":"IF(F374=\"\",\"00\",VLOOKUP(F374,'[1]Standardstruktur Anlagenmerkmal'!$N:$O,2,FALSE))","v":"01"},null,{"$f":"IF(H374=\"\",\"000\",VLOOKUP(H374,'[1]Nummerierung Bauteil'!$A:$C,3,FALSE))","v":"000"},null,"00","Anzahl Auslöser >50 bis >100","03","Anzahl","456.03.01.000.00.03","nur offene Systeme","kein Benchmark",null,null,null,0]
[456,"Gefahrenmelde- und Alarmanlagen",{"$f":"VLOOKUP(A375,'[1]Standardstruktur Anlagenmerkmal'!$C:$Z,3,FALSE)","v":456},"Gas-Warnanlagen",{"$f":"IF(D375=\"\",\"00\",VLOOKUP(D375,'[1]Standardstruktur Anlagenmerkmal'!$F:$Z,2,FALSE))","v":"04"},"Gas-Warnanlage",{"$f":"IF(F375=\"\",\"00\",VLOOKUP(F375,'[1]Standardstruktur Anlagenmerkmal'!$N:$O,2,FALSE))","v":"01"},null,{"$f":"IF(H375=\"\",\"000\",VLOOKUP(H375,'[1]Nummerierung Bauteil'!$A:$C,3,FALSE))","v":"000"},"Art des Gases = CO","01","VdS-Zulassung = ja","01","Anzahl","456.04.01.000.01.01","Preis für eine CO-Warnanlage, es werden keine Spezialanlagen in diesem EP Betrachtet",1.5097963745616134,670.70543415597285,534.47,806.94086831194556,959.10877084304116]
[456,"Gefahrenmelde- und Alarmanlagen",{"$f":"VLOOKUP(A376,'[1]Standardstruktur Anlagenmerkmal'!$C:$Z,3,FALSE)","v":456},"Gas-Warnanlagen",{"$f":"IF(D376=\"\",\"00\",VLOOKUP(D376,'[1]Standardstruktur Anlagenmerkmal'!$F:$Z,2,FALSE))","v":"04"},"Gas-Warnanlage",{"$f":"IF(F376=\"\",\"00\",VLOOKUP(F376,'[1]Standardstruktur Anlagenmerkmal'!$N:$O,2,FALSE))","v":"01"},null,{"$f":"IF(H376=\"\",\"000\",VLOOKUP(H376,'[1]Nummerierung Bauteil'!$A:$C,3,FALSE))","v":"000"},"Art des Gases = CO","01","VdS-Zulassung = nein","02","Anzahl","456.04.01.000.01.02","Preis für eine CO-Warnanlage, es werden keine Spezialanlagen in diesem EP Betrachtet",1.1620562030618111,577.77708942522304,534.47,621.08417885044616,826.22123787806891]
[456,"Gefahrenmelde- und Alarmanlagen",{"$f":"VLOOKUP(A377,'[1]Standardstruktur Anlagenmerkmal'!$C:$Z,3,FALSE)","v":456},"Gas-Warnanlagen",{"$f":"IF(D377=\"\",\"00\",VLOOKUP(D377,'[1]Standardstruktur Anlagenmerkmal'!$F:$Z,2,FALSE))","v":"04"},"Gas-Warnanlage",{"$f":"IF(F377=\"\",\"00\",VLOOKUP(F377,'[1]Standardstruktur Anlagenmerkmal'!$N:$O,2,FALSE))","v":"01"},null,{"$f":"IF(H377=\"\",\"000\",VLOOKUP(H377,'[1]Nummerierung Bauteil'!$A:$C,3,FALSE))","v":"000"},"Anzahl Sensoren","02",null,"00","Anzahl","456.04.01.000.02.00","Preis für eine CO-Warnanlage, es werden keine Spezialanlagen in diesem EP Betrachtet",1.8883792625927045,28.364500618537612,18.013166190074905,34.015689486973486,40.561235884508783]
[456,"Gefahrenmelde- und Alarmanlagen",{"$f":"VLOOKUP(A378,'[1]Standardstruktur Anlagenmerkmal'!$C:$Z,3,FALSE)","v":456},"Gas-Warnanlagen",{"$f":"IF(D378=\"\",\"00\",VLOOKUP(D378,'[1]Standardstruktur Anlagenmerkmal'!$F:$Z,2,FALSE))","v":"04"},"Gas-Warnanlage",{"$f":"IF(F378=\"\",\"00\",VLOOKUP(F378,'[1]Standardstruktur Anlagenmerkmal'!$N:$O,2,FALSE))","v":"01"},"Unterzentralen ",{"$f":"IF(H378=\"\",\"000\",VLOOKUP(H378,'[1]Nummerierung Bauteil'!$A:$C,3,FALSE))","v":"001"},null,"00",null,"00","Anzahl","456.04.01.001.00.00","Preis für eine CO-Warnanlage, es werden keine Spezialanlagen in diesem EP Betrachtet","kein Benchmark",null,null,null,0]
[456,"Gefahrenmelde- und Alarmanlagen",{"$f":"VLOOKUP(A379,'[1]Standardstruktur Anlagenmerkmal'!$C:$Z,3,FALSE)","v":456},"Leckagewarnanlagen",{"$f":"IF(D379=\"\",\"00\",VLOOKUP(D379,'[1]Standardstruktur Anlagenmerkmal'!$F:$Z,2,FALSE))","v":"05"},"Leckagewarnanlage",{"$f":"IF(F379=\"\",\"00\",VLOOKUP(F379,'[1]Standardstruktur Anlagenmerkmal'!$N:$O,2,FALSE))","v":"01"},null,{"$f":"IF(H379=\"\",\"000\",VLOOKUP(H379,'[1]Nummerierung Bauteil'!$A:$C,3,FALSE))","v":"000"},null,"00",null,"00","Anzahl","456.05.01.000.00.00",null,2.0517830843677674,568.03257116082693,380.24,780.17,812.28657675998249]
[456,"Gefahrenmelde- und Alarmanlagen",{"$f":"VLOOKUP(A380,'[1]Standardstruktur Anlagenmerkmal'!$C:$Z,3,FALSE)","v":456},"Leckagewarnanlagen",{"$f":"IF(D380=\"\",\"00\",VLOOKUP(D380,'[1]Standardstruktur Anlagenmerkmal'!$F:$Z,2,FALSE))","v":"05"},"Leckagewarnanlage",{"$f":"IF(F380=\"\",\"00\",VLOOKUP(F380,'[1]Standardstruktur Anlagenmerkmal'!$N:$O,2,FALSE))","v":"01"},null,{"$f":"IF(H380=\"\",\"000\",VLOOKUP(H380,'[1]Nummerierung Bauteil'!$A:$C,3,FALSE))","v":"000"},"Anzahl Sensoren","01",null,"00","Anzahl","456.05.01.000.01.00",null,5.8703735647614774,97.784112049676452,23.25,136.48618538070434,139.83128023103731]
[456,"Gefahrenmelde- und Alarmanlagen",{"$f":"VLOOKUP(A381,'[1]Standardstruktur Anlagenmerkmal'!$C:$Z,3,FALSE)","v":456},"Zugangskontrollanlagen",{"$f":"IF(D381=\"\",\"00\",VLOOKUP(D381,'[1]Standardstruktur Anlagenmerkmal'!$F:$Z,2,FALSE))","v":"06"},"Zugangskontrollanlage",{"$f":"IF(F381=\"\",\"00\",VLOOKUP(F381,'[1]Standardstruktur Anlagenmerkmal'!$N:$O,2,FALSE))","v":"01"},null,{"$f":"IF(H381=\"\",\"000\",VLOOKUP(H381,'[1]Nummerierung Bauteil'!$A:$C,3,FALSE))","v":"000"},null,"00",null,"00","Anzahl","456.06.01.000.00.00",null,2.4751891850929404,234.38413458859335,134.88999999999999,333.87826917718672,335.16931246168849]
[456,"Gefahrenmelde- und Alarmanlagen",{"$f":"VLOOKUP(A382,'[1]Standardstruktur Anlagenmerkmal'!$C:$Z,3,FALSE)","v":456},"Zugangskontrollanlagen",{"$f":"IF(D382=\"\",\"00\",VLOOKUP(D382,'[1]Standardstruktur Anlagenmerkmal'!$F:$Z,2,FALSE))","v":"06"},"Zugangskontrollanlage",{"$f":"IF(F382=\"\",\"00\",VLOOKUP(F382,'[1]Standardstruktur Anlagenmerkmal'!$N:$O,2,FALSE))","v":"01"},null,{"$f":"IF(H382=\"\",\"000\",VLOOKUP(H382,'[1]Nummerierung Bauteil'!$A:$C,3,FALSE))","v":"000"},"Anzahl Leseeinheiten","01",null,"00","Anzahl","456.06.01.000.01.00",null,2.2816479400749063,28.942576308179195,16.6875,38.075000000000003,41.387884120696249]
[456,"Gefahrenmelde- und Alarmanlagen",{"$f":"VLOOKUP(A383,'[1]Standardstruktur Anlagenmerkmal'!$C:$Z,3,FALSE)","v":456},"Zugangskontrollanlagen",{"$f":"IF(D383=\"\",\"00\",VLOOKUP(D383,'[1]Standardstruktur Anlagenmerkmal'!$F:$Z,2,FALSE))","v":"06"},"Zugangskontrollanlage",{"$f":"IF(F383=\"\",\"00\",VLOOKUP(F383,'[1]Standardstruktur Anlagenmerkmal'!$N:$O,2,FALSE))","v":"01"},null,{"$f":"IF(H383=\"\",\"000\",VLOOKUP(H383,'[1]Nummerierung Bauteil'!$A:$C,3,FALSE))","v":"000"},"Anzahl Batterien / Akkus (Transponder, Leseeinheit)","02",null,"00","Anzahl","456.06.01.000.02.00",null,"kein Benchmark",null,null,null,0]
[456,"Gefahrenmelde- und Alarmanlagen",{"$f":"VLOOKUP(A384,'[1]Standardstruktur Anlagenmerkmal'!$C:$Z,3,FALSE)","v":456},"Überwachungsanlagen im privaten und öffentlichen Raum",{"$f":"IF(D384=\"\",\"00\",VLOOKUP(D384,'[1]Standardstruktur Anlagenmerkmal'!$F:$Z,2,FALSE))","v":"07"},"Videoüberwachungsanlage",{"$f":"IF(F384=\"\",\"00\",VLOOKUP(F384,'[1]Standardstruktur Anlagenmerkmal'!$N:$O,2,FALSE))","v":"01"},null,{"$f":"IF(H384=\"\",\"000\",VLOOKUP(H384,'[1]Nummerierung Bauteil'!$A:$C,3,FALSE))","v":"000"},"VdS-Klasse A inkl. Peripherie und Monitor","01",null,"00","Anzahl","456.07.01.000.01.00","nur offene Systeme",1.1346811866349593,608.41615840876284,570.03,646.80231681752582,870.03510652453087]
[456,"Gefahrenmelde- und Alarmanlagen",{"$f":"VLOOKUP(A385,'[1]Standardstruktur Anlagenmerkmal'!$C:$Z,3,FALSE)","v":456},"Überwachungsanlagen im privaten und öffentlichen Raum",{"$f":"IF(D385=\"\",\"00\",VLOOKUP(D385,'[1]Standardstruktur Anlagenmerkmal'!$F:$Z,2,FALSE))","v":"07"},"Videoüberwachungsanlage",{"$f":"IF(F385=\"\",\"00\",VLOOKUP(F385,'[1]Standardstruktur Anlagenmerkmal'!$N:$O,2,FALSE))","v":"01"},null,{"$f":"IF(H385=\"\",\"000\",VLOOKUP(H385,'[1]Nummerierung Bauteil'!$A:$C,3,FALSE))","v":"000"},"VdS-Klasse B inkl. Peripherie und Monitor","02",null,"00","Anzahl","456.07.01.000.02.00","nur offene Systeme","kein Benchmark",null,null,null,0]
[456,"Gefahrenmelde- und Alarmanlagen",{"$f":"VLOOKUP(A386,'[1]Standardstruktur Anlagenmerkmal'!$C:$Z,3,FALSE)","v":456},"Überwachungsanlagen im privaten und öffentlichen Raum",{"$f":"IF(D386=\"\",\"00\",VLOOKUP(D386,'[1]Standardstruktur Anlagenmerkmal'!$F:$Z,2,FALSE))","v":"07"},"Videoüberwachungsanlage",{"$f":"IF(F386=\"\",\"00\",VLOOKUP(F386,'[1]Standardstruktur Anlagenmerkmal'!$N:$O,2,FALSE))","v":"01"},null,{"$f":"IF(H386=\"\",\"000\",VLOOKUP(H386,'[1]Nummerierung Bauteil'!$A:$C,3,FALSE))","v":"000"},"VdS-Klasse C inkl. Peripherie und Monitor","03",null,"00","Anzahl","456.07.01.000.03.00","nur offene Systeme","kein Benchmark",null,null,null,0]
[456,"Gefahrenmelde- und Alarmanlagen",{"$f":"VLOOKUP(A387,'[1]Standardstruktur Anlagenmerkmal'!$C:$Z,3,FALSE)","v":456},"Überwachungsanlagen im privaten und öffentlichen Raum",{"$f":"IF(D387=\"\",\"00\",VLOOKUP(D387,'[1]Standardstruktur Anlagenmerkmal'!$F:$Z,2,FALSE))","v":"07"},"Videoüberwachungsanlage",{"$f":"IF(F387=\"\",\"00\",VLOOKUP(F387,'[1]Standardstruktur Anlagenmerkmal'!$N:$O,2,FALSE))","v":"01"},null,{"$f":"IF(H387=\"\",\"000\",VLOOKUP(H387,'[1]Nummerierung Bauteil'!$A:$C,3,FALSE))","v":"000"},"Anzahl Bewegungsmelder","04",null,"00","Anzahl","456.07.01.000.04.00","nur offene Systeme","kein Benchmark",null,null,null,{"$f":"R387*(((160.2-117.2)/100)+1)","v":0}]
[456,"Gefahrenmelde- und Alarmanlagen",{"$f":"VLOOKUP(A388,'[1]Standardstruktur Anlagenmerkmal'!$C:$Z,3,FALSE)","v":456},"Überwachungsanlagen im privaten und öffentlichen Raum",{"$f":"IF(D388=\"\",\"00\",VLOOKUP(D388,'[1]Standardstruktur Anlagenmerkmal'!$F:$Z,2,FALSE))","v":"07"},"Videoüberwachungsanlage",{"$f":"IF(F388=\"\",\"00\",VLOOKUP(F388,'[1]Standardstruktur Anlagenmerkmal'!$N:$O,2,FALSE))","v":"01"},null,{"$f":"IF(H388=\"\",\"000\",VLOOKUP(H388,'[1]Nummerierung Bauteil'!$A:$C,3,FALSE))","v":"000"},"Anzahl Dämmerungsschalter","05",null,"00","Anzahl","456.07.01.000.05.00","nur offene Systeme","kein Benchmark",null,null,null,0]
[456,"Gefahrenmelde- und Alarmanlagen",{"$f":"VLOOKUP(A389,'[1]Standardstruktur Anlagenmerkmal'!$C:$Z,3,FALSE)","v":456},"Überwachungsanlagen im privaten und öffentlichen Raum",{"$f":"IF(D389=\"\",\"00\",VLOOKUP(D389,'[1]Standardstruktur Anlagenmerkmal'!$F:$Z,2,FALSE))","v":"07"},"Videoüberwachungsanlage",{"$f":"IF(F389=\"\",\"00\",VLOOKUP(F389,'[1]Standardstruktur Anlagenmerkmal'!$N:$O,2,FALSE))","v":"01"},"Innen-Kamera",{"$f":"IF(H389=\"\",\"000\",VLOOKUP(H389,'[1]Nummerierung Bauteil'!$A:$C,3,FALSE))","v":"158"},"mit Stellmotor bis 4m Höhe","01",null,"00","Anzahl","456.07.01.158.01.00","nur offene Systeme",3.1881909152833385,73.855372810952318,21.991074750988556,70.111744738418523,105.61318311966181]
[456,"Gefahrenmelde- und Alarmanlagen",{"$f":"VLOOKUP(A390,'[1]Standardstruktur Anlagenmerkmal'!$C:$Z,3,FALSE)","v":456},"Überwachungsanlagen im privaten und öffentlichen Raum",{"$f":"IF(D390=\"\",\"00\",VLOOKUP(D390,'[1]Standardstruktur Anlagenmerkmal'!$F:$Z,2,FALSE))","v":"07"},"Videoüberwachungsanlage",{"$f":"IF(F390=\"\",\"00\",VLOOKUP(F390,'[1]Standardstruktur Anlagenmerkmal'!$N:$O,2,FALSE))","v":"01"},"Innen-Kamera",{"$f":"IF(H390=\"\",\"000\",VLOOKUP(H390,'[1]Nummerierung Bauteil'!$A:$C,3,FALSE))","v":"158"},"ohne Stellmotor bis 4m Höhe","02",null,"00","Anzahl","456.07.01.158.02.00","nur offene Systeme","kein Benchmark",null,null,null,0]
[456,"Gefahrenmelde- und Alarmanlagen",{"$f":"VLOOKUP(A391,'[1]Standardstruktur Anlagenmerkmal'!$C:$Z,3,FALSE)","v":456},"Überwachungsanlagen im privaten und öffentlichen Raum",{"$f":"IF(D391=\"\",\"00\",VLOOKUP(D391,'[1]Standardstruktur Anlagenmerkmal'!$F:$Z,2,FALSE))","v":"07"},"Videoüberwachungsanlage",{"$f":"IF(F391=\"\",\"00\",VLOOKUP(F391,'[1]Standardstruktur Anlagenmerkmal'!$N:$O,2,FALSE))","v":"01"},"Aussen-Kamera",{"$f":"IF(H391=\"\",\"000\",VLOOKUP(H391,'[1]Nummerierung Bauteil'!$A:$C,3,FALSE))","v":"109"},"mit Stellmotor bis 4m Höhe","01",null,"00","Anzahl","456.07.01.109.01.00","nur offene Systeme","kein Benchmark",null,null,null,0]
[456,"Gefahrenmelde- und Alarmanlagen",{"$f":"VLOOKUP(A392,'[1]Standardstruktur Anlagenmerkmal'!$C:$Z,3,FALSE)","v":456},"Überwachungsanlagen im privaten und öffentlichen Raum",{"$f":"IF(D392=\"\",\"00\",VLOOKUP(D392,'[1]Standardstruktur Anlagenmerkmal'!$F:$Z,2,FALSE))","v":"07"},"Videoüberwachungsanlage",{"$f":"IF(F392=\"\",\"00\",VLOOKUP(F392,'[1]Standardstruktur Anlagenmerkmal'!$N:$O,2,FALSE))","v":"01"},"Aussen-Kamera",{"$f":"IF(H392=\"\",\"000\",VLOOKUP(H392,'[1]Nummerierung Bauteil'!$A:$C,3,FALSE))","v":"109"},"ohne Stellmotor bis 4m Höhe","02",null,"00","Anzahl","456.07.01.109.02.00","nur offene Systeme","kein Benchmark",null,null,null,0]
[457,"Datenübertragungsnetze",{"$f":"VLOOKUP(A393,'[1]Standardstruktur Anlagenmerkmal'!$C:$Z,3,FALSE)","v":457},"BOS-Anlagen",{"$f":"IF(D393=\"\",\"00\",VLOOKUP(D393,'[1]Standardstruktur Anlagenmerkmal'!$F:$Z,2,FALSE))","v":"01"},"BOS-Anlage",{"$f":"IF(F393=\"\",\"00\",VLOOKUP(F393,'[1]Standardstruktur Anlagenmerkmal'!$N:$O,2,FALSE))","v":"01"},null,{"$f":"IF(H393=\"\",\"000\",VLOOKUP(H393,'[1]Nummerierung Bauteil'!$A:$C,3,FALSE))","v":"000"},null,"00",null,"00","Anzahl","457.01.01.000.00.00",null,"kein Benchmark",null,null,null,0]
[457,"Datenübertragungsnetze",{"$f":"VLOOKUP(A394,'[1]Standardstruktur Anlagenmerkmal'!$C:$Z,3,FALSE)","v":457},"BOS-Anlagen",{"$f":"IF(D394=\"\",\"00\",VLOOKUP(D394,'[1]Standardstruktur Anlagenmerkmal'!$F:$Z,2,FALSE))","v":"01"},"BOS-Anlage",{"$f":"IF(F394=\"\",\"00\",VLOOKUP(F394,'[1]Standardstruktur Anlagenmerkmal'!$N:$O,2,FALSE))","v":"01"},null,{"$f":"IF(H394=\"\",\"000\",VLOOKUP(H394,'[1]Nummerierung Bauteil'!$A:$C,3,FALSE))","v":"000"},null,"00","Anzahl Funkstellen","01","Anzahl","457.01.01.000.00.01",null,"kein Benchmark",null,null,null,0]
[458,"Verkehrsbeeinflussungsanlagen",{"$f":"VLOOKUP(A395,'[1]Standardstruktur Anlagenmerkmal'!$C:$Z,3,FALSE)","v":458},"Parkleitsysteme",{"$f":"IF(D395=\"\",\"00\",VLOOKUP(D395,'[1]Standardstruktur Anlagenmerkmal'!$F:$Z,2,FALSE))","v":"01"},"Parkleitsystem",{"$f":"IF(F395=\"\",\"00\",VLOOKUP(F395,'[1]Standardstruktur Anlagenmerkmal'!$N:$O,2,FALSE))","v":"01"},null,{"$f":"IF(H395=\"\",\"000\",VLOOKUP(H395,'[1]Nummerierung Bauteil'!$A:$C,3,FALSE))","v":"000"},null,"00",null,"00","kein EP","458.01.01.000.00.00",null,"kein Einheitspreis",null,null,null,0]
[461,"Aufzugsanlagen",{"$f":"VLOOKUP(A396,'[1]Standardstruktur Anlagenmerkmal'!$C:$Z,3,FALSE)","v":461},"Personenaufzüge",{"$f":"IF(D396=\"\",\"00\",VLOOKUP(D396,'[1]Standardstruktur Anlagenmerkmal'!$F:$Z,2,FALSE))","v":"01"},"Personenaufzug",{"$f":"IF(F396=\"\",\"00\",VLOOKUP(F396,'[1]Standardstruktur Anlagenmerkmal'!$N:$O,2,FALSE))","v":"01"},null,{"$f":"IF(H396=\"\",\"000\",VLOOKUP(H396,'[1]Nummerierung Bauteil'!$A:$C,3,FALSE))","v":"000"},"mit Seil-Antrieb","01","Anz. Haltestellen 2","01","pauschal","461.01.01.000.01.01","ohne Aufschaltung Notrufannahme, ohne Personenbefreiung",1.4807559420269576,827.00091285599513,636.15800000000002,941.99473856798534,1182.6113053840729]
[461,"Aufzugsanlagen",{"$f":"VLOOKUP(A397,'[1]Standardstruktur Anlagenmerkmal'!$C:$Z,3,FALSE)","v":461},"Personenaufzüge",{"$f":"IF(D397=\"\",\"00\",VLOOKUP(D397,'[1]Standardstruktur Anlagenmerkmal'!$F:$Z,2,FALSE))","v":"01"},"Personenaufzug",{"$f":"IF(F397=\"\",\"00\",VLOOKUP(F397,'[1]Standardstruktur Anlagenmerkmal'!$N:$O,2,FALSE))","v":"01"},null,{"$f":"IF(H397=\"\",\"000\",VLOOKUP(H397,'[1]Nummerierung Bauteil'!$A:$C,3,FALSE))","v":"000"},"mit Seil-Antrieb","01","Anz. Haltestellen 3","02","pauschal","461.01.01.000.01.02","ohne Aufschaltung Notrufannahme, ohne Personenbefreiung",1.8805425617472118,861.08673166532753,636.15800000000002,1196.3221949959827,1231.3540262814183]
[461,"Aufzugsanlagen",{"$f":"VLOOKUP(A398,'[1]Standardstruktur Anlagenmerkmal'!$C:$Z,3,FALSE)","v":461},"Personenaufzüge",{"$f":"IF(D398=\"\",\"00\",VLOOKUP(D398,'[1]Standardstruktur Anlagenmerkmal'!$F:$Z,2,FALSE))","v":"01"},"Personenaufzug",{"$f":"IF(F398=\"\",\"00\",VLOOKUP(F398,'[1]Standardstruktur Anlagenmerkmal'!$N:$O,2,FALSE))","v":"01"},null,{"$f":"IF(H398=\"\",\"000\",VLOOKUP(H398,'[1]Nummerierung Bauteil'!$A:$C,3,FALSE))","v":"000"},"mit Seil-Antrieb","01","Anz. Haltestellen 4","03","pauschal","461.01.01.000.01.03","ohne Aufschaltung Notrufannahme, ohne Personenbefreiung",1.7126127492433989,844.08343377772735,636.15800000000002,1089.4923013331822,1207.0393103021502]
[461,"Aufzugsanlagen",{"$f":"VLOOKUP(A399,'[1]Standardstruktur Anlagenmerkmal'!$C:$Z,3,FALSE)","v":461},"Personenaufzüge",{"$f":"IF(D399=\"\",\"00\",VLOOKUP(D399,'[1]Standardstruktur Anlagenmerkmal'!$F:$Z,2,FALSE))","v":"01"},"Personenaufzug",{"$f":"IF(F399=\"\",\"00\",VLOOKUP(F399,'[1]Standardstruktur Anlagenmerkmal'!$N:$O,2,FALSE))","v":"01"},null,{"$f":"IF(H399=\"\",\"000\",VLOOKUP(H399,'[1]Nummerierung Bauteil'!$A:$C,3,FALSE))","v":"000"},"mit Seil-Antrieb","01","Anz. Haltestellen 5","04","pauschal","461.01.01.000.01.04","ohne Aufschaltung Notrufannahme, ohne Personenbefreiung",2.7046273114281214,1120.0327670611637,636.15800000000002,1720.570301183491,1601.646856897464]
[461,"Aufzugsanlagen",{"$f":"VLOOKUP(A400,'[1]Standardstruktur Anlagenmerkmal'!$C:$Z,3,FALSE)","v":461},"Personenaufzüge",{"$f":"IF(D400=\"\",\"00\",VLOOKUP(D400,'[1]Standardstruktur Anlagenmerkmal'!$F:$Z,2,FALSE))","v":"01"},"Personenaufzug",{"$f":"IF(F400=\"\",\"00\",VLOOKUP(F400,'[1]Standardstruktur Anlagenmerkmal'!$N:$O,2,FALSE))","v":"01"},null,{"$f":"IF(H400=\"\",\"000\",VLOOKUP(H400,'[1]Nummerierung Bauteil'!$A:$C,3,FALSE))","v":"000"},"mit Seil-Antrieb","01","Anz. Haltestellen 6","05","pauschal","461.01.01.000.01.05","ohne Aufschaltung Notrufannahme, ohne Personenbefreiung",1.4423897939790447,1041.3011742262509,891.76,1286.2655226787529,1489.0606791435387]
[461,"Aufzugsanlagen",{"$f":"VLOOKUP(A401,'[1]Standardstruktur Anlagenmerkmal'!$C:$Z,3,FALSE)","v":461},"Personenaufzüge",{"$f":"IF(D401=\"\",\"00\",VLOOKUP(D401,'[1]Standardstruktur Anlagenmerkmal'!$F:$Z,2,FALSE))","v":"01"},"Personenaufzug",{"$f":"IF(F401=\"\",\"00\",VLOOKUP(F401,'[1]Standardstruktur Anlagenmerkmal'!$N:$O,2,FALSE))","v":"01"},null,{"$f":"IF(H401=\"\",\"000\",VLOOKUP(H401,'[1]Nummerierung Bauteil'!$A:$C,3,FALSE))","v":"000"},"mit Seil-Antrieb","01","Anz. Haltestellen 7","06","pauschal","461.01.01.000.01.06","ohne Aufschaltung Notrufannahme, ohne Personenbefreiung",1.9498798484393496,1312.9388170940383,945.87800000000004,1844.3484512821151,1877.5025084444746]
[461,"Aufzugsanlagen",{"$f":"VLOOKUP(A402,'[1]Standardstruktur Anlagenmerkmal'!$C:$Z,3,FALSE)","v":461},"Personenaufzüge",{"$f":"IF(D402=\"\",\"00\",VLOOKUP(D402,'[1]Standardstruktur Anlagenmerkmal'!$F:$Z,2,FALSE))","v":"01"},"Personenaufzug",{"$f":"IF(F402=\"\",\"00\",VLOOKUP(F402,'[1]Standardstruktur Anlagenmerkmal'!$N:$O,2,FALSE))","v":"01"},null,{"$f":"IF(H402=\"\",\"000\",VLOOKUP(H402,'[1]Nummerierung Bauteil'!$A:$C,3,FALSE))","v":"000"},"mit Seil-Antrieb","01","Anz. Haltestellen 8","07","pauschal","461.01.01.000.01.07","ohne Aufschaltung Notrufannahme, ohne Personenbefreiung",1.3866719296430787,1120.6234904889786,945.87800000000004,1311.6224714669361,1602.4915913992393]
[461,"Aufzugsanlagen",{"$f":"VLOOKUP(A403,'[1]Standardstruktur Anlagenmerkmal'!$C:$Z,3,FALSE)","v":461},"Personenaufzüge",{"$f":"IF(D403=\"\",\"00\",VLOOKUP(D403,'[1]Standardstruktur Anlagenmerkmal'!$F:$Z,2,FALSE))","v":"01"},"Personenaufzug",{"$f":"IF(F403=\"\",\"00\",VLOOKUP(F403,'[1]Standardstruktur Anlagenmerkmal'!$N:$O,2,FALSE))","v":"01"},null,{"$f":"IF(H403=\"\",\"000\",VLOOKUP(H403,'[1]Nummerierung Bauteil'!$A:$C,3,FALSE))","v":"000"},"mit Seil-Antrieb","01","Anz. Haltestellen 9","08","pauschal","461.01.01.000.01.08","ohne Aufschaltung Notrufannahme, ohne Personenbefreiung",1.6447574874546291,1095.6107316235721,885.13,1455.8241948707159,1566.723346221708]
[461,"Aufzugsanlagen",{"$f":"VLOOKUP(A404,'[1]Standardstruktur Anlagenmerkmal'!$C:$Z,3,FALSE)","v":461},"Personenaufzüge",{"$f":"IF(D404=\"\",\"00\",VLOOKUP(D404,'[1]Standardstruktur Anlagenmerkmal'!$F:$Z,2,FALSE))","v":"01"},"Personenaufzug",{"$f":"IF(F404=\"\",\"00\",VLOOKUP(F404,'[1]Standardstruktur Anlagenmerkmal'!$N:$O,2,FALSE))","v":"01"},null,{"$f":"IF(H404=\"\",\"000\",VLOOKUP(H404,'[1]Nummerierung Bauteil'!$A:$C,3,FALSE))","v":"000"},"mit Seil-Antrieb","01","Anz. Haltestellen 10","09","pauschal","461.01.01.000.01.09","ohne Aufschaltung Notrufannahme, ohne Personenbefreiung",1.961506969422061,1400.6121446115003,945.87800000000004,1855.3462892230004,2002.8753667944454]
[461,"Aufzugsanlagen",{"$f":"VLOOKUP(A405,'[1]Standardstruktur Anlagenmerkmal'!$C:$Z,3,FALSE)","v":461},"Personenaufzüge",{"$f":"IF(D405=\"\",\"00\",VLOOKUP(D405,'[1]Standardstruktur Anlagenmerkmal'!$F:$Z,2,FALSE))","v":"01"},"Personenaufzug",{"$f":"IF(F405=\"\",\"00\",VLOOKUP(F405,'[1]Standardstruktur Anlagenmerkmal'!$N:$O,2,FALSE))","v":"01"},null,{"$f":"IF(H405=\"\",\"000\",VLOOKUP(H405,'[1]Nummerierung Bauteil'!$A:$C,3,FALSE))","v":"000"},"mit Seil-Antrieb","01","Anz. Haltestellen 11","10","pauschal","461.01.01.000.01.10","ohne Aufschaltung Notrufannahme, ohne Personenbefreiung",2.7603040815060425,1510.9892663638041,889.89,2456.3669990914123,2160.7146509002396]
[461,"Aufzugsanlagen",{"$f":"VLOOKUP(A406,'[1]Standardstruktur Anlagenmerkmal'!$C:$Z,3,FALSE)","v":461},"Personenaufzüge",{"$f":"IF(D406=\"\",\"00\",VLOOKUP(D406,'[1]Standardstruktur Anlagenmerkmal'!$F:$Z,2,FALSE))","v":"01"},"Personenaufzug",{"$f":"IF(F406=\"\",\"00\",VLOOKUP(F406,'[1]Standardstruktur Anlagenmerkmal'!$N:$O,2,FALSE))","v":"01"},null,{"$f":"IF(H406=\"\",\"000\",VLOOKUP(H406,'[1]Nummerierung Bauteil'!$A:$C,3,FALSE))","v":"000"},"mit Seil-Antrieb","01","Anz. Haltestellen 12","11","pauschal","461.01.01.000.01.11","ohne Aufschaltung Notrufannahme, ohne Personenbefreiung",1.382788559661283,1413.8404589332445,1186.7108000000001,1640.9701178664889,2021.7918562745394]
[461,"Aufzugsanlagen",{"$f":"VLOOKUP(A407,'[1]Standardstruktur Anlagenmerkmal'!$C:$Z,3,FALSE)","v":461},"Personenaufzüge",{"$f":"IF(D407=\"\",\"00\",VLOOKUP(D407,'[1]Standardstruktur Anlagenmerkmal'!$F:$Z,2,FALSE))","v":"01"},"Personenaufzug",{"$f":"IF(F407=\"\",\"00\",VLOOKUP(F407,'[1]Standardstruktur Anlagenmerkmal'!$N:$O,2,FALSE))","v":"01"},null,{"$f":"IF(H407=\"\",\"000\",VLOOKUP(H407,'[1]Nummerierung Bauteil'!$A:$C,3,FALSE))","v":"000"},"mit Hydraulik-Antrieb (ohne Ölwechsel)","02","Anz. Haltestellen 2","01","pauschal","461.01.01.000.02.01","ohne Aufschaltung Notrufannahme, ohne Personenbefreiung",1.6256421765902613,835.1616378876538,636.15800000000002,1034.1652757753075,1194.2811421793449]
[461,"Aufzugsanlagen",{"$f":"VLOOKUP(A408,'[1]Standardstruktur Anlagenmerkmal'!$C:$Z,3,FALSE)","v":461},"Personenaufzüge",{"$f":"IF(D408=\"\",\"00\",VLOOKUP(D408,'[1]Standardstruktur Anlagenmerkmal'!$F:$Z,2,FALSE))","v":"01"},"Personenaufzug",{"$f":"IF(F408=\"\",\"00\",VLOOKUP(F408,'[1]Standardstruktur Anlagenmerkmal'!$N:$O,2,FALSE))","v":"01"},null,{"$f":"IF(H408=\"\",\"000\",VLOOKUP(H408,'[1]Nummerierung Bauteil'!$A:$C,3,FALSE))","v":"000"},"mit Hydraulik-Antrieb (ohne Ölwechsel)","02","Anz. Haltestellen 3","02","pauschal","461.01.01.000.02.02","ohne Aufschaltung Notrufannahme, ohne Personenbefreiung",1.614864328771547,831.73343083132499,636.15800000000002,1027.3088616626499,1189.3788060887946]
[461,"Aufzugsanlagen",{"$f":"VLOOKUP(A409,'[1]Standardstruktur Anlagenmerkmal'!$C:$Z,3,FALSE)","v":461},"Personenaufzüge",{"$f":"IF(D409=\"\",\"00\",VLOOKUP(D409,'[1]Standardstruktur Anlagenmerkmal'!$F:$Z,2,FALSE))","v":"01"},"Personenaufzug",{"$f":"IF(F409=\"\",\"00\",VLOOKUP(F409,'[1]Standardstruktur Anlagenmerkmal'!$N:$O,2,FALSE))","v":"01"},null,{"$f":"IF(H409=\"\",\"000\",VLOOKUP(H409,'[1]Nummerierung Bauteil'!$A:$C,3,FALSE))","v":"000"},"mit Hydraulik-Antrieb (ohne Ölwechsel)","02","Anz. Haltestellen 4","03","pauschal","461.01.01.000.02.03","ohne Aufschaltung Notrufannahme, ohne Personenbefreiung",1.7744735243906644,882.5017641646582,636.15800000000002,1128.8455283293163,1261.9775227554612]
[461,"Aufzugsanlagen",{"$f":"VLOOKUP(A410,'[1]Standardstruktur Anlagenmerkmal'!$C:$Z,3,FALSE)","v":461},"Personenaufzüge",{"$f":"IF(D410=\"\",\"00\",VLOOKUP(D410,'[1]Standardstruktur Anlagenmerkmal'!$F:$Z,2,FALSE))","v":"01"},"Personenaufzug",{"$f":"IF(F410=\"\",\"00\",VLOOKUP(F410,'[1]Standardstruktur Anlagenmerkmal'!$N:$O,2,FALSE))","v":"01"},null,{"$f":"IF(H410=\"\",\"000\",VLOOKUP(H410,'[1]Nummerierung Bauteil'!$A:$C,3,FALSE))","v":"000"},"mit Hydraulik-Antrieb (ohne Ölwechsel)","02","Anz. Haltestellen 5","04","pauschal","461.01.01.000.02.04","ohne Aufschaltung Notrufannahme, ohne Personenbefreiung",2.0937225011668898,984.04815944866323,636.15800000000002,1331.9383188973263,1407.1888680115883]
[461,"Aufzugsanlagen",{"$f":"VLOOKUP(A411,'[1]Standardstruktur Anlagenmerkmal'!$C:$Z,3,FALSE)","v":461},"Personenaufzüge",{"$f":"IF(D411=\"\",\"00\",VLOOKUP(D411,'[1]Standardstruktur Anlagenmerkmal'!$F:$Z,2,FALSE))","v":"01"},"Personenaufzug",{"$f":"IF(F411=\"\",\"00\",VLOOKUP(F411,'[1]Standardstruktur Anlagenmerkmal'!$N:$O,2,FALSE))","v":"01"},null,{"$f":"IF(H411=\"\",\"000\",VLOOKUP(H411,'[1]Nummerierung Bauteil'!$A:$C,3,FALSE))","v":"000"},"mit Hydraulik-Antrieb (ohne Ölwechsel)","02","Anz. Haltestellen 6","05","pauschal","461.01.01.000.02.05","ohne Aufschaltung Notrufannahme, ohne Personenbefreiung",1.2917108651807852,1083.8394448677354,945.87800000000004,1221.8008897354707,1549.8904061608616]
[461,"Aufzugsanlagen",{"$f":"VLOOKUP(A412,'[1]Standardstruktur Anlagenmerkmal'!$C:$Z,3,FALSE)","v":461},"Lastenaufzüge",{"$f":"IF(D412=\"\",\"00\",VLOOKUP(D412,'[1]Standardstruktur Anlagenmerkmal'!$F:$Z,2,FALSE))","v":"02"},"Lastenaufzug",{"$f":"IF(F412=\"\",\"00\",VLOOKUP(F412,'[1]Standardstruktur Anlagenmerkmal'!$N:$O,2,FALSE))","v":"01"},null,{"$f":"IF(H412=\"\",\"000\",VLOOKUP(H412,'[1]Nummerierung Bauteil'!$A:$C,3,FALSE))","v":"000"},"mit Seil-Antrieb","01","Anz. Haltestellen 2","01","pauschal","461.02.01.000.01.01","ohne Aufschaltung Notrufannahme, ohne Personenbefreiung",1.2608525366151626,642.08212039870614,568,716.16424079741239,918.1774321701497]
[461,"Aufzugsanlagen",{"$f":"VLOOKUP(A413,'[1]Standardstruktur Anlagenmerkmal'!$C:$Z,3,FALSE)","v":461},"Lastenaufzüge",{"$f":"IF(D413=\"\",\"00\",VLOOKUP(D413,'[1]Standardstruktur Anlagenmerkmal'!$F:$Z,2,FALSE))","v":"02"},"Lastenaufzug",{"$f":"IF(F413=\"\",\"00\",VLOOKUP(F413,'[1]Standardstruktur Anlagenmerkmal'!$N:$O,2,FALSE))","v":"01"},null,{"$f":"IF(H413=\"\",\"000\",VLOOKUP(H413,'[1]Nummerierung Bauteil'!$A:$C,3,FALSE))","v":"000"},"mit Seil-Antrieb","01","Anz. Haltestellen 3","02","pauschal","461.02.01.000.01.02","ohne Aufschaltung Notrufannahme, ohne Personenbefreiung",1.2200778541110662,630.50211056754279,568,693.00422113508557,901.61801811158614]
[461,"Aufzugsanlagen",{"$f":"VLOOKUP(A414,'[1]Standardstruktur Anlagenmerkmal'!$C:$Z,3,FALSE)","v":461},"Lastenaufzüge",{"$f":"IF(D414=\"\",\"00\",VLOOKUP(D414,'[1]Standardstruktur Anlagenmerkmal'!$F:$Z,2,FALSE))","v":"02"},"Lastenaufzug",{"$f":"IF(F414=\"\",\"00\",VLOOKUP(F414,'[1]Standardstruktur Anlagenmerkmal'!$N:$O,2,FALSE))","v":"01"},null,{"$f":"IF(H414=\"\",\"000\",VLOOKUP(H414,'[1]Nummerierung Bauteil'!$A:$C,3,FALSE))","v":"000"},"mit Seil-Antrieb","01","Anz. Haltestellen 4","03","pauschal","461.02.01.000.01.03","ohne Aufschaltung Notrufannahme, ohne Personenbefreiung",1.1725940885038222,617.0167211350855,568,666.03344227017101,882.33391122317221]
[461,"Aufzugsanlagen",{"$f":"VLOOKUP(A415,'[1]Standardstruktur Anlagenmerkmal'!$C:$Z,3,FALSE)","v":461},"Lastenaufzüge",{"$f":"IF(D415=\"\",\"00\",VLOOKUP(D415,'[1]Standardstruktur Anlagenmerkmal'!$F:$Z,2,FALSE))","v":"02"},"Lastenaufzug",{"$f":"IF(F415=\"\",\"00\",VLOOKUP(F415,'[1]Standardstruktur Anlagenmerkmal'!$N:$O,2,FALSE))","v":"01"},null,{"$f":"IF(H415=\"\",\"000\",VLOOKUP(H415,'[1]Nummerierung Bauteil'!$A:$C,3,FALSE))","v":"000"},"mit Seil-Antrieb","01","Anz. Haltestellen 5","04","pauschal","461.02.01.000.01.04","ohne Aufschaltung Notrufannahme, ohne Personenbefreiung",1.2229602490127267,631.32071071961445,568,694.64142143922879,902.78861632904864]
[461,"Aufzugsanlagen",{"$f":"VLOOKUP(A416,'[1]Standardstruktur Anlagenmerkmal'!$C:$Z,3,FALSE)","v":461},"Lastenaufzüge",{"$f":"IF(D416=\"\",\"00\",VLOOKUP(D416,'[1]Standardstruktur Anlagenmerkmal'!$F:$Z,2,FALSE))","v":"02"},"Lastenaufzug",{"$f":"IF(F416=\"\",\"00\",VLOOKUP(F416,'[1]Standardstruktur Anlagenmerkmal'!$N:$O,2,FALSE))","v":"01"},null,{"$f":"IF(H416=\"\",\"000\",VLOOKUP(H416,'[1]Nummerierung Bauteil'!$A:$C,3,FALSE))","v":"000"},"mit Seil-Antrieb","01","Anz. Haltestellen 6","05","pauschal","461.02.01.000.01.05","ohne Aufschaltung Notrufannahme, ohne Personenbefreiung",1.0122837602252914,750.28,745.7,754.8599999999999,1072.9004]
[461,"Aufzugsanlagen",{"$f":"VLOOKUP(A417,'[1]Standardstruktur Anlagenmerkmal'!$C:$Z,3,FALSE)","v":461},"Lastenaufzüge",{"$f":"IF(D417=\"\",\"00\",VLOOKUP(D417,'[1]Standardstruktur Anlagenmerkmal'!$F:$Z,2,FALSE))","v":"02"},"Lastenaufzug",{"$f":"IF(F417=\"\",\"00\",VLOOKUP(F417,'[1]Standardstruktur Anlagenmerkmal'!$N:$O,2,FALSE))","v":"01"},null,{"$f":"IF(H417=\"\",\"000\",VLOOKUP(H417,'[1]Nummerierung Bauteil'!$A:$C,3,FALSE))","v":"000"},"mit Seil-Antrieb","01","Anz. Haltestellen 7","06","pauschal","461.02.01.000.01.06","ohne Aufschaltung Notrufannahme, ohne Personenbefreiung",1.0764382459434088,774.2,745.7,802.69999999999993,1107.106]
[461,"Aufzugsanlagen",{"$f":"VLOOKUP(A418,'[1]Standardstruktur Anlagenmerkmal'!$C:$Z,3,FALSE)","v":461},"Lastenaufzüge",{"$f":"IF(D418=\"\",\"00\",VLOOKUP(D418,'[1]Standardstruktur Anlagenmerkmal'!$F:$Z,2,FALSE))","v":"02"},"Lastenaufzug",{"$f":"IF(F418=\"\",\"00\",VLOOKUP(F418,'[1]Standardstruktur Anlagenmerkmal'!$N:$O,2,FALSE))","v":"01"},null,{"$f":"IF(H418=\"\",\"000\",VLOOKUP(H418,'[1]Nummerierung Bauteil'!$A:$C,3,FALSE))","v":"000"},"mit Seil-Antrieb","01","Anz. Haltestellen 8","07","pauschal","461.02.01.000.01.07","ohne Aufschaltung Notrufannahme, ohne Personenbefreiung",1.1490746949175272,801.28250000000003,745.7,856.86500000000012,1145.833975]
[461,"Aufzugsanlagen",{"$f":"VLOOKUP(A419,'[1]Standardstruktur Anlagenmerkmal'!$C:$Z,3,FALSE)","v":461},"Lastenaufzüge",{"$f":"IF(D419=\"\",\"00\",VLOOKUP(D419,'[1]Standardstruktur Anlagenmerkmal'!$F:$Z,2,FALSE))","v":"02"},"Lastenaufzug",{"$f":"IF(F419=\"\",\"00\",VLOOKUP(F419,'[1]Standardstruktur Anlagenmerkmal'!$N:$O,2,FALSE))","v":"01"},null,{"$f":"IF(H419=\"\",\"000\",VLOOKUP(H419,'[1]Nummerierung Bauteil'!$A:$C,3,FALSE))","v":"000"},"mit Seil-Antrieb","01","Anz. Haltestellen 9","08","pauschal","461.02.01.000.01.08","ohne Aufschaltung Notrufannahme, ohne Personenbefreiung",1.2259521255196459,829.94624999999996,745.7,914.1925,1186.8231374999998]
[461,"Aufzugsanlagen",{"$f":"VLOOKUP(A420,'[1]Standardstruktur Anlagenmerkmal'!$C:$Z,3,FALSE)","v":461},"Lastenaufzüge",{"$f":"IF(D420=\"\",\"00\",VLOOKUP(D420,'[1]Standardstruktur Anlagenmerkmal'!$F:$Z,2,FALSE))","v":"02"},"Lastenaufzug",{"$f":"IF(F420=\"\",\"00\",VLOOKUP(F420,'[1]Standardstruktur Anlagenmerkmal'!$N:$O,2,FALSE))","v":"01"},null,{"$f":"IF(H420=\"\",\"000\",VLOOKUP(H420,'[1]Nummerierung Bauteil'!$A:$C,3,FALSE))","v":"000"},"mit Seil-Antrieb","01","Anz. Haltestellen 10","09","pauschal","461.02.01.000.01.09","ohne Aufschaltung Notrufannahme, ohne Personenbefreiung",1.5667974162978857,960.80611111111102,745.7,1168.3608333333334,1373.9527388888887]
[461,"Aufzugsanlagen",{"$f":"VLOOKUP(A421,'[1]Standardstruktur Anlagenmerkmal'!$C:$Z,3,FALSE)","v":461},"Lastenaufzüge",{"$f":"IF(D421=\"\",\"00\",VLOOKUP(D421,'[1]Standardstruktur Anlagenmerkmal'!$F:$Z,2,FALSE))","v":"02"},"Lastenaufzug",{"$f":"IF(F421=\"\",\"00\",VLOOKUP(F421,'[1]Standardstruktur Anlagenmerkmal'!$N:$O,2,FALSE))","v":"01"},null,{"$f":"IF(H421=\"\",\"000\",VLOOKUP(H421,'[1]Nummerierung Bauteil'!$A:$C,3,FALSE))","v":"000"},"mit Seil-Antrieb","01","Anz. Haltestellen 11","10","pauschal","461.02.01.000.01.10","ohne Aufschaltung Notrufannahme, ohne Personenbefreiung",1.2443179789854466,943.02874999999995,840.37,1045.6874999999998,1348.5311124999998]
[461,"Aufzugsanlagen",{"$f":"VLOOKUP(A422,'[1]Standardstruktur Anlagenmerkmal'!$C:$Z,3,FALSE)","v":461},"Lastenaufzüge",{"$f":"IF(D422=\"\",\"00\",VLOOKUP(D422,'[1]Standardstruktur Anlagenmerkmal'!$F:$Z,2,FALSE))","v":"02"},"Lastenaufzug",{"$f":"IF(F422=\"\",\"00\",VLOOKUP(F422,'[1]Standardstruktur Anlagenmerkmal'!$N:$O,2,FALSE))","v":"01"},null,{"$f":"IF(H422=\"\",\"000\",VLOOKUP(H422,'[1]Nummerierung Bauteil'!$A:$C,3,FALSE))","v":"000"},"mit Seil-Antrieb","01","Anz. Haltestellen 12","11","pauschal","461.02.01.000.01.11","ohne Aufschaltung Notrufannahme, ohne Personenbefreiung",1.2994187084260505,966.18125000000009,840.37,1091.9925000000001,1381.6391875000002]
[461,"Aufzugsanlagen",{"$f":"VLOOKUP(A423,'[1]Standardstruktur Anlagenmerkmal'!$C:$Z,3,FALSE)","v":461},"Lastenaufzüge",{"$f":"IF(D423=\"\",\"00\",VLOOKUP(D423,'[1]Standardstruktur Anlagenmerkmal'!$F:$Z,2,FALSE))","v":"02"},"Lastenaufzug",{"$f":"IF(F423=\"\",\"00\",VLOOKUP(F423,'[1]Standardstruktur Anlagenmerkmal'!$N:$O,2,FALSE))","v":"01"},null,{"$f":"IF(H423=\"\",\"000\",VLOOKUP(H423,'[1]Nummerierung Bauteil'!$A:$C,3,FALSE))","v":"000"},"mit Hydraulik-Antrieb (ohne Ölwechsel)","02","Anz. Haltestellen 2","01","pauschal","461.02.01.000.02.01","ohne Aufschaltung Notrufannahme, ohne Personenbefreiung",1.5246255543227016,732.25577161843148,568,865.98731485529447,1047.125753414357]
[461,"Aufzugsanlagen",{"$f":"VLOOKUP(A424,'[1]Standardstruktur Anlagenmerkmal'!$C:$Z,3,FALSE)","v":461},"Lastenaufzüge",{"$f":"IF(D424=\"\",\"00\",VLOOKUP(D424,'[1]Standardstruktur Anlagenmerkmal'!$F:$Z,2,FALSE))","v":"02"},"Lastenaufzug",{"$f":"IF(F424=\"\",\"00\",VLOOKUP(F424,'[1]Standardstruktur Anlagenmerkmal'!$N:$O,2,FALSE))","v":"01"},null,{"$f":"IF(H424=\"\",\"000\",VLOOKUP(H424,'[1]Nummerierung Bauteil'!$A:$C,3,FALSE))","v":"000"},"mit Hydraulik-Antrieb (ohne Ölwechsel)","02","Anz. Haltestellen 3","02","pauschal","461.02.01.000.02.02","ohne Aufschaltung Notrufannahme, ohne Personenbefreiung",1.256691088802989,640.90026922004881,568,713.80053844009774,916.4873849846698]
[461,"Aufzugsanlagen",{"$f":"VLOOKUP(A425,'[1]Standardstruktur Anlagenmerkmal'!$C:$Z,3,FALSE)","v":461},"Lastenaufzüge",{"$f":"IF(D425=\"\",\"00\",VLOOKUP(D425,'[1]Standardstruktur Anlagenmerkmal'!$F:$Z,2,FALSE))","v":"02"},"Lastenaufzug",{"$f":"IF(F425=\"\",\"00\",VLOOKUP(F425,'[1]Standardstruktur Anlagenmerkmal'!$N:$O,2,FALSE))","v":"01"},null,{"$f":"IF(H425=\"\",\"000\",VLOOKUP(H425,'[1]Nummerierung Bauteil'!$A:$C,3,FALSE))","v":"000"},"mit Hydraulik-Antrieb (ohne Ölwechsel)","02","Anz. Haltestellen 4","03","pauschal","461.02.01.000.02.03","ohne Aufschaltung Notrufannahme, ohne Personenbefreiung",1.3021034398171423,653.79737690806837,568,739.59475381613686,934.93024897853775]
[461,"Aufzugsanlagen",{"$f":"VLOOKUP(A426,'[1]Standardstruktur Anlagenmerkmal'!$C:$Z,3,FALSE)","v":461},"Lastenaufzüge",{"$f":"IF(D426=\"\",\"00\",VLOOKUP(D426,'[1]Standardstruktur Anlagenmerkmal'!$F:$Z,2,FALSE))","v":"02"},"Lastenaufzug",{"$f":"IF(F426=\"\",\"00\",VLOOKUP(F426,'[1]Standardstruktur Anlagenmerkmal'!$N:$O,2,FALSE))","v":"01"},null,{"$f":"IF(H426=\"\",\"000\",VLOOKUP(H426,'[1]Nummerierung Bauteil'!$A:$C,3,FALSE))","v":"000"},"mit Hydraulik-Antrieb (ohne Ölwechsel)","02","Anz. Haltestellen 5","04","pauschal","461.02.01.000.02.04","ohne Aufschaltung Notrufannahme, ohne Personenbefreiung",1.2229602490127267,631.32071071961445,568,694.64142143922879,902.78861632904864]
[461,"Aufzugsanlagen",{"$f":"VLOOKUP(A427,'[1]Standardstruktur Anlagenmerkmal'!$C:$Z,3,FALSE)","v":461},"Lastenaufzüge",{"$f":"IF(D427=\"\",\"00\",VLOOKUP(D427,'[1]Standardstruktur Anlagenmerkmal'!$F:$Z,2,FALSE))","v":"02"},"Lastenaufzug",{"$f":"IF(F427=\"\",\"00\",VLOOKUP(F427,'[1]Standardstruktur Anlagenmerkmal'!$N:$O,2,FALSE))","v":"01"},null,{"$f":"IF(H427=\"\",\"000\",VLOOKUP(H427,'[1]Nummerierung Bauteil'!$A:$C,3,FALSE))","v":"000"},"mit Hydraulik-Antrieb (ohne Ölwechsel)","02","Anz. Haltestellen 6","05","pauschal","461.02.01.000.02.05","ohne Aufschaltung Notrufannahme, ohne Personenbefreiung",1.8739528854320326,1071.5533333333333,745.7,1397.4066666666668,1532.3212666666666]
[461,"Aufzugsanlagen",{"$f":"VLOOKUP(A428,'[1]Standardstruktur Anlagenmerkmal'!$C:$Z,3,FALSE)","v":461},"Kleingüteraufzüge",{"$f":"IF(D428=\"\",\"00\",VLOOKUP(D428,'[1]Standardstruktur Anlagenmerkmal'!$F:$Z,2,FALSE))","v":"03"},"Kleingüteraufzug",{"$f":"IF(F428=\"\",\"00\",VLOOKUP(F428,'[1]Standardstruktur Anlagenmerkmal'!$N:$O,2,FALSE))","v":"01"},null,{"$f":"IF(H428=\"\",\"000\",VLOOKUP(H428,'[1]Nummerierung Bauteil'!$A:$C,3,FALSE))","v":"000"},"mit Seil-Antrieb","01",null,"00","Anzahl","461.03.01.000.01.00",null,1.1067273119755656,458.00251762348796,434.8,481.20503524697591,654.94360020158774]
[461,"Aufzugsanlagen",{"$f":"VLOOKUP(A429,'[1]Standardstruktur Anlagenmerkmal'!$C:$Z,3,FALSE)","v":461},"Kleingüteraufzüge",{"$f":"IF(D429=\"\",\"00\",VLOOKUP(D429,'[1]Standardstruktur Anlagenmerkmal'!$F:$Z,2,FALSE))","v":"03"},"Kleingüteraufzug",{"$f":"IF(F429=\"\",\"00\",VLOOKUP(F429,'[1]Standardstruktur Anlagenmerkmal'!$N:$O,2,FALSE))","v":"01"},null,{"$f":"IF(H429=\"\",\"000\",VLOOKUP(H429,'[1]Nummerierung Bauteil'!$A:$C,3,FALSE))","v":"000"},"mit Hydraulik-Antrieb (ohne Ölwechsel)","02",null,"00","Anzahl","461.03.01.000.02.00",null,1.1919004861170337,399.79777777777781,364.79555555555555,434.8,571.71082222222219]
[461,"Aufzugsanlagen",{"$f":"VLOOKUP(A430,'[1]Standardstruktur Anlagenmerkmal'!$C:$Z,3,FALSE)","v":461},"Personenumlaufaufzüge",{"$f":"IF(D430=\"\",\"00\",VLOOKUP(D430,'[1]Standardstruktur Anlagenmerkmal'!$F:$Z,2,FALSE))","v":"04"},"Umlaufaufzug (Paternoster)",{"$f":"IF(F430=\"\",\"00\",VLOOKUP(F430,'[1]Standardstruktur Anlagenmerkmal'!$N:$O,2,FALSE))","v":"01"},null,{"$f":"IF(H430=\"\",\"000\",VLOOKUP(H430,'[1]Nummerierung Bauteil'!$A:$C,3,FALSE))","v":"000"},null,"00",null,"00","kein EP","461.04.01.000.00.00",null,"kein Einheitspreis",null,null,null,0]
[461,"Aufzugsanlagen",{"$f":"VLOOKUP(A431,'[1]Standardstruktur Anlagenmerkmal'!$C:$Z,3,FALSE)","v":461},"Lifter",{"$f":"IF(D431=\"\",\"00\",VLOOKUP(D431,'[1]Standardstruktur Anlagenmerkmal'!$F:$Z,2,FALSE))","v":"05"},"Treppenlifter",{"$f":"IF(F431=\"\",\"00\",VLOOKUP(F431,'[1]Standardstruktur Anlagenmerkmal'!$N:$O,2,FALSE))","v":"01"},null,{"$f":"IF(H431=\"\",\"000\",VLOOKUP(H431,'[1]Nummerierung Bauteil'!$A:$C,3,FALSE))","v":"000"},null,"00",null,"00","Anzahl","461.05.01.000.00.00",null,1.516730222820398,299.18888888888887,237.76,360.6177777777778,427.84011111111107]
[462,"Fahrtreppen, Fahrsteige",{"$f":"VLOOKUP(A432,'[1]Standardstruktur Anlagenmerkmal'!$C:$Z,3,FALSE)","v":462},"Fahrtreppe",{"$f":"IF(D432=\"\",\"00\",VLOOKUP(D432,'[1]Standardstruktur Anlagenmerkmal'!$F:$Z,2,FALSE))","v":"01"},"Fahrtreppe, Fahrsteig",{"$f":"IF(F432=\"\",\"00\",VLOOKUP(F432,'[1]Standardstruktur Anlagenmerkmal'!$N:$O,2,FALSE))","v":"01"},null,{"$f":"IF(H432=\"\",\"000\",VLOOKUP(H432,'[1]Nummerierung Bauteil'!$A:$C,3,FALSE))","v":"000"},null,"00","Förderlänge <=10 m; \nStufen <= 57 Stk.","01","Anzahl","462.01.01.000.00.01","ohne brandschutztechnische Reinigung",1.5538125983022484,681.8679637467003,534,829.7359274934006,975.07118815778142]
[462,"Fahrtreppen, Fahrsteige",{"$f":"VLOOKUP(A433,'[1]Standardstruktur Anlagenmerkmal'!$C:$Z,3,FALSE)","v":462},"Fahrtreppe",{"$f":"IF(D433=\"\",\"00\",VLOOKUP(D433,'[1]Standardstruktur Anlagenmerkmal'!$F:$Z,2,FALSE))","v":"01"},"Fahrtreppe, Fahrsteig",{"$f":"IF(F433=\"\",\"00\",VLOOKUP(F433,'[1]Standardstruktur Anlagenmerkmal'!$N:$O,2,FALSE))","v":"01"},null,{"$f":"IF(H433=\"\",\"000\",VLOOKUP(H433,'[1]Nummerierung Bauteil'!$A:$C,3,FALSE))","v":"000"},null,"00","Förderlange > 10 bis 15 m; \nStufen > 58 bis 86 Stk.","02","Anzahl","462.01.01.000.00.02","ohne brandschutztechnische Reinigung",1.418569004501028,789.6627799695857,653,926.32555993917128,1129.2177753565074]
[462,"Fahrtreppen, Fahrsteige",{"$f":"VLOOKUP(A434,'[1]Standardstruktur Anlagenmerkmal'!$C:$Z,3,FALSE)","v":462},"Fahrtreppe",{"$f":"IF(D434=\"\",\"00\",VLOOKUP(D434,'[1]Standardstruktur Anlagenmerkmal'!$F:$Z,2,FALSE))","v":"01"},"Fahrtreppe, Fahrsteig",{"$f":"IF(F434=\"\",\"00\",VLOOKUP(F434,'[1]Standardstruktur Anlagenmerkmal'!$N:$O,2,FALSE))","v":"01"},null,{"$f":"IF(H434=\"\",\"000\",VLOOKUP(H434,'[1]Nummerierung Bauteil'!$A:$C,3,FALSE))","v":"000"},null,"00","Förderlange >15 bis 20 m;\nStufen  > 87 bis 114 Stk.","03","Anzahl","462.01.01.000.00.03","ohne brandschutztechnische Reinigung",1.4330809821839674,938.950281834615,771.82,1106.0805636692298,1342.6989030234995]
[462,"Fahrtreppen, Fahrsteige",{"$f":"VLOOKUP(A435,'[1]Standardstruktur Anlagenmerkmal'!$C:$Z,3,FALSE)","v":462},"Fahrtreppe",{"$f":"IF(D435=\"\",\"00\",VLOOKUP(D435,'[1]Standardstruktur Anlagenmerkmal'!$F:$Z,2,FALSE))","v":"01"},"Fahrtreppe, Fahrsteig",{"$f":"IF(F435=\"\",\"00\",VLOOKUP(F435,'[1]Standardstruktur Anlagenmerkmal'!$N:$O,2,FALSE))","v":"01"},null,{"$f":"IF(H435=\"\",\"000\",VLOOKUP(H435,'[1]Nummerierung Bauteil'!$A:$C,3,FALSE))","v":"000"},null,"00","Förderlänge > 20 bis 50m; \nStufen > 115 bis 200 Stk.","04","Anzahl","462.01.01.000.00.04","ohne brandschutztechnische Reinigung",1.4753308438574351,1177.6138956567361,951.48,1403.7477913134724,1683.9878707891326]
[463,"Befahranlagen",{"$f":"VLOOKUP(A436,'[1]Standardstruktur Anlagenmerkmal'!$C:$Z,3,FALSE)","v":463},"Fassaden-, Dachbefahranlage",{"$f":"IF(D436=\"\",\"00\",VLOOKUP(D436,'[1]Standardstruktur Anlagenmerkmal'!$F:$Z,2,FALSE))","v":"01"},"Befahranlage",{"$f":"IF(F436=\"\",\"00\",VLOOKUP(F436,'[1]Standardstruktur Anlagenmerkmal'!$N:$O,2,FALSE))","v":"01"},null,{"$f":"IF(H436=\"\",\"000\",VLOOKUP(H436,'[1]Nummerierung Bauteil'!$A:$C,3,FALSE))","v":"000"},null,"00",null,"00","kein EP","kein EP","463.01.01.000.00.00","kein Einheitspreis","","",null,{"$error":"#VALUE!"}]
[464,"Transportanlagen",{"$f":"VLOOKUP(A437,'[1]Standardstruktur Anlagenmerkmal'!$C:$Z,3,FALSE)","v":464},"Transportanlagen",{"$f":"IF(D437=\"\",\"00\",VLOOKUP(D437,'[1]Standardstruktur Anlagenmerkmal'!$F:$Z,2,FALSE))","v":"01"},"Warentransportanlagen",{"$f":"IF(F437=\"\",\"00\",VLOOKUP(F437,'[1]Standardstruktur Anlagenmerkmal'!$N:$O,2,FALSE))","v":"01"},null,{"$f":"IF(H437=\"\",\"000\",VLOOKUP(H437,'[1]Nummerierung Bauteil'!$A:$C,3,FALSE))","v":"000"},null,"00",null,"00","kein EP","464.01.01.000.00.00",null,"kein Einheitspreis",null,null,null,0]
[464,"Transportanlagen",{"$f":"VLOOKUP(A438,'[1]Standardstruktur Anlagenmerkmal'!$C:$Z,3,FALSE)","v":464},"Transportanlagen",{"$f":"IF(D438=\"\",\"00\",VLOOKUP(D438,'[1]Standardstruktur Anlagenmerkmal'!$F:$Z,2,FALSE))","v":"01"},"Aktentransportanlage",{"$f":"IF(F438=\"\",\"00\",VLOOKUP(F438,'[1]Standardstruktur Anlagenmerkmal'!$N:$O,2,FALSE))","v":"02"},null,{"$f":"IF(H438=\"\",\"000\",VLOOKUP(H438,'[1]Nummerierung Bauteil'!$A:$C,3,FALSE))","v":"000"},null,"00",null,"00","kein EP","464.01.02.000.00.00",null,"kein Einheitspreis",null,null,null,0]
[464,"Transportanlagen",{"$f":"VLOOKUP(A439,'[1]Standardstruktur Anlagenmerkmal'!$C:$Z,3,FALSE)","v":464},"Transportanlagen",{"$f":"IF(D439=\"\",\"00\",VLOOKUP(D439,'[1]Standardstruktur Anlagenmerkmal'!$F:$Z,2,FALSE))","v":"01"},"Rohrpostanlage",{"$f":"IF(F439=\"\",\"00\",VLOOKUP(F439,'[1]Standardstruktur Anlagenmerkmal'!$N:$O,2,FALSE))","v":"03"},null,{"$f":"IF(H439=\"\",\"000\",VLOOKUP(H439,'[1]Nummerierung Bauteil'!$A:$C,3,FALSE))","v":"000"},null,"00",null,"00","kein EP","464.01.03.000.00.00",null,"kein Einheitspreis",null,null,null,0]
[465,"Krananlagen",{"$f":"VLOOKUP(A440,'[1]Standardstruktur Anlagenmerkmal'!$C:$Z,3,FALSE)","v":465},"Krananlagen",{"$f":"IF(D440=\"\",\"00\",VLOOKUP(D440,'[1]Standardstruktur Anlagenmerkmal'!$F:$Z,2,FALSE))","v":"01"},"Brückenkran",{"$f":"IF(F440=\"\",\"00\",VLOOKUP(F440,'[1]Standardstruktur Anlagenmerkmal'!$N:$O,2,FALSE))","v":"01"},null,{"$f":"IF(H440=\"\",\"000\",VLOOKUP(H440,'[1]Nummerierung Bauteil'!$A:$C,3,FALSE))","v":"000"},null,"00","Traglast <= 1t","01","Anzahl","465.01.01.000.00.01",null,1.1080397048338906,258.33024761850112,245.09049523700222,271.57,369.41225409445656]
[465,"Krananlagen",{"$f":"VLOOKUP(A441,'[1]Standardstruktur Anlagenmerkmal'!$C:$Z,3,FALSE)","v":465},"Krananlagen",{"$f":"IF(D441=\"\",\"00\",VLOOKUP(D441,'[1]Standardstruktur Anlagenmerkmal'!$F:$Z,2,FALSE))","v":"01"},"Brückenkran",{"$f":"IF(F441=\"\",\"00\",VLOOKUP(F441,'[1]Standardstruktur Anlagenmerkmal'!$N:$O,2,FALSE))","v":"01"},null,{"$f":"IF(H441=\"\",\"000\",VLOOKUP(H441,'[1]Nummerierung Bauteil'!$A:$C,3,FALSE))","v":"000"},null,"00","Traglast > 1 bis 5t","02","Anzahl","465.01.01.000.00.02",null,1.1235753680392702,358.61162659244803,337.7432531848961,379.48,512.81462602720069]
[465,"Krananlagen",{"$f":"VLOOKUP(A442,'[1]Standardstruktur Anlagenmerkmal'!$C:$Z,3,FALSE)","v":465},"Krananlagen",{"$f":"IF(D442=\"\",\"00\",VLOOKUP(D442,'[1]Standardstruktur Anlagenmerkmal'!$F:$Z,2,FALSE))","v":"01"},"Brückenkran",{"$f":"IF(F442=\"\",\"00\",VLOOKUP(F442,'[1]Standardstruktur Anlagenmerkmal'!$N:$O,2,FALSE))","v":"01"},null,{"$f":"IF(H442=\"\",\"000\",VLOOKUP(H442,'[1]Nummerierung Bauteil'!$A:$C,3,FALSE))","v":"000"},null,"00","Traglast > 5 bis 20t","03","Anzahl","465.01.01.000.00.03",null,1.6276910063720162,498.5780915490264,379.48,617.67618309805277,712.96667091510767]
[465,"Krananlagen",{"$f":"VLOOKUP(A443,'[1]Standardstruktur Anlagenmerkmal'!$C:$Z,3,FALSE)","v":465},"Krananlagen",{"$f":"IF(D443=\"\",\"00\",VLOOKUP(D443,'[1]Standardstruktur Anlagenmerkmal'!$F:$Z,2,FALSE))","v":"01"},"Brückenkran",{"$f":"IF(F443=\"\",\"00\",VLOOKUP(F443,'[1]Standardstruktur Anlagenmerkmal'!$N:$O,2,FALSE))","v":"01"},null,{"$f":"IF(H443=\"\",\"000\",VLOOKUP(H443,'[1]Nummerierung Bauteil'!$A:$C,3,FALSE))","v":"000"},null,"00","Traglast > 20 bis 50t","04","Anzahl","465.01.01.000.00.04",null,1.596945484014946,973.85455650560471,750,1197.7091130112094,1392.6120158030146]
[465,"Krananlagen",{"$f":"VLOOKUP(A444,'[1]Standardstruktur Anlagenmerkmal'!$C:$Z,3,FALSE)","v":465},"Krananlagen",{"$f":"IF(D444=\"\",\"00\",VLOOKUP(D444,'[1]Standardstruktur Anlagenmerkmal'!$F:$Z,2,FALSE))","v":"01"},"Deckenkran",{"$f":"IF(F444=\"\",\"00\",VLOOKUP(F444,'[1]Standardstruktur Anlagenmerkmal'!$N:$O,2,FALSE))","v":"02"},null,{"$f":"IF(H444=\"\",\"000\",VLOOKUP(H444,'[1]Nummerierung Bauteil'!$A:$C,3,FALSE))","v":"000"},null,"00","Traglast <= 1t","01","Anzahl","465.01.02.000.00.01",null,1.9737707606808228,221.05524949520895,148.66999999999999,293.44049899041789,316.1090067781488]
[465,"Krananlagen",{"$f":"VLOOKUP(A445,'[1]Standardstruktur Anlagenmerkmal'!$C:$Z,3,FALSE)","v":465},"Krananlagen",{"$f":"IF(D445=\"\",\"00\",VLOOKUP(D445,'[1]Standardstruktur Anlagenmerkmal'!$F:$Z,2,FALSE))","v":"01"},"Deckenkran",{"$f":"IF(F445=\"\",\"00\",VLOOKUP(F445,'[1]Standardstruktur Anlagenmerkmal'!$N:$O,2,FALSE))","v":"02"},null,{"$f":"IF(H445=\"\",\"000\",VLOOKUP(H445,'[1]Nummerierung Bauteil'!$A:$C,3,FALSE))","v":"000"},null,"00","Traglast >1 bis 5t","02","Anzahl","465.01.02.000.00.02",null,"kein Benchmark",null,null,null,0]
[465,"Krananlagen",{"$f":"VLOOKUP(A446,'[1]Standardstruktur Anlagenmerkmal'!$C:$Z,3,FALSE)","v":465},"Krananlagen",{"$f":"IF(D446=\"\",\"00\",VLOOKUP(D446,'[1]Standardstruktur Anlagenmerkmal'!$F:$Z,2,FALSE))","v":"01"},"Deckenkran",{"$f":"IF(F446=\"\",\"00\",VLOOKUP(F446,'[1]Standardstruktur Anlagenmerkmal'!$N:$O,2,FALSE))","v":"02"},null,{"$f":"IF(H446=\"\",\"000\",VLOOKUP(H446,'[1]Nummerierung Bauteil'!$A:$C,3,FALSE))","v":"000"},null,"00","Traglast > 5 bis 20t","03","Anzahl","465.01.02.000.00.03",null,"kein Benchmark",null,null,null,0]
[465,"Krananlagen",{"$f":"VLOOKUP(A447,'[1]Standardstruktur Anlagenmerkmal'!$C:$Z,3,FALSE)","v":465},"Krananlagen",{"$f":"IF(D447=\"\",\"00\",VLOOKUP(D447,'[1]Standardstruktur Anlagenmerkmal'!$F:$Z,2,FALSE))","v":"01"},"Einträgerhängekran",{"$f":"IF(F447=\"\",\"00\",VLOOKUP(F447,'[1]Standardstruktur Anlagenmerkmal'!$N:$O,2,FALSE))","v":"03"},null,{"$f":"IF(H447=\"\",\"000\",VLOOKUP(H447,'[1]Nummerierung Bauteil'!$A:$C,3,FALSE))","v":"000"},null,"00","Traglast <= 1t","01","Anzahl","465.01.03.000.00.01",null,"kein Benchmark",null,null,null,0]
[465,"Krananlagen",{"$f":"VLOOKUP(A448,'[1]Standardstruktur Anlagenmerkmal'!$C:$Z,3,FALSE)","v":465},"Krananlagen",{"$f":"IF(D448=\"\",\"00\",VLOOKUP(D448,'[1]Standardstruktur Anlagenmerkmal'!$F:$Z,2,FALSE))","v":"01"},"Einträgerhängekran",{"$f":"IF(F448=\"\",\"00\",VLOOKUP(F448,'[1]Standardstruktur Anlagenmerkmal'!$N:$O,2,FALSE))","v":"03"},null,{"$f":"IF(H448=\"\",\"000\",VLOOKUP(H448,'[1]Nummerierung Bauteil'!$A:$C,3,FALSE))","v":"000"},null,"00","Traglast > 1 bis 5t","02","Anzahl","465.01.03.000.00.02",null,"kein Benchmark",null,null,null,0]
[465,"Krananlagen",{"$f":"VLOOKUP(A449,'[1]Standardstruktur Anlagenmerkmal'!$C:$Z,3,FALSE)","v":465},"Krananlagen",{"$f":"IF(D449=\"\",\"00\",VLOOKUP(D449,'[1]Standardstruktur Anlagenmerkmal'!$F:$Z,2,FALSE))","v":"01"},"Mobiler Kran",{"$f":"IF(F449=\"\",\"00\",VLOOKUP(F449,'[1]Standardstruktur Anlagenmerkmal'!$N:$O,2,FALSE))","v":"04"},null,{"$f":"IF(H449=\"\",\"000\",VLOOKUP(H449,'[1]Nummerierung Bauteil'!$A:$C,3,FALSE))","v":"000"},null,"00",null,"00","kein EP","465.01.04.000.00.00",null,"kein Einheitspreis",null,null,null,0]
[465,"Krananlagen",{"$f":"VLOOKUP(A450,'[1]Standardstruktur Anlagenmerkmal'!$C:$Z,3,FALSE)","v":465},"Krananlagen",{"$f":"IF(D450=\"\",\"00\",VLOOKUP(D450,'[1]Standardstruktur Anlagenmerkmal'!$F:$Z,2,FALSE))","v":"01"},"Portalkran",{"$f":"IF(F450=\"\",\"00\",VLOOKUP(F450,'[1]Standardstruktur Anlagenmerkmal'!$N:$O,2,FALSE))","v":"05"},null,{"$f":"IF(H450=\"\",\"000\",VLOOKUP(H450,'[1]Nummerierung Bauteil'!$A:$C,3,FALSE))","v":"000"},null,"00","Traglast <= 1t","01","Anzahl","465.01.05.000.00.01",null,"kein Benchmark",null,null,null,0]
[465,"Krananlagen",{"$f":"VLOOKUP(A451,'[1]Standardstruktur Anlagenmerkmal'!$C:$Z,3,FALSE)","v":465},"Krananlagen",{"$f":"IF(D451=\"\",\"00\",VLOOKUP(D451,'[1]Standardstruktur Anlagenmerkmal'!$F:$Z,2,FALSE))","v":"01"},"Portalkran",{"$f":"IF(F451=\"\",\"00\",VLOOKUP(F451,'[1]Standardstruktur Anlagenmerkmal'!$N:$O,2,FALSE))","v":"05"},null,{"$f":"IF(H451=\"\",\"000\",VLOOKUP(H451,'[1]Nummerierung Bauteil'!$A:$C,3,FALSE))","v":"000"},null,"00","Traglast > 1 bis 5t","02","Anzahl","465.01.05.000.00.02",null,"kein Benchmark",null,null,null,{"$f":"R451*(((160.2-117.2)/100)+1)","v":0}]
[465,"Krananlagen",{"$f":"VLOOKUP(A452,'[1]Standardstruktur Anlagenmerkmal'!$C:$Z,3,FALSE)","v":465},"Krananlagen",{"$f":"IF(D452=\"\",\"00\",VLOOKUP(D452,'[1]Standardstruktur Anlagenmerkmal'!$F:$Z,2,FALSE))","v":"01"},"Zweiträgerhängekran",{"$f":"IF(F452=\"\",\"00\",VLOOKUP(F452,'[1]Standardstruktur Anlagenmerkmal'!$N:$O,2,FALSE))","v":"06"},null,{"$f":"IF(H452=\"\",\"000\",VLOOKUP(H452,'[1]Nummerierung Bauteil'!$A:$C,3,FALSE))","v":"000"},null,"00","Traglast <=1t","01","Anzahl","465.01.06.000.00.01",null,"kein Benchmark",null,null,null,0]
[465,"Krananlagen",{"$f":"VLOOKUP(A453,'[1]Standardstruktur Anlagenmerkmal'!$C:$Z,3,FALSE)","v":465},"Krananlagen",{"$f":"IF(D453=\"\",\"00\",VLOOKUP(D453,'[1]Standardstruktur Anlagenmerkmal'!$F:$Z,2,FALSE))","v":"01"},"Zweiträgerhängekran",{"$f":"IF(F453=\"\",\"00\",VLOOKUP(F453,'[1]Standardstruktur Anlagenmerkmal'!$N:$O,2,FALSE))","v":"06"},null,{"$f":"IF(H453=\"\",\"000\",VLOOKUP(H453,'[1]Nummerierung Bauteil'!$A:$C,3,FALSE))","v":"000"},null,"00","Traglast > 1 bis 5t","02","Anzahl","465.01.06.000.00.02",null,"kein Benchmark",null,null,null,0]
[465,"Krananlagen",{"$f":"VLOOKUP(A454,'[1]Standardstruktur Anlagenmerkmal'!$C:$Z,3,FALSE)","v":465},"Krananlagen",{"$f":"IF(D454=\"\",\"00\",VLOOKUP(D454,'[1]Standardstruktur Anlagenmerkmal'!$F:$Z,2,FALSE))","v":"01"},"Schwenkkran",{"$f":"IF(F454=\"\",\"00\",VLOOKUP(F454,'[1]Standardstruktur Anlagenmerkmal'!$N:$O,2,FALSE))","v":"07"},null,{"$f":"IF(H454=\"\",\"000\",VLOOKUP(H454,'[1]Nummerierung Bauteil'!$A:$C,3,FALSE))","v":"000"},null,"00","Traglast <= 1t","01","Anzahl","465.01.07.000.00.01",null,"kein Benchmark",null,null,null,0]
[465,"Krananlagen",{"$f":"VLOOKUP(A455,'[1]Standardstruktur Anlagenmerkmal'!$C:$Z,3,FALSE)","v":465},"Krananlagen",{"$f":"IF(D455=\"\",\"00\",VLOOKUP(D455,'[1]Standardstruktur Anlagenmerkmal'!$F:$Z,2,FALSE))","v":"01"},"Schwenkkran",{"$f":"IF(F455=\"\",\"00\",VLOOKUP(F455,'[1]Standardstruktur Anlagenmerkmal'!$N:$O,2,FALSE))","v":"07"},null,{"$f":"IF(H455=\"\",\"000\",VLOOKUP(H455,'[1]Nummerierung Bauteil'!$A:$C,3,FALSE))","v":"000"},null,"00","Traglast > 1 bis 5t","02","Anzahl","465.01.07.000.00.02",null,"kein Benchmark",null,null,null,0]
[469,"Sonstiges zur KG 460",{"$f":"VLOOKUP(A456,'[1]Standardstruktur Anlagenmerkmal'!$C:$Z,3,FALSE)","v":469},"Hebebühne, Hubarbeitsbühne",{"$f":"IF(D456=\"\",\"00\",VLOOKUP(D456,'[1]Standardstruktur Anlagenmerkmal'!$F:$Z,2,FALSE))","v":"01"},"Hebebühne",{"$f":"IF(F456=\"\",\"00\",VLOOKUP(F456,'[1]Standardstruktur Anlagenmerkmal'!$N:$O,2,FALSE))","v":"01"},null,{"$f":"IF(H456=\"\",\"000\",VLOOKUP(H456,'[1]Nummerierung Bauteil'!$A:$C,3,FALSE))","v":"000"},null,"00","Förderhöhe <= 3 m","01","Anzahl","469.01.01.000.00.01",null,1.3176168657431064,225.2670819869337,202.44124596080107,266.74,322.13192724131517]
[469,"Sonstiges zur KG 460",{"$f":"VLOOKUP(A457,'[1]Standardstruktur Anlagenmerkmal'!$C:$Z,3,FALSE)","v":469},"Scherenhubtische",{"$f":"IF(D457=\"\",\"00\",VLOOKUP(D457,'[1]Standardstruktur Anlagenmerkmal'!$F:$Z,2,FALSE))","v":"02"},"Scherenhubtisch",{"$f":"IF(F457=\"\",\"00\",VLOOKUP(F457,'[1]Standardstruktur Anlagenmerkmal'!$N:$O,2,FALSE))","v":"01"},null,{"$f":"IF(H457=\"\",\"000\",VLOOKUP(H457,'[1]Nummerierung Bauteil'!$A:$C,3,FALSE))","v":"000"},null,"00",null,"00","kein EP","469.02.01.000.00.00",null,"kein Einheitspreis","","",null,{"$error":"#VALUE!"}]
[469,"Sonstiges zur KG 460",{"$f":"VLOOKUP(A458,'[1]Standardstruktur Anlagenmerkmal'!$C:$Z,3,FALSE)","v":469},"Überladebrücken",{"$f":"IF(D458=\"\",\"00\",VLOOKUP(D458,'[1]Standardstruktur Anlagenmerkmal'!$F:$Z,2,FALSE))","v":"03"},"Überladebrücke",{"$f":"IF(F458=\"\",\"00\",VLOOKUP(F458,'[1]Standardstruktur Anlagenmerkmal'!$N:$O,2,FALSE))","v":"01"},null,{"$f":"IF(H458=\"\",\"000\",VLOOKUP(H458,'[1]Nummerierung Bauteil'!$A:$C,3,FALSE))","v":"000"},"hydraulisch","01",null,"00","Anzahl","469.03.01.000.01.00",null,1.5626736159586874,133.56654886376677,104.24,162.89309772753356,191.00016487518647]
[469,"Sonstiges zur KG 460",{"$f":"VLOOKUP(A459,'[1]Standardstruktur Anlagenmerkmal'!$C:$Z,3,FALSE)","v":469},"Überladebrücken",{"$f":"IF(D459=\"\",\"00\",VLOOKUP(D459,'[1]Standardstruktur Anlagenmerkmal'!$F:$Z,2,FALSE))","v":"03"},"Überladebrücke",{"$f":"IF(F459=\"\",\"00\",VLOOKUP(F459,'[1]Standardstruktur Anlagenmerkmal'!$N:$O,2,FALSE))","v":"01"},null,{"$f":"IF(H459=\"\",\"000\",VLOOKUP(H459,'[1]Nummerierung Bauteil'!$A:$C,3,FALSE))","v":"000"},"elektrisch","02",null,"00","Anzahl","469.03.01.000.02.00",null,2.7110083588690808,161.29809772753356,85.592500000000001,232.04198295650178,230.65627975037299]
[469,"Sonstiges zur KG 460",{"$f":"VLOOKUP(A460,'[1]Standardstruktur Anlagenmerkmal'!$C:$Z,3,FALSE)","v":469},"Überladebrücken",{"$f":"IF(D460=\"\",\"00\",VLOOKUP(D460,'[1]Standardstruktur Anlagenmerkmal'!$F:$Z,2,FALSE))","v":"03"},"Überladebrücke",{"$f":"IF(F460=\"\",\"00\",VLOOKUP(F460,'[1]Standardstruktur Anlagenmerkmal'!$N:$O,2,FALSE))","v":"01"},null,{"$f":"IF(H460=\"\",\"000\",VLOOKUP(H460,'[1]Nummerierung Bauteil'!$A:$C,3,FALSE))","v":"000"},"nicht kraftbetrieben","03",null,"00","Anzahl","469.03.01.000.03.00",null,1.5602543981040544,97.801718007574891,76.400000000000006,119.20343601514976,139.85645675083208]
[469,"Sonstiges zur KG 460",{"$f":"VLOOKUP(A461,'[1]Standardstruktur Anlagenmerkmal'!$C:$Z,3,FALSE)","v":469},"Parksysteme (Mehrfachparker)",{"$f":"IF(D461=\"\",\"00\",VLOOKUP(D461,'[1]Standardstruktur Anlagenmerkmal'!$F:$Z,2,FALSE))","v":"04"},"Parksystem (Mehrfachparker, Duplex)",{"$f":"IF(F461=\"\",\"00\",VLOOKUP(F461,'[1]Standardstruktur Anlagenmerkmal'!$N:$O,2,FALSE))","v":"01"},null,{"$f":"IF(H461=\"\",\"000\",VLOOKUP(H461,'[1]Nummerierung Bauteil'!$A:$C,3,FALSE))","v":"000"},null,"00",null,"00","kein EP","469.04.01.000.00.00",null,"kein Einheitspreis",null,null,null,0]
[469,"Sonstiges zur KG 460",{"$f":"VLOOKUP(A462,'[1]Standardstruktur Anlagenmerkmal'!$C:$Z,3,FALSE)","v":469},"Parksysteme (Mehrfachparker)",{"$f":"IF(D462=\"\",\"00\",VLOOKUP(D462,'[1]Standardstruktur Anlagenmerkmal'!$F:$Z,2,FALSE))","v":"04"},"Parksystem (Mehrfachparker, Palettensystem)",{"$f":"IF(F462=\"\",\"00\",VLOOKUP(F462,'[1]Standardstruktur Anlagenmerkmal'!$N:$O,2,FALSE))","v":"02"},null,{"$f":"IF(H462=\"\",\"000\",VLOOKUP(H462,'[1]Nummerierung Bauteil'!$A:$C,3,FALSE))","v":"000"},null,"00",null,"00","kein EP","469.04.02.000.00.00",null,"kein Einheitspreis","","",null,{"$error":"#VALUE!"}]
[471,"Küchentechnische Anlagen",{"$f":"VLOOKUP(A463,'[1]Standardstruktur Anlagenmerkmal'!$C:$Z,3,FALSE)","v":471},"Teeküchen",{"$f":"IF(D463=\"\",\"00\",VLOOKUP(D463,'[1]Standardstruktur Anlagenmerkmal'!$F:$Z,2,FALSE))","v":"01"},"Teeküche",{"$f":"IF(F463=\"\",\"00\",VLOOKUP(F463,'[1]Standardstruktur Anlagenmerkmal'!$N:$O,2,FALSE))","v":"01"},"Kochfeld",{"$f":"IF(H463=\"\",\"000\",VLOOKUP(H463,'[1]Nummerierung Bauteil'!$A:$C,3,FALSE))","v":"168"},null,"00",null,"00","Anzahl","471.01.01.168.00.00",null,1.1928967276540685,63.911975127477831,58.29,69.533950254955656,91.394124432293296]
[471,"Küchentechnische Anlagen",{"$f":"VLOOKUP(A464,'[1]Standardstruktur Anlagenmerkmal'!$C:$Z,3,FALSE)","v":471},"Teeküchen",{"$f":"IF(D464=\"\",\"00\",VLOOKUP(D464,'[1]Standardstruktur Anlagenmerkmal'!$F:$Z,2,FALSE))","v":"01"},"Teeküche",{"$f":"IF(F464=\"\",\"00\",VLOOKUP(F464,'[1]Standardstruktur Anlagenmerkmal'!$N:$O,2,FALSE))","v":"01"},"Geschirrspülmaschine",{"$f":"IF(H464=\"\",\"000\",VLOOKUP(H464,'[1]Nummerierung Bauteil'!$A:$C,3,FALSE))","v":"148"},null,"00",null,"00","Anzahl","471.01.01.148.00.00",null,1.9057149467838963,62.792499999999997,43.22,82.364999999999995,89.793274999999994]
[471,"Küchentechnische Anlagen",{"$f":"VLOOKUP(A465,'[1]Standardstruktur Anlagenmerkmal'!$C:$Z,3,FALSE)","v":471},"Teeküchen",{"$f":"IF(D465=\"\",\"00\",VLOOKUP(D465,'[1]Standardstruktur Anlagenmerkmal'!$F:$Z,2,FALSE))","v":"01"},"Teeküche",{"$f":"IF(F465=\"\",\"00\",VLOOKUP(F465,'[1]Standardstruktur Anlagenmerkmal'!$N:$O,2,FALSE))","v":"01"},"Kühl- und Gefrierschrank",{"$f":"IF(H465=\"\",\"000\",VLOOKUP(H465,'[1]Nummerierung Bauteil'!$A:$C,3,FALSE))","v":"173"},null,"00",null,"00","Anzahl","471.01.01.173.00.00",null,1.0571933918828789,51.326975127477823,49.9,52.753950254955654,73.397574432293283]
[471,"Küchentechnische Anlagen",{"$f":"VLOOKUP(A466,'[1]Standardstruktur Anlagenmerkmal'!$C:$Z,3,FALSE)","v":471},"Teeküchen",{"$f":"IF(D466=\"\",\"00\",VLOOKUP(D466,'[1]Standardstruktur Anlagenmerkmal'!$F:$Z,2,FALSE))","v":"01"},"Teeküche",{"$f":"IF(F466=\"\",\"00\",VLOOKUP(F466,'[1]Standardstruktur Anlagenmerkmal'!$N:$O,2,FALSE))","v":"01"},"Mikrowelle",{"$f":"IF(H466=\"\",\"000\",VLOOKUP(H466,'[1]Nummerierung Bauteil'!$A:$C,3,FALSE))","v":"180"},null,"00",null,"00","Anzahl","471.01.01.180.00.00",null,1.1827065442700622,36.854999999999997,33.769999999999996,39.94,52.702649999999991]
[471,"Küchentechnische Anlagen",{"$f":"VLOOKUP(A467,'[1]Standardstruktur Anlagenmerkmal'!$C:$Z,3,FALSE)","v":471},"Teeküchen",{"$f":"IF(D467=\"\",\"00\",VLOOKUP(D467,'[1]Standardstruktur Anlagenmerkmal'!$F:$Z,2,FALSE))","v":"01"},"Teeküche",{"$f":"IF(F467=\"\",\"00\",VLOOKUP(F467,'[1]Standardstruktur Anlagenmerkmal'!$N:$O,2,FALSE))","v":"01"},"Kaffeemaschine - Standard",{"$f":"IF(H467=\"\",\"000\",VLOOKUP(H467,'[1]Nummerierung Bauteil'!$A:$C,3,FALSE))","v":"160"},null,"00",null,"00","Anzahl","471.01.01.160.00.00",null,"kein Benchmark",null,null,null,0]
[471,"Küchentechnische Anlagen",{"$f":"VLOOKUP(A468,'[1]Standardstruktur Anlagenmerkmal'!$C:$Z,3,FALSE)","v":471},"Teeküchen",{"$f":"IF(D468=\"\",\"00\",VLOOKUP(D468,'[1]Standardstruktur Anlagenmerkmal'!$F:$Z,2,FALSE))","v":"01"},"Teeküche",{"$f":"IF(F468=\"\",\"00\",VLOOKUP(F468,'[1]Standardstruktur Anlagenmerkmal'!$N:$O,2,FALSE))","v":"01"},"Kaffeevollautomat inkl. Milchkühlung",{"$f":"IF(H468=\"\",\"000\",VLOOKUP(H468,'[1]Nummerierung Bauteil'!$A:$C,3,FALSE))","v":"161"},null,"00",null,"00","Anzahl","471.01.01.161.00.00",null,"kein Benchmark",null,null,null,0]
[471,"Küchentechnische Anlagen",{"$f":"VLOOKUP(A469,'[1]Standardstruktur Anlagenmerkmal'!$C:$Z,3,FALSE)","v":471},"Wasserspendeanlagen",{"$f":"IF(D469=\"\",\"00\",VLOOKUP(D469,'[1]Standardstruktur Anlagenmerkmal'!$F:$Z,2,FALSE))","v":"02"},"Wasserspender",{"$f":"IF(F469=\"\",\"00\",VLOOKUP(F469,'[1]Standardstruktur Anlagenmerkmal'!$N:$O,2,FALSE))","v":"01"},null,{"$f":"IF(H469=\"\",\"000\",VLOOKUP(H469,'[1]Nummerierung Bauteil'!$A:$C,3,FALSE))","v":"000"},"mit Trinkwasseranschluss","01",null,"00","Anzahl","471.02.01.000.01.00","ohne Austausch CO2-Patronen","kein Benchmark",null,null,null,0]
[471,"Küchentechnische Anlagen",{"$f":"VLOOKUP(A470,'[1]Standardstruktur Anlagenmerkmal'!$C:$Z,3,FALSE)","v":471},"Wasserspendeanlagen",{"$f":"IF(D470=\"\",\"00\",VLOOKUP(D470,'[1]Standardstruktur Anlagenmerkmal'!$F:$Z,2,FALSE))","v":"02"},"Wasserspender",{"$f":"IF(F470=\"\",\"00\",VLOOKUP(F470,'[1]Standardstruktur Anlagenmerkmal'!$N:$O,2,FALSE))","v":"01"},null,{"$f":"IF(H470=\"\",\"000\",VLOOKUP(H470,'[1]Nummerierung Bauteil'!$A:$C,3,FALSE))","v":"000"},"ohne Trinkwasseranschluss","02",null,"00","Anzahl","471.02.01.000.02.00","ohne Austausch CO2-Patronen","kein Benchmark",null,null,null,0]
[471,"Küchentechnische Anlagen",{"$f":"VLOOKUP(A471,'[1]Standardstruktur Anlagenmerkmal'!$C:$Z,3,FALSE)","v":471},"Schneid- und Schälmaschinen",{"$f":"IF(D471=\"\",\"00\",VLOOKUP(D471,'[1]Standardstruktur Anlagenmerkmal'!$F:$Z,2,FALSE))","v":"03"},"Schneid- und Schälmaschine",{"$f":"IF(F471=\"\",\"00\",VLOOKUP(F471,'[1]Standardstruktur Anlagenmerkmal'!$N:$O,2,FALSE))","v":"01"},"Bearbeitungsmaschine",{"$f":"IF(H471=\"\",\"000\",VLOOKUP(H471,'[1]Nummerierung Bauteil'!$A:$C,3,FALSE))","v":"116"},"Obst und Gemüse","01",null,"00","Anzahl","471.03.01.116.01.00",null,"kein Benchmark",null,null,null,0]
[471,"Küchentechnische Anlagen",{"$f":"VLOOKUP(A472,'[1]Standardstruktur Anlagenmerkmal'!$C:$Z,3,FALSE)","v":471},"Schneid- und Schälmaschinen",{"$f":"IF(D472=\"\",\"00\",VLOOKUP(D472,'[1]Standardstruktur Anlagenmerkmal'!$F:$Z,2,FALSE))","v":"03"},"Schneid- und Schälmaschine",{"$f":"IF(F472=\"\",\"00\",VLOOKUP(F472,'[1]Standardstruktur Anlagenmerkmal'!$N:$O,2,FALSE))","v":"01"},"Bearbeitungsmaschine",{"$f":"IF(H472=\"\",\"000\",VLOOKUP(H472,'[1]Nummerierung Bauteil'!$A:$C,3,FALSE))","v":"116"},"Fleisch","02",null,"00","Anzahl","471.03.01.116.02.00",null,"kein Benchmark",null,null,null,0]
[471,"Küchentechnische Anlagen",{"$f":"VLOOKUP(A473,'[1]Standardstruktur Anlagenmerkmal'!$C:$Z,3,FALSE)","v":471},"Schneid- und Schälmaschinen",{"$f":"IF(D473=\"\",\"00\",VLOOKUP(D473,'[1]Standardstruktur Anlagenmerkmal'!$F:$Z,2,FALSE))","v":"03"},"Schneid- und Schälmaschine",{"$f":"IF(F473=\"\",\"00\",VLOOKUP(F473,'[1]Standardstruktur Anlagenmerkmal'!$N:$O,2,FALSE))","v":"01"},"Rühr- und Mischmaschinen",{"$f":"IF(H473=\"\",\"000\",VLOOKUP(H473,'[1]Nummerierung Bauteil'!$A:$C,3,FALSE))","v":"195"},null,"00",null,"00","Anzahl","471.03.01.195.00.00",null,"kein Benchmark",null,null,null,0]
[471,"Küchentechnische Anlagen",{"$f":"VLOOKUP(A474,'[1]Standardstruktur Anlagenmerkmal'!$C:$Z,3,FALSE)","v":471},"Schneid- und Schälmaschinen",{"$f":"IF(D474=\"\",\"00\",VLOOKUP(D474,'[1]Standardstruktur Anlagenmerkmal'!$F:$Z,2,FALSE))","v":"03"},"Schneid- und Schälmaschine",{"$f":"IF(F474=\"\",\"00\",VLOOKUP(F474,'[1]Standardstruktur Anlagenmerkmal'!$N:$O,2,FALSE))","v":"01"},"Schneidemaschinen",{"$f":"IF(H474=\"\",\"000\",VLOOKUP(H474,'[1]Nummerierung Bauteil'!$A:$C,3,FALSE))","v":"199"},null,"00",null,"00","Anzahl","471.03.01.199.00.00",null,"kein Benchmark",null,null,null,0]
[471,"Küchentechnische Anlagen",{"$f":"VLOOKUP(A475,'[1]Standardstruktur Anlagenmerkmal'!$C:$Z,3,FALSE)","v":471},"Schneid- und Schälmaschinen",{"$f":"IF(D475=\"\",\"00\",VLOOKUP(D475,'[1]Standardstruktur Anlagenmerkmal'!$F:$Z,2,FALSE))","v":"03"},"Schneid- und Schälmaschine",{"$f":"IF(F475=\"\",\"00\",VLOOKUP(F475,'[1]Standardstruktur Anlagenmerkmal'!$N:$O,2,FALSE))","v":"01"},"Mehlsiloanlage ",{"$f":"IF(H475=\"\",\"000\",VLOOKUP(H475,'[1]Nummerierung Bauteil'!$A:$C,3,FALSE))","v":"178"},null,"00",null,"00","Anzahl","471.03.01.178.00.00",null,"kein Benchmark",null,null,null,0]
[471,"Küchentechnische Anlagen",{"$f":"VLOOKUP(A476,'[1]Standardstruktur Anlagenmerkmal'!$C:$Z,3,FALSE)","v":471},"Schneid- und Schälmaschinen",{"$f":"IF(D476=\"\",\"00\",VLOOKUP(D476,'[1]Standardstruktur Anlagenmerkmal'!$F:$Z,2,FALSE))","v":"03"},"Schneid- und Schälmaschine",{"$f":"IF(F476=\"\",\"00\",VLOOKUP(F476,'[1]Standardstruktur Anlagenmerkmal'!$N:$O,2,FALSE))","v":"01"},"Kneter ",{"$f":"IF(H476=\"\",\"000\",VLOOKUP(H476,'[1]Nummerierung Bauteil'!$A:$C,3,FALSE))","v":"167"},null,"00",null,"00","Anzahl","471.03.01.167.00.00",null,"kein Benchmark",null,null,null,0]
[471,"Küchentechnische Anlagen",{"$f":"VLOOKUP(A477,'[1]Standardstruktur Anlagenmerkmal'!$C:$Z,3,FALSE)","v":471},"Schneid- und Schälmaschinen",{"$f":"IF(D477=\"\",\"00\",VLOOKUP(D477,'[1]Standardstruktur Anlagenmerkmal'!$F:$Z,2,FALSE))","v":"03"},"Schneid- und Schälmaschine",{"$f":"IF(F477=\"\",\"00\",VLOOKUP(F477,'[1]Standardstruktur Anlagenmerkmal'!$N:$O,2,FALSE))","v":"01"},"Aufschnittmaschine",{"$f":"IF(H477=\"\",\"000\",VLOOKUP(H477,'[1]Nummerierung Bauteil'!$A:$C,3,FALSE))","v":"106"},null,"00",null,"00","Anzahl","471.03.01.106.00.00",null,"kein Benchmark",null,null,null,0]
[471,"Küchentechnische Anlagen",{"$f":"VLOOKUP(A478,'[1]Standardstruktur Anlagenmerkmal'!$C:$Z,3,FALSE)","v":471},"Schneid- und Schälmaschinen",{"$f":"IF(D478=\"\",\"00\",VLOOKUP(D478,'[1]Standardstruktur Anlagenmerkmal'!$F:$Z,2,FALSE))","v":"03"},"Schneid- und Schälmaschine",{"$f":"IF(F478=\"\",\"00\",VLOOKUP(F478,'[1]Standardstruktur Anlagenmerkmal'!$N:$O,2,FALSE))","v":"01"},"Mehrzweckküchenmaschine",{"$f":"IF(H478=\"\",\"000\",VLOOKUP(H478,'[1]Nummerierung Bauteil'!$A:$C,3,FALSE))","v":"179"},null,"00",null,"00","Anzahl","471.03.01.179.00.00",null,"kein Benchmark",null,null,null,0]
[471,"Küchentechnische Anlagen",{"$f":"VLOOKUP(A479,'[1]Standardstruktur Anlagenmerkmal'!$C:$Z,3,FALSE)","v":471},"Schneid- und Schälmaschinen",{"$f":"IF(D479=\"\",\"00\",VLOOKUP(D479,'[1]Standardstruktur Anlagenmerkmal'!$F:$Z,2,FALSE))","v":"03"},"Schneid- und Schälmaschine",{"$f":"IF(F479=\"\",\"00\",VLOOKUP(F479,'[1]Standardstruktur Anlagenmerkmal'!$N:$O,2,FALSE))","v":"01"},"Universalküchenmaschine",{"$f":"IF(H479=\"\",\"000\",VLOOKUP(H479,'[1]Nummerierung Bauteil'!$A:$C,3,FALSE))","v":"217"},null,"00",null,"00","Anzahl","471.03.01.217.00.00",null,"kein Benchmark",null,null,null,0]
[471,"Küchentechnische Anlagen",{"$f":"VLOOKUP(A480,'[1]Standardstruktur Anlagenmerkmal'!$C:$Z,3,FALSE)","v":471},"Zerkleinerungs- und andere Maschinen",{"$f":"IF(D480=\"\",\"00\",VLOOKUP(D480,'[1]Standardstruktur Anlagenmerkmal'!$F:$Z,2,FALSE))","v":"04"},"Zerkleinerungs- und andere Maschinen",{"$f":"IF(F480=\"\",\"00\",VLOOKUP(F480,'[1]Standardstruktur Anlagenmerkmal'!$N:$O,2,FALSE))","v":"01"},null,{"$f":"IF(H480=\"\",\"000\",VLOOKUP(H480,'[1]Nummerierung Bauteil'!$A:$C,3,FALSE))","v":"000"},null,"00",null,"00","Anzahl","471.04.01.000.00.00",null,"kein Benchmark",null,null,null,0]
[471,"Küchentechnische Anlagen",{"$f":"VLOOKUP(A481,'[1]Standardstruktur Anlagenmerkmal'!$C:$Z,3,FALSE)","v":471},"Dosenöffner (kraftbetrieben)",{"$f":"IF(D481=\"\",\"00\",VLOOKUP(D481,'[1]Standardstruktur Anlagenmerkmal'!$F:$Z,2,FALSE))","v":"05"},"Dosenöffner (kraftbetrieben)",{"$f":"IF(F481=\"\",\"00\",VLOOKUP(F481,'[1]Standardstruktur Anlagenmerkmal'!$N:$O,2,FALSE))","v":"01"},null,{"$f":"IF(H481=\"\",\"000\",VLOOKUP(H481,'[1]Nummerierung Bauteil'!$A:$C,3,FALSE))","v":"000"},null,"00",null,"00","kein EP","471.05.01.000.00.00",null,"kein Einheitspreis",null,null,null,0]
[471,"Küchentechnische Anlagen",{"$f":"VLOOKUP(A482,'[1]Standardstruktur Anlagenmerkmal'!$C:$Z,3,FALSE)","v":471},"Dunstabzugshaube Küche",{"$f":"IF(D482=\"\",\"00\",VLOOKUP(D482,'[1]Standardstruktur Anlagenmerkmal'!$F:$Z,2,FALSE))","v":"06"},"Dunstabzugshaube (ohne Küchenabluftanlage)",{"$f":"IF(F482=\"\",\"00\",VLOOKUP(F482,'[1]Standardstruktur Anlagenmerkmal'!$N:$O,2,FALSE))","v":"01"},null,{"$f":"IF(H482=\"\",\"000\",VLOOKUP(H482,'[1]Nummerierung Bauteil'!$A:$C,3,FALSE))","v":"000"},null,"00","bis 4 Elemente / Wrasenfilter","01","Anzahl","471.06.01.000.00.01",null,3.525622990840878,129.45544565300332,57.21,201.70089130600664,185.12128728379474]
[471,"Küchentechnische Anlagen",{"$f":"VLOOKUP(A483,'[1]Standardstruktur Anlagenmerkmal'!$C:$Z,3,FALSE)","v":471},"Lüftungsdecke Küche",{"$f":"IF(D483=\"\",\"00\",VLOOKUP(D483,'[1]Standardstruktur Anlagenmerkmal'!$F:$Z,2,FALSE))","v":"07"},"Lüftungsdecke (ohne Küchenabluftanlage)",{"$f":"IF(F483=\"\",\"00\",VLOOKUP(F483,'[1]Standardstruktur Anlagenmerkmal'!$N:$O,2,FALSE))","v":"01"},null,{"$f":"IF(H483=\"\",\"000\",VLOOKUP(H483,'[1]Nummerierung Bauteil'!$A:$C,3,FALSE))","v":"000"},null,"00","bis 4 Elemente / Wrasenfilter","01","Anzahl","471.07.01.000.00.01",null,"kein Benchmark",null,null,null,0]
[471,"Küchentechnische Anlagen",{"$f":"VLOOKUP(A484,'[1]Standardstruktur Anlagenmerkmal'!$C:$Z,3,FALSE)","v":471},"Lüftungsdecke Küche",{"$f":"IF(D484=\"\",\"00\",VLOOKUP(D484,'[1]Standardstruktur Anlagenmerkmal'!$F:$Z,2,FALSE))","v":"07"},"Lüftungsdecke (ohne Küchenabluftanlage)",{"$f":"IF(F484=\"\",\"00\",VLOOKUP(F484,'[1]Standardstruktur Anlagenmerkmal'!$N:$O,2,FALSE))","v":"01"},null,{"$f":"IF(H484=\"\",\"000\",VLOOKUP(H484,'[1]Nummerierung Bauteil'!$A:$C,3,FALSE))","v":"000"},null,"00","5 bis 8 Elemente / Wrasenfilter","02","Anzahl","471.07.01.000.00.02",null,"kein Benchmark",null,null,null,0]
[471,"Küchentechnische Anlagen",{"$f":"VLOOKUP(A485,'[1]Standardstruktur Anlagenmerkmal'!$C:$Z,3,FALSE)","v":471},"Lüftungsdecke Küche",{"$f":"IF(D485=\"\",\"00\",VLOOKUP(D485,'[1]Standardstruktur Anlagenmerkmal'!$F:$Z,2,FALSE))","v":"07"},"Lüftungsdecke (ohne Küchenabluftanlage)",{"$f":"IF(F485=\"\",\"00\",VLOOKUP(F485,'[1]Standardstruktur Anlagenmerkmal'!$N:$O,2,FALSE))","v":"01"},null,{"$f":"IF(H485=\"\",\"000\",VLOOKUP(H485,'[1]Nummerierung Bauteil'!$A:$C,3,FALSE))","v":"000"},null,"00","9 bis 12 Elemente / Wrasenfilter","03","Anzahl","471.07.01.000.00.03",null,"kein Benchmark",null,null,null,0]
[471,"Küchentechnische Anlagen",{"$f":"VLOOKUP(A486,'[1]Standardstruktur Anlagenmerkmal'!$C:$Z,3,FALSE)","v":471},"Lüftungsdecke Küche",{"$f":"IF(D486=\"\",\"00\",VLOOKUP(D486,'[1]Standardstruktur Anlagenmerkmal'!$F:$Z,2,FALSE))","v":"07"},"Lüftungsdecke (ohne Küchenabluftanlage)",{"$f":"IF(F486=\"\",\"00\",VLOOKUP(F486,'[1]Standardstruktur Anlagenmerkmal'!$N:$O,2,FALSE))","v":"01"},null,{"$f":"IF(H486=\"\",\"000\",VLOOKUP(H486,'[1]Nummerierung Bauteil'!$A:$C,3,FALSE))","v":"000"},null,"00","13 bis 16 Elemente / Wrasenfilter","04","Anzahl","471.07.01.000.00.04",null,"kein Benchmark",null,null,null,0]
[471,"Küchentechnische Anlagen",{"$f":"VLOOKUP(A487,'[1]Standardstruktur Anlagenmerkmal'!$C:$Z,3,FALSE)","v":471},"Lüftungsdecke Küche",{"$f":"IF(D487=\"\",\"00\",VLOOKUP(D487,'[1]Standardstruktur Anlagenmerkmal'!$F:$Z,2,FALSE))","v":"07"},"Lüftungsdecke (ohne Küchenabluftanlage)",{"$f":"IF(F487=\"\",\"00\",VLOOKUP(F487,'[1]Standardstruktur Anlagenmerkmal'!$N:$O,2,FALSE))","v":"01"},null,{"$f":"IF(H487=\"\",\"000\",VLOOKUP(H487,'[1]Nummerierung Bauteil'!$A:$C,3,FALSE))","v":"000"},null,"00","17 bis 20 Elemente / Wrasenfilter","05","Anzahl","471.07.01.000.00.05",null,"kein Benchmark",null,null,null,0]
[471,"Küchentechnische Anlagen",{"$f":"VLOOKUP(A488,'[1]Standardstruktur Anlagenmerkmal'!$C:$Z,3,FALSE)","v":471},"Abluftreinigungsanlagen",{"$f":"IF(D488=\"\",\"00\",VLOOKUP(D488,'[1]Standardstruktur Anlagenmerkmal'!$F:$Z,2,FALSE))","v":"08"},"UVC-Anlage",{"$f":"IF(F488=\"\",\"00\",VLOOKUP(F488,'[1]Standardstruktur Anlagenmerkmal'!$N:$O,2,FALSE))","v":"01"},null,{"$f":"IF(H488=\"\",\"000\",VLOOKUP(H488,'[1]Nummerierung Bauteil'!$A:$C,3,FALSE))","v":"000"},null,"00","bis 3 Elemente / Röhren","01","Anzahl","471.08.01.000.00.01","ohne Röhrentausch","kein Benchmark",null,null,null,0]
[471,"Küchentechnische Anlagen",{"$f":"VLOOKUP(A489,'[1]Standardstruktur Anlagenmerkmal'!$C:$Z,3,FALSE)","v":471},"Abluftreinigungsanlagen",{"$f":"IF(D489=\"\",\"00\",VLOOKUP(D489,'[1]Standardstruktur Anlagenmerkmal'!$F:$Z,2,FALSE))","v":"08"},"UVC-Anlage",{"$f":"IF(F489=\"\",\"00\",VLOOKUP(F489,'[1]Standardstruktur Anlagenmerkmal'!$N:$O,2,FALSE))","v":"01"},null,{"$f":"IF(H489=\"\",\"000\",VLOOKUP(H489,'[1]Nummerierung Bauteil'!$A:$C,3,FALSE))","v":"000"},null,"00","3 bis 5 Elemente / Röhren","02","Anzahl","471.08.01.000.00.02","ohne Röhrentausch","kein Benchmark",null,null,null,0]
[471,"Küchentechnische Anlagen",{"$f":"VLOOKUP(A490,'[1]Standardstruktur Anlagenmerkmal'!$C:$Z,3,FALSE)","v":471},"Abluftreinigungsanlagen",{"$f":"IF(D490=\"\",\"00\",VLOOKUP(D490,'[1]Standardstruktur Anlagenmerkmal'!$F:$Z,2,FALSE))","v":"08"},"UVC-Anlage",{"$f":"IF(F490=\"\",\"00\",VLOOKUP(F490,'[1]Standardstruktur Anlagenmerkmal'!$N:$O,2,FALSE))","v":"01"},null,{"$f":"IF(H490=\"\",\"000\",VLOOKUP(H490,'[1]Nummerierung Bauteil'!$A:$C,3,FALSE))","v":"000"},null,"00","5 bis 10 Elemente / Röhren","03","Anzahl","471.08.01.000.00.03","ohne Röhrentausch","kein Benchmark",null,null,null,0]
[471,"Küchentechnische Anlagen",{"$f":"VLOOKUP(A491,'[1]Standardstruktur Anlagenmerkmal'!$C:$Z,3,FALSE)","v":471},"Back-, Brat-, Gar- Frittier- und Kochgeräte (ohne Druckdämpfer, Druckkochkessel)",{"$f":"IF(D491=\"\",\"00\",VLOOKUP(D491,'[1]Standardstruktur Anlagenmerkmal'!$F:$Z,2,FALSE))","v":"09"},"Back-, Brat-, Gar- Frittier- und Kochgeräte (ohne Druckdämpfer, Druckkochkessel)",{"$f":"IF(F491=\"\",\"00\",VLOOKUP(F491,'[1]Standardstruktur Anlagenmerkmal'!$N:$O,2,FALSE))","v":"01"},"Druckbraisiere",{"$f":"IF(H491=\"\",\"000\",VLOOKUP(H491,'[1]Nummerierung Bauteil'!$A:$C,3,FALSE))","v":"130"},null,"00",null,"00","Anzahl","471.09.01.130.00.00",null,"kein Benchmark",null,null,null,0]
[471,"Küchentechnische Anlagen",{"$f":"VLOOKUP(A492,'[1]Standardstruktur Anlagenmerkmal'!$C:$Z,3,FALSE)","v":471},"Back-, Brat-, Gar- Frittier- und Kochgeräte (ohne Druckdämpfer, Druckkochkessel)",{"$f":"IF(D492=\"\",\"00\",VLOOKUP(D492,'[1]Standardstruktur Anlagenmerkmal'!$F:$Z,2,FALSE))","v":"09"},"Back-, Brat-, Gar- Frittier- und Kochgeräte (ohne Druckdämpfer, Druckkochkessel)",{"$f":"IF(F492=\"\",\"00\",VLOOKUP(F492,'[1]Standardstruktur Anlagenmerkmal'!$N:$O,2,FALSE))","v":"01"},"Bratpfanne",{"$f":"IF(H492=\"\",\"000\",VLOOKUP(H492,'[1]Nummerierung Bauteil'!$A:$C,3,FALSE))","v":"122"},null,"00",null,"00","Anzahl","471.09.01.122.00.00",null,1.8256701646309157,79.076379557196177,55.97,102.18275911439235,113.07922276679052]
[471,"Küchentechnische Anlagen",{"$f":"VLOOKUP(A493,'[1]Standardstruktur Anlagenmerkmal'!$C:$Z,3,FALSE)","v":471},"Back-, Brat-, Gar- Frittier- und Kochgeräte (ohne Druckdämpfer, Druckkochkessel)",{"$f":"IF(D493=\"\",\"00\",VLOOKUP(D493,'[1]Standardstruktur Anlagenmerkmal'!$F:$Z,2,FALSE))","v":"09"},"Back-, Brat-, Gar- Frittier- und Kochgeräte (ohne Druckdämpfer, Druckkochkessel)",{"$f":"IF(F493=\"\",\"00\",VLOOKUP(F493,'[1]Standardstruktur Anlagenmerkmal'!$N:$O,2,FALSE))","v":"01"},"Bratplatte (elektrisch)",{"$f":"IF(H493=\"\",\"000\",VLOOKUP(H493,'[1]Nummerierung Bauteil'!$A:$C,3,FALSE))","v":"123"},null,"00",null,"00","Anzahl","471.09.01.123.00.00",null,"kein Benchmark",null,null,null,0]
[471,"Küchentechnische Anlagen",{"$f":"VLOOKUP(A494,'[1]Standardstruktur Anlagenmerkmal'!$C:$Z,3,FALSE)","v":471},"Back-, Brat-, Gar- Frittier- und Kochgeräte (ohne Druckdämpfer, Druckkochkessel)",{"$f":"IF(D494=\"\",\"00\",VLOOKUP(D494,'[1]Standardstruktur Anlagenmerkmal'!$F:$Z,2,FALSE))","v":"09"},"Back-, Brat-, Gar- Frittier- und Kochgeräte (ohne Druckdämpfer, Druckkochkessel)",{"$f":"IF(F494=\"\",\"00\",VLOOKUP(F494,'[1]Standardstruktur Anlagenmerkmal'!$N:$O,2,FALSE))","v":"01"},"Friteuse",{"$f":"IF(H494=\"\",\"000\",VLOOKUP(H494,'[1]Nummerierung Bauteil'!$A:$C,3,FALSE))","v":"145"},null,"00","1 Becken","01","Anzahl","471.09.01.145.00.01",null,"kein Benchmark",null,null,null,0]
[471,"Küchentechnische Anlagen",{"$f":"VLOOKUP(A495,'[1]Standardstruktur Anlagenmerkmal'!$C:$Z,3,FALSE)","v":471},"Back-, Brat-, Gar- Frittier- und Kochgeräte (ohne Druckdämpfer, Druckkochkessel)",{"$f":"IF(D495=\"\",\"00\",VLOOKUP(D495,'[1]Standardstruktur Anlagenmerkmal'!$F:$Z,2,FALSE))","v":"09"},"Back-, Brat-, Gar- Frittier- und Kochgeräte (ohne Druckdämpfer, Druckkochkessel)",{"$f":"IF(F495=\"\",\"00\",VLOOKUP(F495,'[1]Standardstruktur Anlagenmerkmal'!$N:$O,2,FALSE))","v":"01"},"Friteuse",{"$f":"IF(H495=\"\",\"000\",VLOOKUP(H495,'[1]Nummerierung Bauteil'!$A:$C,3,FALSE))","v":"145"},null,"00","2 Becken","02","Anzahl","471.09.01.145.00.02",null,1.7786135138523256,130.98081630896363,79.77,141.88,187.30256732181797]
[471,"Küchentechnische Anlagen",{"$f":"VLOOKUP(A496,'[1]Standardstruktur Anlagenmerkmal'!$C:$Z,3,FALSE)","v":471},"Back-, Brat-, Gar- Frittier- und Kochgeräte (ohne Druckdämpfer, Druckkochkessel)",{"$f":"IF(D496=\"\",\"00\",VLOOKUP(D496,'[1]Standardstruktur Anlagenmerkmal'!$F:$Z,2,FALSE))","v":"09"},"Back-, Brat-, Gar- Frittier- und Kochgeräte (ohne Druckdämpfer, Druckkochkessel)",{"$f":"IF(F496=\"\",\"00\",VLOOKUP(F496,'[1]Standardstruktur Anlagenmerkmal'!$N:$O,2,FALSE))","v":"01"},"Kochkessel",{"$f":"IF(H496=\"\",\"000\",VLOOKUP(H496,'[1]Nummerierung Bauteil'!$A:$C,3,FALSE))","v":"169"},"Druckkochkessel","01","200 l","01","Anzahl","471.09.01.169.01.01",null,"kein Benchmark",null,null,null,0]
[471,"Küchentechnische Anlagen",{"$f":"VLOOKUP(A497,'[1]Standardstruktur Anlagenmerkmal'!$C:$Z,3,FALSE)","v":471},"Back-, Brat-, Gar- Frittier- und Kochgeräte (ohne Druckdämpfer, Druckkochkessel)",{"$f":"IF(D497=\"\",\"00\",VLOOKUP(D497,'[1]Standardstruktur Anlagenmerkmal'!$F:$Z,2,FALSE))","v":"09"},"Back-, Brat-, Gar- Frittier- und Kochgeräte (ohne Druckdämpfer, Druckkochkessel)",{"$f":"IF(F497=\"\",\"00\",VLOOKUP(F497,'[1]Standardstruktur Anlagenmerkmal'!$N:$O,2,FALSE))","v":"01"},"Kochkessel",{"$f":"IF(H497=\"\",\"000\",VLOOKUP(H497,'[1]Nummerierung Bauteil'!$A:$C,3,FALSE))","v":"169"},"Kochkessel","02","elektrisch","01","Anzahl","471.09.01.169.02.01",null,2.1742989507136437,110.52908946384906,69.64,151.41817892769814,158.05659793330415]
[471,"Küchentechnische Anlagen",{"$f":"VLOOKUP(A498,'[1]Standardstruktur Anlagenmerkmal'!$C:$Z,3,FALSE)","v":471},"Back-, Brat-, Gar- Frittier- und Kochgeräte (ohne Druckdämpfer, Druckkochkessel)",{"$f":"IF(D498=\"\",\"00\",VLOOKUP(D498,'[1]Standardstruktur Anlagenmerkmal'!$F:$Z,2,FALSE))","v":"09"},"Back-, Brat-, Gar- Frittier- und Kochgeräte (ohne Druckdämpfer, Druckkochkessel)",{"$f":"IF(F498=\"\",\"00\",VLOOKUP(F498,'[1]Standardstruktur Anlagenmerkmal'!$N:$O,2,FALSE))","v":"01"},"Kochkessel",{"$f":"IF(H498=\"\",\"000\",VLOOKUP(H498,'[1]Nummerierung Bauteil'!$A:$C,3,FALSE))","v":"169"},"Schnellkochkessel","03","elektrisch","01","Anzahl","471.09.01.169.03.01",null,"kein Benchmark",null,null,null,0]
[471,"Küchentechnische Anlagen",{"$f":"VLOOKUP(A499,'[1]Standardstruktur Anlagenmerkmal'!$C:$Z,3,FALSE)","v":471},"Back-, Brat-, Gar- Frittier- und Kochgeräte (ohne Druckdämpfer, Druckkochkessel)",{"$f":"IF(D499=\"\",\"00\",VLOOKUP(D499,'[1]Standardstruktur Anlagenmerkmal'!$F:$Z,2,FALSE))","v":"09"},"Back-, Brat-, Gar- Frittier- und Kochgeräte (ohne Druckdämpfer, Druckkochkessel)",{"$f":"IF(F499=\"\",\"00\",VLOOKUP(F499,'[1]Standardstruktur Anlagenmerkmal'!$N:$O,2,FALSE))","v":"01"},"Kochkessel",{"$f":"IF(H499=\"\",\"000\",VLOOKUP(H499,'[1]Nummerierung Bauteil'!$A:$C,3,FALSE))","v":"169"},"Schnellkochtopf","04","Gas","01","Anzahl","471.09.01.169.04.01",null,"kein Benchmark",null,null,null,0]
[471,"Küchentechnische Anlagen",{"$f":"VLOOKUP(A500,'[1]Standardstruktur Anlagenmerkmal'!$C:$Z,3,FALSE)","v":471},"Back-, Brat-, Gar- und Kochgeräte (mit Druckdämpfer, Druckkochkessel)",{"$f":"IF(D500=\"\",\"00\",VLOOKUP(D500,'[1]Standardstruktur Anlagenmerkmal'!$F:$Z,2,FALSE))","v":"10"},"Back-, Brat-, Gar- und Kochgeräte (mit Druckdämpfer, Druckkochkessel)",{"$f":"IF(F500=\"\",\"00\",VLOOKUP(F500,'[1]Standardstruktur Anlagenmerkmal'!$N:$O,2,FALSE))","v":"01"},"Kombidämpfer",{"$f":"IF(H500=\"\",\"000\",VLOOKUP(H500,'[1]Nummerierung Bauteil'!$A:$C,3,FALSE))","v":"170"},null,"00","elektro","01","Anzahl","471.10.01.170.00.01",null,"kein Benchmark",null,null,null,0]
[471,"Küchentechnische Anlagen",{"$f":"VLOOKUP(A501,'[1]Standardstruktur Anlagenmerkmal'!$C:$Z,3,FALSE)","v":471},"Back-, Brat-, Gar- und Kochgeräte (mit Druckdämpfer, Druckkochkessel)",{"$f":"IF(D501=\"\",\"00\",VLOOKUP(D501,'[1]Standardstruktur Anlagenmerkmal'!$F:$Z,2,FALSE))","v":"10"},"Back-, Brat-, Gar- und Kochgeräte (mit Druckdämpfer, Druckkochkessel)",{"$f":"IF(F501=\"\",\"00\",VLOOKUP(F501,'[1]Standardstruktur Anlagenmerkmal'!$N:$O,2,FALSE))","v":"01"},"Kombidämpfer",{"$f":"IF(H501=\"\",\"000\",VLOOKUP(H501,'[1]Nummerierung Bauteil'!$A:$C,3,FALSE))","v":"170"},null,"00","Gas","02","Anzahl","471.10.01.170.00.02",null,1.6044691369571522,177.66899209002261,132.85702734317704,213.16500000000002,254.06665868873233]
[471,"Küchentechnische Anlagen",{"$f":"VLOOKUP(A502,'[1]Standardstruktur Anlagenmerkmal'!$C:$Z,3,FALSE)","v":471},"Back-, Brat-, Gar- und Kochgeräte (mit Druckdämpfer, Druckkochkessel)",{"$f":"IF(D502=\"\",\"00\",VLOOKUP(D502,'[1]Standardstruktur Anlagenmerkmal'!$F:$Z,2,FALSE))","v":"10"},"Back-, Brat-, Gar- und Kochgeräte (mit Druckdämpfer, Druckkochkessel)",{"$f":"IF(F502=\"\",\"00\",VLOOKUP(F502,'[1]Standardstruktur Anlagenmerkmal'!$N:$O,2,FALSE))","v":"01"},"Konvektomat",{"$f":"IF(H502=\"\",\"000\",VLOOKUP(H502,'[1]Nummerierung Bauteil'!$A:$C,3,FALSE))","v":"172"},null,"00",null,"00","Anzahl","471.10.01.172.00.00",null,"kein Benchmark",null,null,null,0]
[471,"Küchentechnische Anlagen",{"$f":"VLOOKUP(A503,'[1]Standardstruktur Anlagenmerkmal'!$C:$Z,3,FALSE)","v":471},"Koch- und Bratgeräte",{"$f":"IF(D503=\"\",\"00\",VLOOKUP(D503,'[1]Standardstruktur Anlagenmerkmal'!$F:$Z,2,FALSE))","v":"11"},"Koch- und Bratgeräte",{"$f":"IF(F503=\"\",\"00\",VLOOKUP(F503,'[1]Standardstruktur Anlagenmerkmal'!$N:$O,2,FALSE))","v":"01"},"Herd",{"$f":"IF(H503=\"\",\"000\",VLOOKUP(H503,'[1]Nummerierung Bauteil'!$A:$C,3,FALSE))","v":"155"},"Gasherd","01",null,"00","Anzahl","471.11.01.155.01.00",null,2.4240295099244689,113.36874292140308,56.93,138,162.11730237760639]
[471,"Küchentechnische Anlagen",{"$f":"VLOOKUP(A504,'[1]Standardstruktur Anlagenmerkmal'!$C:$Z,3,FALSE)","v":471},"Koch- und Bratgeräte",{"$f":"IF(D504=\"\",\"00\",VLOOKUP(D504,'[1]Standardstruktur Anlagenmerkmal'!$F:$Z,2,FALSE))","v":"11"},"Koch- und Bratgeräte",{"$f":"IF(F504=\"\",\"00\",VLOOKUP(F504,'[1]Standardstruktur Anlagenmerkmal'!$N:$O,2,FALSE))","v":"01"},"Herd",{"$f":"IF(H504=\"\",\"000\",VLOOKUP(H504,'[1]Nummerierung Bauteil'!$A:$C,3,FALSE))","v":"155"},"Ceranfeldherd","02",null,"00","Anzahl","471.11.01.155.02.00",null,1.7425705909581855,66.856447062477514,40.506249999999994,70.584999999999994,95.604719299342847]
[471,"Küchentechnische Anlagen",{"$f":"VLOOKUP(A505,'[1]Standardstruktur Anlagenmerkmal'!$C:$Z,3,FALSE)","v":471},"Koch- und Bratgeräte",{"$f":"IF(D505=\"\",\"00\",VLOOKUP(D505,'[1]Standardstruktur Anlagenmerkmal'!$F:$Z,2,FALSE))","v":"11"},"Koch- und Bratgeräte",{"$f":"IF(F505=\"\",\"00\",VLOOKUP(F505,'[1]Standardstruktur Anlagenmerkmal'!$N:$O,2,FALSE))","v":"01"},"Herd",{"$f":"IF(H505=\"\",\"000\",VLOOKUP(H505,'[1]Nummerierung Bauteil'!$A:$C,3,FALSE))","v":"155"},"Ceran-Großflächenherd","03",null,"00","Anzahl","471.11.01.155.03.00",null,"kein Benchmark",null,null,null,0]
[471,"Küchentechnische Anlagen",{"$f":"VLOOKUP(A506,'[1]Standardstruktur Anlagenmerkmal'!$C:$Z,3,FALSE)","v":471},"Koch- und Bratgeräte",{"$f":"IF(D506=\"\",\"00\",VLOOKUP(D506,'[1]Standardstruktur Anlagenmerkmal'!$F:$Z,2,FALSE))","v":"11"},"Koch- und Bratgeräte",{"$f":"IF(F506=\"\",\"00\",VLOOKUP(F506,'[1]Standardstruktur Anlagenmerkmal'!$N:$O,2,FALSE))","v":"01"},"Herd",{"$f":"IF(H506=\"\",\"000\",VLOOKUP(H506,'[1]Nummerierung Bauteil'!$A:$C,3,FALSE))","v":"155"},"Induktionsherd","04",null,"00","Anzahl","471.11.01.155.04.00",null,"kein Benchmark",null,null,null,0]
[471,"Küchentechnische Anlagen",{"$f":"VLOOKUP(A507,'[1]Standardstruktur Anlagenmerkmal'!$C:$Z,3,FALSE)","v":471},"Koch- und Bratgeräte",{"$f":"IF(D507=\"\",\"00\",VLOOKUP(D507,'[1]Standardstruktur Anlagenmerkmal'!$F:$Z,2,FALSE))","v":"11"},"Koch- und Bratgeräte",{"$f":"IF(F507=\"\",\"00\",VLOOKUP(F507,'[1]Standardstruktur Anlagenmerkmal'!$N:$O,2,FALSE))","v":"01"},"Kippbratpfanne (Gas)",{"$f":"IF(H507=\"\",\"000\",VLOOKUP(H507,'[1]Nummerierung Bauteil'!$A:$C,3,FALSE))","v":"165"},null,"00",null,"00","Anzahl","471.11.01.165.00.00",null,"kein Benchmark",null,null,null,0]
[471,"Küchentechnische Anlagen",{"$f":"VLOOKUP(A508,'[1]Standardstruktur Anlagenmerkmal'!$C:$Z,3,FALSE)","v":471},"Koch- und Bratgeräte",{"$f":"IF(D508=\"\",\"00\",VLOOKUP(D508,'[1]Standardstruktur Anlagenmerkmal'!$F:$Z,2,FALSE))","v":"11"},"Koch- und Bratgeräte",{"$f":"IF(F508=\"\",\"00\",VLOOKUP(F508,'[1]Standardstruktur Anlagenmerkmal'!$N:$O,2,FALSE))","v":"01"},"Kippdruckgarbraisiere",{"$f":"IF(H508=\"\",\"000\",VLOOKUP(H508,'[1]Nummerierung Bauteil'!$A:$C,3,FALSE))","v":"166"},null,"00",null,"00","Anzahl","471.11.01.166.00.00",null,"kein Benchmark",null,null,null,0]
[471,"Küchentechnische Anlagen",{"$f":"VLOOKUP(A509,'[1]Standardstruktur Anlagenmerkmal'!$C:$Z,3,FALSE)","v":471},"Koch- und Bratgeräte",{"$f":"IF(D509=\"\",\"00\",VLOOKUP(D509,'[1]Standardstruktur Anlagenmerkmal'!$F:$Z,2,FALSE))","v":"11"},"Koch- und Bratgeräte",{"$f":"IF(F509=\"\",\"00\",VLOOKUP(F509,'[1]Standardstruktur Anlagenmerkmal'!$N:$O,2,FALSE))","v":"01"},"Backofen",{"$f":"IF(H509=\"\",\"000\",VLOOKUP(H509,'[1]Nummerierung Bauteil'!$A:$C,3,FALSE))","v":"112"},null,"00",null,"00","Anzahl","471.11.01.112.00.00",null,"kein Benchmark",null,null,null,0]
[471,"Küchentechnische Anlagen",{"$f":"VLOOKUP(A510,'[1]Standardstruktur Anlagenmerkmal'!$C:$Z,3,FALSE)","v":471},"Koch- und Bratgeräte",{"$f":"IF(D510=\"\",\"00\",VLOOKUP(D510,'[1]Standardstruktur Anlagenmerkmal'!$F:$Z,2,FALSE))","v":"11"},"Koch- und Bratgeräte",{"$f":"IF(F510=\"\",\"00\",VLOOKUP(F510,'[1]Standardstruktur Anlagenmerkmal'!$N:$O,2,FALSE))","v":"01"},"Dämpfer",{"$f":"IF(H510=\"\",\"000\",VLOOKUP(H510,'[1]Nummerierung Bauteil'!$A:$C,3,FALSE))","v":"127"},null,"00",null,"00","Anzahl","471.11.01.127.00.00",null,"kein Benchmark",null,null,null,0]
[471,"Küchentechnische Anlagen",{"$f":"VLOOKUP(A511,'[1]Standardstruktur Anlagenmerkmal'!$C:$Z,3,FALSE)","v":471},"Koch- und Bratgeräte",{"$f":"IF(D511=\"\",\"00\",VLOOKUP(D511,'[1]Standardstruktur Anlagenmerkmal'!$F:$Z,2,FALSE))","v":"11"},"Koch- und Bratgeräte",{"$f":"IF(F511=\"\",\"00\",VLOOKUP(F511,'[1]Standardstruktur Anlagenmerkmal'!$N:$O,2,FALSE))","v":"01"},"Heißluftdämpfer",{"$f":"IF(H511=\"\",\"000\",VLOOKUP(H511,'[1]Nummerierung Bauteil'!$A:$C,3,FALSE))","v":"153"},null,"00",null,"00","Anzahl","471.11.01.153.00.00",null,"kein Benchmark",null,null,null,0]
[471,"Küchentechnische Anlagen",{"$f":"VLOOKUP(A512,'[1]Standardstruktur Anlagenmerkmal'!$C:$Z,3,FALSE)","v":471},"Koch- und Bratgeräte",{"$f":"IF(D512=\"\",\"00\",VLOOKUP(D512,'[1]Standardstruktur Anlagenmerkmal'!$F:$Z,2,FALSE))","v":"11"},"Koch- und Bratgeräte",{"$f":"IF(F512=\"\",\"00\",VLOOKUP(F512,'[1]Standardstruktur Anlagenmerkmal'!$N:$O,2,FALSE))","v":"01"},"Grillplatte",{"$f":"IF(H512=\"\",\"000\",VLOOKUP(H512,'[1]Nummerierung Bauteil'!$A:$C,3,FALSE))","v":"152"},null,"00",null,"00","Anzahl","471.11.01.152.00.00",null,"kein Benchmark",null,null,null,0]
[471,"Küchentechnische Anlagen",{"$f":"VLOOKUP(A513,'[1]Standardstruktur Anlagenmerkmal'!$C:$Z,3,FALSE)","v":471},"Koch- und Bratgeräte",{"$f":"IF(D513=\"\",\"00\",VLOOKUP(D513,'[1]Standardstruktur Anlagenmerkmal'!$F:$Z,2,FALSE))","v":"11"},"Koch- und Bratgeräte",{"$f":"IF(F513=\"\",\"00\",VLOOKUP(F513,'[1]Standardstruktur Anlagenmerkmal'!$N:$O,2,FALSE))","v":"01"},"Würstchenwärmer",{"$f":"IF(H513=\"\",\"000\",VLOOKUP(H513,'[1]Nummerierung Bauteil'!$A:$C,3,FALSE))","v":"233"},null,"00",null,"00","Anzahl","471.11.01.233.00.00",null,"kein Benchmark",null,null,null,0]
[471,"Küchentechnische Anlagen",{"$f":"VLOOKUP(A514,'[1]Standardstruktur Anlagenmerkmal'!$C:$Z,3,FALSE)","v":471},"Koch- und Bratgeräte",{"$f":"IF(D514=\"\",\"00\",VLOOKUP(D514,'[1]Standardstruktur Anlagenmerkmal'!$F:$Z,2,FALSE))","v":"11"},"Koch- und Bratgeräte",{"$f":"IF(F514=\"\",\"00\",VLOOKUP(F514,'[1]Standardstruktur Anlagenmerkmal'!$N:$O,2,FALSE))","v":"01"},"Vario-Cooking-Center",{"$f":"IF(H514=\"\",\"000\",VLOOKUP(H514,'[1]Nummerierung Bauteil'!$A:$C,3,FALSE))","v":"220"},null,"00",null,"00","Anzahl","471.11.01.220.00.00",null,"kein Benchmark",null,null,null,0]
[471,"Küchentechnische Anlagen",{"$f":"VLOOKUP(A515,'[1]Standardstruktur Anlagenmerkmal'!$C:$Z,3,FALSE)","v":471},"Koch- und Bratgeräte",{"$f":"IF(D515=\"\",\"00\",VLOOKUP(D515,'[1]Standardstruktur Anlagenmerkmal'!$F:$Z,2,FALSE))","v":"11"},"Koch- und Bratgeräte",{"$f":"IF(F515=\"\",\"00\",VLOOKUP(F515,'[1]Standardstruktur Anlagenmerkmal'!$N:$O,2,FALSE))","v":"01"},"Varithek- Air Clearing Sytem",{"$f":"IF(H515=\"\",\"000\",VLOOKUP(H515,'[1]Nummerierung Bauteil'!$A:$C,3,FALSE))","v":"221"},null,"00",null,"00","Anzahl","471.11.01.221.00.00",null,"kein Benchmark",null,null,null,{"$f":"R515*(((160.2-117.2)/100)+1)","v":0}]
[471,"Küchentechnische Anlagen",{"$f":"VLOOKUP(A516,'[1]Standardstruktur Anlagenmerkmal'!$C:$Z,3,FALSE)","v":471},"Ausgabegeräte",{"$f":"IF(D516=\"\",\"00\",VLOOKUP(D516,'[1]Standardstruktur Anlagenmerkmal'!$F:$Z,2,FALSE))","v":"12"},"Ausgabegeräte",{"$f":"IF(F516=\"\",\"00\",VLOOKUP(F516,'[1]Standardstruktur Anlagenmerkmal'!$N:$O,2,FALSE))","v":"01"},"Warmhaltegeräte",{"$f":"IF(H516=\"\",\"000\",VLOOKUP(H516,'[1]Nummerierung Bauteil'!$A:$C,3,FALSE))","v":"226"},null,"00",null,"00","Anzahl","471.12.01.226.00.00",null,1.284821904066406,84.228906855534547,68.355777343177024,87.825000000000003,120.4473368034144]
[471,"Küchentechnische Anlagen",{"$f":"VLOOKUP(A517,'[1]Standardstruktur Anlagenmerkmal'!$C:$Z,3,FALSE)","v":471},"Ausgabegeräte",{"$f":"IF(D517=\"\",\"00\",VLOOKUP(D517,'[1]Standardstruktur Anlagenmerkmal'!$F:$Z,2,FALSE))","v":"12"},"Ausgabegeräte",{"$f":"IF(F517=\"\",\"00\",VLOOKUP(F517,'[1]Standardstruktur Anlagenmerkmal'!$N:$O,2,FALSE))","v":"01"},"Bain-Marie",{"$f":"IF(H517=\"\",\"000\",VLOOKUP(H517,'[1]Nummerierung Bauteil'!$A:$C,3,FALSE))","v":"114"},"mobil","01",null,"00","Anzahl","471.12.01.114.01.00",null,"kein Benchmark",null,null,null,0]
[471,"Küchentechnische Anlagen",{"$f":"VLOOKUP(A518,'[1]Standardstruktur Anlagenmerkmal'!$C:$Z,3,FALSE)","v":471},"Ausgabegeräte",{"$f":"IF(D518=\"\",\"00\",VLOOKUP(D518,'[1]Standardstruktur Anlagenmerkmal'!$F:$Z,2,FALSE))","v":"12"},"Ausgabegeräte",{"$f":"IF(F518=\"\",\"00\",VLOOKUP(F518,'[1]Standardstruktur Anlagenmerkmal'!$N:$O,2,FALSE))","v":"01"},"Bain-Marie",{"$f":"IF(H518=\"\",\"000\",VLOOKUP(H518,'[1]Nummerierung Bauteil'!$A:$C,3,FALSE))","v":"114"},"stationär","02",null,"00","Anzahl","471.12.01.114.02.00",null,"kein Benchmark",null,null,null,0]
[471,"Küchentechnische Anlagen",{"$f":"VLOOKUP(A519,'[1]Standardstruktur Anlagenmerkmal'!$C:$Z,3,FALSE)","v":471},"Ausgabegeräte",{"$f":"IF(D519=\"\",\"00\",VLOOKUP(D519,'[1]Standardstruktur Anlagenmerkmal'!$F:$Z,2,FALSE))","v":"12"},"Ausgabegeräte",{"$f":"IF(F519=\"\",\"00\",VLOOKUP(F519,'[1]Standardstruktur Anlagenmerkmal'!$N:$O,2,FALSE))","v":"01"},"Doppelwärmeplatte",{"$f":"IF(H519=\"\",\"000\",VLOOKUP(H519,'[1]Nummerierung Bauteil'!$A:$C,3,FALSE))","v":"129"},null,"00",null,"00","Anzahl","471.12.01.129.00.00",null,"kein Benchmark",null,null,null,0]
[471,"Küchentechnische Anlagen",{"$f":"VLOOKUP(A520,'[1]Standardstruktur Anlagenmerkmal'!$C:$Z,3,FALSE)","v":471},"Ausgabegeräte",{"$f":"IF(D520=\"\",\"00\",VLOOKUP(D520,'[1]Standardstruktur Anlagenmerkmal'!$F:$Z,2,FALSE))","v":"12"},"Ausgabegeräte",{"$f":"IF(F520=\"\",\"00\",VLOOKUP(F520,'[1]Standardstruktur Anlagenmerkmal'!$N:$O,2,FALSE))","v":"01"},"Tassenwärmer",{"$f":"IF(H520=\"\",\"000\",VLOOKUP(H520,'[1]Nummerierung Bauteil'!$A:$C,3,FALSE))","v":"211"},null,"00",null,"00","Anzahl","471.12.01.211.00.00",null,"kein Benchmark",null,null,null,0]
[471,"Küchentechnische Anlagen",{"$f":"VLOOKUP(A521,'[1]Standardstruktur Anlagenmerkmal'!$C:$Z,3,FALSE)","v":471},"Ausgabegeräte",{"$f":"IF(D521=\"\",\"00\",VLOOKUP(D521,'[1]Standardstruktur Anlagenmerkmal'!$F:$Z,2,FALSE))","v":"12"},"Ausgabegeräte",{"$f":"IF(F521=\"\",\"00\",VLOOKUP(F521,'[1]Standardstruktur Anlagenmerkmal'!$N:$O,2,FALSE))","v":"01"},"Tellerspender",{"$f":"IF(H521=\"\",\"000\",VLOOKUP(H521,'[1]Nummerierung Bauteil'!$A:$C,3,FALSE))","v":"212"},null,"00",null,"00","Anzahl","471.12.01.212.00.00",null,"kein Benchmark",null,null,null,0]
[471,"Küchentechnische Anlagen",{"$f":"VLOOKUP(A522,'[1]Standardstruktur Anlagenmerkmal'!$C:$Z,3,FALSE)","v":471},"Ausgabegeräte",{"$f":"IF(D522=\"\",\"00\",VLOOKUP(D522,'[1]Standardstruktur Anlagenmerkmal'!$F:$Z,2,FALSE))","v":"12"},"Ausgabegeräte",{"$f":"IF(F522=\"\",\"00\",VLOOKUP(F522,'[1]Standardstruktur Anlagenmerkmal'!$N:$O,2,FALSE))","v":"01"},"Röhrenstapler",{"$f":"IF(H522=\"\",\"000\",VLOOKUP(H522,'[1]Nummerierung Bauteil'!$A:$C,3,FALSE))","v":"192"},null,"00",null,"00","Anzahl","471.12.01.192.00.00",null,"kein Benchmark",null,null,null,0]
[471,"Küchentechnische Anlagen",{"$f":"VLOOKUP(A523,'[1]Standardstruktur Anlagenmerkmal'!$C:$Z,3,FALSE)","v":471},"Ausgabegeräte",{"$f":"IF(D523=\"\",\"00\",VLOOKUP(D523,'[1]Standardstruktur Anlagenmerkmal'!$F:$Z,2,FALSE))","v":"12"},"Ausgabegeräte",{"$f":"IF(F523=\"\",\"00\",VLOOKUP(F523,'[1]Standardstruktur Anlagenmerkmal'!$N:$O,2,FALSE))","v":"01"},"Tablettspender",{"$f":"IF(H523=\"\",\"000\",VLOOKUP(H523,'[1]Nummerierung Bauteil'!$A:$C,3,FALSE))","v":"209"},null,"00",null,"00","Anzahl","471.12.01.209.00.00",null,"kein Benchmark",null,null,null,0]
[471,"Küchentechnische Anlagen",{"$f":"VLOOKUP(A524,'[1]Standardstruktur Anlagenmerkmal'!$C:$Z,3,FALSE)","v":471},"Ausgabegeräte",{"$f":"IF(D524=\"\",\"00\",VLOOKUP(D524,'[1]Standardstruktur Anlagenmerkmal'!$F:$Z,2,FALSE))","v":"12"},"Schankanlage",{"$f":"IF(F524=\"\",\"00\",VLOOKUP(F524,'[1]Standardstruktur Anlagenmerkmal'!$N:$O,2,FALSE))","v":"02"},null,{"$f":"IF(H524=\"\",\"000\",VLOOKUP(H524,'[1]Nummerierung Bauteil'!$A:$C,3,FALSE))","v":"000"},"ortsveränderlich","01","bis 2 Zapfstellen","01","Anzahl","471.12.02.000.01.01",null,"kein Benchmark",null,null,null,0]
[471,"Küchentechnische Anlagen",{"$f":"VLOOKUP(A525,'[1]Standardstruktur Anlagenmerkmal'!$C:$Z,3,FALSE)","v":471},"Ausgabegeräte",{"$f":"IF(D525=\"\",\"00\",VLOOKUP(D525,'[1]Standardstruktur Anlagenmerkmal'!$F:$Z,2,FALSE))","v":"12"},"Schankanlage",{"$f":"IF(F525=\"\",\"00\",VLOOKUP(F525,'[1]Standardstruktur Anlagenmerkmal'!$N:$O,2,FALSE))","v":"02"},null,{"$f":"IF(H525=\"\",\"000\",VLOOKUP(H525,'[1]Nummerierung Bauteil'!$A:$C,3,FALSE))","v":"000"},"ortsfest","02","bis 2 Zapfstellen","01","Anzahl","471.12.02.000.02.01",null,"kein Benchmark",null,null,null,0]
[471,"Küchentechnische Anlagen",{"$f":"VLOOKUP(A526,'[1]Standardstruktur Anlagenmerkmal'!$C:$Z,3,FALSE)","v":471},"Ausgabegeräte",{"$f":"IF(D526=\"\",\"00\",VLOOKUP(D526,'[1]Standardstruktur Anlagenmerkmal'!$F:$Z,2,FALSE))","v":"12"},"Schankanlage",{"$f":"IF(F526=\"\",\"00\",VLOOKUP(F526,'[1]Standardstruktur Anlagenmerkmal'!$N:$O,2,FALSE))","v":"02"},null,{"$f":"IF(H526=\"\",\"000\",VLOOKUP(H526,'[1]Nummerierung Bauteil'!$A:$C,3,FALSE))","v":"000"},"ortsfest","02","3 bis 5 Zapfstellen","02","Anzahl","471.12.02.000.02.02",null,"kein Benchmark",null,null,null,0]
[471,"Küchentechnische Anlagen",{"$f":"VLOOKUP(A527,'[1]Standardstruktur Anlagenmerkmal'!$C:$Z,3,FALSE)","v":471},"Spülanlagen",{"$f":"IF(D527=\"\",\"00\",VLOOKUP(D527,'[1]Standardstruktur Anlagenmerkmal'!$F:$Z,2,FALSE))","v":"13"},"Spülanlage",{"$f":"IF(F527=\"\",\"00\",VLOOKUP(F527,'[1]Standardstruktur Anlagenmerkmal'!$N:$O,2,FALSE))","v":"01"},"Geschirr-Rückförderanlage",{"$f":"IF(H527=\"\",\"000\",VLOOKUP(H527,'[1]Nummerierung Bauteil'!$A:$C,3,FALSE))","v":"147"},null,"00","Förderlänge bis 5 Meter","01","Anzahl","471.13.01.147.00.01",null,"kein Benchmark",null,null,null,0]
[471,"Küchentechnische Anlagen",{"$f":"VLOOKUP(A528,'[1]Standardstruktur Anlagenmerkmal'!$C:$Z,3,FALSE)","v":471},"Spülanlagen",{"$f":"IF(D528=\"\",\"00\",VLOOKUP(D528,'[1]Standardstruktur Anlagenmerkmal'!$F:$Z,2,FALSE))","v":"13"},"Spülanlage",{"$f":"IF(F528=\"\",\"00\",VLOOKUP(F528,'[1]Standardstruktur Anlagenmerkmal'!$N:$O,2,FALSE))","v":"01"},"Geschirr-Rückförderanlage",{"$f":"IF(H528=\"\",\"000\",VLOOKUP(H528,'[1]Nummerierung Bauteil'!$A:$C,3,FALSE))","v":"147"},null,"00","Förderlänge >5 bis 10 Meter","02","Anzahl","471.13.01.147.00.02",null,"kein Benchmark",null,null,null,0]
[471,"Küchentechnische Anlagen",{"$f":"VLOOKUP(A529,'[1]Standardstruktur Anlagenmerkmal'!$C:$Z,3,FALSE)","v":471},"Spülanlagen",{"$f":"IF(D529=\"\",\"00\",VLOOKUP(D529,'[1]Standardstruktur Anlagenmerkmal'!$F:$Z,2,FALSE))","v":"13"},"Spülanlage",{"$f":"IF(F529=\"\",\"00\",VLOOKUP(F529,'[1]Standardstruktur Anlagenmerkmal'!$N:$O,2,FALSE))","v":"01"},"Geschirr-Rückförderanlage",{"$f":"IF(H529=\"\",\"000\",VLOOKUP(H529,'[1]Nummerierung Bauteil'!$A:$C,3,FALSE))","v":"147"},null,"00","Förderlänge >10 bis 20 Meter","03","Anzahl","471.13.01.147.00.03",null,"kein Benchmark",null,null,null,0]
[471,"Küchentechnische Anlagen",{"$f":"VLOOKUP(A530,'[1]Standardstruktur Anlagenmerkmal'!$C:$Z,3,FALSE)","v":471},"Spülanlagen",{"$f":"IF(D530=\"\",\"00\",VLOOKUP(D530,'[1]Standardstruktur Anlagenmerkmal'!$F:$Z,2,FALSE))","v":"13"},"Spülanlage",{"$f":"IF(F530=\"\",\"00\",VLOOKUP(F530,'[1]Standardstruktur Anlagenmerkmal'!$N:$O,2,FALSE))","v":"01"},"Bandspülmaschine",{"$f":"IF(H530=\"\",\"000\",VLOOKUP(H530,'[1]Nummerierung Bauteil'!$A:$C,3,FALSE))","v":"115"},null,"00",null,"00","Anzahl","471.13.01.115.00.00",null,2.1704347826086958,754.19118928395619,402.5,873.6,1078.4934006760573]
[471,"Küchentechnische Anlagen",{"$f":"VLOOKUP(A531,'[1]Standardstruktur Anlagenmerkmal'!$C:$Z,3,FALSE)","v":471},"Spülanlagen",{"$f":"IF(D531=\"\",\"00\",VLOOKUP(D531,'[1]Standardstruktur Anlagenmerkmal'!$F:$Z,2,FALSE))","v":"13"},"Spülanlage",{"$f":"IF(F531=\"\",\"00\",VLOOKUP(F531,'[1]Standardstruktur Anlagenmerkmal'!$N:$O,2,FALSE))","v":"01"},"Gläserspülbecken mit Mischarmatur",{"$f":"IF(H531=\"\",\"000\",VLOOKUP(H531,'[1]Nummerierung Bauteil'!$A:$C,3,FALSE))","v":"150"},null,"00",null,"00","Anzahl","471.13.01.150.00.00",null,"kein Benchmark",null,null,null,0]
[471,"Küchentechnische Anlagen",{"$f":"VLOOKUP(A532,'[1]Standardstruktur Anlagenmerkmal'!$C:$Z,3,FALSE)","v":471},"Spülanlagen",{"$f":"IF(D532=\"\",\"00\",VLOOKUP(D532,'[1]Standardstruktur Anlagenmerkmal'!$F:$Z,2,FALSE))","v":"13"},"Spülanlage",{"$f":"IF(F532=\"\",\"00\",VLOOKUP(F532,'[1]Standardstruktur Anlagenmerkmal'!$N:$O,2,FALSE))","v":"01"},"Gläserspülmaschine",{"$f":"IF(H532=\"\",\"000\",VLOOKUP(H532,'[1]Nummerierung Bauteil'!$A:$C,3,FALSE))","v":"151"},null,"00",null,"00","Anzahl","471.13.01.151.00.00",null,"kein Benchmark",null,null,null,0]
[471,"Küchentechnische Anlagen",{"$f":"VLOOKUP(A533,'[1]Standardstruktur Anlagenmerkmal'!$C:$Z,3,FALSE)","v":471},"Spülanlagen",{"$f":"IF(D533=\"\",\"00\",VLOOKUP(D533,'[1]Standardstruktur Anlagenmerkmal'!$F:$Z,2,FALSE))","v":"13"},"Spülanlage",{"$f":"IF(F533=\"\",\"00\",VLOOKUP(F533,'[1]Standardstruktur Anlagenmerkmal'!$N:$O,2,FALSE))","v":"01"},"Besteckpoliermaschine",{"$f":"IF(H533=\"\",\"000\",VLOOKUP(H533,'[1]Nummerierung Bauteil'!$A:$C,3,FALSE))","v":"117"},null,"00",null,"00","Anzahl","471.13.01.117.00.00",null,"kein Benchmark",null,null,null,0]
[471,"Küchentechnische Anlagen",{"$f":"VLOOKUP(A534,'[1]Standardstruktur Anlagenmerkmal'!$C:$Z,3,FALSE)","v":471},"Spülanlagen",{"$f":"IF(D534=\"\",\"00\",VLOOKUP(D534,'[1]Standardstruktur Anlagenmerkmal'!$F:$Z,2,FALSE))","v":"13"},"Spülanlage",{"$f":"IF(F534=\"\",\"00\",VLOOKUP(F534,'[1]Standardstruktur Anlagenmerkmal'!$N:$O,2,FALSE))","v":"01"},"Tablettförderband",{"$f":"IF(H534=\"\",\"000\",VLOOKUP(H534,'[1]Nummerierung Bauteil'!$A:$C,3,FALSE))","v":"208"},null,"00",null,"00","Anzahl","471.13.01.208.00.00",null,2.2036518091977708,284.61242672912999,177.68,391.54485345825992,406.99577022265589]
[471,"Küchentechnische Anlagen",{"$f":"VLOOKUP(A535,'[1]Standardstruktur Anlagenmerkmal'!$C:$Z,3,FALSE)","v":471},"Spülanlagen",{"$f":"IF(D535=\"\",\"00\",VLOOKUP(D535,'[1]Standardstruktur Anlagenmerkmal'!$F:$Z,2,FALSE))","v":"13"},"Spülanlage",{"$f":"IF(F535=\"\",\"00\",VLOOKUP(F535,'[1]Standardstruktur Anlagenmerkmal'!$N:$O,2,FALSE))","v":"01"},"Topfspülmaschine",{"$f":"IF(H535=\"\",\"000\",VLOOKUP(H535,'[1]Nummerierung Bauteil'!$A:$C,3,FALSE))","v":"213"},null,"00",null,"00","Anzahl","471.13.01.213.00.00",null,2.3615041207385059,296.33917892769813,136.33577734317703,321.95749999999998,423.76502586660831]
[471,"Küchentechnische Anlagen",{"$f":"VLOOKUP(A536,'[1]Standardstruktur Anlagenmerkmal'!$C:$Z,3,FALSE)","v":471},"Spülanlagen",{"$f":"IF(D536=\"\",\"00\",VLOOKUP(D536,'[1]Standardstruktur Anlagenmerkmal'!$F:$Z,2,FALSE))","v":"13"},"Spülanlage",{"$f":"IF(F536=\"\",\"00\",VLOOKUP(F536,'[1]Standardstruktur Anlagenmerkmal'!$N:$O,2,FALSE))","v":"01"},"Topfwäscher",{"$f":"IF(H536=\"\",\"000\",VLOOKUP(H536,'[1]Nummerierung Bauteil'!$A:$C,3,FALSE))","v":"214"},null,"00",null,"00","Anzahl","471.13.01.214.00.00",null,2.4473896924883243,180.3300238337772,110.89365981764048,271.39999999999998,257.87193408230138]
[471,"Küchentechnische Anlagen",{"$f":"VLOOKUP(A537,'[1]Standardstruktur Anlagenmerkmal'!$C:$Z,3,FALSE)","v":471},"Kühlmöbel mit integrierter Kälteerzeugung",{"$f":"IF(D537=\"\",\"00\",VLOOKUP(D537,'[1]Standardstruktur Anlagenmerkmal'!$F:$Z,2,FALSE))","v":"14"},"Kühlmöbel mit integrierter Kälteerzeugung",{"$f":"IF(F537=\"\",\"00\",VLOOKUP(F537,'[1]Standardstruktur Anlagenmerkmal'!$N:$O,2,FALSE))","v":"01"},"Kühlschrank, Kühltruhe",{"$f":"IF(H537=\"\",\"000\",VLOOKUP(H537,'[1]Nummerierung Bauteil'!$A:$C,3,FALSE))","v":"022"},null,"00",null,"00","Anzahl","471.14.01.022.00.00",null,2.6273230012427105,90.880910450518385,38.940777343177025,102.31,129.95970194424129]
[471,"Küchentechnische Anlagen",{"$f":"VLOOKUP(A538,'[1]Standardstruktur Anlagenmerkmal'!$C:$Z,3,FALSE)","v":471},"Kühlmöbel mit integrierter Kälteerzeugung",{"$f":"IF(D538=\"\",\"00\",VLOOKUP(D538,'[1]Standardstruktur Anlagenmerkmal'!$F:$Z,2,FALSE))","v":"14"},"Kühlmöbel mit integrierter Kälteerzeugung",{"$f":"IF(F538=\"\",\"00\",VLOOKUP(F538,'[1]Standardstruktur Anlagenmerkmal'!$N:$O,2,FALSE))","v":"01"},"Kühlvitrine",{"$f":"IF(H538=\"\",\"000\",VLOOKUP(H538,'[1]Nummerierung Bauteil'!$A:$C,3,FALSE))","v":"021"},null,"00",null,"00","Anzahl","471.14.01.021.00.00",null,1.7454545454545456,107.84677764405447,63.25,110.4,154.22089203099787]
[471,"Küchentechnische Anlagen",{"$f":"VLOOKUP(A539,'[1]Standardstruktur Anlagenmerkmal'!$C:$Z,3,FALSE)","v":471},"Kühlmöbel mit integrierter Kälteerzeugung",{"$f":"IF(D539=\"\",\"00\",VLOOKUP(D539,'[1]Standardstruktur Anlagenmerkmal'!$F:$Z,2,FALSE))","v":"14"},"Kühlmöbel mit integrierter Kälteerzeugung",{"$f":"IF(F539=\"\",\"00\",VLOOKUP(F539,'[1]Standardstruktur Anlagenmerkmal'!$N:$O,2,FALSE))","v":"01"},"Salattheken o.ä.",{"$f":"IF(H539=\"\",\"000\",VLOOKUP(H539,'[1]Nummerierung Bauteil'!$A:$C,3,FALSE))","v":"197"},null,"00",null,"00","Anzahl","471.14.01.197.00.00",null,2.4436363636363643,98.776507446560032,55,134.40000000000003,141.25040564858085]
[471,"Küchentechnische Anlagen",{"$f":"VLOOKUP(A540,'[1]Standardstruktur Anlagenmerkmal'!$C:$Z,3,FALSE)","v":471},"Kühlmöbel mit integrierter Kälteerzeugung",{"$f":"IF(D540=\"\",\"00\",VLOOKUP(D540,'[1]Standardstruktur Anlagenmerkmal'!$F:$Z,2,FALSE))","v":"14"},"Kühlmöbel mit integrierter Kälteerzeugung",{"$f":"IF(F540=\"\",\"00\",VLOOKUP(F540,'[1]Standardstruktur Anlagenmerkmal'!$N:$O,2,FALSE))","v":"01"},"Saftmaschine",{"$f":"IF(H540=\"\",\"000\",VLOOKUP(H540,'[1]Nummerierung Bauteil'!$A:$C,3,FALSE))","v":"020"},null,"00",null,"00","Anzahl","471.14.01.020.00.00",null,"kein Benchmark",null,null,null,0]
[471,"Küchentechnische Anlagen",{"$f":"VLOOKUP(A541,'[1]Standardstruktur Anlagenmerkmal'!$C:$Z,3,FALSE)","v":471},"Kühlmöbel mit integrierter Kälteerzeugung",{"$f":"IF(D541=\"\",\"00\",VLOOKUP(D541,'[1]Standardstruktur Anlagenmerkmal'!$F:$Z,2,FALSE))","v":"14"},"Kühlmöbel mit integrierter Kälteerzeugung",{"$f":"IF(F541=\"\",\"00\",VLOOKUP(F541,'[1]Standardstruktur Anlagenmerkmal'!$N:$O,2,FALSE))","v":"01"},"Eistruhe",{"$f":"IF(H541=\"\",\"000\",VLOOKUP(H541,'[1]Nummerierung Bauteil'!$A:$C,3,FALSE))","v":"028"},null,"00",null,"00","Anzahl","471.14.01.028.00.00",null,"kein Benchmark",null,null,null,0]
[471,"Küchentechnische Anlagen",{"$f":"VLOOKUP(A542,'[1]Standardstruktur Anlagenmerkmal'!$C:$Z,3,FALSE)","v":471},"Kühlmöbel mit integrierter Kälteerzeugung",{"$f":"IF(D542=\"\",\"00\",VLOOKUP(D542,'[1]Standardstruktur Anlagenmerkmal'!$F:$Z,2,FALSE))","v":"14"},"Kühlmöbel mit integrierter Kälteerzeugung",{"$f":"IF(F542=\"\",\"00\",VLOOKUP(F542,'[1]Standardstruktur Anlagenmerkmal'!$N:$O,2,FALSE))","v":"01"},"Eiswürfelbereiter",{"$f":"IF(H542=\"\",\"000\",VLOOKUP(H542,'[1]Nummerierung Bauteil'!$A:$C,3,FALSE))","v":"027"},null,"00",null,"00","Anzahl","471.14.01.027.00.00",null,2.1177514792899408,105.62600841328525,67.599999999999994,143.16,151.0451920309979]
[471,"Küchentechnische Anlagen",{"$f":"VLOOKUP(A543,'[1]Standardstruktur Anlagenmerkmal'!$C:$Z,3,FALSE)","v":471},"Kühlmöbel mit integrierter Kälteerzeugung",{"$f":"IF(D543=\"\",\"00\",VLOOKUP(D543,'[1]Standardstruktur Anlagenmerkmal'!$F:$Z,2,FALSE))","v":"14"},"Kühlmöbel mit integrierter Kälteerzeugung",{"$f":"IF(F543=\"\",\"00\",VLOOKUP(F543,'[1]Standardstruktur Anlagenmerkmal'!$N:$O,2,FALSE))","v":"01"},"Schockfroster",{"$f":"IF(H543=\"\",\"000\",VLOOKUP(H543,'[1]Nummerierung Bauteil'!$A:$C,3,FALSE))","v":"019"},null,"00",null,"00","Anzahl","471.14.01.019.00.00",null,"kein Benchmark",null,null,null,0]
[471,"Küchentechnische Anlagen",{"$f":"VLOOKUP(A544,'[1]Standardstruktur Anlagenmerkmal'!$C:$Z,3,FALSE)","v":471},"Kühlmöbel ohne integrierter Kälteerzeugung",{"$f":"IF(D544=\"\",\"00\",VLOOKUP(D544,'[1]Standardstruktur Anlagenmerkmal'!$F:$Z,2,FALSE))","v":"15"},"Kühlmöbel ohne integrierter Kälteerzeugung",{"$f":"IF(F544=\"\",\"00\",VLOOKUP(F544,'[1]Standardstruktur Anlagenmerkmal'!$N:$O,2,FALSE))","v":"01"},"Kühlschrank, Kühltruhe",{"$f":"IF(H544=\"\",\"000\",VLOOKUP(H544,'[1]Nummerierung Bauteil'!$A:$C,3,FALSE))","v":"022"},null,"00",null,"00","Anzahl","471.15.01.022.00.00",null,"kein Benchmark",null,null,null,0]
[471,"Küchentechnische Anlagen",{"$f":"VLOOKUP(A545,'[1]Standardstruktur Anlagenmerkmal'!$C:$Z,3,FALSE)","v":471},"Kühlmöbel ohne integrierter Kälteerzeugung",{"$f":"IF(D545=\"\",\"00\",VLOOKUP(D545,'[1]Standardstruktur Anlagenmerkmal'!$F:$Z,2,FALSE))","v":"15"},"Kühlmöbel ohne integrierter Kälteerzeugung",{"$f":"IF(F545=\"\",\"00\",VLOOKUP(F545,'[1]Standardstruktur Anlagenmerkmal'!$N:$O,2,FALSE))","v":"01"},"Kühlvitrine",{"$f":"IF(H545=\"\",\"000\",VLOOKUP(H545,'[1]Nummerierung Bauteil'!$A:$C,3,FALSE))","v":"021"},null,"00",null,"00","Anzahl","471.15.01.021.00.00",null,"kein Benchmark",null,null,null,0]
[471,"Küchentechnische Anlagen",{"$f":"VLOOKUP(A546,'[1]Standardstruktur Anlagenmerkmal'!$C:$Z,3,FALSE)","v":471},"Kühlmöbel ohne integrierter Kälteerzeugung",{"$f":"IF(D546=\"\",\"00\",VLOOKUP(D546,'[1]Standardstruktur Anlagenmerkmal'!$F:$Z,2,FALSE))","v":"15"},"Kühlmöbel ohne integrierter Kälteerzeugung",{"$f":"IF(F546=\"\",\"00\",VLOOKUP(F546,'[1]Standardstruktur Anlagenmerkmal'!$N:$O,2,FALSE))","v":"01"},"Salattheken o.ä.",{"$f":"IF(H546=\"\",\"000\",VLOOKUP(H546,'[1]Nummerierung Bauteil'!$A:$C,3,FALSE))","v":"197"},null,"00",null,"00","Anzahl","471.15.01.197.00.00",null,"kein Benchmark",null,null,null,0]
[471,"Küchentechnische Anlagen",{"$f":"VLOOKUP(A547,'[1]Standardstruktur Anlagenmerkmal'!$C:$Z,3,FALSE)","v":471},"Kühlmöbel ohne integrierter Kälteerzeugung",{"$f":"IF(D547=\"\",\"00\",VLOOKUP(D547,'[1]Standardstruktur Anlagenmerkmal'!$F:$Z,2,FALSE))","v":"15"},"Kühlmöbel ohne integrierter Kälteerzeugung",{"$f":"IF(F547=\"\",\"00\",VLOOKUP(F547,'[1]Standardstruktur Anlagenmerkmal'!$N:$O,2,FALSE))","v":"01"},"Saftmaschine",{"$f":"IF(H547=\"\",\"000\",VLOOKUP(H547,'[1]Nummerierung Bauteil'!$A:$C,3,FALSE))","v":"020"},null,"00",null,"00","Anzahl","471.15.01.020.00.00",null,"kein Benchmark",null,null,null,0]
[471,"Küchentechnische Anlagen",{"$f":"VLOOKUP(A548,'[1]Standardstruktur Anlagenmerkmal'!$C:$Z,3,FALSE)","v":471},"Kühlmöbel ohne integrierter Kälteerzeugung",{"$f":"IF(D548=\"\",\"00\",VLOOKUP(D548,'[1]Standardstruktur Anlagenmerkmal'!$F:$Z,2,FALSE))","v":"15"},"Kühlmöbel ohne integrierter Kälteerzeugung",{"$f":"IF(F548=\"\",\"00\",VLOOKUP(F548,'[1]Standardstruktur Anlagenmerkmal'!$N:$O,2,FALSE))","v":"01"},"Eistruhe",{"$f":"IF(H548=\"\",\"000\",VLOOKUP(H548,'[1]Nummerierung Bauteil'!$A:$C,3,FALSE))","v":"028"},null,"00",null,"00","Anzahl","471.15.01.028.00.00",null,"kein Benchmark",null,null,null,0]
[471,"Küchentechnische Anlagen",{"$f":"VLOOKUP(A549,'[1]Standardstruktur Anlagenmerkmal'!$C:$Z,3,FALSE)","v":471},"Kühlmöbel ohne integrierter Kälteerzeugung",{"$f":"IF(D549=\"\",\"00\",VLOOKUP(D549,'[1]Standardstruktur Anlagenmerkmal'!$F:$Z,2,FALSE))","v":"15"},"Kühlmöbel ohne integrierter Kälteerzeugung",{"$f":"IF(F549=\"\",\"00\",VLOOKUP(F549,'[1]Standardstruktur Anlagenmerkmal'!$N:$O,2,FALSE))","v":"01"},"Eiswürfelbereiter",{"$f":"IF(H549=\"\",\"000\",VLOOKUP(H549,'[1]Nummerierung Bauteil'!$A:$C,3,FALSE))","v":"027"},null,"00",null,"00","Anzahl","471.15.01.027.00.00",null,"kein Benchmark",null,null,null,0]
[471,"Küchentechnische Anlagen",{"$f":"VLOOKUP(A550,'[1]Standardstruktur Anlagenmerkmal'!$C:$Z,3,FALSE)","v":471},"Kühlmöbel ohne integrierter Kälteerzeugung",{"$f":"IF(D550=\"\",\"00\",VLOOKUP(D550,'[1]Standardstruktur Anlagenmerkmal'!$F:$Z,2,FALSE))","v":"15"},"Kühlmöbel ohne integrierter Kälteerzeugung",{"$f":"IF(F550=\"\",\"00\",VLOOKUP(F550,'[1]Standardstruktur Anlagenmerkmal'!$N:$O,2,FALSE))","v":"01"},"Schockfroster",{"$f":"IF(H550=\"\",\"000\",VLOOKUP(H550,'[1]Nummerierung Bauteil'!$A:$C,3,FALSE))","v":"019"},null,"00",null,"00","Anzahl","471.15.01.019.00.00",null,"kein Benchmark",null,null,null,0]
[471,"Küchentechnische Anlagen",{"$f":"VLOOKUP(A551,'[1]Standardstruktur Anlagenmerkmal'!$C:$Z,3,FALSE)","v":471},"Kühlzellen, Küchenräume",{"$f":"IF(D551=\"\",\"00\",VLOOKUP(D551,'[1]Standardstruktur Anlagenmerkmal'!$F:$Z,2,FALSE))","v":"16"},"Kühlzelle (inkl. Türen)",{"$f":"IF(F551=\"\",\"00\",VLOOKUP(F551,'[1]Standardstruktur Anlagenmerkmal'!$N:$O,2,FALSE))","v":"01"},null,{"$f":"IF(H551=\"\",\"000\",VLOOKUP(H551,'[1]Nummerierung Bauteil'!$A:$C,3,FALSE))","v":"000"},null,"00",null,"00","Anzahl","471.16.01.000.00.00",null,2.0472452962603813,286.11956303375536,152.82280922304528,312.86577734317706,409.15097513827016]
[471,"Küchentechnische Anlagen",{"$f":"VLOOKUP(A552,'[1]Standardstruktur Anlagenmerkmal'!$C:$Z,3,FALSE)","v":471},"Kühlzellen, Küchenräume",{"$f":"IF(D552=\"\",\"00\",VLOOKUP(D552,'[1]Standardstruktur Anlagenmerkmal'!$F:$Z,2,FALSE))","v":"16"},"Tiefkühlzelle (inkl. Türen)",{"$f":"IF(F552=\"\",\"00\",VLOOKUP(F552,'[1]Standardstruktur Anlagenmerkmal'!$N:$O,2,FALSE))","v":"02"},null,{"$f":"IF(H552=\"\",\"000\",VLOOKUP(H552,'[1]Nummerierung Bauteil'!$A:$C,3,FALSE))","v":"000"},null,"00",null,"00","Anzahl","471.16.02.000.00.00",null,"kein Benchmark",null,null,null,0]
[471,"Küchentechnische Anlagen",{"$f":"VLOOKUP(A553,'[1]Standardstruktur Anlagenmerkmal'!$C:$Z,3,FALSE)","v":471},"Kühlzellen, Küchenräume",{"$f":"IF(D553=\"\",\"00\",VLOOKUP(D553,'[1]Standardstruktur Anlagenmerkmal'!$F:$Z,2,FALSE))","v":"16"},"Kleinkälteerzeugung (Einzelverdichter)",{"$f":"IF(F553=\"\",\"00\",VLOOKUP(F553,'[1]Standardstruktur Anlagenmerkmal'!$N:$O,2,FALSE))","v":"03"},null,{"$f":"IF(H553=\"\",\"000\",VLOOKUP(H553,'[1]Nummerierung Bauteil'!$A:$C,3,FALSE))","v":"000"},null,"00",null,"00","Anzahl","471.16.03.000.00.00",null,1.4490907744563302,217.73519075765276,177.80899999999997,257.66138151530555,311.36132278344343]
[471,"Küchentechnische Anlagen",{"$f":"VLOOKUP(A554,'[1]Standardstruktur Anlagenmerkmal'!$C:$Z,3,FALSE)","v":471},"Kühlzellen, Küchenräume",{"$f":"IF(D554=\"\",\"00\",VLOOKUP(D554,'[1]Standardstruktur Anlagenmerkmal'!$F:$Z,2,FALSE))","v":"16"},"Verbundkälteanlage",{"$f":"IF(F554=\"\",\"00\",VLOOKUP(F554,'[1]Standardstruktur Anlagenmerkmal'!$N:$O,2,FALSE))","v":"04"},null,{"$f":"IF(H554=\"\",\"000\",VLOOKUP(H554,'[1]Nummerierung Bauteil'!$A:$C,3,FALSE))","v":"000"},null,"00","Kühlleistung <= 5 kW","01","Anzahl","471.16.04.000.00.01",null,"kein Benchmark",null,null,null,0]
[471,"Küchentechnische Anlagen",{"$f":"VLOOKUP(A555,'[1]Standardstruktur Anlagenmerkmal'!$C:$Z,3,FALSE)","v":471},"Kühlzellen, Küchenräume",{"$f":"IF(D555=\"\",\"00\",VLOOKUP(D555,'[1]Standardstruktur Anlagenmerkmal'!$F:$Z,2,FALSE))","v":"16"},"Verbundkälteanlage",{"$f":"IF(F555=\"\",\"00\",VLOOKUP(F555,'[1]Standardstruktur Anlagenmerkmal'!$N:$O,2,FALSE))","v":"04"},null,{"$f":"IF(H555=\"\",\"000\",VLOOKUP(H555,'[1]Nummerierung Bauteil'!$A:$C,3,FALSE))","v":"000"},null,"00","Kühlleistung > 5 bis 15 kW","02","Anzahl","471.16.04.000.00.02",null,"kein Benchmark",null,null,null,0]
[471,"Küchentechnische Anlagen",{"$f":"VLOOKUP(A556,'[1]Standardstruktur Anlagenmerkmal'!$C:$Z,3,FALSE)","v":471},"Kühlzellen, Küchenräume",{"$f":"IF(D556=\"\",\"00\",VLOOKUP(D556,'[1]Standardstruktur Anlagenmerkmal'!$F:$Z,2,FALSE))","v":"16"},"Verbundkälteanlage",{"$f":"IF(F556=\"\",\"00\",VLOOKUP(F556,'[1]Standardstruktur Anlagenmerkmal'!$N:$O,2,FALSE))","v":"04"},null,{"$f":"IF(H556=\"\",\"000\",VLOOKUP(H556,'[1]Nummerierung Bauteil'!$A:$C,3,FALSE))","v":"000"},null,"00","Kühlleistung >15 bis 50 kW","03","Anzahl","471.16.04.000.00.03",null,"kein Benchmark",null,null,null,0]
[472,"Wäscherei-, Reinigungs- und badetechnische Anlagen",{"$f":"VLOOKUP(A557,'[1]Standardstruktur Anlagenmerkmal'!$C:$Z,3,FALSE)","v":472},"Wäschereianlagen",{"$f":"IF(D557=\"\",\"00\",VLOOKUP(D557,'[1]Standardstruktur Anlagenmerkmal'!$F:$Z,2,FALSE))","v":"01"},"Wäschereianlage",{"$f":"IF(F557=\"\",\"00\",VLOOKUP(F557,'[1]Standardstruktur Anlagenmerkmal'!$N:$O,2,FALSE))","v":"01"},null,{"$f":"IF(H557=\"\",\"000\",VLOOKUP(H557,'[1]Nummerierung Bauteil'!$A:$C,3,FALSE))","v":"000"},null,"00",null,"00","kein EP","472.01.01.000.00.00",null,"kein Einheitspreis",null,null,null,0]
[472,"Wäscherei-, Reinigungs- und badetechnische Anlagen",{"$f":"VLOOKUP(A558,'[1]Standardstruktur Anlagenmerkmal'!$C:$Z,3,FALSE)","v":472},"Chemische Reinigungsanlagen",{"$f":"IF(D558=\"\",\"00\",VLOOKUP(D558,'[1]Standardstruktur Anlagenmerkmal'!$F:$Z,2,FALSE))","v":"02"},"Chemische Reinigungsanlage",{"$f":"IF(F558=\"\",\"00\",VLOOKUP(F558,'[1]Standardstruktur Anlagenmerkmal'!$N:$O,2,FALSE))","v":"01"},null,{"$f":"IF(H558=\"\",\"000\",VLOOKUP(H558,'[1]Nummerierung Bauteil'!$A:$C,3,FALSE))","v":"000"},null,"00",null,"00","kein EP","472.02.01.000.00.00",null,"kein Einheitspreis",null,null,null,0]
[472,"Wäscherei-, Reinigungs- und badetechnische Anlagen",{"$f":"VLOOKUP(A559,'[1]Standardstruktur Anlagenmerkmal'!$C:$Z,3,FALSE)","v":472},"Steckbeckenbehälter",{"$f":"IF(D559=\"\",\"00\",VLOOKUP(D559,'[1]Standardstruktur Anlagenmerkmal'!$F:$Z,2,FALSE))","v":"03"},"Steckbeckenbehälter",{"$f":"IF(F559=\"\",\"00\",VLOOKUP(F559,'[1]Standardstruktur Anlagenmerkmal'!$N:$O,2,FALSE))","v":"01"},null,{"$f":"IF(H559=\"\",\"000\",VLOOKUP(H559,'[1]Nummerierung Bauteil'!$A:$C,3,FALSE))","v":"000"},null,"00",null,"00","kein EP","472.03.01.000.00.00",null,"kein Einheitspreis",null,null,null,0]
[472,"Wäscherei-, Reinigungs- und badetechnische Anlagen",{"$f":"VLOOKUP(A560,'[1]Standardstruktur Anlagenmerkmal'!$C:$Z,3,FALSE)","v":472},"Fahrzeugwaschanlagen",{"$f":"IF(D560=\"\",\"00\",VLOOKUP(D560,'[1]Standardstruktur Anlagenmerkmal'!$F:$Z,2,FALSE))","v":"04"},"Fahrzeugwaschanlage",{"$f":"IF(F560=\"\",\"00\",VLOOKUP(F560,'[1]Standardstruktur Anlagenmerkmal'!$N:$O,2,FALSE))","v":"01"},null,{"$f":"IF(H560=\"\",\"000\",VLOOKUP(H560,'[1]Nummerierung Bauteil'!$A:$C,3,FALSE))","v":"000"},null,"00",null,"00","kein EP","472.04.01.000.00.00",null,"kein Einheitspreis",null,null,null,0]
[472,"Wäscherei-, Reinigungs- und badetechnische Anlagen",{"$f":"VLOOKUP(A561,'[1]Standardstruktur Anlagenmerkmal'!$C:$Z,3,FALSE)","v":472},"Hochdruck- und Flüssigkeitsstrahler",{"$f":"IF(D561=\"\",\"00\",VLOOKUP(D561,'[1]Standardstruktur Anlagenmerkmal'!$F:$Z,2,FALSE))","v":"05"},"Bodenreinigungsmaschine",{"$f":"IF(F561=\"\",\"00\",VLOOKUP(F561,'[1]Standardstruktur Anlagenmerkmal'!$N:$O,2,FALSE))","v":"01"},null,{"$f":"IF(H561=\"\",\"000\",VLOOKUP(H561,'[1]Nummerierung Bauteil'!$A:$C,3,FALSE))","v":"000"},null,"00",null,"00","kein EP","472.05.01.000.00.00",null,"kein Einheitspreis",null,null,null,0]
[472,"Wäscherei-, Reinigungs- und badetechnische Anlagen",{"$f":"VLOOKUP(A562,'[1]Standardstruktur Anlagenmerkmal'!$C:$Z,3,FALSE)","v":472},"Hochdruck- und Flüssigkeitsstrahler",{"$f":"IF(D562=\"\",\"00\",VLOOKUP(D562,'[1]Standardstruktur Anlagenmerkmal'!$F:$Z,2,FALSE))","v":"05"},"Hochdruckreinigungsmaschine",{"$f":"IF(F562=\"\",\"00\",VLOOKUP(F562,'[1]Standardstruktur Anlagenmerkmal'!$N:$O,2,FALSE))","v":"02"},null,{"$f":"IF(H562=\"\",\"000\",VLOOKUP(H562,'[1]Nummerierung Bauteil'!$A:$C,3,FALSE))","v":"000"},null,"00",null,"00","kein EP","472.05.02.000.00.00",null,"kein Einheitspreis",null,null,null,0]
[472,"Wäscherei-, Reinigungs- und badetechnische Anlagen",{"$f":"VLOOKUP(A563,'[1]Standardstruktur Anlagenmerkmal'!$C:$Z,3,FALSE)","v":472},"Kleinteilewaschmaschine",{"$f":"IF(D563=\"\",\"00\",VLOOKUP(D563,'[1]Standardstruktur Anlagenmerkmal'!$F:$Z,2,FALSE))","v":"06"},"Kleinteilewaschmaschine",{"$f":"IF(F563=\"\",\"00\",VLOOKUP(F563,'[1]Standardstruktur Anlagenmerkmal'!$N:$O,2,FALSE))","v":"01"},null,{"$f":"IF(H563=\"\",\"000\",VLOOKUP(H563,'[1]Nummerierung Bauteil'!$A:$C,3,FALSE))","v":"000"},null,"00",null,"00","kein EP","472.06.01.000.00.00",null,"kein Einheitspreis",null,null,null,0]
[472,"Wäscherei-, Reinigungs- und badetechnische Anlagen",{"$f":"VLOOKUP(A564,'[1]Standardstruktur Anlagenmerkmal'!$C:$Z,3,FALSE)","v":472},"Großteilwaschmaschinen",{"$f":"IF(D564=\"\",\"00\",VLOOKUP(D564,'[1]Standardstruktur Anlagenmerkmal'!$F:$Z,2,FALSE))","v":"07"},"Großteilwaschmaschine",{"$f":"IF(F564=\"\",\"00\",VLOOKUP(F564,'[1]Standardstruktur Anlagenmerkmal'!$N:$O,2,FALSE))","v":"01"},null,{"$f":"IF(H564=\"\",\"000\",VLOOKUP(H564,'[1]Nummerierung Bauteil'!$A:$C,3,FALSE))","v":"000"},null,"00",null,"00","kein EP","472.07.01.000.00.00",null,"kein Einheitspreis",null,null,null,0]
[472,"Wäscherei-, Reinigungs- und badetechnische Anlagen",{"$f":"VLOOKUP(A565,'[1]Standardstruktur Anlagenmerkmal'!$C:$Z,3,FALSE)","v":472},"Ultraschallbäder",{"$f":"IF(D565=\"\",\"00\",VLOOKUP(D565,'[1]Standardstruktur Anlagenmerkmal'!$F:$Z,2,FALSE))","v":"08"},"Ultraschallbad",{"$f":"IF(F565=\"\",\"00\",VLOOKUP(F565,'[1]Standardstruktur Anlagenmerkmal'!$N:$O,2,FALSE))","v":"01"},null,{"$f":"IF(H565=\"\",\"000\",VLOOKUP(H565,'[1]Nummerierung Bauteil'!$A:$C,3,FALSE))","v":"000"},null,"00",null,"00","kein EP","472.08.01.000.00.00",null,"kein Einheitspreis",null,null,null,0]
[472,"Wäscherei-, Reinigungs- und badetechnische Anlagen",{"$f":"VLOOKUP(A566,'[1]Standardstruktur Anlagenmerkmal'!$C:$Z,3,FALSE)","v":472},"Innenreinigungsanlagen",{"$f":"IF(D566=\"\",\"00\",VLOOKUP(D566,'[1]Standardstruktur Anlagenmerkmal'!$F:$Z,2,FALSE))","v":"09"},"Innenreinigungsanlage",{"$f":"IF(F566=\"\",\"00\",VLOOKUP(F566,'[1]Standardstruktur Anlagenmerkmal'!$N:$O,2,FALSE))","v":"01"},null,{"$f":"IF(H566=\"\",\"000\",VLOOKUP(H566,'[1]Nummerierung Bauteil'!$A:$C,3,FALSE))","v":"000"},null,"00",null,"00","kein EP","472.09.01.000.00.00",null,"kein Einheitspreis",null,null,null,0]
[472,"Wäscherei-, Reinigungs- und badetechnische Anlagen",{"$f":"VLOOKUP(A567,'[1]Standardstruktur Anlagenmerkmal'!$C:$Z,3,FALSE)","v":472},"Aufbereitungs- und Desinfektionsanlagen",{"$f":"IF(D567=\"\",\"00\",VLOOKUP(D567,'[1]Standardstruktur Anlagenmerkmal'!$F:$Z,2,FALSE))","v":"10"},"Aufbereitungs- und Desinfektionsanlage",{"$f":"IF(F567=\"\",\"00\",VLOOKUP(F567,'[1]Standardstruktur Anlagenmerkmal'!$N:$O,2,FALSE))","v":"01"},null,{"$f":"IF(H567=\"\",\"000\",VLOOKUP(H567,'[1]Nummerierung Bauteil'!$A:$C,3,FALSE))","v":"000"},null,"00",null,"00","kein EP","472.10.01.000.00.00",null,"kein Einheitspreis",null,null,null,0]
[472,"Wäscherei-, Reinigungs- und badetechnische Anlagen",{"$f":"VLOOKUP(A568,'[1]Standardstruktur Anlagenmerkmal'!$C:$Z,3,FALSE)","v":472},"Wasserspeicher- und Ausgleichsbehälter",{"$f":"IF(D568=\"\",\"00\",VLOOKUP(D568,'[1]Standardstruktur Anlagenmerkmal'!$F:$Z,2,FALSE))","v":"11"},"Wasserspeicher- und Ausgleichsbehälter",{"$f":"IF(F568=\"\",\"00\",VLOOKUP(F568,'[1]Standardstruktur Anlagenmerkmal'!$N:$O,2,FALSE))","v":"01"},null,{"$f":"IF(H568=\"\",\"000\",VLOOKUP(H568,'[1]Nummerierung Bauteil'!$A:$C,3,FALSE))","v":"000"},null,"00",null,"00","kein EP","472.11.01.000.00.00",null,"kein Einheitspreis",null,null,null,0]
[472,"Wäscherei-, Reinigungs- und badetechnische Anlagen",{"$f":"VLOOKUP(A569,'[1]Standardstruktur Anlagenmerkmal'!$C:$Z,3,FALSE)","v":472},"Rohrleitungen, Druckgeräte, Pumpen und Zubehör",{"$f":"IF(D569=\"\",\"00\",VLOOKUP(D569,'[1]Standardstruktur Anlagenmerkmal'!$F:$Z,2,FALSE))","v":"12"},"Rohrleitungen, Druckgeräte, Pumpen und Zubehör",{"$f":"IF(F569=\"\",\"00\",VLOOKUP(F569,'[1]Standardstruktur Anlagenmerkmal'!$N:$O,2,FALSE))","v":"01"},null,{"$f":"IF(H569=\"\",\"000\",VLOOKUP(H569,'[1]Nummerierung Bauteil'!$A:$C,3,FALSE))","v":"000"},null,"00",null,"00","kein EP","472.12.01.000.00.00",null,"kein Einheitspreis",null,null,null,0]
[472,"Wäscherei-, Reinigungs- und badetechnische Anlagen",{"$f":"VLOOKUP(A570,'[1]Standardstruktur Anlagenmerkmal'!$C:$Z,3,FALSE)","v":472},"Filteranlagen",{"$f":"IF(D570=\"\",\"00\",VLOOKUP(D570,'[1]Standardstruktur Anlagenmerkmal'!$F:$Z,2,FALSE))","v":"13"},"Filteranlage",{"$f":"IF(F570=\"\",\"00\",VLOOKUP(F570,'[1]Standardstruktur Anlagenmerkmal'!$N:$O,2,FALSE))","v":"01"},null,{"$f":"IF(H570=\"\",\"000\",VLOOKUP(H570,'[1]Nummerierung Bauteil'!$A:$C,3,FALSE))","v":"000"},null,"00",null,"00","kein EP","472.13.01.000.00.00",null,"kein Einheitspreis",null,null,null,0]
[472,"Wäscherei-, Reinigungs- und badetechnische Anlagen",{"$f":"VLOOKUP(A571,'[1]Standardstruktur Anlagenmerkmal'!$C:$Z,3,FALSE)","v":472},"Gegenstromschwimmanlagen",{"$f":"IF(D571=\"\",\"00\",VLOOKUP(D571,'[1]Standardstruktur Anlagenmerkmal'!$F:$Z,2,FALSE))","v":"14"},"Gegenstromschwimmanlage",{"$f":"IF(F571=\"\",\"00\",VLOOKUP(F571,'[1]Standardstruktur Anlagenmerkmal'!$N:$O,2,FALSE))","v":"01"},null,{"$f":"IF(H571=\"\",\"000\",VLOOKUP(H571,'[1]Nummerierung Bauteil'!$A:$C,3,FALSE))","v":"000"},null,"00",null,"00","kein EP","472.14.01.000.00.00",null,"kein Einheitspreis",null,null,null,0]
[473,"Medienversorgungsanlagen, Medizin- und labortechnische Anlagen",{"$f":"VLOOKUP(A572,'[1]Standardstruktur Anlagenmerkmal'!$C:$Z,3,FALSE)","v":473},"Druckluftversorgungsanlagen",{"$f":"IF(D572=\"\",\"00\",VLOOKUP(D572,'[1]Standardstruktur Anlagenmerkmal'!$F:$Z,2,FALSE))","v":"01"},"Kompressor (Druckluft)",{"$f":"IF(F572=\"\",\"00\",VLOOKUP(F572,'[1]Standardstruktur Anlagenmerkmal'!$N:$O,2,FALSE))","v":"01"},null,{"$f":"IF(H572=\"\",\"000\",VLOOKUP(H572,'[1]Nummerierung Bauteil'!$A:$C,3,FALSE))","v":"000"},null,"00","Leistung <= 5 kW \nVerdichtervolumen <= 2000 l/min","01","Anzahl","473.01.01.000.00.01"," Schrauben- und Kolbenkompressor (ohne Material)",1.8988362733907684,210.03746502209344,144.911575,275.16335504418686,300.35357498159362]
[473,"Medienversorgungsanlagen, Medizin- und labortechnische Anlagen",{"$f":"VLOOKUP(A573,'[1]Standardstruktur Anlagenmerkmal'!$C:$Z,3,FALSE)","v":473},"Druckluftversorgungsanlagen",{"$f":"IF(D573=\"\",\"00\",VLOOKUP(D573,'[1]Standardstruktur Anlagenmerkmal'!$F:$Z,2,FALSE))","v":"01"},"Kompressor (Druckluft)",{"$f":"IF(F573=\"\",\"00\",VLOOKUP(F573,'[1]Standardstruktur Anlagenmerkmal'!$N:$O,2,FALSE))","v":"01"},null,{"$f":"IF(H573=\"\",\"000\",VLOOKUP(H573,'[1]Nummerierung Bauteil'!$A:$C,3,FALSE))","v":"000"},null,"00","Leistung > 2 bis 5 kW\nVerdichtervolumen > 2000 - 5000 l/min","02","Anzahl","473.01.01.000.00.02"," Schrauben- und Kolbenkompressor (ohne Material)",1.3778086279348347,341.4877541709285,287.22896381069671,395.74654453116034,488.32748846442774]
[473,"Medienversorgungsanlagen, Medizin- und labortechnische Anlagen",{"$f":"VLOOKUP(A574,'[1]Standardstruktur Anlagenmerkmal'!$C:$Z,3,FALSE)","v":473},"Druckluftversorgungsanlagen",{"$f":"IF(D574=\"\",\"00\",VLOOKUP(D574,'[1]Standardstruktur Anlagenmerkmal'!$F:$Z,2,FALSE))","v":"01"},"Kompressor (Druckluft)",{"$f":"IF(F574=\"\",\"00\",VLOOKUP(F574,'[1]Standardstruktur Anlagenmerkmal'!$N:$O,2,FALSE))","v":"01"},null,{"$f":"IF(H574=\"\",\"000\",VLOOKUP(H574,'[1]Nummerierung Bauteil'!$A:$C,3,FALSE))","v":"000"},null,"00","Leistung > 5 bis 10 kW\nVerdichtervolumen > 5000 - 10000 l/min","03","Anzahl","473.01.01.000.00.03"," Schrauben- und Kolbenkompressor (ohne Material)",1.5629903670741807,573.88133585143146,447.82168768472906,699.9409840181338,820.65031026754696]
[473,"Medienversorgungsanlagen, Medizin- und labortechnische Anlagen",{"$f":"VLOOKUP(A575,'[1]Standardstruktur Anlagenmerkmal'!$C:$Z,3,FALSE)","v":473},"Druckluftversorgungsanlagen",{"$f":"IF(D575=\"\",\"00\",VLOOKUP(D575,'[1]Standardstruktur Anlagenmerkmal'!$F:$Z,2,FALSE))","v":"01"},"Druckluftbehälter",{"$f":"IF(F575=\"\",\"00\",VLOOKUP(F575,'[1]Standardstruktur Anlagenmerkmal'!$N:$O,2,FALSE))","v":"02"},null,{"$f":"IF(H575=\"\",\"000\",VLOOKUP(H575,'[1]Nummerierung Bauteil'!$A:$C,3,FALSE))","v":"000"},null,"00","Volumen <= 1.000 l","01","Anzahl","473.01.02.000.00.01",null,1.2862581714265271,71.559880765650306,62.6,80.519761531300603,102.33062949487993]
[473,"Medienversorgungsanlagen, Medizin- und labortechnische Anlagen",{"$f":"VLOOKUP(A576,'[1]Standardstruktur Anlagenmerkmal'!$C:$Z,3,FALSE)","v":473},"Druckluftversorgungsanlagen",{"$f":"IF(D576=\"\",\"00\",VLOOKUP(D576,'[1]Standardstruktur Anlagenmerkmal'!$F:$Z,2,FALSE))","v":"01"},"Druckluftbehälter",{"$f":"IF(F576=\"\",\"00\",VLOOKUP(F576,'[1]Standardstruktur Anlagenmerkmal'!$N:$O,2,FALSE))","v":"02"},null,{"$f":"IF(H576=\"\",\"000\",VLOOKUP(H576,'[1]Nummerierung Bauteil'!$A:$C,3,FALSE))","v":"000"},null,"00","Volumen > 1.000 bis 10.000 l","02","Anzahl","473.01.02.000.00.02",null,1.3959826330995992,94.281916612469232,78.7,109.86383322493846,134.82314075583099]
[473,"Medienversorgungsanlagen, Medizin- und labortechnische Anlagen",{"$f":"VLOOKUP(A577,'[1]Standardstruktur Anlagenmerkmal'!$C:$Z,3,FALSE)","v":473},"Druckluftversorgungsanlagen",{"$f":"IF(D577=\"\",\"00\",VLOOKUP(D577,'[1]Standardstruktur Anlagenmerkmal'!$F:$Z,2,FALSE))","v":"01"},"Druckluftbehälter",{"$f":"IF(F577=\"\",\"00\",VLOOKUP(F577,'[1]Standardstruktur Anlagenmerkmal'!$N:$O,2,FALSE))","v":"02"},null,{"$f":"IF(H577=\"\",\"000\",VLOOKUP(H577,'[1]Nummerierung Bauteil'!$A:$C,3,FALSE))","v":"000"},null,"00","Volumen > 10.000 bis 50.000l","03","Anzahl","473.01.02.000.00.03",null,1.7013760922551124,133.17784134817703,98.6,167.75568269635409,190.44431312789314]
[473,"Medienversorgungsanlagen, Medizin- und labortechnische Anlagen",{"$f":"VLOOKUP(A578,'[1]Standardstruktur Anlagenmerkmal'!$C:$Z,3,FALSE)","v":473},"Druckluftversorgungsanlagen",{"$f":"IF(D578=\"\",\"00\",VLOOKUP(D578,'[1]Standardstruktur Anlagenmerkmal'!$F:$Z,2,FALSE))","v":"01"},"Drucklufttrockner",{"$f":"IF(F578=\"\",\"00\",VLOOKUP(F578,'[1]Standardstruktur Anlagenmerkmal'!$N:$O,2,FALSE))","v":"03"},null,{"$f":"IF(H578=\"\",\"000\",VLOOKUP(H578,'[1]Nummerierung Bauteil'!$A:$C,3,FALSE))","v":"000"},null,"00","Leistung <= 5 kW","01","Anzahl","473.01.03.000.00.01","ohne Material","kein Benchmark",null,null,null,0]
[473,"Medienversorgungsanlagen, Medizin- und labortechnische Anlagen",{"$f":"VLOOKUP(A579,'[1]Standardstruktur Anlagenmerkmal'!$C:$Z,3,FALSE)","v":473},"Druckluftversorgungsanlagen",{"$f":"IF(D579=\"\",\"00\",VLOOKUP(D579,'[1]Standardstruktur Anlagenmerkmal'!$F:$Z,2,FALSE))","v":"01"},"Drucklufttrockner",{"$f":"IF(F579=\"\",\"00\",VLOOKUP(F579,'[1]Standardstruktur Anlagenmerkmal'!$N:$O,2,FALSE))","v":"03"},null,{"$f":"IF(H579=\"\",\"000\",VLOOKUP(H579,'[1]Nummerierung Bauteil'!$A:$C,3,FALSE))","v":"000"},null,"00","Leistung > 5 bis 10 kW","02","Anzahl","473.01.03.000.00.02","ohne Material","kein Benchmark",null,null,null,{"$f":"R579*(((160.2-117.2)/100)+1)","v":0}]
[473,"Medienversorgungsanlagen, Medizin- und labortechnische Anlagen",{"$f":"VLOOKUP(A580,'[1]Standardstruktur Anlagenmerkmal'!$C:$Z,3,FALSE)","v":473},"Druckluftversorgungsanlagen",{"$f":"IF(D580=\"\",\"00\",VLOOKUP(D580,'[1]Standardstruktur Anlagenmerkmal'!$F:$Z,2,FALSE))","v":"01"},"Drucklufttrockner",{"$f":"IF(F580=\"\",\"00\",VLOOKUP(F580,'[1]Standardstruktur Anlagenmerkmal'!$N:$O,2,FALSE))","v":"03"},null,{"$f":"IF(H580=\"\",\"000\",VLOOKUP(H580,'[1]Nummerierung Bauteil'!$A:$C,3,FALSE))","v":"000"},null,"00","Leistung > 10 bis 20 kW","03","Anzahl","473.01.03.000.00.03","ohne Material","kein Benchmark",null,null,null,0]
[473,"Medienversorgungsanlagen, Medizin- und labortechnische Anlagen",{"$f":"VLOOKUP(A581,'[1]Standardstruktur Anlagenmerkmal'!$C:$Z,3,FALSE)","v":473},"Druckluftversorgungsanlagen",{"$f":"IF(D581=\"\",\"00\",VLOOKUP(D581,'[1]Standardstruktur Anlagenmerkmal'!$F:$Z,2,FALSE))","v":"01"},"Druckluftnetz",{"$f":"IF(F581=\"\",\"00\",VLOOKUP(F581,'[1]Standardstruktur Anlagenmerkmal'!$N:$O,2,FALSE))","v":"04"},"Druckluftentnahmestelle",{"$f":"IF(H581=\"\",\"000\",VLOOKUP(H581,'[1]Nummerierung Bauteil'!$A:$C,3,FALSE))","v":"134"},null,"00","Anz. Entnahmestellen < 5 ","01","pauschal","473.01.04.134.00.01","inkl. Absperrarmaturen, Regelarmaturen, Druckluftsicherheitseinrichtung, Druckluftentnahmestelle, Druckkondensatabscheider, Druckluftfilter","kein Benchmark",null,null,null,0]
[473,"Medienversorgungsanlagen, Medizin- und labortechnische Anlagen",{"$f":"VLOOKUP(A582,'[1]Standardstruktur Anlagenmerkmal'!$C:$Z,3,FALSE)","v":473},"Druckluftversorgungsanlagen",{"$f":"IF(D582=\"\",\"00\",VLOOKUP(D582,'[1]Standardstruktur Anlagenmerkmal'!$F:$Z,2,FALSE))","v":"01"},"Druckluftnetz",{"$f":"IF(F582=\"\",\"00\",VLOOKUP(F582,'[1]Standardstruktur Anlagenmerkmal'!$N:$O,2,FALSE))","v":"04"},"Druckluftentnahmestelle",{"$f":"IF(H582=\"\",\"000\",VLOOKUP(H582,'[1]Nummerierung Bauteil'!$A:$C,3,FALSE))","v":"134"},null,"00","Zulage pro weitere Entnahmestelle","02","Anzahl","473.01.04.134.00.02","inkl. Absperrarmaturen, Regelarmaturen, Druckluftsicherheitseinrichtung, Druckluftentnahmestelle, Druckkondensatabscheider, Druckluftfilter","kein Benchmark",null,null,null,0]
[473,"Medienversorgungsanlagen, Medizin- und labortechnische Anlagen",{"$f":"VLOOKUP(A583,'[1]Standardstruktur Anlagenmerkmal'!$C:$Z,3,FALSE)","v":473},"sonstige Medienversorgungsanlagen",{"$f":"IF(D583=\"\",\"00\",VLOOKUP(D583,'[1]Standardstruktur Anlagenmerkmal'!$F:$Z,2,FALSE))","v":"02"},"Versorgungsanlage für technische Gase",{"$f":"IF(F583=\"\",\"00\",VLOOKUP(F583,'[1]Standardstruktur Anlagenmerkmal'!$N:$O,2,FALSE))","v":"01"},null,{"$f":"IF(H583=\"\",\"000\",VLOOKUP(H583,'[1]Nummerierung Bauteil'!$A:$C,3,FALSE))","v":"000"},null,"00",null,"00","kein EP","473.02.01.000.00.00",null,"kein Einheitspreis","","",null,{"$error":"#VALUE!"}]
[473,"Medienversorgungsanlagen, Medizin- und labortechnische Anlagen",{"$f":"VLOOKUP(A584,'[1]Standardstruktur Anlagenmerkmal'!$C:$Z,3,FALSE)","v":473},"sonstige Medienversorgungsanlagen",{"$f":"IF(D584=\"\",\"00\",VLOOKUP(D584,'[1]Standardstruktur Anlagenmerkmal'!$F:$Z,2,FALSE))","v":"02"},"Zentrale Desinfektionseinheit",{"$f":"IF(F584=\"\",\"00\",VLOOKUP(F584,'[1]Standardstruktur Anlagenmerkmal'!$N:$O,2,FALSE))","v":"02"},null,{"$f":"IF(H584=\"\",\"000\",VLOOKUP(H584,'[1]Nummerierung Bauteil'!$A:$C,3,FALSE))","v":"000"},null,"00",null,"00","kein EP","473.02.02.000.00.00",null,"kein Einheitspreis",null,null,null,0]
[473,"Medienversorgungsanlagen, Medizin- und labortechnische Anlagen",{"$f":"VLOOKUP(A585,'[1]Standardstruktur Anlagenmerkmal'!$C:$Z,3,FALSE)","v":473},"sonstige Medienversorgungsanlagen",{"$f":"IF(D585=\"\",\"00\",VLOOKUP(D585,'[1]Standardstruktur Anlagenmerkmal'!$F:$Z,2,FALSE))","v":"02"},"Vakuumerzeugungsanlage",{"$f":"IF(F585=\"\",\"00\",VLOOKUP(F585,'[1]Standardstruktur Anlagenmerkmal'!$N:$O,2,FALSE))","v":"03"},null,{"$f":"IF(H585=\"\",\"000\",VLOOKUP(H585,'[1]Nummerierung Bauteil'!$A:$C,3,FALSE))","v":"000"},null,"00",null,"00","kein EP","473.02.03.000.00.00",null,"kein Einheitspreis",null,null,null,0]
[473,"Medienversorgungsanlagen, Medizin- und labortechnische Anlagen",{"$f":"VLOOKUP(A586,'[1]Standardstruktur Anlagenmerkmal'!$C:$Z,3,FALSE)","v":473},"sonstige Medienversorgungsanlagen",{"$f":"IF(D586=\"\",\"00\",VLOOKUP(D586,'[1]Standardstruktur Anlagenmerkmal'!$F:$Z,2,FALSE))","v":"02"},"Verteilung und Aufbereitung für Gase",{"$f":"IF(F586=\"\",\"00\",VLOOKUP(F586,'[1]Standardstruktur Anlagenmerkmal'!$N:$O,2,FALSE))","v":"04"},null,{"$f":"IF(H586=\"\",\"000\",VLOOKUP(H586,'[1]Nummerierung Bauteil'!$A:$C,3,FALSE))","v":"000"},null,"00",null,"00","kein EP","473.02.04.000.00.00",null,"kein Einheitspreis",null,null,null,0]
[473,"Medienversorgungsanlagen, Medizin- und labortechnische Anlagen",{"$f":"VLOOKUP(A587,'[1]Standardstruktur Anlagenmerkmal'!$C:$Z,3,FALSE)","v":473},"sonstige Medienversorgungsanlagen",{"$f":"IF(D587=\"\",\"00\",VLOOKUP(D587,'[1]Standardstruktur Anlagenmerkmal'!$F:$Z,2,FALSE))","v":"02"},"Flüssigchemikalien (Zentrale)",{"$f":"IF(F587=\"\",\"00\",VLOOKUP(F587,'[1]Standardstruktur Anlagenmerkmal'!$N:$O,2,FALSE))","v":"05"},null,{"$f":"IF(H587=\"\",\"000\",VLOOKUP(H587,'[1]Nummerierung Bauteil'!$A:$C,3,FALSE))","v":"000"},null,"00",null,"00","kein EP","473.02.05.000.00.00",null,"kein Einheitspreis",null,null,null,0]
[473,"Medienversorgungsanlagen, Medizin- und labortechnische Anlagen",{"$f":"VLOOKUP(A588,'[1]Standardstruktur Anlagenmerkmal'!$C:$Z,3,FALSE)","v":473},"sonstige Medienversorgungsanlagen",{"$f":"IF(D588=\"\",\"00\",VLOOKUP(D588,'[1]Standardstruktur Anlagenmerkmal'!$F:$Z,2,FALSE))","v":"02"},"Leitung für Flüssigchemikalien",{"$f":"IF(F588=\"\",\"00\",VLOOKUP(F588,'[1]Standardstruktur Anlagenmerkmal'!$N:$O,2,FALSE))","v":"06"},null,{"$f":"IF(H588=\"\",\"000\",VLOOKUP(H588,'[1]Nummerierung Bauteil'!$A:$C,3,FALSE))","v":"000"},null,"00",null,"00","kein EP","473.02.06.000.00.00",null,"kein Einheitspreis",null,null,null,0]
[473,"Medienversorgungsanlagen, Medizin- und labortechnische Anlagen",{"$f":"VLOOKUP(A589,'[1]Standardstruktur Anlagenmerkmal'!$C:$Z,3,FALSE)","v":473},"sonstige Medienversorgungsanlagen",{"$f":"IF(D589=\"\",\"00\",VLOOKUP(D589,'[1]Standardstruktur Anlagenmerkmal'!$F:$Z,2,FALSE))","v":"02"},"Lagertank",{"$f":"IF(F589=\"\",\"00\",VLOOKUP(F589,'[1]Standardstruktur Anlagenmerkmal'!$N:$O,2,FALSE))","v":"07"},null,{"$f":"IF(H589=\"\",\"000\",VLOOKUP(H589,'[1]Nummerierung Bauteil'!$A:$C,3,FALSE))","v":"000"},null,"00",null,"00","kein EP","473.02.07.000.00.00",null,"kein Einheitspreis",null,null,null,0]
[474,"Feuerlöschanlagen",{"$f":"VLOOKUP(A590,'[1]Standardstruktur Anlagenmerkmal'!$C:$Z,3,FALSE)","v":474},"Sprinkler-, Gaslöschanlagen, Löschwasserleitungen, Wandhydranten, Handfeuerlöscher",{"$f":"IF(D590=\"\",\"00\",VLOOKUP(D590,'[1]Standardstruktur Anlagenmerkmal'!$F:$Z,2,FALSE))","v":"01"},"Löschwasseranlage (trocken)",{"$f":"IF(F590=\"\",\"00\",VLOOKUP(F590,'[1]Standardstruktur Anlagenmerkmal'!$N:$O,2,FALSE))","v":"01"},null,{"$f":"IF(H590=\"\",\"000\",VLOOKUP(H590,'[1]Nummerierung Bauteil'!$A:$C,3,FALSE))","v":"000"},null,"00",null,"00","Anzahl","474.01.01.000.00.00",null,1.6794980997317102,150.38070463698077,115.30969696969696,193.66241694124537,215.04440763088249]
[474,"Feuerlöschanlagen",{"$f":"VLOOKUP(A591,'[1]Standardstruktur Anlagenmerkmal'!$C:$Z,3,FALSE)","v":474},"Sprinkler-, Gaslöschanlagen, Löschwasserleitungen, Wandhydranten, Handfeuerlöscher",{"$f":"IF(D591=\"\",\"00\",VLOOKUP(D591,'[1]Standardstruktur Anlagenmerkmal'!$F:$Z,2,FALSE))","v":"01"},"Löschwasseranlage (nass-trocken)",{"$f":"IF(F591=\"\",\"00\",VLOOKUP(F591,'[1]Standardstruktur Anlagenmerkmal'!$N:$O,2,FALSE))","v":"02"},null,{"$f":"IF(H591=\"\",\"000\",VLOOKUP(H591,'[1]Nummerierung Bauteil'!$A:$C,3,FALSE))","v":"000"},null,"00",null,"00","Anzahl","474.01.02.000.00.00",null,1.3761785336933987,140.28958062925827,118.08,162.49916125851652,200.61410029983932]
[474,"Feuerlöschanlagen",{"$f":"VLOOKUP(A592,'[1]Standardstruktur Anlagenmerkmal'!$C:$Z,3,FALSE)","v":474},"Sprinkler-, Gaslöschanlagen, Löschwasserleitungen, Wandhydranten, Handfeuerlöscher",{"$f":"IF(D592=\"\",\"00\",VLOOKUP(D592,'[1]Standardstruktur Anlagenmerkmal'!$F:$Z,2,FALSE))","v":"01"},"Löschwasseranlage (nass-trocken)",{"$f":"IF(F592=\"\",\"00\",VLOOKUP(F592,'[1]Standardstruktur Anlagenmerkmal'!$N:$O,2,FALSE))","v":"02"},"Löschwasserleitung",{"$f":"IF(H592=\"\",\"000\",VLOOKUP(H592,'[1]Nummerierung Bauteil'!$A:$C,3,FALSE))","v":"176"},"Anzahl Entnahmestellen","01",null,"00","Anzahl","474.01.02.176.01.00",null,2.2027783507284853,32.46358264130744,20.6175,45.415782646144542,46.422923177069634]
[474,"Feuerlöschanlagen",{"$f":"VLOOKUP(A593,'[1]Standardstruktur Anlagenmerkmal'!$C:$Z,3,FALSE)","v":474},"Sprinkler-, Gaslöschanlagen, Löschwasserleitungen, Wandhydranten, Handfeuerlöscher",{"$f":"IF(D593=\"\",\"00\",VLOOKUP(D593,'[1]Standardstruktur Anlagenmerkmal'!$F:$Z,2,FALSE))","v":"01"},"Löschwasseranlage (nass-trocken)",{"$f":"IF(F593=\"\",\"00\",VLOOKUP(F593,'[1]Standardstruktur Anlagenmerkmal'!$N:$O,2,FALSE))","v":"02"},"Löschwasserleitung",{"$f":"IF(H593=\"\",\"000\",VLOOKUP(H593,'[1]Nummerierung Bauteil'!$A:$C,3,FALSE))","v":"176"},"Anzahl Wandhydranten","02",null,"00","Anzahl","474.01.02.176.02.00",null,1.7143271003317284,58.683751909171974,43.24,74.127503818343939,83.917765230115918]
[474,"Feuerlöschanlagen",{"$f":"VLOOKUP(A594,'[1]Standardstruktur Anlagenmerkmal'!$C:$Z,3,FALSE)","v":474},"Sprinkler-, Gaslöschanlagen, Löschwasserleitungen, Wandhydranten, Handfeuerlöscher",{"$f":"IF(D594=\"\",\"00\",VLOOKUP(D594,'[1]Standardstruktur Anlagenmerkmal'!$F:$Z,2,FALSE))","v":"01"},"Löschwasseranlage (nass-trocken)",{"$f":"IF(F594=\"\",\"00\",VLOOKUP(F594,'[1]Standardstruktur Anlagenmerkmal'!$N:$O,2,FALSE))","v":"02"},"Hydrant",{"$f":"IF(H594=\"\",\"000\",VLOOKUP(H594,'[1]Nummerierung Bauteil'!$A:$C,3,FALSE))","v":"156"},"Bauart = Überflurhydrant","03",null,"00","Anzahl","474.01.02.156.03.00",null,2.5038063634589109,81.528333333333322,38.422499999999999,96.202500000000001,116.58551666666665]
[474,"Feuerlöschanlagen",{"$f":"VLOOKUP(A595,'[1]Standardstruktur Anlagenmerkmal'!$C:$Z,3,FALSE)","v":474},"Sprinkler-, Gaslöschanlagen, Löschwasserleitungen, Wandhydranten, Handfeuerlöscher",{"$f":"IF(D595=\"\",\"00\",VLOOKUP(D595,'[1]Standardstruktur Anlagenmerkmal'!$F:$Z,2,FALSE))","v":"01"},"Löschwasseranlage (nass-trocken)",{"$f":"IF(F595=\"\",\"00\",VLOOKUP(F595,'[1]Standardstruktur Anlagenmerkmal'!$N:$O,2,FALSE))","v":"02"},"Hydrant",{"$f":"IF(H595=\"\",\"000\",VLOOKUP(H595,'[1]Nummerierung Bauteil'!$A:$C,3,FALSE))","v":"156"},"Bauart = Unterflurhydrant","04",null,"00","Anzahl","474.01.02.156.04.00",null,1.8477308072953487,61.409048522062115,35.364999999999995,65.344999999999999,87.814939386548815]
[474,"Feuerlöschanlagen",{"$f":"VLOOKUP(A596,'[1]Standardstruktur Anlagenmerkmal'!$C:$Z,3,FALSE)","v":474},"Sprinkler-, Gaslöschanlagen, Löschwasserleitungen, Wandhydranten, Handfeuerlöscher",{"$f":"IF(D596=\"\",\"00\",VLOOKUP(D596,'[1]Standardstruktur Anlagenmerkmal'!$F:$Z,2,FALSE))","v":"01"},"Löschwasseranlage (nass-trocken)",{"$f":"IF(F596=\"\",\"00\",VLOOKUP(F596,'[1]Standardstruktur Anlagenmerkmal'!$N:$O,2,FALSE))","v":"02"},"Nasstrockenstation",{"$f":"IF(H596=\"\",\"000\",VLOOKUP(H596,'[1]Nummerierung Bauteil'!$A:$C,3,FALSE))","v":"184"},null,"00",null,"00","Anzahl","474.01.02.184.00.00",null,2.5378692205149793,279.06932574059721,142.53,361.72250000000003,399.06913580905399]
[474,"Feuerlöschanlagen",{"$f":"VLOOKUP(A597,'[1]Standardstruktur Anlagenmerkmal'!$C:$Z,3,FALSE)","v":474},"Sprinkler-, Gaslöschanlagen, Löschwasserleitungen, Wandhydranten, Handfeuerlöscher",{"$f":"IF(D597=\"\",\"00\",VLOOKUP(D597,'[1]Standardstruktur Anlagenmerkmal'!$F:$Z,2,FALSE))","v":"01"},"Druckerhöhungsanlage für Löschwasseranlage",{"$f":"IF(F597=\"\",\"00\",VLOOKUP(F597,'[1]Standardstruktur Anlagenmerkmal'!$N:$O,2,FALSE))","v":"03"},null,{"$f":"IF(H597=\"\",\"000\",VLOOKUP(H597,'[1]Nummerierung Bauteil'!$A:$C,3,FALSE))","v":"000"},null,"00",null,"00","Anzahl","474.01.03.000.00.00",null,2.5724994968806603,185.64158597681384,99.38,255.655,265.46746794684378]
[474,"Feuerlöschanlagen",{"$f":"VLOOKUP(A598,'[1]Standardstruktur Anlagenmerkmal'!$C:$Z,3,FALSE)","v":474},"Sprinkler-, Gaslöschanlagen, Löschwasserleitungen, Wandhydranten, Handfeuerlöscher",{"$f":"IF(D598=\"\",\"00\",VLOOKUP(D598,'[1]Standardstruktur Anlagenmerkmal'!$F:$Z,2,FALSE))","v":"01"},"Sprinkleranlage",{"$f":"IF(F598=\"\",\"00\",VLOOKUP(F598,'[1]Standardstruktur Anlagenmerkmal'!$N:$O,2,FALSE))","v":"04"},"Vorratstank",{"$f":"IF(H598=\"\",\"000\",VLOOKUP(H598,'[1]Nummerierung Bauteil'!$A:$C,3,FALSE))","v":"223"},null,"00",null,"00","Anzahl","474.01.04.223.00.00",null,"kein Benchmark",null,null,null,0]
[474,"Feuerlöschanlagen",{"$f":"VLOOKUP(A599,'[1]Standardstruktur Anlagenmerkmal'!$C:$Z,3,FALSE)","v":474},"Sprinkler-, Gaslöschanlagen, Löschwasserleitungen, Wandhydranten, Handfeuerlöscher",{"$f":"IF(D599=\"\",\"00\",VLOOKUP(D599,'[1]Standardstruktur Anlagenmerkmal'!$F:$Z,2,FALSE))","v":"01"},"Sprinkleranlage",{"$f":"IF(F599=\"\",\"00\",VLOOKUP(F599,'[1]Standardstruktur Anlagenmerkmal'!$N:$O,2,FALSE))","v":"04"},"Druckluftwasserkessel inkl. Kompressor und Nachspeisepumpe",{"$f":"IF(H599=\"\",\"000\",VLOOKUP(H599,'[1]Nummerierung Bauteil'!$A:$C,3,FALSE))","v":"137"},null,"00",null,"00","Anzahl","474.01.04.137.00.00",null,1.2958054362470539,364.09748175033826,317.18496350067653,411.01,520.65939890298364]
[474,"Feuerlöschanlagen",{"$f":"VLOOKUP(A600,'[1]Standardstruktur Anlagenmerkmal'!$C:$Z,3,FALSE)","v":474},"Sprinkler-, Gaslöschanlagen, Löschwasserleitungen, Wandhydranten, Handfeuerlöscher",{"$f":"IF(D600=\"\",\"00\",VLOOKUP(D600,'[1]Standardstruktur Anlagenmerkmal'!$F:$Z,2,FALSE))","v":"01"},"Sprinkleranlage",{"$f":"IF(F600=\"\",\"00\",VLOOKUP(F600,'[1]Standardstruktur Anlagenmerkmal'!$N:$O,2,FALSE))","v":"04"},"Sprinklerpumpen",{"$f":"IF(H600=\"\",\"000\",VLOOKUP(H600,'[1]Nummerierung Bauteil'!$A:$C,3,FALSE))","v":"204"},"Energieversorgung Pumpe = Diesel","01",null,"00","Anzahl","474.01.04.204.01.00",null,"kein Benchmark",null,null,null,0]
[474,"Feuerlöschanlagen",{"$f":"VLOOKUP(A601,'[1]Standardstruktur Anlagenmerkmal'!$C:$Z,3,FALSE)","v":474},"Sprinkler-, Gaslöschanlagen, Löschwasserleitungen, Wandhydranten, Handfeuerlöscher",{"$f":"IF(D601=\"\",\"00\",VLOOKUP(D601,'[1]Standardstruktur Anlagenmerkmal'!$F:$Z,2,FALSE))","v":"01"},"Sprinkleranlage",{"$f":"IF(F601=\"\",\"00\",VLOOKUP(F601,'[1]Standardstruktur Anlagenmerkmal'!$N:$O,2,FALSE))","v":"04"},"Sprinklerpumpen",{"$f":"IF(H601=\"\",\"000\",VLOOKUP(H601,'[1]Nummerierung Bauteil'!$A:$C,3,FALSE))","v":"204"},"Energieversorgung Pumpe = Elektro","02",null,"00","Anzahl","474.01.04.204.02.00",null,"kein Benchmark",null,null,null,0]
[474,"Feuerlöschanlagen",{"$f":"VLOOKUP(A602,'[1]Standardstruktur Anlagenmerkmal'!$C:$Z,3,FALSE)","v":474},"Sprinkler-, Gaslöschanlagen, Löschwasserleitungen, Wandhydranten, Handfeuerlöscher",{"$f":"IF(D602=\"\",\"00\",VLOOKUP(D602,'[1]Standardstruktur Anlagenmerkmal'!$F:$Z,2,FALSE))","v":"01"},"Nassalarmventilstation (NAV)",{"$f":"IF(F602=\"\",\"00\",VLOOKUP(F602,'[1]Standardstruktur Anlagenmerkmal'!$N:$O,2,FALSE))","v":"05"},null,{"$f":"IF(H602=\"\",\"000\",VLOOKUP(H602,'[1]Nummerierung Bauteil'!$A:$C,3,FALSE))","v":"000"},null,"00",null,"00","Anzahl","474.01.05.000.00.00",null,"kein Benchmark",null,null,null,0]
[474,"Feuerlöschanlagen",{"$f":"VLOOKUP(A603,'[1]Standardstruktur Anlagenmerkmal'!$C:$Z,3,FALSE)","v":474},"Sprinkler-, Gaslöschanlagen, Löschwasserleitungen, Wandhydranten, Handfeuerlöscher",{"$f":"IF(D603=\"\",\"00\",VLOOKUP(D603,'[1]Standardstruktur Anlagenmerkmal'!$F:$Z,2,FALSE))","v":"01"},"Trockenalarmventilstation (TAV)",{"$f":"IF(F603=\"\",\"00\",VLOOKUP(F603,'[1]Standardstruktur Anlagenmerkmal'!$N:$O,2,FALSE))","v":"06"},null,{"$f":"IF(H603=\"\",\"000\",VLOOKUP(H603,'[1]Nummerierung Bauteil'!$A:$C,3,FALSE))","v":"000"},null,"00",null,"00","Anzahl","474.01.06.000.00.00",null,"kein Benchmark",null,null,null,0]
[474,"Feuerlöschanlagen",{"$f":"VLOOKUP(A604,'[1]Standardstruktur Anlagenmerkmal'!$C:$Z,3,FALSE)","v":474},"Sprinkler-, Gaslöschanlagen, Löschwasserleitungen, Wandhydranten, Handfeuerlöscher",{"$f":"IF(D604=\"\",\"00\",VLOOKUP(D604,'[1]Standardstruktur Anlagenmerkmal'!$F:$Z,2,FALSE))","v":"01"},"Handfeuerlöscher - CO2",{"$f":"IF(F604=\"\",\"00\",VLOOKUP(F604,'[1]Standardstruktur Anlagenmerkmal'!$N:$O,2,FALSE))","v":"07"},null,{"$f":"IF(H604=\"\",\"000\",VLOOKUP(H604,'[1]Nummerierung Bauteil'!$A:$C,3,FALSE))","v":"000"},null,"00","Inhalt 2 kg","01","Anzahl","474.01.07.000.00.01",null,1.1170951157910149,9.6483558849508206,9.1147117699016409,10.182,13.797148915479672]
[474,"Feuerlöschanlagen",{"$f":"VLOOKUP(A605,'[1]Standardstruktur Anlagenmerkmal'!$C:$Z,3,FALSE)","v":474},"Sprinkler-, Gaslöschanlagen, Löschwasserleitungen, Wandhydranten, Handfeuerlöscher",{"$f":"IF(D605=\"\",\"00\",VLOOKUP(D605,'[1]Standardstruktur Anlagenmerkmal'!$F:$Z,2,FALSE))","v":"01"},"Handfeuerlöscher - CO2",{"$f":"IF(F605=\"\",\"00\",VLOOKUP(F605,'[1]Standardstruktur Anlagenmerkmal'!$N:$O,2,FALSE))","v":"07"},null,{"$f":"IF(H605=\"\",\"000\",VLOOKUP(H605,'[1]Nummerierung Bauteil'!$A:$C,3,FALSE))","v":"000"},null,"00","Inhalt 5 kg","02","Anzahl","474.01.07.000.00.02",null,1.616954022988506,7.8756537932837078,6.38,10.316166666666668,11.262184924395701]
[474,"Feuerlöschanlagen",{"$f":"VLOOKUP(A606,'[1]Standardstruktur Anlagenmerkmal'!$C:$Z,3,FALSE)","v":474},"Sprinkler-, Gaslöschanlagen, Löschwasserleitungen, Wandhydranten, Handfeuerlöscher",{"$f":"IF(D606=\"\",\"00\",VLOOKUP(D606,'[1]Standardstruktur Anlagenmerkmal'!$F:$Z,2,FALSE))","v":"01"},"Handfeuerlöscher - CO2",{"$f":"IF(F606=\"\",\"00\",VLOOKUP(F606,'[1]Standardstruktur Anlagenmerkmal'!$N:$O,2,FALSE))","v":"07"},null,{"$f":"IF(H606=\"\",\"000\",VLOOKUP(H606,'[1]Nummerierung Bauteil'!$A:$C,3,FALSE))","v":"000"},null,"00","Inhalt 10 kg","03","Anzahl","474.01.07.000.00.03",null,1.0438450312069805,11.219431818181818,10.97875,11.460113636363637,16.043787499999997]
[474,"Feuerlöschanlagen",{"$f":"VLOOKUP(A607,'[1]Standardstruktur Anlagenmerkmal'!$C:$Z,3,FALSE)","v":474},"Sprinkler-, Gaslöschanlagen, Löschwasserleitungen, Wandhydranten, Handfeuerlöscher",{"$f":"IF(D607=\"\",\"00\",VLOOKUP(D607,'[1]Standardstruktur Anlagenmerkmal'!$F:$Z,2,FALSE))","v":"01"},"Handfeuerlöscher - CO2",{"$f":"IF(F607=\"\",\"00\",VLOOKUP(F607,'[1]Standardstruktur Anlagenmerkmal'!$N:$O,2,FALSE))","v":"07"},null,{"$f":"IF(H607=\"\",\"000\",VLOOKUP(H607,'[1]Nummerierung Bauteil'!$A:$C,3,FALSE))","v":"000"},null,"00","Inhalt 20 kg","04","Anzahl","474.01.07.000.00.04",null,1.9650067294751008,22.116782738436818,13.0025,25.549999999999997,31.62699931596465]
[474,"Feuerlöschanlagen",{"$f":"VLOOKUP(A608,'[1]Standardstruktur Anlagenmerkmal'!$C:$Z,3,FALSE)","v":474},"Sprinkler-, Gaslöschanlagen, Löschwasserleitungen, Wandhydranten, Handfeuerlöscher",{"$f":"IF(D608=\"\",\"00\",VLOOKUP(D608,'[1]Standardstruktur Anlagenmerkmal'!$F:$Z,2,FALSE))","v":"01"},"Handfeuerlöscher - CO2",{"$f":"IF(F608=\"\",\"00\",VLOOKUP(F608,'[1]Standardstruktur Anlagenmerkmal'!$N:$O,2,FALSE))","v":"07"},null,{"$f":"IF(H608=\"\",\"000\",VLOOKUP(H608,'[1]Nummerierung Bauteil'!$A:$C,3,FALSE))","v":"000"},null,"00","Inhalt 30 kg","05","Anzahl","474.01.07.000.00.05",null,2.1906240298044084,26.171393398578925,16.105,35.28,37.425092559967858]
[474,"Feuerlöschanlagen",{"$f":"VLOOKUP(A609,'[1]Standardstruktur Anlagenmerkmal'!$C:$Z,3,FALSE)","v":474},"Sprinkler-, Gaslöschanlagen, Löschwasserleitungen, Wandhydranten, Handfeuerlöscher",{"$f":"IF(D609=\"\",\"00\",VLOOKUP(D609,'[1]Standardstruktur Anlagenmerkmal'!$F:$Z,2,FALSE))","v":"01"},"Handfeuerlöscher - CO2",{"$f":"IF(F609=\"\",\"00\",VLOOKUP(F609,'[1]Standardstruktur Anlagenmerkmal'!$N:$O,2,FALSE))","v":"07"},null,{"$f":"IF(H609=\"\",\"000\",VLOOKUP(H609,'[1]Nummerierung Bauteil'!$A:$C,3,FALSE))","v":"000"},null,"00","Inhalt 60 kg","06","Anzahl","474.01.07.000.00.06",null,2.3409932412577135,36.7041206713062,21.268750000000001,49.79,52.486892559967863]
[474,"Feuerlöschanlagen",{"$f":"VLOOKUP(A610,'[1]Standardstruktur Anlagenmerkmal'!$C:$Z,3,FALSE)","v":474},"Sprinkler-, Gaslöschanlagen, Löschwasserleitungen, Wandhydranten, Handfeuerlöscher",{"$f":"IF(D610=\"\",\"00\",VLOOKUP(D610,'[1]Standardstruktur Anlagenmerkmal'!$F:$Z,2,FALSE))","v":"01"},"Handfeuerlöscher - Pulver",{"$f":"IF(F610=\"\",\"00\",VLOOKUP(F610,'[1]Standardstruktur Anlagenmerkmal'!$N:$O,2,FALSE))","v":"08"},null,{"$f":"IF(H610=\"\",\"000\",VLOOKUP(H610,'[1]Nummerierung Bauteil'!$A:$C,3,FALSE))","v":"000"},"Dauerdrucklöscher","01","Inhalt 6 kg","01","Anzahl","474.01.08.000.01.01",null,1.665085742578738,8.0470594811964506,5.58,9.2911784435893576,11.507295058110923]
[474,"Feuerlöschanlagen",{"$f":"VLOOKUP(A611,'[1]Standardstruktur Anlagenmerkmal'!$C:$Z,3,FALSE)","v":474},"Sprinkler-, Gaslöschanlagen, Löschwasserleitungen, Wandhydranten, Handfeuerlöscher",{"$f":"IF(D611=\"\",\"00\",VLOOKUP(D611,'[1]Standardstruktur Anlagenmerkmal'!$F:$Z,2,FALSE))","v":"01"},"Handfeuerlöscher - Pulver",{"$f":"IF(F611=\"\",\"00\",VLOOKUP(F611,'[1]Standardstruktur Anlagenmerkmal'!$N:$O,2,FALSE))","v":"08"},null,{"$f":"IF(H611=\"\",\"000\",VLOOKUP(H611,'[1]Nummerierung Bauteil'!$A:$C,3,FALSE))","v":"000"},"Dauerdrucklöscher","01","Inhalt 9 kg","02","Anzahl","474.01.08.000.01.02",null,1.0032678708402947,10.832329545454545,10.814659090909091,10.85,15.490231249999999]
[474,"Feuerlöschanlagen",{"$f":"VLOOKUP(A612,'[1]Standardstruktur Anlagenmerkmal'!$C:$Z,3,FALSE)","v":474},"Sprinkler-, Gaslöschanlagen, Löschwasserleitungen, Wandhydranten, Handfeuerlöscher",{"$f":"IF(D612=\"\",\"00\",VLOOKUP(D612,'[1]Standardstruktur Anlagenmerkmal'!$F:$Z,2,FALSE))","v":"01"},"Handfeuerlöscher - Pulver",{"$f":"IF(F612=\"\",\"00\",VLOOKUP(F612,'[1]Standardstruktur Anlagenmerkmal'!$N:$O,2,FALSE))","v":"08"},null,{"$f":"IF(H612=\"\",\"000\",VLOOKUP(H612,'[1]Nummerierung Bauteil'!$A:$C,3,FALSE))","v":"000"},"Dauerdrucklöscher","01","Inhalt 12 kg","03","Anzahl","474.01.08.000.01.03",null,1.7638736074817771,9.6497348484848491,6.61,11.659204545454548,13.799120833333333]
[474,"Feuerlöschanlagen",{"$f":"VLOOKUP(A613,'[1]Standardstruktur Anlagenmerkmal'!$C:$Z,3,FALSE)","v":474},"Sprinkler-, Gaslöschanlagen, Löschwasserleitungen, Wandhydranten, Handfeuerlöscher",{"$f":"IF(D613=\"\",\"00\",VLOOKUP(D613,'[1]Standardstruktur Anlagenmerkmal'!$F:$Z,2,FALSE))","v":"01"},"Handfeuerlöscher - Pulver",{"$f":"IF(F613=\"\",\"00\",VLOOKUP(F613,'[1]Standardstruktur Anlagenmerkmal'!$N:$O,2,FALSE))","v":"08"},null,{"$f":"IF(H613=\"\",\"000\",VLOOKUP(H613,'[1]Nummerierung Bauteil'!$A:$C,3,FALSE))","v":"000"},"Aufladelöscher","02","Inhalt 6 kg","01","Anzahl","474.01.08.000.02.01",null,1.0432943422996059,9.1664108367456674,8.9721883401580005,9.3606333333333342,13.107967496546303]
[474,"Feuerlöschanlagen",{"$f":"VLOOKUP(A614,'[1]Standardstruktur Anlagenmerkmal'!$C:$Z,3,FALSE)","v":474},"Sprinkler-, Gaslöschanlagen, Löschwasserleitungen, Wandhydranten, Handfeuerlöscher",{"$f":"IF(D614=\"\",\"00\",VLOOKUP(D614,'[1]Standardstruktur Anlagenmerkmal'!$F:$Z,2,FALSE))","v":"01"},"Handfeuerlöscher - Pulver",{"$f":"IF(F614=\"\",\"00\",VLOOKUP(F614,'[1]Standardstruktur Anlagenmerkmal'!$N:$O,2,FALSE))","v":"08"},null,{"$f":"IF(H614=\"\",\"000\",VLOOKUP(H614,'[1]Nummerierung Bauteil'!$A:$C,3,FALSE))","v":"000"},"Aufladelöscher","02","Inhalt 9 kg","02","Anzahl","474.01.08.000.02.02",null,1.0124965593173683,10.385511363636365,10.32102272727273,10.45,14.851281250000001]
[474,"Feuerlöschanlagen",{"$f":"VLOOKUP(A615,'[1]Standardstruktur Anlagenmerkmal'!$C:$Z,3,FALSE)","v":474},"Sprinkler-, Gaslöschanlagen, Löschwasserleitungen, Wandhydranten, Handfeuerlöscher",{"$f":"IF(D615=\"\",\"00\",VLOOKUP(D615,'[1]Standardstruktur Anlagenmerkmal'!$F:$Z,2,FALSE))","v":"01"},"Handfeuerlöscher - Pulver",{"$f":"IF(F615=\"\",\"00\",VLOOKUP(F615,'[1]Standardstruktur Anlagenmerkmal'!$N:$O,2,FALSE))","v":"08"},null,{"$f":"IF(H615=\"\",\"000\",VLOOKUP(H615,'[1]Nummerierung Bauteil'!$A:$C,3,FALSE))","v":"000"},"Aufladelöscher","02","Inhalt 12 kg","03","Anzahl","474.01.08.000.02.03",null,1.1036811779769526,11.202102272727274,10.65,11.754204545454547,16.01900625]
[474,"Feuerlöschanlagen",{"$f":"VLOOKUP(A616,'[1]Standardstruktur Anlagenmerkmal'!$C:$Z,3,FALSE)","v":474},"Sprinkler-, Gaslöschanlagen, Löschwasserleitungen, Wandhydranten, Handfeuerlöscher",{"$f":"IF(D616=\"\",\"00\",VLOOKUP(D616,'[1]Standardstruktur Anlagenmerkmal'!$F:$Z,2,FALSE))","v":"01"},"Handfeuerlöscher - Wasser",{"$f":"IF(F616=\"\",\"00\",VLOOKUP(F616,'[1]Standardstruktur Anlagenmerkmal'!$N:$O,2,FALSE))","v":"09"},null,{"$f":"IF(H616=\"\",\"000\",VLOOKUP(H616,'[1]Nummerierung Bauteil'!$A:$C,3,FALSE))","v":"000"},null,"00","Inhalt <= 10 l","01","Anzahl","474.01.09.000.00.01",null,1.4404223227752642,8.3108242272790047,6.63,9.5500000000000007,11.884478645008976]
[474,"Feuerlöschanlagen",{"$f":"VLOOKUP(A617,'[1]Standardstruktur Anlagenmerkmal'!$C:$Z,3,FALSE)","v":474},"Sprinkler-, Gaslöschanlagen, Löschwasserleitungen, Wandhydranten, Handfeuerlöscher",{"$f":"IF(D617=\"\",\"00\",VLOOKUP(D617,'[1]Standardstruktur Anlagenmerkmal'!$F:$Z,2,FALSE))","v":"01"},"Handfeuerlöscher - Schaum",{"$f":"IF(F617=\"\",\"00\",VLOOKUP(F617,'[1]Standardstruktur Anlagenmerkmal'!$N:$O,2,FALSE))","v":"10"},null,{"$f":"IF(H617=\"\",\"000\",VLOOKUP(H617,'[1]Nummerierung Bauteil'!$A:$C,3,FALSE))","v":"000"},"Dauerdrucklöscher","01","Inhalt <= 10 l","01","Anzahl","474.01.10.000.01.01",null,1.0867223517329265,8.9001188618775178,8.530237723755036,9.27,12.72716997248485]
[474,"Feuerlöschanlagen",{"$f":"VLOOKUP(A618,'[1]Standardstruktur Anlagenmerkmal'!$C:$Z,3,FALSE)","v":474},"Sprinkler-, Gaslöschanlagen, Löschwasserleitungen, Wandhydranten, Handfeuerlöscher",{"$f":"IF(D618=\"\",\"00\",VLOOKUP(D618,'[1]Standardstruktur Anlagenmerkmal'!$F:$Z,2,FALSE))","v":"01"},"Handfeuerlöscher - Schaum",{"$f":"IF(F618=\"\",\"00\",VLOOKUP(F618,'[1]Standardstruktur Anlagenmerkmal'!$N:$O,2,FALSE))","v":"10"},null,{"$f":"IF(H618=\"\",\"000\",VLOOKUP(H618,'[1]Nummerierung Bauteil'!$A:$C,3,FALSE))","v":"000"},"Aufladelöscher","02","Inhalt <= 10 l","01","Anzahl","474.01.10.000.02.01",null,1.8757017825860081,8.2921012205387203,5.42,10.166303661616164,11.85770474537037]
[474,"Feuerlöschanlagen",{"$f":"VLOOKUP(A619,'[1]Standardstruktur Anlagenmerkmal'!$C:$Z,3,FALSE)","v":474},"Sprinkler-, Gaslöschanlagen, Löschwasserleitungen, Wandhydranten, Handfeuerlöscher",{"$f":"IF(D619=\"\",\"00\",VLOOKUP(D619,'[1]Standardstruktur Anlagenmerkmal'!$F:$Z,2,FALSE))","v":"01"},"Handfeuerlöscher - Fettbrand",{"$f":"IF(F619=\"\",\"00\",VLOOKUP(F619,'[1]Standardstruktur Anlagenmerkmal'!$N:$O,2,FALSE))","v":"11"},null,{"$f":"IF(H619=\"\",\"000\",VLOOKUP(H619,'[1]Nummerierung Bauteil'!$A:$C,3,FALSE))","v":"000"},null,"00","Inhalt <= 10 l","01","Anzahl","474.01.11.000.00.01",null,1.6177570093457943,14.127999999999997,8.0250000000000004,12.9825,20.203039999999994]
[474,"Feuerlöschanlagen",{"$f":"VLOOKUP(A620,'[1]Standardstruktur Anlagenmerkmal'!$C:$Z,3,FALSE)","v":474},"Sprinkler-, Gaslöschanlagen, Löschwasserleitungen, Wandhydranten, Handfeuerlöscher",{"$f":"IF(D620=\"\",\"00\",VLOOKUP(D620,'[1]Standardstruktur Anlagenmerkmal'!$F:$Z,2,FALSE))","v":"01"},"Gaslöschanlage",{"$f":"IF(F620=\"\",\"00\",VLOOKUP(F620,'[1]Standardstruktur Anlagenmerkmal'!$N:$O,2,FALSE))","v":"12"},null,{"$f":"IF(H620=\"\",\"000\",VLOOKUP(H620,'[1]Nummerierung Bauteil'!$A:$C,3,FALSE))","v":"000"},"Löschmittelmedium = Argon","01","Anz. Flaschen <= 5 Stk.","01","pauschal","474.01.12.000.01.01",null,2.8958104652335659,468.99714285714282,240.77,697.22428571428566,670.66591428571417]
[474,"Feuerlöschanlagen",{"$f":"VLOOKUP(A621,'[1]Standardstruktur Anlagenmerkmal'!$C:$Z,3,FALSE)","v":474},"Sprinkler-, Gaslöschanlagen, Löschwasserleitungen, Wandhydranten, Handfeuerlöscher",{"$f":"IF(D621=\"\",\"00\",VLOOKUP(D621,'[1]Standardstruktur Anlagenmerkmal'!$F:$Z,2,FALSE))","v":"01"},"Gaslöschanlage",{"$f":"IF(F621=\"\",\"00\",VLOOKUP(F621,'[1]Standardstruktur Anlagenmerkmal'!$N:$O,2,FALSE))","v":"12"},null,{"$f":"IF(H621=\"\",\"000\",VLOOKUP(H621,'[1]Nummerierung Bauteil'!$A:$C,3,FALSE))","v":"000"},"Löschmittelmedium = Argon","01","Anz. Flaschen > 5 bis 10 Stk.","02","pauschal","474.01.12.000.01.02",null,2.851817805383023,664.43857142857144,345,983.87714285714287,950.14715714285717]
[474,"Feuerlöschanlagen",{"$f":"VLOOKUP(A622,'[1]Standardstruktur Anlagenmerkmal'!$C:$Z,3,FALSE)","v":474},"Sprinkler-, Gaslöschanlagen, Löschwasserleitungen, Wandhydranten, Handfeuerlöscher",{"$f":"IF(D622=\"\",\"00\",VLOOKUP(D622,'[1]Standardstruktur Anlagenmerkmal'!$F:$Z,2,FALSE))","v":"01"},"Gaslöschanlage",{"$f":"IF(F622=\"\",\"00\",VLOOKUP(F622,'[1]Standardstruktur Anlagenmerkmal'!$N:$O,2,FALSE))","v":"12"},null,{"$f":"IF(H622=\"\",\"000\",VLOOKUP(H622,'[1]Nummerierung Bauteil'!$A:$C,3,FALSE))","v":"000"},"Löschmittelmedium = Argon","01","Anz. Flaschen > 10 bis 20 Stk.","03","pauschal","474.01.12.000.01.03",null,3.0672267080745348,935.46214285714302,460,1410.924285714286,1337.7108642857145]
[474,"Feuerlöschanlagen",{"$f":"VLOOKUP(A623,'[1]Standardstruktur Anlagenmerkmal'!$C:$Z,3,FALSE)","v":474},"Sprinkler-, Gaslöschanlagen, Löschwasserleitungen, Wandhydranten, Handfeuerlöscher",{"$f":"IF(D623=\"\",\"00\",VLOOKUP(D623,'[1]Standardstruktur Anlagenmerkmal'!$F:$Z,2,FALSE))","v":"01"},"Gaslöschanlage",{"$f":"IF(F623=\"\",\"00\",VLOOKUP(F623,'[1]Standardstruktur Anlagenmerkmal'!$N:$O,2,FALSE))","v":"12"},null,{"$f":"IF(H623=\"\",\"000\",VLOOKUP(H623,'[1]Nummerierung Bauteil'!$A:$C,3,FALSE))","v":"000"},"Löschmittelmedium = CO2","02","Anz. Flaschen <= 5  Stk.","01","pauschal","474.01.12.000.02.01",null,3.7467032967032967,308.53571428571428,130,487.07142857142856,441.20607142857142]
[474,"Feuerlöschanlagen",{"$f":"VLOOKUP(A624,'[1]Standardstruktur Anlagenmerkmal'!$C:$Z,3,FALSE)","v":474},"Sprinkler-, Gaslöschanlagen, Löschwasserleitungen, Wandhydranten, Handfeuerlöscher",{"$f":"IF(D624=\"\",\"00\",VLOOKUP(D624,'[1]Standardstruktur Anlagenmerkmal'!$F:$Z,2,FALSE))","v":"01"},"Gaslöschanlage",{"$f":"IF(F624=\"\",\"00\",VLOOKUP(F624,'[1]Standardstruktur Anlagenmerkmal'!$N:$O,2,FALSE))","v":"12"},null,{"$f":"IF(H624=\"\",\"000\",VLOOKUP(H624,'[1]Nummerierung Bauteil'!$A:$C,3,FALSE))","v":"000"},"Löschmittelmedium = CO2","02","Anz. Flaschen > 5 bis 10 Stk.","02","pauschal","474.01.12.000.02.02",null,3.3886530612244905,460.8085714285715,210,711.61714285714299,658.95625714285723]
[474,"Feuerlöschanlagen",{"$f":"VLOOKUP(A625,'[1]Standardstruktur Anlagenmerkmal'!$C:$Z,3,FALSE)","v":474},"Sprinkler-, Gaslöschanlagen, Löschwasserleitungen, Wandhydranten, Handfeuerlöscher",{"$f":"IF(D625=\"\",\"00\",VLOOKUP(D625,'[1]Standardstruktur Anlagenmerkmal'!$F:$Z,2,FALSE))","v":"01"},"Gaslöschanlage",{"$f":"IF(F625=\"\",\"00\",VLOOKUP(F625,'[1]Standardstruktur Anlagenmerkmal'!$N:$O,2,FALSE))","v":"12"},null,{"$f":"IF(H625=\"\",\"000\",VLOOKUP(H625,'[1]Nummerierung Bauteil'!$A:$C,3,FALSE))","v":"000"},"Löschmittelmedium = CO2","02","Anz. Flaschen > 10 bis 20 Stk.","03","pauschal","474.01.12.000.02.03",null,2.4462380952380953,723.71,420,1027.42,1034.9052999999999]
[474,"Feuerlöschanlagen",{"$f":"VLOOKUP(A626,'[1]Standardstruktur Anlagenmerkmal'!$C:$Z,3,FALSE)","v":474},"Sprinkler-, Gaslöschanlagen, Löschwasserleitungen, Wandhydranten, Handfeuerlöscher",{"$f":"IF(D626=\"\",\"00\",VLOOKUP(D626,'[1]Standardstruktur Anlagenmerkmal'!$F:$Z,2,FALSE))","v":"01"},"Gaslöschanlage",{"$f":"IF(F626=\"\",\"00\",VLOOKUP(F626,'[1]Standardstruktur Anlagenmerkmal'!$N:$O,2,FALSE))","v":"12"},null,{"$f":"IF(H626=\"\",\"000\",VLOOKUP(H626,'[1]Nummerierung Bauteil'!$A:$C,3,FALSE))","v":"000"},"Löschmittelmedium = Stickstoff","03","Anz. Flaschen <= 5  Stk.","01","Anzahl","474.01.12.000.03.01",null,"kein Benchmark",null,null,null,0]
[474,"Feuerlöschanlagen",{"$f":"VLOOKUP(A627,'[1]Standardstruktur Anlagenmerkmal'!$C:$Z,3,FALSE)","v":474},"Sprinkler-, Gaslöschanlagen, Löschwasserleitungen, Wandhydranten, Handfeuerlöscher",{"$f":"IF(D627=\"\",\"00\",VLOOKUP(D627,'[1]Standardstruktur Anlagenmerkmal'!$F:$Z,2,FALSE))","v":"01"},"Gaslöschanlage",{"$f":"IF(F627=\"\",\"00\",VLOOKUP(F627,'[1]Standardstruktur Anlagenmerkmal'!$N:$O,2,FALSE))","v":"12"},null,{"$f":"IF(H627=\"\",\"000\",VLOOKUP(H627,'[1]Nummerierung Bauteil'!$A:$C,3,FALSE))","v":"000"},"Löschmittelmedium = Stickstoff","03","Anz. Flaschen > 5 bis 10 Stk.","02","Anzahl","474.01.12.000.03.02",null,"kein Benchmark",null,null,null,0]
[474,"Feuerlöschanlagen",{"$f":"VLOOKUP(A628,'[1]Standardstruktur Anlagenmerkmal'!$C:$Z,3,FALSE)","v":474},"Sprinkler-, Gaslöschanlagen, Löschwasserleitungen, Wandhydranten, Handfeuerlöscher",{"$f":"IF(D628=\"\",\"00\",VLOOKUP(D628,'[1]Standardstruktur Anlagenmerkmal'!$F:$Z,2,FALSE))","v":"01"},"Gaslöschanlage",{"$f":"IF(F628=\"\",\"00\",VLOOKUP(F628,'[1]Standardstruktur Anlagenmerkmal'!$N:$O,2,FALSE))","v":"12"},null,{"$f":"IF(H628=\"\",\"000\",VLOOKUP(H628,'[1]Nummerierung Bauteil'!$A:$C,3,FALSE))","v":"000"},"Löschmittelmedium = Stickstoff","03","Anz. Flaschen > 10 bis 20 Stk.","03","Anzahl","474.01.12.000.03.03",null,"kein Benchmark",null,null,null,0]
[474,"Feuerlöschanlagen",{"$f":"VLOOKUP(A629,'[1]Standardstruktur Anlagenmerkmal'!$C:$Z,3,FALSE)","v":474},"Sprinkler-, Gaslöschanlagen, Löschwasserleitungen, Wandhydranten, Handfeuerlöscher",{"$f":"IF(D629=\"\",\"00\",VLOOKUP(D629,'[1]Standardstruktur Anlagenmerkmal'!$F:$Z,2,FALSE))","v":"01"},"Gaslöschanlage",{"$f":"IF(F629=\"\",\"00\",VLOOKUP(F629,'[1]Standardstruktur Anlagenmerkmal'!$N:$O,2,FALSE))","v":"12"},null,{"$f":"IF(H629=\"\",\"000\",VLOOKUP(H629,'[1]Nummerierung Bauteil'!$A:$C,3,FALSE))","v":"000"},"Löschmittelmedium = Inergen","04","Anz. Flaschen <= 5  Stk.","01","pauschal","474.01.12.000.04.01",null,4.6481619047619045,423.61214285714283,150,697.22428571428566,605.76536428571421]
[474,"Feuerlöschanlagen",{"$f":"VLOOKUP(A630,'[1]Standardstruktur Anlagenmerkmal'!$C:$Z,3,FALSE)","v":474},"Sprinkler-, Gaslöschanlagen, Löschwasserleitungen, Wandhydranten, Handfeuerlöscher",{"$f":"IF(D630=\"\",\"00\",VLOOKUP(D630,'[1]Standardstruktur Anlagenmerkmal'!$F:$Z,2,FALSE))","v":"01"},"Gaslöschanlage",{"$f":"IF(F630=\"\",\"00\",VLOOKUP(F630,'[1]Standardstruktur Anlagenmerkmal'!$N:$O,2,FALSE))","v":"12"},null,{"$f":"IF(H630=\"\",\"000\",VLOOKUP(H630,'[1]Nummerierung Bauteil'!$A:$C,3,FALSE))","v":"000"},"Löschmittelmedium = Inergen","04","Anz. Flaschen > 5 bis 10 Stk.","02","pauschal","474.01.12.000.04.02",null,4.0669821428571433,659.72773809523812,240,976.07571428571441,943.4106654761905]
[474,"Feuerlöschanlagen",{"$f":"VLOOKUP(A631,'[1]Standardstruktur Anlagenmerkmal'!$C:$Z,3,FALSE)","v":474},"Sprinkler-, Gaslöschanlagen, Löschwasserleitungen, Wandhydranten, Handfeuerlöscher",{"$f":"IF(D631=\"\",\"00\",VLOOKUP(D631,'[1]Standardstruktur Anlagenmerkmal'!$F:$Z,2,FALSE))","v":"01"},"Gaslöschanlage",{"$f":"IF(F631=\"\",\"00\",VLOOKUP(F631,'[1]Standardstruktur Anlagenmerkmal'!$N:$O,2,FALSE))","v":"12"},null,{"$f":"IF(H631=\"\",\"000\",VLOOKUP(H631,'[1]Nummerierung Bauteil'!$A:$C,3,FALSE))","v":"000"},"Löschmittelmedium = Inergen","04","Anz. Flaschen > 10 bis 20 Stk.","03","pauschal","474.01.12.000.04.03",null,3.0267774086378738,865.75714285714287,430,1301.5142857142857,1238.0327142857143]
[474,"Feuerlöschanlagen",{"$f":"VLOOKUP(A632,'[1]Standardstruktur Anlagenmerkmal'!$C:$Z,3,FALSE)","v":474},"Sprinkler-, Gaslöschanlagen, Löschwasserleitungen, Wandhydranten, Handfeuerlöscher",{"$f":"IF(D632=\"\",\"00\",VLOOKUP(D632,'[1]Standardstruktur Anlagenmerkmal'!$F:$Z,2,FALSE))","v":"01"},"Gaslöschanlage",{"$f":"IF(F632=\"\",\"00\",VLOOKUP(F632,'[1]Standardstruktur Anlagenmerkmal'!$N:$O,2,FALSE))","v":"12"},null,{"$f":"IF(H632=\"\",\"000\",VLOOKUP(H632,'[1]Nummerierung Bauteil'!$A:$C,3,FALSE))","v":"000"},"Löschmittelmedium = Ansul","05",null,"00","Anzahl Auslösungen","474.01.12.000.05.00",null,1.1870733456523073,907.97443481428354,830.31,985.63886962856725,1298.4034417844255]
[474,"Feuerlöschanlagen",{"$f":"VLOOKUP(A633,'[1]Standardstruktur Anlagenmerkmal'!$C:$Z,3,FALSE)","v":474},"Sprinkler-, Gaslöschanlagen, Löschwasserleitungen, Wandhydranten, Handfeuerlöscher",{"$f":"IF(D633=\"\",\"00\",VLOOKUP(D633,'[1]Standardstruktur Anlagenmerkmal'!$F:$Z,2,FALSE))","v":"01"},"Sauerstoffreduktionsanlagen",{"$f":"IF(F633=\"\",\"00\",VLOOKUP(F633,'[1]Standardstruktur Anlagenmerkmal'!$N:$O,2,FALSE))","v":"13"},null,{"$f":"IF(H633=\"\",\"000\",VLOOKUP(H633,'[1]Nummerierung Bauteil'!$A:$C,3,FALSE))","v":"000"},null,"00",null,"00","kein EP","474.01.13.000.00.00",null,"kein Einheitspreis",null,null,null,0]
[476,"Weitere nutzungsspezifische Anlagen ",{"$f":"VLOOKUP(A634,'[1]Standardstruktur Anlagenmerkmal'!$C:$Z,3,FALSE)","v":476},"Abfall- und Medienentsorgungsanlagen, Staubsauganlagen",{"$f":"IF(D634=\"\",\"00\",VLOOKUP(D634,'[1]Standardstruktur Anlagenmerkmal'!$F:$Z,2,FALSE))","v":"01"},"Müllpresse u. Container mit Kraftantrieb",{"$f":"IF(F634=\"\",\"00\",VLOOKUP(F634,'[1]Standardstruktur Anlagenmerkmal'!$N:$O,2,FALSE))","v":"01"},null,{"$f":"IF(H634=\"\",\"000\",VLOOKUP(H634,'[1]Nummerierung Bauteil'!$A:$C,3,FALSE))","v":"000"},"Müllpresse","01","Volumen <= 10 m2","01","Anzahl","476.01.01.000.01.01",null,1.2613195820302816,284.92626733581551,252,317.85253467163096,407.44456229021614]
[476,"Weitere nutzungsspezifische Anlagen ",{"$f":"VLOOKUP(A635,'[1]Standardstruktur Anlagenmerkmal'!$C:$Z,3,FALSE)","v":476},"Abfall- und Medienentsorgungsanlagen, Staubsauganlagen",{"$f":"IF(D635=\"\",\"00\",VLOOKUP(D635,'[1]Standardstruktur Anlagenmerkmal'!$F:$Z,2,FALSE))","v":"01"},"Müllpresse u. Container mit Kraftantrieb",{"$f":"IF(F635=\"\",\"00\",VLOOKUP(F635,'[1]Standardstruktur Anlagenmerkmal'!$N:$O,2,FALSE))","v":"01"},null,{"$f":"IF(H635=\"\",\"000\",VLOOKUP(H635,'[1]Nummerierung Bauteil'!$A:$C,3,FALSE))","v":"000"},"Müllpresse","01","Volumen > 10 bis 20 m2","02","Anzahl","476.01.01.000.01.02",null,1.2428375060192749,321.84718211376594,287,356.69436422753188,460.24147042268527]
[476,"Weitere nutzungsspezifische Anlagen ",{"$f":"VLOOKUP(A636,'[1]Standardstruktur Anlagenmerkmal'!$C:$Z,3,FALSE)","v":476},"Abfall- und Medienentsorgungsanlagen, Staubsauganlagen",{"$f":"IF(D636=\"\",\"00\",VLOOKUP(D636,'[1]Standardstruktur Anlagenmerkmal'!$F:$Z,2,FALSE))","v":"01"},"Müllpresse u. Container mit Kraftantrieb",{"$f":"IF(F636=\"\",\"00\",VLOOKUP(F636,'[1]Standardstruktur Anlagenmerkmal'!$N:$O,2,FALSE))","v":"01"},null,{"$f":"IF(H636=\"\",\"000\",VLOOKUP(H636,'[1]Nummerierung Bauteil'!$A:$C,3,FALSE))","v":"000"},"Papierpresse","02","Volumen <= 10 m2","01","Anzahl","476.01.01.000.02.01",null,1.0670249737985034,264.9719313912301,256.38,273.56386278246026,378.90986188945902]
[476,"Weitere nutzungsspezifische Anlagen ",{"$f":"VLOOKUP(A637,'[1]Standardstruktur Anlagenmerkmal'!$C:$Z,3,FALSE)","v":476},"Abfall- und Medienentsorgungsanlagen, Staubsauganlagen",{"$f":"IF(D637=\"\",\"00\",VLOOKUP(D637,'[1]Standardstruktur Anlagenmerkmal'!$F:$Z,2,FALSE))","v":"01"},"Nassmüllentsorgung",{"$f":"IF(F637=\"\",\"00\",VLOOKUP(F637,'[1]Standardstruktur Anlagenmerkmal'!$N:$O,2,FALSE))","v":"02"},null,{"$f":"IF(H637=\"\",\"000\",VLOOKUP(H637,'[1]Nummerierung Bauteil'!$A:$C,3,FALSE))","v":"000"},null,"00",null,"00","kein EP","476.01.02.000.00.00",null,"kein Einheitspreis",null,null,null,0]
[476,"Weitere nutzungsspezifische Anlagen ",{"$f":"VLOOKUP(A638,'[1]Standardstruktur Anlagenmerkmal'!$C:$Z,3,FALSE)","v":476},"Abfall- und Medienentsorgungsanlagen, Staubsauganlagen",{"$f":"IF(D638=\"\",\"00\",VLOOKUP(D638,'[1]Standardstruktur Anlagenmerkmal'!$F:$Z,2,FALSE))","v":"01"},"Abfallzerkleinerungsanlage",{"$f":"IF(F638=\"\",\"00\",VLOOKUP(F638,'[1]Standardstruktur Anlagenmerkmal'!$N:$O,2,FALSE))","v":"03"},null,{"$f":"IF(H638=\"\",\"000\",VLOOKUP(H638,'[1]Nummerierung Bauteil'!$A:$C,3,FALSE))","v":"000"},null,"00",null,"00","kein EP","476.01.03.000.00.00",null,"kein Einheitspreis",null,null,null,0]
[476,"Weitere nutzungsspezifische Anlagen ",{"$f":"VLOOKUP(A639,'[1]Standardstruktur Anlagenmerkmal'!$C:$Z,3,FALSE)","v":476},"Abfall- und Medienentsorgungsanlagen, Staubsauganlagen",{"$f":"IF(D639=\"\",\"00\",VLOOKUP(D639,'[1]Standardstruktur Anlagenmerkmal'!$F:$Z,2,FALSE))","v":"01"},"Sonderabfallentsorgungsanlage",{"$f":"IF(F639=\"\",\"00\",VLOOKUP(F639,'[1]Standardstruktur Anlagenmerkmal'!$N:$O,2,FALSE))","v":"04"},null,{"$f":"IF(H639=\"\",\"000\",VLOOKUP(H639,'[1]Nummerierung Bauteil'!$A:$C,3,FALSE))","v":"000"},null,"00",null,"00","kein EP","476.01.04.000.00.00",null,"kein Einheitspreis",null,null,null,0]
[476,"Weitere nutzungsspezifische Anlagen ",{"$f":"VLOOKUP(A640,'[1]Standardstruktur Anlagenmerkmal'!$C:$Z,3,FALSE)","v":476},"Abfall- und Medienentsorgungsanlagen, Staubsauganlagen",{"$f":"IF(D640=\"\",\"00\",VLOOKUP(D640,'[1]Standardstruktur Anlagenmerkmal'!$F:$Z,2,FALSE))","v":"01"},"Recyclinganlage",{"$f":"IF(F640=\"\",\"00\",VLOOKUP(F640,'[1]Standardstruktur Anlagenmerkmal'!$N:$O,2,FALSE))","v":"05"},null,{"$f":"IF(H640=\"\",\"000\",VLOOKUP(H640,'[1]Nummerierung Bauteil'!$A:$C,3,FALSE))","v":"000"},null,"00",null,"00","kein EP","476.01.05.000.00.00",null,"kein Einheitspreis",null,null,null,0]
[476,"Weitere nutzungsspezifische Anlagen ",{"$f":"VLOOKUP(A641,'[1]Standardstruktur Anlagenmerkmal'!$C:$Z,3,FALSE)","v":476},"Abfall- und Medienentsorgungsanlagen, Staubsauganlagen",{"$f":"IF(D641=\"\",\"00\",VLOOKUP(D641,'[1]Standardstruktur Anlagenmerkmal'!$F:$Z,2,FALSE))","v":"01"},"Schlammpresse",{"$f":"IF(F641=\"\",\"00\",VLOOKUP(F641,'[1]Standardstruktur Anlagenmerkmal'!$N:$O,2,FALSE))","v":"06"},null,{"$f":"IF(H641=\"\",\"000\",VLOOKUP(H641,'[1]Nummerierung Bauteil'!$A:$C,3,FALSE))","v":"000"},null,"00",null,"00","kein EP","476.01.06.000.00.00",null,"kein Einheitspreis",null,null,null,0]
[476,"Weitere nutzungsspezifische Anlagen ",{"$f":"VLOOKUP(A642,'[1]Standardstruktur Anlagenmerkmal'!$C:$Z,3,FALSE)","v":476},"Abfall- und Medienentsorgungsanlagen, Staubsauganlagen",{"$f":"IF(D642=\"\",\"00\",VLOOKUP(D642,'[1]Standardstruktur Anlagenmerkmal'!$F:$Z,2,FALSE))","v":"01"},"Müllschacht",{"$f":"IF(F642=\"\",\"00\",VLOOKUP(F642,'[1]Standardstruktur Anlagenmerkmal'!$N:$O,2,FALSE))","v":"07"},null,{"$f":"IF(H642=\"\",\"000\",VLOOKUP(H642,'[1]Nummerierung Bauteil'!$A:$C,3,FALSE))","v":"000"},null,"00",null,"00","kein EP","476.01.07.000.00.00",null,"kein Einheitspreis",null,null,null,0]
[476,"Weitere nutzungsspezifische Anlagen ",{"$f":"VLOOKUP(A643,'[1]Standardstruktur Anlagenmerkmal'!$C:$Z,3,FALSE)","v":476},"Abfall- und Medienentsorgungsanlagen, Staubsauganlagen",{"$f":"IF(D643=\"\",\"00\",VLOOKUP(D643,'[1]Standardstruktur Anlagenmerkmal'!$F:$Z,2,FALSE))","v":"01"},"Staubsauganlage",{"$f":"IF(F643=\"\",\"00\",VLOOKUP(F643,'[1]Standardstruktur Anlagenmerkmal'!$N:$O,2,FALSE))","v":"08"},null,{"$f":"IF(H643=\"\",\"000\",VLOOKUP(H643,'[1]Nummerierung Bauteil'!$A:$C,3,FALSE))","v":"000"},null,"00",null,"00","kein EP","476.01.08.000.00.00",null,"kein Einheitspreis",null,null,null,{"$f":"R643*(((160.2-117.2)/100)+1)","v":0}]
[476,"Weitere nutzungsspezifische Anlagen ",{"$f":"VLOOKUP(A644,'[1]Standardstruktur Anlagenmerkmal'!$C:$Z,3,FALSE)","v":476},"Bühnentechnische Anlagen",{"$f":"IF(D644=\"\",\"00\",VLOOKUP(D644,'[1]Standardstruktur Anlagenmerkmal'!$F:$Z,2,FALSE))","v":"02"},"Bühnentechnische Anlage",{"$f":"IF(F644=\"\",\"00\",VLOOKUP(F644,'[1]Standardstruktur Anlagenmerkmal'!$N:$O,2,FALSE))","v":"01"},null,{"$f":"IF(H644=\"\",\"000\",VLOOKUP(H644,'[1]Nummerierung Bauteil'!$A:$C,3,FALSE))","v":"000"},null,"00",null,"00","kein EP","476.02.01.000.00.00",null,"kein Einheitspreis",null,null,null,0]
[476,"Weitere nutzungsspezifische Anlagen ",{"$f":"VLOOKUP(A645,'[1]Standardstruktur Anlagenmerkmal'!$C:$Z,3,FALSE)","v":476},"Tankstellenanlagen",{"$f":"IF(D645=\"\",\"00\",VLOOKUP(D645,'[1]Standardstruktur Anlagenmerkmal'!$F:$Z,2,FALSE))","v":"03"},"Tankstellenanlage",{"$f":"IF(F645=\"\",\"00\",VLOOKUP(F645,'[1]Standardstruktur Anlagenmerkmal'!$N:$O,2,FALSE))","v":"01"},null,{"$f":"IF(H645=\"\",\"000\",VLOOKUP(H645,'[1]Nummerierung Bauteil'!$A:$C,3,FALSE))","v":"000"},null,"00",null,"00","kein EP","476.03.01.000.00.00",null,"kein Einheitspreis",null,null,null,0]
[476,"Weitere nutzungsspezifische Anlagen ",{"$f":"VLOOKUP(A646,'[1]Standardstruktur Anlagenmerkmal'!$C:$Z,3,FALSE)","v":476},"Fahrzeugwaschanlagen",{"$f":"IF(D646=\"\",\"00\",VLOOKUP(D646,'[1]Standardstruktur Anlagenmerkmal'!$F:$Z,2,FALSE))","v":"04"},"Fahrzeugwaschanlage",{"$f":"IF(F646=\"\",\"00\",VLOOKUP(F646,'[1]Standardstruktur Anlagenmerkmal'!$N:$O,2,FALSE))","v":"01"},null,{"$f":"IF(H646=\"\",\"000\",VLOOKUP(H646,'[1]Nummerierung Bauteil'!$A:$C,3,FALSE))","v":"000"},null,"00",null,"00","kein EP","476.04.01.000.00.00",null,"kein Einheitspreis",null,null,null,0]
[481,"Automationseinrichtungen",{"$f":"VLOOKUP(A647,'[1]Standardstruktur Anlagenmerkmal'!$C:$Z,3,FALSE)","v":481},"Automationsstationen mit Bedien- und Beobachtungseinrichtungen, GA-Funktionen, Anwendungssoftware, Lizenzen, Sensoren und Aktoren, Schnittstellen zu Feldgeräten und anderen Automationseinrichtungen",{"$f":"IF(D647=\"\",\"00\",VLOOKUP(D647,'[1]Standardstruktur Anlagenmerkmal'!$F:$Z,2,FALSE))","v":"01"},"Automationssystem",{"$f":"IF(F647=\"\",\"00\",VLOOKUP(F647,'[1]Standardstruktur Anlagenmerkmal'!$N:$O,2,FALSE))","v":"01"},null,{"$f":"IF(H647=\"\",\"000\",VLOOKUP(H647,'[1]Nummerierung Bauteil'!$A:$C,3,FALSE))","v":"000"},"Anzahl Schaltschränke","01",null,"00","Anzahl","481.01.01.000.01.00","nur offene Systeme",1.2059840992999136,334.5485185793284,303.31,365.7870371586568,478.40438156843959]
[481,"Automationseinrichtungen",{"$f":"VLOOKUP(A648,'[1]Standardstruktur Anlagenmerkmal'!$C:$Z,3,FALSE)","v":481},"Automationsstationen mit Bedien- und Beobachtungseinrichtungen, GA-Funktionen, Anwendungssoftware, Lizenzen, Sensoren und Aktoren, Schnittstellen zu Feldgeräten und anderen Automationseinrichtungen",{"$f":"IF(D648=\"\",\"00\",VLOOKUP(D648,'[1]Standardstruktur Anlagenmerkmal'!$F:$Z,2,FALSE))","v":"01"},"Automationssystem",{"$f":"IF(F648=\"\",\"00\",VLOOKUP(F648,'[1]Standardstruktur Anlagenmerkmal'!$N:$O,2,FALSE))","v":"01"},"DDC",{"$f":"IF(H648=\"\",\"000\",VLOOKUP(H648,'[1]Nummerierung Bauteil'!$A:$C,3,FALSE))","v":"128"},"Anzahl (Ein-/Ausgänge physikalisch)","02",null,"00","Anzahl","481.01.01.128.02.00","nur offene Systeme","kein Benchmark",null,null,null,0]
[481,"Automationseinrichtungen",{"$f":"VLOOKUP(A649,'[1]Standardstruktur Anlagenmerkmal'!$C:$Z,3,FALSE)","v":481},"Automationsstationen mit Bedien- und Beobachtungseinrichtungen, GA-Funktionen, Anwendungssoftware, Lizenzen, Sensoren und Aktoren, Schnittstellen zu Feldgeräten und anderen Automationseinrichtungen",{"$f":"IF(D649=\"\",\"00\",VLOOKUP(D649,'[1]Standardstruktur Anlagenmerkmal'!$F:$Z,2,FALSE))","v":"01"},"Automationssystem",{"$f":"IF(F649=\"\",\"00\",VLOOKUP(F649,'[1]Standardstruktur Anlagenmerkmal'!$N:$O,2,FALSE))","v":"01"},"Feldgeräte",{"$f":"IF(H649=\"\",\"000\",VLOOKUP(H649,'[1]Nummerierung Bauteil'!$A:$C,3,FALSE))","v":"142"},"Anzahl Sensoren","03",null,"00","Anzahl","481.01.01.142.03.00","nur offene Systeme","kein Benchmark",null,null,null,0]
[481,"Automationseinrichtungen",{"$f":"VLOOKUP(A650,'[1]Standardstruktur Anlagenmerkmal'!$C:$Z,3,FALSE)","v":481},"Automationsstationen mit Bedien- und Beobachtungseinrichtungen, GA-Funktionen, Anwendungssoftware, Lizenzen, Sensoren und Aktoren, Schnittstellen zu Feldgeräten und anderen Automationseinrichtungen",{"$f":"IF(D650=\"\",\"00\",VLOOKUP(D650,'[1]Standardstruktur Anlagenmerkmal'!$F:$Z,2,FALSE))","v":"01"},"Automationssystem",{"$f":"IF(F650=\"\",\"00\",VLOOKUP(F650,'[1]Standardstruktur Anlagenmerkmal'!$N:$O,2,FALSE))","v":"01"},"Feldgeräte",{"$f":"IF(H650=\"\",\"000\",VLOOKUP(H650,'[1]Nummerierung Bauteil'!$A:$C,3,FALSE))","v":"142"},"Anzahl Aktoren","04",null,"00","Anzahl","481.01.01.142.04.00","nur offene Systeme","kein Benchmark",null,null,null,0]
[481,"Kabel, Leitungen und Verlegesysteme",{"$f":"VLOOKUP(A651,'[1]Standardstruktur Anlagenmerkmal'!$C:$Z,3,FALSE)","v":481},"Automationsstationen mit Bedien- und Beobachtungseinrichtungen, GA-Funktionen, Anwendungssoftware, Lizenzen, Sensoren und Aktoren, Schnittstellen zu Feldgeräten und anderen Automationseinrichtungen",{"$f":"IF(D651=\"\",\"00\",VLOOKUP(D651,'[1]Standardstruktur Anlagenmerkmal'!$F:$Z,2,FALSE))","v":"01"},"Raumautomationssystem (BUS-System)",{"$f":"IF(F651=\"\",\"00\",VLOOKUP(F651,'[1]Standardstruktur Anlagenmerkmal'!$N:$O,2,FALSE))","v":"02"},null,{"$f":"IF(H651=\"\",\"000\",VLOOKUP(H651,'[1]Nummerierung Bauteil'!$A:$C,3,FALSE))","v":"000"},"Programmierung = zentral","01","Anzahl aufgeschaltete Datenpunkte <= 50 Stk.","01","Anzahl","481.01.02.000.01.01","nur offene Systeme","kein Benchmark",null,null,null,0]
[481,"Kabel, Leitungen und Verlegesysteme",{"$f":"VLOOKUP(A652,'[1]Standardstruktur Anlagenmerkmal'!$C:$Z,3,FALSE)","v":481},"Automationsstationen mit Bedien- und Beobachtungseinrichtungen, GA-Funktionen, Anwendungssoftware, Lizenzen, Sensoren und Aktoren, Schnittstellen zu Feldgeräten und anderen Automationseinrichtungen",{"$f":"IF(D652=\"\",\"00\",VLOOKUP(D652,'[1]Standardstruktur Anlagenmerkmal'!$F:$Z,2,FALSE))","v":"01"},"Raumautomationssystem (BUS-System)",{"$f":"IF(F652=\"\",\"00\",VLOOKUP(F652,'[1]Standardstruktur Anlagenmerkmal'!$N:$O,2,FALSE))","v":"02"},null,{"$f":"IF(H652=\"\",\"000\",VLOOKUP(H652,'[1]Nummerierung Bauteil'!$A:$C,3,FALSE))","v":"000"},"Programmierung = zentral","01","Anzahl aufgeschaltete Datenpunkte > 50 bis 250 Stk.","02","Anzahl","481.01.02.000.01.02","nur offene Systeme","kein Benchmark",null,null,null,0]
[481,"Kabel, Leitungen und Verlegesysteme",{"$f":"VLOOKUP(A653,'[1]Standardstruktur Anlagenmerkmal'!$C:$Z,3,FALSE)","v":481},"Automationsstationen mit Bedien- und Beobachtungseinrichtungen, GA-Funktionen, Anwendungssoftware, Lizenzen, Sensoren und Aktoren, Schnittstellen zu Feldgeräten und anderen Automationseinrichtungen",{"$f":"IF(D653=\"\",\"00\",VLOOKUP(D653,'[1]Standardstruktur Anlagenmerkmal'!$F:$Z,2,FALSE))","v":"01"},"Raumautomationssystem (BUS-System)",{"$f":"IF(F653=\"\",\"00\",VLOOKUP(F653,'[1]Standardstruktur Anlagenmerkmal'!$N:$O,2,FALSE))","v":"02"},null,{"$f":"IF(H653=\"\",\"000\",VLOOKUP(H653,'[1]Nummerierung Bauteil'!$A:$C,3,FALSE))","v":"000"},"Programmierung = zentral","01","Anzahl aufgeschaltete Datenpunkte > 250 bis 500 Stk.","03","Anzahl","481.01.02.000.01.03","nur offene Systeme","kein Benchmark",null,null,null,0]
[481,"Kabel, Leitungen und Verlegesysteme",{"$f":"VLOOKUP(A654,'[1]Standardstruktur Anlagenmerkmal'!$C:$Z,3,FALSE)","v":481},"Automationsstationen mit Bedien- und Beobachtungseinrichtungen, GA-Funktionen, Anwendungssoftware, Lizenzen, Sensoren und Aktoren, Schnittstellen zu Feldgeräten und anderen Automationseinrichtungen",{"$f":"IF(D654=\"\",\"00\",VLOOKUP(D654,'[1]Standardstruktur Anlagenmerkmal'!$F:$Z,2,FALSE))","v":"01"},"Raumautomationssystem (BUS-System)",{"$f":"IF(F654=\"\",\"00\",VLOOKUP(F654,'[1]Standardstruktur Anlagenmerkmal'!$N:$O,2,FALSE))","v":"02"},null,{"$f":"IF(H654=\"\",\"000\",VLOOKUP(H654,'[1]Nummerierung Bauteil'!$A:$C,3,FALSE))","v":"000"},"Programmierung = zentral","01","Anzahl aufgeschaltete Datenpunkte > 500 bis 1000 Stk.","04","Anzahl","481.01.02.000.01.04","nur offene Systeme","kein Benchmark",null,null,null,0]
[481,"Kabel, Leitungen und Verlegesysteme",{"$f":"VLOOKUP(A655,'[1]Standardstruktur Anlagenmerkmal'!$C:$Z,3,FALSE)","v":481},"Automationsstationen mit Bedien- und Beobachtungseinrichtungen, GA-Funktionen, Anwendungssoftware, Lizenzen, Sensoren und Aktoren, Schnittstellen zu Feldgeräten und anderen Automationseinrichtungen",{"$f":"IF(D655=\"\",\"00\",VLOOKUP(D655,'[1]Standardstruktur Anlagenmerkmal'!$F:$Z,2,FALSE))","v":"01"},"Raumautomationssystem (BUS-System)",{"$f":"IF(F655=\"\",\"00\",VLOOKUP(F655,'[1]Standardstruktur Anlagenmerkmal'!$N:$O,2,FALSE))","v":"02"},null,{"$f":"IF(H655=\"\",\"000\",VLOOKUP(H655,'[1]Nummerierung Bauteil'!$A:$C,3,FALSE))","v":"000"},"Programmierung = dezentral","02","Anzahl aufgeschaltete Datenpunkte < 50 Stk.","01","Anzahl","481.01.02.000.02.01","nur offene Systeme","kein Benchmark",null,null,null,0]
[481,"Kabel, Leitungen und Verlegesysteme",{"$f":"VLOOKUP(A656,'[1]Standardstruktur Anlagenmerkmal'!$C:$Z,3,FALSE)","v":481},"Automationsstationen mit Bedien- und Beobachtungseinrichtungen, GA-Funktionen, Anwendungssoftware, Lizenzen, Sensoren und Aktoren, Schnittstellen zu Feldgeräten und anderen Automationseinrichtungen",{"$f":"IF(D656=\"\",\"00\",VLOOKUP(D656,'[1]Standardstruktur Anlagenmerkmal'!$F:$Z,2,FALSE))","v":"01"},"Raumautomationssystem (BUS-System)",{"$f":"IF(F656=\"\",\"00\",VLOOKUP(F656,'[1]Standardstruktur Anlagenmerkmal'!$N:$O,2,FALSE))","v":"02"},null,{"$f":"IF(H656=\"\",\"000\",VLOOKUP(H656,'[1]Nummerierung Bauteil'!$A:$C,3,FALSE))","v":"000"},"Programmierung = dezentral","02","Anzahl aufgeschaltete Datenpunkte > 50 bis 250 Stk.","02","Anzahl","481.01.02.000.02.02","nur offene Systeme","kein Benchmark",null,null,null,0]
[481,"Kabel, Leitungen und Verlegesysteme",{"$f":"VLOOKUP(A657,'[1]Standardstruktur Anlagenmerkmal'!$C:$Z,3,FALSE)","v":481},"Automationsstationen mit Bedien- und Beobachtungseinrichtungen, GA-Funktionen, Anwendungssoftware, Lizenzen, Sensoren und Aktoren, Schnittstellen zu Feldgeräten und anderen Automationseinrichtungen",{"$f":"IF(D657=\"\",\"00\",VLOOKUP(D657,'[1]Standardstruktur Anlagenmerkmal'!$F:$Z,2,FALSE))","v":"01"},"Raumautomationssystem (BUS-System)",{"$f":"IF(F657=\"\",\"00\",VLOOKUP(F657,'[1]Standardstruktur Anlagenmerkmal'!$N:$O,2,FALSE))","v":"02"},null,{"$f":"IF(H657=\"\",\"000\",VLOOKUP(H657,'[1]Nummerierung Bauteil'!$A:$C,3,FALSE))","v":"000"},"Programmierung = dezentral","02","Anzahl aufgeschaltete Datenpunkte > 250 bis 500 Stk.","03","Anzahl","481.01.02.000.02.03","nur offene Systeme","kein Benchmark",null,null,null,0]
[481,"Kabel, Leitungen und Verlegesysteme",{"$f":"VLOOKUP(A658,'[1]Standardstruktur Anlagenmerkmal'!$C:$Z,3,FALSE)","v":481},"Automationsstationen mit Bedien- und Beobachtungseinrichtungen, GA-Funktionen, Anwendungssoftware, Lizenzen, Sensoren und Aktoren, Schnittstellen zu Feldgeräten und anderen Automationseinrichtungen",{"$f":"IF(D658=\"\",\"00\",VLOOKUP(D658,'[1]Standardstruktur Anlagenmerkmal'!$F:$Z,2,FALSE))","v":"01"},"Raumautomationssystem (BUS-System)",{"$f":"IF(F658=\"\",\"00\",VLOOKUP(F658,'[1]Standardstruktur Anlagenmerkmal'!$N:$O,2,FALSE))","v":"02"},null,{"$f":"IF(H658=\"\",\"000\",VLOOKUP(H658,'[1]Nummerierung Bauteil'!$A:$C,3,FALSE))","v":"000"},"Programmierung = dezentral","02","Anzahl aufgeschaltete Datenpunkte > 500 bis 1000 Stk.","04","Anzahl","481.01.02.000.02.04","nur offene Systeme","kein Benchmark",null,null,null,0]
[482,"Schaltschränke, Automationsschwerpunkte",{"$f":"VLOOKUP(A659,'[1]Standardstruktur Anlagenmerkmal'!$C:$Z,3,FALSE)","v":482},"Schaltschränke zur Aufnahme von Automationssystemen (KG 481) mit Leistungs-, Steuerungs- und Sicherungsbaugruppen einschließlich zugehöriger Kabel und Leitungen, Verlegesysteme soweit nicht in anderen Kostengruppen erfasst",{"$f":"IF(D659=\"\",\"00\",VLOOKUP(D659,'[1]Standardstruktur Anlagenmerkmal'!$F:$Z,2,FALSE))","v":"01"},"GA-Schaltschrank",{"$f":"IF(F659=\"\",\"00\",VLOOKUP(F659,'[1]Standardstruktur Anlagenmerkmal'!$N:$O,2,FALSE))","v":"01"},null,{"$f":"IF(H659=\"\",\"000\",VLOOKUP(H659,'[1]Nummerierung Bauteil'!$A:$C,3,FALSE))","v":"000"},"Anzahl Felder","01",null,"00","Anzahl","482.01.01.000.01.00",null,2.0611272610490614,218.78059901823963,142.94119803647928,294.62,312.85625659608263]
[483,"Automationsmanagement",{"$f":"VLOOKUP(A660,'[1]Standardstruktur Anlagenmerkmal'!$C:$Z,3,FALSE)","v":483},"Übergeordnete Einrichtungen für Gebäudeautomation und Gebäudemanagement mit Bedienstationen, Programmiereinrichtungen, Anwendungssoftware, Lizenzen, Servern, Schnittstellen zu Automationseinrichtungen und externen Einrichtungen",{"$f":"IF(D660=\"\",\"00\",VLOOKUP(D660,'[1]Standardstruktur Anlagenmerkmal'!$F:$Z,2,FALSE))","v":"01"},"Management-Ebene",{"$f":"IF(F660=\"\",\"00\",VLOOKUP(F660,'[1]Standardstruktur Anlagenmerkmal'!$N:$O,2,FALSE))","v":"01"},null,{"$f":"IF(H660=\"\",\"000\",VLOOKUP(H660,'[1]Nummerierung Bauteil'!$A:$C,3,FALSE))","v":"000"},null,null,"Anzahl aufgeschalt. Datenpunkte (physikalisch) <= 5.000 Stk.","01","pauschal","483.01.01.000..01",null,"kein Benchmark",null,null,null,0]
[483,"Automationsmanagement",{"$f":"VLOOKUP(A661,'[1]Standardstruktur Anlagenmerkmal'!$C:$Z,3,FALSE)","v":483},"Übergeordnete Einrichtungen für Gebäudeautomation und Gebäudemanagement mit Bedienstationen, Programmiereinrichtungen, Anwendungssoftware, Lizenzen, Servern, Schnittstellen zu Automationseinrichtungen und externen Einrichtungen",{"$f":"IF(D661=\"\",\"00\",VLOOKUP(D661,'[1]Standardstruktur Anlagenmerkmal'!$F:$Z,2,FALSE))","v":"01"},"Management-Ebene",{"$f":"IF(F661=\"\",\"00\",VLOOKUP(F661,'[1]Standardstruktur Anlagenmerkmal'!$N:$O,2,FALSE))","v":"01"},null,{"$f":"IF(H661=\"\",\"000\",VLOOKUP(H661,'[1]Nummerierung Bauteil'!$A:$C,3,FALSE))","v":"000"},null,null,"Anzahl aufgeschalt. Datenpunkte (physikalisch) > 5.000 bis 25.000 Stk.","02","pauschal","483.01.01.000..02",null,"kein Benchmark",null,null,null,0]
[483,"Automationsmanagement",{"$f":"VLOOKUP(A662,'[1]Standardstruktur Anlagenmerkmal'!$C:$Z,3,FALSE)","v":483},"Übergeordnete Einrichtungen für Gebäudeautomation und Gebäudemanagement mit Bedienstationen, Programmiereinrichtungen, Anwendungssoftware, Lizenzen, Servern, Schnittstellen zu Automationseinrichtungen und externen Einrichtungen",{"$f":"IF(D662=\"\",\"00\",VLOOKUP(D662,'[1]Standardstruktur Anlagenmerkmal'!$F:$Z,2,FALSE))","v":"01"},"Management-Ebene",{"$f":"IF(F662=\"\",\"00\",VLOOKUP(F662,'[1]Standardstruktur Anlagenmerkmal'!$N:$O,2,FALSE))","v":"01"},null,{"$f":"IF(H662=\"\",\"000\",VLOOKUP(H662,'[1]Nummerierung Bauteil'!$A:$C,3,FALSE))","v":"000"},null,null,"Anzahl aufgeschalt. Datenpunkte (physikalisch) > 25.000 bis 50.000 Stk.","03","pauschal","483.01.01.000..03",null,"kein Benchmark",null,null,null,0]
[483,"Automationsmanagement",{"$f":"VLOOKUP(A663,'[1]Standardstruktur Anlagenmerkmal'!$C:$Z,3,FALSE)","v":483},"Übergeordnete Einrichtungen für Gebäudeautomation und Gebäudemanagement mit Bedienstationen, Programmiereinrichtungen, Anwendungssoftware, Lizenzen, Servern, Schnittstellen zu Automationseinrichtungen und externen Einrichtungen",{"$f":"IF(D663=\"\",\"00\",VLOOKUP(D663,'[1]Standardstruktur Anlagenmerkmal'!$F:$Z,2,FALSE))","v":"01"},"Management-Ebene",{"$f":"IF(F663=\"\",\"00\",VLOOKUP(F663,'[1]Standardstruktur Anlagenmerkmal'!$N:$O,2,FALSE))","v":"01"},null,{"$f":"IF(H663=\"\",\"000\",VLOOKUP(H663,'[1]Nummerierung Bauteil'!$A:$C,3,FALSE))","v":"000"},null,null,"Anzahl aufgeschalt. Datenpunkte (physikalisch) > 50.000 bis 100.000 Stk.","04","pauschal","483.01.01.000..04",null,"kein Benchmark",null,null,null,0]
[485,"Datenübertragungsnetze",{"$f":"VLOOKUP(A664,'[1]Standardstruktur Anlagenmerkmal'!$C:$Z,3,FALSE)","v":485},"Netze zur Datenübertragung",{"$f":"IF(D664=\"\",\"00\",VLOOKUP(D664,'[1]Standardstruktur Anlagenmerkmal'!$F:$Z,2,FALSE))","v":"01"},"GA-Netzwerk",{"$f":"IF(F664=\"\",\"00\",VLOOKUP(F664,'[1]Standardstruktur Anlagenmerkmal'!$N:$O,2,FALSE))","v":"01"},null,{"$f":"IF(H664=\"\",\"000\",VLOOKUP(H664,'[1]Nummerierung Bauteil'!$A:$C,3,FALSE))","v":"000"},null,"00",null,"00","kein EP","485.01.01.000.00.00","ist in Automationssystem enthalten","kein Einheitspreis",null,null,null,0]
[489,"Sonstiges zur KG 480",{"$f":"VLOOKUP(A665,'[1]Standardstruktur Anlagenmerkmal'!$C:$Z,3,FALSE)","v":489},"Wetterstation (Windwächter, Regenwächter, Windrichtung, Sonneneinstrahlung)",{"$f":"IF(D665=\"\",\"00\",VLOOKUP(D665,'[1]Standardstruktur Anlagenmerkmal'!$F:$Z,2,FALSE))","v":"01"},"Wetterstation (Windwächter, Regenwächter, Windrichtung, Sonneneinstrahlung)",{"$f":"IF(F665=\"\",\"00\",VLOOKUP(F665,'[1]Standardstruktur Anlagenmerkmal'!$N:$O,2,FALSE))","v":"01"},null,{"$f":"IF(H665=\"\",\"000\",VLOOKUP(H665,'[1]Nummerierung Bauteil'!$A:$C,3,FALSE))","v":"000"},null,"00",null,"00","pauschal","489.01.01.000.00.00",null,1.9113503911459073,73.49704062447843,50.49,96.504081248956865,105.10076809300415]